Workbook

Sheet TEMA
A1: Ing. Cristian Hdz.
A3: PRACTICA BUSCARV

Sheet PRACTICA
D1: =SUBTOTAL(9,D3:D102) -> 2195.640214 | E1: 1797.584238 | F1: 1873.193144 | G1: 2101.344115 | H1: 2227.057097 | J1: =SUBTOTAL(9,J3:J102) -> 125.7129823 | K1: -9724.231674
A2: Ventas | B2: BR | C2: Cliente | D2: P1 MAY 22 | E2: P1 JUN 22 | F2: P1 JUL 22 | G2: P1 AGO 22 | H2: P1 SEP 22 | I2: TENDENCIA | J2: Diferencia VS Mes Anterior | K2: Diferencia VS Mes Año Anterior
A3: VENDEDOR1 | C3: CLIENTE15 | D3: =IFERROR(VLOOKUP(C3,MATRIZ!$A$5:$CG$311,70,0),0) -> 2195.640214 | E3: =IFERROR(VLOOKUP(C3,MATRIZ!$A$5:$CG$311,74,0),0) -> 1797.584238 | F3: =IFERROR(VLOOKUP(C3,MATRIZ!$A$5:$CG$311,78,0),0) -> 1873.193144 | G3: =IFERROR(VLOOKUP(C3,MATRIZ!$A$5:$CG$311,82,0),0) -> 2101.344115 | H3: =IFERROR(VLOOKUP(C3,MATRIZ!$A$5:$DA$311,86,0),0) -> 2227.057097 | J3: =IFERROR(VLOOKUP(C3,MATRIZ!$A$5:$DA$311,90,0),0) -> 125.7129823 | K3: =IFERROR(VLOOKUP(C3,MATRIZ!$A$5:$DA$311,98,0),0) -> -9724.231674
J4: =IFERROR(VLOOKUP(C4,MATRIZ!$A$5:$DA$311,90,0),0) -> 0 | K4: =IFERROR(VLOOKUP(C4,MATRIZ!$A$5:$DA$311,98,0),0) -> 0
D5: =IFERROR(VLOOKUP(C5,MATRIZ!$A$5:$CG$311,70,0),0) -> 0 | E5: =IFERROR(VLOOKUP(C5,MATRIZ!$A$5:$CG$311,74,0),0) -> 0 | F5: =IFERROR(VLOOKUP(C5,MATRIZ!$A$5:$CG$311,78,0),0) -> 0 | G5: =IFERROR(VLOOKUP(C5,MATRIZ!$A$5:$CG$311,82,0),0) -> 0 | H5: =IFERROR(VLOOKUP(C5,MATRIZ!$A$5:$DA$311,86,0),0) -> 0 | J5: =IFERROR(VLOOKUP(C5,MATRIZ!$A$5:$DA$311,90,0),0) -> 0 | K5: =IFERROR(VLOOKUP(C5,MATRIZ!$A$5:$DA$311,98,0),0) -> 0
D6: =IFERROR(VLOOKUP(C6,MATRIZ!$A$5:$CG$311,70,0),0) -> 0 | E6: =IFERROR(VLOOKUP(C6,MATRIZ!$A$5:$CG$311,74,0),0) -> 0 | F6: =IFERROR(VLOOKUP(C6,MATRIZ!$A$5:$CG$311,78,0),0) -> 0 | G6: =IFERROR(VLOOKUP(C6,MATRIZ!$A$5:$CG$311,82,0),0) -> 0 | H6: =IFERROR(VLOOKUP(C6,MATRIZ!$A$5:$DA$311,86,0),0) -> 0 | J6: =IFERROR(VLOOKUP(C6,MATRIZ!$A$5:$DA$311,90,0),0) -> 0 | K6: =IFERROR(VLOOKUP(C6,MATRIZ!$A$5:$DA$311,98,0),0) -> 0
D7: =IFERROR(VLOOKUP(C7,MATRIZ!$A$5:$CG$311,70,0),0) -> 0 | E7: =IFERROR(VLOOKUP(C7,MATRIZ!$A$5:$CG$311,74,0),0) -> 0 | F7: =IFERROR(VLOOKUP(C7,MATRIZ!$A$5:$CG$311,78,0),0) -> 0 | G7: =IFERROR(VLOOKUP(C7,MATRIZ!$A$5:$CG$311,82,0),0) -> 0 | H7: =IFERROR(VLOOKUP(C7,MATRIZ!$A$5:$DA$311,86,0),0) -> 0 | J7: =IFERROR(VLOOKUP(C7,MATRIZ!$A$5:$DA$311,90,0),0) -> 0 | K7: =IFERROR(VLOOKUP(C7,MATRIZ!$A$5:$DA$311,98,0),0) -> 0
D8: =IFERROR(VLOOKUP(C8,MATRIZ!$A$5:$CG$311,70,0),0) -> 0 | E8: =IFERROR(VLOOKUP(C8,MATRIZ!$A$5:$CG$311,74,0),0) -> 0 | F8: =IFERROR(VLOOKUP(C8,MATRIZ!$A$5:$CG$311,78,0),0) -> 0 | G8: =IFERROR(VLOOKUP(C8,MATRIZ!$A$5:$CG$311,82,0),0) -> 0 | H8: =IFERROR(VLOOKUP(C8,MATRIZ!$A$5:$DA$311,86,0),0) -> 0 | J8: =IFERROR(VLOOKUP(C8,MATRIZ!$A$5:$DA$311,90,0),0) -> 0 | K8: =IFERROR(VLOOKUP(C8,MATRIZ!$A$5:$DA$311,98,0),0) -> 0
D9: =IFERROR(VLOOKUP(C9,MATRIZ!$A$5:$CG$311,70,0),0) -> 0 | E9: =IFERROR(VLOOKUP(C9,MATRIZ!$A$5:$CG$311,74,0),0) -> 0 | F9: =IFERROR(VLOOKUP(C9,MATRIZ!$A$5:$CG$311,78,0),0) -> 0 | G9: =IFERROR(VLOOKUP(C9,MATRIZ!$A$5:$CG$311,82,0),0) -> 0 | H9: =IFERROR(VLOOKUP(C9,MATRIZ!$A$5:$DA$311,86,0),0) -> 0 | J9: =IFERROR(VLOOKUP(C9,MATRIZ!$A$5:$DA$311,90,0),0) -> 0 | K9: =IFERROR(VLOOKUP(C9,MATRIZ!$A$5:$DA$311,98,0),0) -> 0
D10: =IFERROR(VLOOKUP(C10,MATRIZ!$A$5:$CG$311,70,0),0) -> 0 | E10: =IFERROR(VLOOKUP(C10,MATRIZ!$A$5:$CG$311,74,0),0) -> 0 | F10: =IFERROR(VLOOKUP(C10,MATRIZ!$A$5:$CG$311,78,0),0) -> 0 | G10: =IFERROR(VLOOKUP(C10,MATRIZ!$A$5:$CG$311,82,0),0) -> 0 | H10: =IFERROR(VLOOKUP(C10,MATRIZ!$A$5:$DA$311,86,0),0) -> 0 | J10: =IFERROR(VLOOKUP(C10,MATRIZ!$A$5:$DA$311,90,0),0) -> 0 | K10: =IFERROR(VLOOKUP(C10,MATRIZ!$A$5:$DA$311,98,0),0) -> 0
D11: =IFERROR(VLOOKUP(C11,MATRIZ!$A$5:$CG$311,70,0),0) -> 0 | E11: =IFERROR(VLOOKUP(C11,MATRIZ!$A$5:$CG$311,74,0),0) -> 0 | F11: =IFERROR(VLOOKUP(C11,MATRIZ!$A$5:$CG$311,78,0),0) -> 0 | G11: =IFERROR(VLOOKUP(C11,MATRIZ!$A$5:$CG$311,82,0),0) -> 0 | H11: =IFERROR(VLOOKUP(C11,MATRIZ!$A$5:$DA$311,86,0),0) -> 0 | J11: =IFERROR(VLOOKUP(C11,MATRIZ!$A$5:$DA$311,90,0),0) -> 0 | K11: =IFERROR(VLOOKUP(C11,MATRIZ!$A$5:$DA$311,98,0),0) -> 0
D12: =IFERROR(VLOOKUP(C12,MATRIZ!$A$5:$CG$311,70,0),0) -> 0 | E12: =IFERROR(VLOOKUP(C12,MATRIZ!$A$5:$CG$311,74,0),0) -> 0 | F12: =IFERROR(VLOOKUP(C12,MATRIZ!$A$5:$CG$311,78,0),0) -> 0 | G12: =IFERROR(VLOOKUP(C12,MATRIZ!$A$5:$CG$311,82,0),0) -> 0 | H12: =IFERROR(VLOOKUP(C12,MATRIZ!$A$5:$DA$311,86,0),0) -> 0 | J12: =IFERROR(VLOOKUP(C12,MATRIZ!$A$5:$DA$311,90,0),0) -> 0 | K12: =IFERROR(VLOOKUP(C12,MATRIZ!$A$5:$DA$311,98,0),0) -> 0
D13: =IFERROR(VLOOKUP(C13,MATRIZ!$A$5:$CG$311,70,0),0) -> 0 | E13: =IFERROR(VLOOKUP(C13,MATRIZ!$A$5:$CG$311,74,0),0) -> 0 | F13: =IFERROR(VLOOKUP(C13,MATRIZ!$A$5:$CG$311,78,0),0) -> 0 | G13: =IFERROR(VLOOKUP(C13,MATRIZ!$A$5:$CG$311,82,0),0) -> 0 | H13: =IFERROR(VLOOKUP(C13,MATRIZ!$A$5:$DA$311,86,0),0) -> 0 | J13: =IFERROR(VLOOKUP(C13,MATRIZ!$A$5:$DA$311,90,0),0) -> 0 | K13: =IFERROR(VLOOKUP(C13,MATRIZ!$A$5:$DA$311,98,0),0) -> 0
D14: =IFERROR(VLOOKUP(C14,MATRIZ!$A$5:$CG$311,70,0),0) -> 0 | E14: =IFERROR(VLOOKUP(C14,MATRIZ!$A$5:$CG$311,74,0),0) -> 0 | F14: =IFERROR(VLOOKUP(C14,MATRIZ!$A$5:$CG$311,78,0),0) -> 0 | G14: =IFERROR(VLOOKUP(C14,MATRIZ!$A$5:$CG$311,82,0),0) -> 0 | H14: =IFERROR(VLOOKUP(C14,MATRIZ!$A$5:$DA$311,86,0),0) -> 0 | J14: =IFERROR(VLOOKUP(C14,MATRIZ!$A$5:$DA$311,90,0),0) -> 0 | K14: =IFERROR(VLOOKUP(C14,MATRIZ!$A$5:$DA$311,98,0),0) -> 0
D15: =IFERROR(VLOOKUP(C15,MATRIZ!$A$5:$CG$311,70,0),0) -> 0 | E15: =IFERROR(VLOOKUP(C15,MATRIZ!$A$5:$CG$311,74,0),0) -> 0 | F15: =IFERROR(VLOOKUP(C15,MATRIZ!$A$5:$CG$311,78,0),0) -> 0 | G15: =IFERROR(VLOOKUP(C15,MATRIZ!$A$5:$CG$311,82,0),0) -> 0 | H15: =IFERROR(VLOOKUP(C15,MATRIZ!$A$5:$DA$311,86,0),0) -> 0 | J15: =IFERROR(VLOOKUP(C15,MATRIZ!$A$5:$DA$311,90,0),0) -> 0 | K15: =IFERROR(VLOOKUP(C15,MATRIZ!$A$5:$DA$311,98,0),0) -> 0
D16: =IFERROR(VLOOKUP(C16,MATRIZ!$A$5:$CG$311,70,0),0) -> 0 | E16: =IFERROR(VLOOKUP(C16,MATRIZ!$A$5:$CG$311,74,0),0) -> 0 | F16: =IFERROR(VLOOKUP(C16,MATRIZ!$A$5:$CG$311,78,0),0) -> 0 | G16: =IFERROR(VLOOKUP(C16,MATRIZ!$A$5:$CG$311,82,0),0) -> 0 | H16: =IFERROR(VLOOKUP(C16,MATRIZ!$A$5:$DA$311,86,0),0) -> 0 | J16: =IFERROR(VLOOKUP(C16,MATRIZ!$A$5:$DA$311,90,0),0) -> 0 | K16: =IFERROR(VLOOKUP(C16,MATRIZ!$A$5:$DA$311,98,0),0) -> 0
D17: =IFERROR(VLOOKUP(C17,MATRIZ!$A$5:$CG$311,70,0),0) -> 0 | E17: =IFERROR(VLOOKUP(C17,MATRIZ!$A$5:$CG$311,74,0),0) -> 0 | F17: =IFERROR(VLOOKUP(C17,MATRIZ!$A$5:$CG$311,78,0),0) -> 0 | G17: =IFERROR(VLOOKUP(C17,MATRIZ!$A$5:$CG$311,82,0),0) -> 0 | H17: =IFERROR(VLOOKUP(C17,MATRIZ!$A$5:$DA$311,86,0),0) -> 0 | J17: =IFERROR(VLOOKUP(C17,MATRIZ!$A$5:$DA$311,90,0),0) -> 0 | K17: =IFERROR(VLOOKUP(C17,MATRIZ!$A$5:$DA$311,98,0),0) -> 0
D18: =IFERROR(VLOOKUP(C18,MATRIZ!$A$5:$CG$311,70,0),0) -> 0 | E18: =IFERROR(VLOOKUP(C18,MATRIZ!$A$5:$CG$311,74,0),0) -> 0 | F18: =IFERROR(VLOOKUP(C18,MATRIZ!$A$5:$CG$311,78,0),0) -> 0 | G18: =IFERROR(VLOOKUP(C18,MATRIZ!$A$5:$CG$311,82,0),0) -> 0 | H18: =IFERROR(VLOOKUP(C18,MATRIZ!$A$5:$DA$311,86,0),0) -> 0 | J18: =IFERROR(VLOOKUP(C18,MATRIZ!$A$5:$DA$311,90,0),0) -> 0 | K18: =IFERROR(VLOOKUP(C18,MATRIZ!$A$5:$DA$311,98,0),0) -> 0
D19: =IFERROR(VLOOKUP(C19,MATRIZ!$A$5:$CG$311,70,0),0) -> 0 | E19: =IFERROR(VLOOKUP(C19,MATRIZ!$A$5:$CG$311,74,0),0) -> 0 | F19: =IFERROR(VLOOKUP(C19,MATRIZ!$A$5:$CG$311,78,0),0) -> 0 | G19: =IFERROR(VLOOKUP(C19,MATRIZ!$A$5:$CG$311,82,0),0) -> 0 | H19: =IFERROR(VLOOKUP(C19,MATRIZ!$A$5:$DA$311,86,0),0) -> 0 | J19: =IFERROR(VLOOKUP(C19,MATRIZ!$A$5:$DA$311,90,0),0) -> 0 | K19: =IFERROR(VLOOKUP(C19,MATRIZ!$A$5:$DA$311,98,0),0) -> 0
D20: =IFERROR(VLOOKUP(C20,MATRIZ!$A$5:$CG$311,70,0),0) -> 0 | E20: =IFERROR(VLOOKUP(C20,MATRIZ!$A$5:$CG$311,74,0),0) -> 0 | F20: =IFERROR(VLOOKUP(C20,MATRIZ!$A$5:$CG$311,78,0),0) -> 0 | G20: =IFERROR(VLOOKUP(C20,MATRIZ!$A$5:$CG$311,82,0),0) -> 0 | H20: =IFERROR(VLOOKUP(C20,MATRIZ!$A$5:$DA$311,86,0),0) -> 0 | J20: =IFERROR(VLOOKUP(C20,MATRIZ!$A$5:$DA$311,90,0),0) -> 0 | K20: =IFERROR(VLOOKUP(C20,MATRIZ!$A$5:$DA$311,98,0),0) -> 0
D21: =IFERROR(VLOOKUP(C21,MATRIZ!$A$5:$CG$311,70,0),0) -> 0 | E21: =IFERROR(VLOOKUP(C21,MATRIZ!$A$5:$CG$311,74,0),0) -> 0 | F21: =IFERROR(VLOOKUP(C21,MATRIZ!$A$5:$CG$311,78,0),0) -> 0 | G21: =IFERROR(VLOOKUP(C21,MATRIZ!$A$5:$CG$311,82,0),0) -> 0 | H21: =IFERROR(VLOOKUP(C21,MATRIZ!$A$5:$DA$311,86,0),0) -> 0 | J21: =IFERROR(VLOOKUP(C21,MATRIZ!$A$5:$DA$311,90,0),0) -> 0 | K21: =IFERROR(VLOOKUP(C21,MATRIZ!$A$5:$DA$311,98,0),0) -> 0
D22: =IFERROR(VLOOKUP(C22,MATRIZ!$A$5:$CG$311,70,0),0) -> 0 | E22: =IFERROR(VLOOKUP(C22,MATRIZ!$A$5:$CG$311,74,0),0) -> 0 | F22: =IFERROR(VLOOKUP(C22,MATRIZ!$A$5:$CG$311,78,0),0) -> 0 | G22: =IFERROR(VLOOKUP(C22,MATRIZ!$A$5:$CG$311,82,0),0) -> 0 | H22: =IFERROR(VLOOKUP(C22,MATRIZ!$A$5:$DA$311,86,0),0) -> 0 | J22: =IFERROR(VLOOKUP(C22,MATRIZ!$A$5:$DA$311,90,0),0) -> 0 | K22: =IFERROR(VLOOKUP(C22,MATRIZ!$A$5:$DA$311,98,0),0) -> 0
D23: =IFERROR(VLOOKUP(C23,MATRIZ!$A$5:$CG$311,70,0),0) -> 0 | E23: =IFERROR(VLOOKUP(C23,MATRIZ!$A$5:$CG$311,74,0),0) -> 0 | F23: =IFERROR(VLOOKUP(C23,MATRIZ!$A$5:$CG$311,78,0),0) -> 0 | G23: =IFERROR(VLOOKUP(C23,MATRIZ!$A$5:$CG$311,82,0),0) -> 0 | H23: =IFERROR(VLOOKUP(C23,MATRIZ!$A$5:$DA$311,86,0),0) -> 0 | J23: =IFERROR(VLOOKUP(C23,MATRIZ!$A$5:$DA$311,90,0),0) -> 0 | K23: =IFERROR(VLOOKUP(C23,MATRIZ!$A$5:$DA$311,98,0),0) -> 0
D24: =IFERROR(VLOOKUP(C24,MATRIZ!$A$5:$CG$311,70,0),0) -> 0 | E24: =IFERROR(VLOOKUP(C24,MATRIZ!$A$5:$CG$311,74,0),0) -> 0 | F24: =IFERROR(VLOOKUP(C24,MATRIZ!$A$5:$CG$311,78,0),0) -> 0 | G24: =IFERROR(VLOOKUP(C24,MATRIZ!$A$5:$CG$311,82,0),0) -> 0 | H24: =IFERROR(VLOOKUP(C24,MATRIZ!$A$5:$DA$311,86,0),0) -> 0 | J24: =IFERROR(VLOOKUP(C24,MATRIZ!$A$5:$DA$311,90,0),0) -> 0 | K24: =IFERROR(VLOOKUP(C24,MATRIZ!$A$5:$DA$311,98,0),0) -> 0
D25: =IFERROR(VLOOKUP(C25,MATRIZ!$A$5:$CG$311,70,0),0) -> 0 | E25: =IFERROR(VLOOKUP(C25,MATRIZ!$A$5:$CG$311,74,0),0) -> 0 | F25: =IFERROR(VLOOKUP(C25,MATRIZ!$A$5:$CG$311,78,0),0) -> 0 | G25: =IFERROR(VLOOKUP(C25,MATRIZ!$A$5:$CG$311,82,0),0) -> 0 | H25: =IFERROR(VLOOKUP(C25,MATRIZ!$A$5:$DA$311,86,0),0) -> 0 | J25: =IFERROR(VLOOKUP(C25,MATRIZ!$A$5:$DA$311,90,0),0) -> 0 | K25: =IFERROR(VLOOKUP(C25,MATRIZ!$A$5:$DA$311,98,0),0) -> 0
D26: =IFERROR(VLOOKUP(C26,MATRIZ!$A$5:$CG$311,70,0),0) -> 0 | E26: =IFERROR(VLOOKUP(C26,MATRIZ!$A$5:$CG$311,74,0),0) -> 0 | F26: =IFERROR(VLOOKUP(C26,MATRIZ!$A$5:$CG$311,78,0),0) -> 0 | G26: =IFERROR(VLOOKUP(C26,MATRIZ!$A$5:$CG$311,82,0),0) -> 0 | H26: =IFERROR(VLOOKUP(C26,MATRIZ!$A$5:$DA$311,86,0),0) -> 0 | J26: =IFERROR(VLOOKUP(C26,MATRIZ!$A$5:$DA$311,90,0),0) -> 0 | K26: =IFERROR(VLOOKUP(C26,MATRIZ!$A$5:$DA$311,98,0),0) -> 0
D27: =IFERROR(VLOOKUP(C27,MATRIZ!$A$5:$CG$311,70,0),0) -> 0 | E27: =IFERROR(VLOOKUP(C27,MATRIZ!$A$5:$CG$311,74,0),0) -> 0 | F27: =IFERROR(VLOOKUP(C27,MATRIZ!$A$5:$CG$311,78,0),0) -> 0 | G27: =IFERROR(VLOOKUP(C27,MATRIZ!$A$5:$CG$311,82,0),0) -> 0 | H27: =IFERROR(VLOOKUP(C27,MATRIZ!$A$5:$DA$311,86,0),0) -> 0 | J27: =IFERROR(VLOOKUP(C27,MATRIZ!$A$5:$DA$311,90,0),0) -> 0 | K27: =IFERROR(VLOOKUP(C27,MATRIZ!$A$5:$DA$311,98,0),0) -> 0
D28: =IFERROR(VLOOKUP(C28,MATRIZ!$A$5:$CG$311,70,0),0) -> 0 | E28: =IFERROR(VLOOKUP(C28,MATRIZ!$A$5:$CG$311,74,0),0) -> 0 | F28: =IFERROR(VLOOKUP(C28,MATRIZ!$A$5:$CG$311,78,0),0) -> 0 | G28: =IFERROR(VLOOKUP(C28,MATRIZ!$A$5:$CG$311,82,0),0) -> 0 | H28: =IFERROR(VLOOKUP(C28,MATRIZ!$A$5:$DA$311,86,0),0) -> 0 | J28: =IFERROR(VLOOKUP(C28,MATRIZ!$A$5:$DA$311,90,0),0) -> 0 | K28: =IFERROR(VLOOKUP(C28,MATRIZ!$A$5:$DA$311,98,0),0) -> 0
D29: =IFERROR(VLOOKUP(C29,MATRIZ!$A$5:$CG$311,70,0),0) -> 0 | E29: =IFERROR(VLOOKUP(C29,MATRIZ!$A$5:$CG$311,74,0),0) -> 0 | F29: =IFERROR(VLOOKUP(C29,MATRIZ!$A$5:$CG$311,78,0),0) -> 0 | G29: =IFERROR(VLOOKUP(C29,MATRIZ!$A$5:$CG$311,82,0),0) -> 0 | H29: =IFERROR(VLOOKUP(C29,MATRIZ!$A$5:$DA$311,86,0),0) -> 0 | J29: =IFERROR(VLOOKUP(C29,MATRIZ!$A$5:$DA$311,90,0),0) -> 0 | K29: =IFERROR(VLOOKUP(C29,MATRIZ!$A$5:$DA$311,98,0),0) -> 0
D30: =IFERROR(VLOOKUP(C30,MATRIZ!$A$5:$CG$311,70,0),0) -> 0 | E30: =IFERROR(VLOOKUP(C30,MATRIZ!$A$5:$CG$311,74,0),0) -> 0 | F30: =IFERROR(VLOOKUP(C30,MATRIZ!$A$5:$CG$311,78,0),0) -> 0 | G30: =IFERROR(VLOOKUP(C30,MATRIZ!$A$5:$CG$311,82,0),0) -> 0 | H30: =IFERROR(VLOOKUP(C30,MATRIZ!$A$5:$DA$311,86,0),0) -> 0 | J30: =IFERROR(VLOOKUP(C30,MATRIZ!$A$5:$DA$311,90,0),0) -> 0 | K30: =IFERROR(VLOOKUP(C30,MATRIZ!$A$5:$DA$311,98,0),0) -> 0
D31: =IFERROR(VLOOKUP(C31,MATRIZ!$A$5:$CG$311,70,0),0) -> 0 | E31: =IFERROR(VLOOKUP(C31,MATRIZ!$A$5:$CG$311,74,0),0) -> 0 | F31: =IFERROR(VLOOKUP(C31,MATRIZ!$A$5:$CG$311,78,0),0) -> 0 | G31: =IFERROR(VLOOKUP(C31,MATRIZ!$A$5:$CG$311,82,0),0) -> 0 | H31: =IFERROR(VLOOKUP(C31,MATRIZ!$A$5:$DA$311,86,0),0) -> 0 | J31: =IFERROR(VLOOKUP(C31,MATRIZ!$A$5:$DA$311,90,0),0) -> 0 | K31: =IFERROR(VLOOKUP(C31,MATRIZ!$A$5:$DA$311,98,0),0) -> 0
D32: =IFERROR(VLOOKUP(C32,MATRIZ!$A$5:$CG$311,70,0),0) -> 0 | E32: =IFERROR(VLOOKUP(C32,MATRIZ!$A$5:$CG$311,74,0),0) -> 0 | F32: =IFERROR(VLOOKUP(C32,MATRIZ!$A$5:$CG$311,78,0),0) -> 0 | G32: =IFERROR(VLOOKUP(C32,MATRIZ!$A$5:$CG$311,82,0),0) -> 0 | H32: =IFERROR(VLOOKUP(C32,MATRIZ!$A$5:$DA$311,86,0),0) -> 0 | J32: =IFERROR(VLOOKUP(C32,MATRIZ!$A$5:$DA$311,90,0),0) -> 0 | K32: =IFERROR(VLOOKUP(C32,MATRIZ!$A$5:$DA$311,98,0),0) -> 0
D33: =IFERROR(VLOOKUP(C33,MATRIZ!$A$5:$CG$311,70,0),0) -> 0 | E33: =IFERROR(VLOOKUP(C33,MATRIZ!$A$5:$CG$311,74,0),0) -> 0 | F33: =IFERROR(VLOOKUP(C33,MATRIZ!$A$5:$CG$311,78,0),0) -> 0 | G33: =IFERROR(VLOOKUP(C33,MATRIZ!$A$5:$CG$311,82,0),0) -> 0 | H33: =IFERROR(VLOOKUP(C33,MATRIZ!$A$5:$DA$311,86,0),0) -> 0 | J33: =IFERROR(VLOOKUP(C33,MATRIZ!$A$5:$DA$311,90,0),0) -> 0 | K33: =IFERROR(VLOOKUP(C33,MATRIZ!$A$5:$DA$311,98,0),0) -> 0
D34: =IFERROR(VLOOKUP(C34,MATRIZ!$A$5:$CG$311,70,0),0) -> 0 | E34: =IFERROR(VLOOKUP(C34,MATRIZ!$A$5:$CG$311,74,0),0) -> 0 | F34: =IFERROR(VLOOKUP(C34,MATRIZ!$A$5:$CG$311,78,0),0) -> 0 | G34: =IFERROR(VLOOKUP(C34,MATRIZ!$A$5:$CG$311,82,0),0) -> 0 | H34: =IFERROR(VLOOKUP(C34,MATRIZ!$A$5:$DA$311,86,0),0) -> 0 | J34: =IFERROR(VLOOKUP(C34,MATRIZ!$A$5:$DA$311,90,0),0) -> 0 | K34: =IFERROR(VLOOKUP(C34,MATRIZ!$A$5:$DA$311,98,0),0) -> 0
D35: =IFERROR(VLOOKUP(C35,MATRIZ!$A$5:$CG$311,70,0),0) -> 0 | E35: =IFERROR(VLOOKUP(C35,MATRIZ!$A$5:$CG$311,74,0),0) -> 0 | F35: =IFERROR(VLOOKUP(C35,MATRIZ!$A$5:$CG$311,78,0),0) -> 0 | G35: =IFERROR(VLOOKUP(C35,MATRIZ!$A$5:$CG$311,82,0),0) -> 0 | H35: =IFERROR(VLOOKUP(C35,MATRIZ!$A$5:$DA$311,86,0),0) -> 0 | J35: =IFERROR(VLOOKUP(C35,MATRIZ!$A$5:$DA$311,90,0),0) -> 0 | K35: =IFERROR(VLOOKUP(C35,MATRIZ!$A$5:$DA$311,98,0),0) -> 0
D36: =IFERROR(VLOOKUP(C36,MATRIZ!$A$5:$CG$311,70,0),0) -> 0 | E36: =IFERROR(VLOOKUP(C36,MATRIZ!$A$5:$CG$311,74,0),0) -> 0 | F36: =IFERROR(VLOOKUP(C36,MATRIZ!$A$5:$CG$311,78,0),0) -> 0 | G36: =IFERROR(VLOOKUP(C36,MATRIZ!$A$5:$CG$311,82,0),0) -> 0 | H36: =IFERROR(VLOOKUP(C36,MATRIZ!$A$5:$DA$311,86,0),0) -> 0 | J36: =IFERROR(VLOOKUP(C36,MATRIZ!$A$5:$DA$311,90,0),0) -> 0 | K36: =IFERROR(VLOOKUP(C36,MATRIZ!$A$5:$DA$311,98,0),0) -> 0
D37: =IFERROR(VLOOKUP(C37,MATRIZ!$A$5:$CG$311,70,0),0) -> 0 | E37: =IFERROR(VLOOKUP(C37,MATRIZ!$A$5:$CG$311,74,0),0) -> 0 | F37: =IFERROR(VLOOKUP(C37,MATRIZ!$A$5:$CG$311,78,0),0) -> 0 | G37: =IFERROR(VLOOKUP(C37,MATRIZ!$A$5:$CG$311,82,0),0) -> 0 | H37: =IFERROR(VLOOKUP(C37,MATRIZ!$A$5:$DA$311,86,0),0) -> 0 | J37: =IFERROR(VLOOKUP(C37,MATRIZ!$A$5:$DA$311,90,0),0) -> 0 | K37: =IFERROR(VLOOKUP(C37,MATRIZ!$A$5:$DA$311,98,0),0) -> 0
D38: =IFERROR(VLOOKUP(C38,MATRIZ!$A$5:$CG$311,70,0),0) -> 0 | E38: =IFERROR(VLOOKUP(C38,MATRIZ!$A$5:$CG$311,74,0),0) -> 0 | F38: =IFERROR(VLOOKUP(C38,MATRIZ!$A$5:$CG$311,78,0),0) -> 0 | G38: =IFERROR(VLOOKUP(C38,MATRIZ!$A$5:$CG$311,82,0),0) -> 0 | H38: =IFERROR(VLOOKUP(C38,MATRIZ!$A$5:$DA$311,86,0),0) -> 0 | J38: =IFERROR(VLOOKUP(C38,MATRIZ!$A$5:$DA$311,90,0),0) -> 0 | K38: =IFERROR(VLOOKUP(C38,MATRIZ!$A$5:$DA$311,98,0),0) -> 0
D39: =IFERROR(VLOOKUP(C39,MATRIZ!$A$5:$CG$311,70,0),0) -> 0 | E39: =IFERROR(VLOOKUP(C39,MATRIZ!$A$5:$CG$311,74,0),0) -> 0 | F39: =IFERROR(VLOOKUP(C39,MATRIZ!$A$5:$CG$311,78,0),0) -> 0 | G39: =IFERROR(VLOOKUP(C39,MATRIZ!$A$5:$CG$311,82,0),0) -> 0 | H39: =IFERROR(VLOOKUP(C39,MATRIZ!$A$5:$DA$311,86,0),0) -> 0 | J39: =IFERROR(VLOOKUP(C39,MATRIZ!$A$5:$DA$311,90,0),0) -> 0 | K39: =IFERROR(VLOOKUP(C39,MATRIZ!$A$5:$DA$311,98,0),0) -> 0
D40: =IFERROR(VLOOKUP(C40,MATRIZ!$A$5:$CG$311,70,0),0) -> 0 | E40: =IFERROR(VLOOKUP(C40,MATRIZ!$A$5:$CG$311,74,0),0) -> 0 | F40: =IFERROR(VLOOKUP(C40,MATRIZ!$A$5:$CG$311,78,0),0) -> 0 | G40: =IFERROR(VLOOKUP(C40,MATRIZ!$A$5:$CG$311,82,0),0) -> 0 | H40: =IFERROR(VLOOKUP(C40,MATRIZ!$A$5:$DA$311,86,0),0) -> 0 | J40: =IFERROR(VLOOKUP(C40,MATRIZ!$A$5:$DA$311,90,0),0) -> 0 | K40: =IFERROR(VLOOKUP(C40,MATRIZ!$A$5:$DA$311,98,0),0) -> 0
D41: =IFERROR(VLOOKUP(C41,MATRIZ!$A$5:$CG$311,70,0),0) -> 0 | E41: =IFERROR(VLOOKUP(C41,MATRIZ!$A$5:$CG$311,74,0),0) -> 0 | F41: =IFERROR(VLOOKUP(C41,MATRIZ!$A$5:$CG$311,78,0),0) -> 0 | G41: =IFERROR(VLOOKUP(C41,MATRIZ!$A$5:$CG$311,82,0),0) -> 0 | H41: =IFERROR(VLOOKUP(C41,MATRIZ!$A$5:$DA$311,86,0),0) -> 0 | J41: =IFERROR(VLOOKUP(C41,MATRIZ!$A$5:$DA$311,90,0),0) -> 0 | K41: =IFERROR(VLOOKUP(C41,MATRIZ!$A$5:$DA$311,98,0),0) -> 0
D42: =IFERROR(VLOOKUP(C42,MATRIZ!$A$5:$CG$311,70,0),0) -> 0 | E42: =IFERROR(VLOOKUP(C42,MATRIZ!$A$5:$CG$311,74,0),0) -> 0 | F42: =IFERROR(VLOOKUP(C42,MATRIZ!$A$5:$CG$311,78,0),0) -> 0 | G42: =IFERROR(VLOOKUP(C42,MATRIZ!$A$5:$CG$311,82,0),0) -> 0 | H42: =IFERROR(VLOOKUP(C42,MATRIZ!$A$5:$DA$311,86,0),0) -> 0 | J42: =IFERROR(VLOOKUP(C42,MATRIZ!$A$5:$DA$311,90,0),0) -> 0 | K42: =IFERROR(VLOOKUP(C42,MATRIZ!$A$5:$DA$311,98,0),0) -> 0
D43: =IFERROR(VLOOKUP(C43,MATRIZ!$A$5:$CG$311,70,0),0) -> 0 | E43: =IFERROR(VLOOKUP(C43,MATRIZ!$A$5:$CG$311,74,0),0) -> 0 | F43: =IFERROR(VLOOKUP(C43,MATRIZ!$A$5:$CG$311,78,0),0) -> 0 | G43: =IFERROR(VLOOKUP(C43,MATRIZ!$A$5:$CG$311,82,0),0) -> 0 | H43: =IFERROR(VLOOKUP(C43,MATRIZ!$A$5:$DA$311,86,0),0) -> 0 | J43: =IFERROR(VLOOKUP(C43,MATRIZ!$A$5:$DA$311,90,0),0) -> 0 | K43: =IFERROR(VLOOKUP(C43,MATRIZ!$A$5:$DA$311,98,0),0) -> 0
D44: =IFERROR(VLOOKUP(C44,MATRIZ!$A$5:$CG$311,70,0),0) -> 0 | E44: =IFERROR(VLOOKUP(C44,MATRIZ!$A$5:$CG$311,74,0),0) -> 0 | F44: =IFERROR(VLOOKUP(C44,MATRIZ!$A$5:$CG$311,78,0),0) -> 0 | G44: =IFERROR(VLOOKUP(C44,MATRIZ!$A$5:$CG$311,82,0),0) -> 0 | H44: =IFERROR(VLOOKUP(C44,MATRIZ!$A$5:$DA$311,86,0),0) -> 0 | J44: =IFERROR(VLOOKUP(C44,MATRIZ!$A$5:$DA$311,90,0),0) -> 0 | K44: =IFERROR(VLOOKUP(C44,MATRIZ!$A$5:$DA$311,98,0),0) -> 0
D45: =IFERROR(VLOOKUP(C45,MATRIZ!$A$5:$CG$311,70,0),0) -> 0 | E45: =IFERROR(VLOOKUP(C45,MATRIZ!$A$5:$CG$311,74,0),0) -> 0 | F45: =IFERROR(VLOOKUP(C45,MATRIZ!$A$5:$CG$311,78,0),0) -> 0 | G45: =IFERROR(VLOOKUP(C45,MATRIZ!$A$5:$CG$311,82,0),0) -> 0 | H45: =IFERROR(VLOOKUP(C45,MATRIZ!$A$5:$DA$311,86,0),0) -> 0 | J45: =IFERROR(VLOOKUP(C45,MATRIZ!$A$5:$DA$311,90,0),0) -> 0 | K45: =IFERROR(VLOOKUP(C45,MATRIZ!$A$5:$DA$311,98,0),0) -> 0
D46: =IFERROR(VLOOKUP(C46,MATRIZ!$A$5:$CG$311,70,0),0) -> 0 | E46: =IFERROR(VLOOKUP(C46,MATRIZ!$A$5:$CG$311,74,0),0) -> 0 | F46: =IFERROR(VLOOKUP(C46,MATRIZ!$A$5:$CG$311,78,0),0) -> 0 | G46: =IFERROR(VLOOKUP(C46,MATRIZ!$A$5:$CG$311,82,0),0) -> 0 | H46: =IFERROR(VLOOKUP(C46,MATRIZ!$A$5:$DA$311,86,0),0) -> 0 | J46: =IFERROR(VLOOKUP(C46,MATRIZ!$A$5:$DA$311,90,0),0) -> 0 | K46: =IFERROR(VLOOKUP(C46,MATRIZ!$A$5:$DA$311,98,0),0) -> 0
D47: =IFERROR(VLOOKUP(C47,MATRIZ!$A$5:$CG$311,70,0),0) -> 0 | E47: =IFERROR(VLOOKUP(C47,MATRIZ!$A$5:$CG$311,74,0),0) -> 0 | F47: =IFERROR(VLOOKUP(C47,MATRIZ!$A$5:$CG$311,78,0),0) -> 0 | G47: =IFERROR(VLOOKUP(C47,MATRIZ!$A$5:$CG$311,82,0),0) -> 0 | H47: =IFERROR(VLOOKUP(C47,MATRIZ!$A$5:$DA$311,86,0),0) -> 0 | J47: =IFERROR(VLOOKUP(C47,MATRIZ!$A$5:$DA$311,90,0),0) -> 0 | K47: =IFERROR(VLOOKUP(C47,MATRIZ!$A$5:$DA$311,98,0),0) -> 0
D48: =IFERROR(VLOOKUP(C48,MATRIZ!$A$5:$CG$311,70,0),0) -> 0 | E48: =IFERROR(VLOOKUP(C48,MATRIZ!$A$5:$CG$311,74,0),0) -> 0 | F48: =IFERROR(VLOOKUP(C48,MATRIZ!$A$5:$CG$311,78,0),0) -> 0 | G48: =IFERROR(VLOOKUP(C48,MATRIZ!$A$5:$CG$311,82,0),0) -> 0 | H48: =IFERROR(VLOOKUP(C48,MATRIZ!$A$5:$DA$311,86,0),0) -> 0 | J48: =IFERROR(VLOOKUP(C48,MATRIZ!$A$5:$DA$311,90,0),0) -> 0 | K48: =IFERROR(VLOOKUP(C48,MATRIZ!$A$5:$DA$311,98,0),0) -> 0
D49: =IFERROR(VLOOKUP(C49,MATRIZ!$A$5:$CG$311,70,0),0) -> 0 | E49: =IFERROR(VLOOKUP(C49,MATRIZ!$A$5:$CG$311,74,0),0) -> 0 | F49: =IFERROR(VLOOKUP(C49,MATRIZ!$A$5:$CG$311,78,0),0) -> 0 | G49: =IFERROR(VLOOKUP(C49,MATRIZ!$A$5:$CG$311,82,0),0) -> 0 | H49: =IFERROR(VLOOKUP(C49,MATRIZ!$A$5:$DA$311,86,0),0) -> 0 | J49: =IFERROR(VLOOKUP(C49,MATRIZ!$A$5:$DA$311,90,0),0) -> 0 | K49: =IFERROR(VLOOKUP(C49,MATRIZ!$A$5:$DA$311,98,0),0) -> 0
D50: =IFERROR(VLOOKUP(C50,MATRIZ!$A$5:$CG$311,70,0),0) -> 0 | E50: =IFERROR(VLOOKUP(C50,MATRIZ!$A$5:$CG$311,74,0),0) -> 0 | F50: =IFERROR(VLOOKUP(C50,MATRIZ!$A$5:$CG$311,78,0),0) -> 0 | G50: =IFERROR(VLOOKUP(C50,MATRIZ!$A$5:$CG$311,82,0),0) -> 0 | H50: =IFERROR(VLOOKUP(C50,MATRIZ!$A$5:$DA$311,86,0),0) -> 0 | J50: =IFERROR(VLOOKUP(C50,MATRIZ!$A$5:$DA$311,90,0),0) -> 0 | K50: =IFERROR(VLOOKUP(C50,MATRIZ!$A$5:$DA$311,98,0),0) -> 0
D51: =IFERROR(VLOOKUP(C51,MATRIZ!$A$5:$CG$311,70,0),0) -> 0 | E51: =IFERROR(VLOOKUP(C51,MATRIZ!$A$5:$CG$311,74,0),0) -> 0 | F51: =IFERROR(VLOOKUP(C51,MATRIZ!$A$5:$CG$311,78,0),0) -> 0 | G51: =IFERROR(VLOOKUP(C51,MATRIZ!$A$5:$CG$311,82,0),0) -> 0 | H51: =IFERROR(VLOOKUP(C51,MATRIZ!$A$5:$DA$311,86,0),0) -> 0 | J51: =IFERROR(VLOOKUP(C51,MATRIZ!$A$5:$DA$311,90,0),0) -> 0 | K51: =IFERROR(VLOOKUP(C51,MATRIZ!$A$5:$DA$311,98,0),0) -> 0
D52: =IFERROR(VLOOKUP(C52,MATRIZ!$A$5:$CG$311,70,0),0) -> 0 | E52: =IFERROR(VLOOKUP(C52,MATRIZ!$A$5:$CG$311,74,0),0) -> 0 | F52: =IFERROR(VLOOKUP(C52,MATRIZ!$A$5:$CG$311,78,0),0) -> 0 | G52: =IFERROR(VLOOKUP(C52,MATRIZ!$A$5:$CG$311,82,0),0) -> 0 | H52: =IFERROR(VLOOKUP(C52,MATRIZ!$A$5:$DA$311,86,0),0) -> 0 | J52: =IFERROR(VLOOKUP(C52,MATRIZ!$A$5:$DA$311,90,0),0) -> 0 | K52: =IFERROR(VLOOKUP(C52,MATRIZ!$A$5:$DA$311,98,0),0) -> 0
D53: =IFERROR(VLOOKUP(C53,MATRIZ!$A$5:$CG$311,70,0),0) -> 0 | E53: =IFERROR(VLOOKUP(C53,MATRIZ!$A$5:$CG$311,74,0),0) -> 0 | F53: =IFERROR(VLOOKUP(C53,MATRIZ!$A$5:$CG$311,78,0),0) -> 0 | G53: =IFERROR(VLOOKUP(C53,MATRIZ!$A$5:$CG$311,82,0),0) -> 0 | H53: =IFERROR(VLOOKUP(C53,MATRIZ!$A$5:$DA$311,86,0),0) -> 0 | J53: =IFERROR(VLOOKUP(C53,MATRIZ!$A$5:$DA$311,90,0),0) -> 0 | K53: =IFERROR(VLOOKUP(C53,MATRIZ!$A$5:$DA$311,98,0),0) -> 0
D54: =IFERROR(VLOOKUP(C54,MATRIZ!$A$5:$CG$311,70,0),0) -> 0 | E54: =IFERROR(VLOOKUP(C54,MATRIZ!$A$5:$CG$311,74,0),0) -> 0 | F54: =IFERROR(VLOOKUP(C54,MATRIZ!$A$5:$CG$311,78,0),0) -> 0 | G54: =IFERROR(VLOOKUP(C54,MATRIZ!$A$5:$CG$311,82,0),0) -> 0 | H54: =IFERROR(VLOOKUP(C54,MATRIZ!$A$5:$DA$311,86,0),0) -> 0 | J54: =IFERROR(VLOOKUP(C54,MATRIZ!$A$5:$DA$311,90,0),0) -> 0 | K54: =IFERROR(VLOOKUP(C54,MATRIZ!$A$5:$DA$311,98,0),0) -> 0
D55: =IFERROR(VLOOKUP(C55,MATRIZ!$A$5:$CG$311,70,0),0) -> 0 | E55: =IFERROR(VLOOKUP(C55,MATRIZ!$A$5:$CG$311,74,0),0) -> 0 | F55: =IFERROR(VLOOKUP(C55,MATRIZ!$A$5:$CG$311,78,0),0) -> 0 | G55: =IFERROR(VLOOKUP(C55,MATRIZ!$A$5:$CG$311,82,0),0) -> 0 | H55: =IFERROR(VLOOKUP(C55,MATRIZ!$A$5:$DA$311,86,0),0) -> 0 | J55: =IFERROR(VLOOKUP(C55,MATRIZ!$A$5:$DA$311,90,0),0) -> 0 | K55: =IFERROR(VLOOKUP(C55,MATRIZ!$A$5:$DA$311,98,0),0) -> 0
D56: =IFERROR(VLOOKUP(C56,MATRIZ!$A$5:$CG$311,70,0),0) -> 0 | E56: =IFERROR(VLOOKUP(C56,MATRIZ!$A$5:$CG$311,74,0),0) -> 0 | F56: =IFERROR(VLOOKUP(C56,MATRIZ!$A$5:$CG$311,78,0),0) -> 0 | G56: =IFERROR(VLOOKUP(C56,MATRIZ!$A$5:$CG$311,82,0),0) -> 0 | H56: =IFERROR(VLOOKUP(C56,MATRIZ!$A$5:$DA$311,86,0),0) -> 0 | J56: =IFERROR(VLOOKUP(C56,MATRIZ!$A$5:$DA$311,90,0),0) -> 0 | K56: =IFERROR(VLOOKUP(C56,MATRIZ!$A$5:$DA$311,98,0),0) -> 0
D57: =IFERROR(VLOOKUP(C57,MATRIZ!$A$5:$CG$311,70,0),0) -> 0 | E57: =IFERROR(VLOOKUP(C57,MATRIZ!$A$5:$CG$311,74,0),0) -> 0 | F57: =IFERROR(VLOOKUP(C57,MATRIZ!$A$5:$CG$311,78,0),0) -> 0 | G57: =IFERROR(VLOOKUP(C57,MATRIZ!$A$5:$CG$311,82,0),0) -> 0 | H57: =IFERROR(VLOOKUP(C57,MATRIZ!$A$5:$DA$311,86,0),0) -> 0 | J57: =IFERROR(VLOOKUP(C57,MATRIZ!$A$5:$DA$311,90,0),0) -> 0 | K57: =IFERROR(VLOOKUP(C57,MATRIZ!$A$5:$DA$311,98,0),0) -> 0
D58: =IFERROR(VLOOKUP(C58,MATRIZ!$A$5:$CG$311,70,0),0) -> 0 | E58: =IFERROR(VLOOKUP(C58,MATRIZ!$A$5:$CG$311,74,0),0) -> 0 | F58: =IFERROR(VLOOKUP(C58,MATRIZ!$A$5:$CG$311,78,0),0) -> 0 | G58: =IFERROR(VLOOKUP(C58,MATRIZ!$A$5:$CG$311,82,0),0) -> 0 | H58: =IFERROR(VLOOKUP(C58,MATRIZ!$A$5:$DA$311,86,0),0) -> 0 | J58: =IFERROR(VLOOKUP(C58,MATRIZ!$A$5:$DA$311,90,0),0) -> 0 | K58: =IFERROR(VLOOKUP(C58,MATRIZ!$A$5:$DA$311,98,0),0) -> 0
D59: =IFERROR(VLOOKUP(C59,MATRIZ!$A$5:$CG$311,70,0),0) -> 0 | E59: =IFERROR(VLOOKUP(C59,MATRIZ!$A$5:$CG$311,74,0),0) -> 0 | F59: =IFERROR(VLOOKUP(C59,MATRIZ!$A$5:$CG$311,78,0),0) -> 0 | G59: =IFERROR(VLOOKUP(C59,MATRIZ!$A$5:$CG$311,82,0),0) -> 0 | H59: =IFERROR(VLOOKUP(C59,MATRIZ!$A$5:$DA$311,86,0),0) -> 0 | J59: =IFERROR(VLOOKUP(C59,MATRIZ!$A$5:$DA$311,90,0),0) -> 0 | K59: =IFERROR(VLOOKUP(C59,MATRIZ!$A$5:$DA$311,98,0),0) -> 0
D60: =IFERROR(VLOOKUP(C60,MATRIZ!$A$5:$CG$311,70,0),0) -> 0 | E60: =IFERROR(VLOOKUP(C60,MATRIZ!$A$5:$CG$311,74,0),0) -> 0 | F60: =IFERROR(VLOOKUP(C60,MATRIZ!$A$5:$CG$311,78,0),0) -> 0 | G60: =IFERROR(VLOOKUP(C60,MATRIZ!$A$5:$CG$311,82,0),0) -> 0 | H60: =IFERROR(VLOOKUP(C60,MATRIZ!$A$5:$DA$311,86,0),0) -> 0 | J60: =IFERROR(VLOOKUP(C60,MATRIZ!$A$5:$DA$311,90,0),0) -> 0 | K60: =IFERROR(VLOOKUP(C60,MATRIZ!$A$5:$DA$311,98,0),0) -> 0
D61: =IFERROR(VLOOKUP(C61,MATRIZ!$A$5:$CG$311,70,0),0) -> 0 | E61: =IFERROR(VLOOKUP(C61,MATRIZ!$A$5:$CG$311,74,0),0) -> 0 | F61: =IFERROR(VLOOKUP(C61,MATRIZ!$A$5:$CG$311,78,0),0) -> 0 | G61: =IFERROR(VLOOKUP(C61,MATRIZ!$A$5:$CG$311,82,0),0) -> 0 | H61: =IFERROR(VLOOKUP(C61,MATRIZ!$A$5:$DA$311,86,0),0) -> 0 | J61: =IFERROR(VLOOKUP(C61,MATRIZ!$A$5:$DA$311,90,0),0) -> 0 | K61: =IFERROR(VLOOKUP(C61,MATRIZ!$A$5:$DA$311,98,0),0) -> 0
D62: =IFERROR(VLOOKUP(C62,MATRIZ!$A$5:$CG$311,70,0),0) -> 0 | E62: =IFERROR(VLOOKUP(C62,MATRIZ!$A$5:$CG$311,74,0),0) -> 0 | F62: =IFERROR(VLOOKUP(C62,MATRIZ!$A$5:$CG$311,78,0),0) -> 0 | G62: =IFERROR(VLOOKUP(C62,MATRIZ!$A$5:$CG$311,82,0),0) -> 0 | H62: =IFERROR(VLOOKUP(C62,MATRIZ!$A$5:$DA$311,86,0),0) -> 0 | J62: =IFERROR(VLOOKUP(C62,MATRIZ!$A$5:$DA$311,90,0),0) -> 0 | K62: =IFERROR(VLOOKUP(C62,MATRIZ!$A$5:$DA$311,98,0),0) -> 0
D63: =IFERROR(VLOOKUP(C63,MATRIZ!$A$5:$CG$311,70,0),0) -> 0 | E63: =IFERROR(VLOOKUP(C63,MATRIZ!$A$5:$CG$311,74,0),0) -> 0 | F63: =IFERROR(VLOOKUP(C63,MATRIZ!$A$5:$CG$311,78,0),0) -> 0 | G63: =IFERROR(VLOOKUP(C63,MATRIZ!$A$5:$CG$311,82,0),0) -> 0 | H63: =IFERROR(VLOOKUP(C63,MATRIZ!$A$5:$DA$311,86,0),0) -> 0 | J63: =IFERROR(VLOOKUP(C63,MATRIZ!$A$5:$DA$311,90,0),0) -> 0 | K63: =IFERROR(VLOOKUP(C63,MATRIZ!$A$5:$DA$311,98,0),0) -> 0
D64: =IFERROR(VLOOKUP(C64,MATRIZ!$A$5:$CG$311,70,0),0) -> 0 | E64: =IFERROR(VLOOKUP(C64,MATRIZ!$A$5:$CG$311,74,0),0) -> 0 | F64: =IFERROR(VLOOKUP(C64,MATRIZ!$A$5:$CG$311,78,0),0) -> 0 | G64: =IFERROR(VLOOKUP(C64,MATRIZ!$A$5:$CG$311,82,0),0) -> 0 | H64: =IFERROR(VLOOKUP(C64,MATRIZ!$A$5:$DA$311,86,0),0) -> 0 | J64: =IFERROR(VLOOKUP(C64,MATRIZ!$A$5:$DA$311,90,0),0) -> 0 | K64: =IFERROR(VLOOKUP(C64,MATRIZ!$A$5:$DA$311,98,0),0) -> 0
D65: =IFERROR(VLOOKUP(C65,MATRIZ!$A$5:$CG$311,70,0),0) -> 0 | E65: =IFERROR(VLOOKUP(C65,MATRIZ!$A$5:$CG$311,74,0),0) -> 0 | F65: =IFERROR(VLOOKUP(C65,MATRIZ!$A$5:$CG$311,78,0),0) -> 0 | G65: =IFERROR(VLOOKUP(C65,MATRIZ!$A$5:$CG$311,82,0),0) -> 0 | H65: =IFERROR(VLOOKUP(C65,MATRIZ!$A$5:$DA$311,86,0),0) -> 0 | J65: =IFERROR(VLOOKUP(C65,MATRIZ!$A$5:$DA$311,90,0),0) -> 0 | K65: =IFERROR(VLOOKUP(C65,MATRIZ!$A$5:$DA$311,98,0),0) -> 0
D66: =IFERROR(VLOOKUP(C66,MATRIZ!$A$5:$CG$311,70,0),0) -> 0 | E66: =IFERROR(VLOOKUP(C66,MATRIZ!$A$5:$CG$311,74,0),0) -> 0 | F66: =IFERROR(VLOOKUP(C66,MATRIZ!$A$5:$CG$311,78,0),0) -> 0 | G66: =IFERROR(VLOOKUP(C66,MATRIZ!$A$5:$CG$311,82,0),0) -> 0 | H66: =IFERROR(VLOOKUP(C66,MATRIZ!$A$5:$DA$311,86,0),0) -> 0 | J66: =IFERROR(VLOOKUP(C66,MATRIZ!$A$5:$DA$311,90,0),0) -> 0 | K66: =IFERROR(VLOOKUP(C66,MATRIZ!$A$5:$DA$311,98,0),0) -> 0
D67: =IFERROR(VLOOKUP(C67,MATRIZ!$A$5:$CG$311,70,0),0) -> 0 | E67: =IFERROR(VLOOKUP(C67,MATRIZ!$A$5:$CG$311,74,0),0) -> 0 | F67: =IFERROR(VLOOKUP(C67,MATRIZ!$A$5:$CG$311,78,0),0) -> 0 | G67: =IFERROR(VLOOKUP(C67,MATRIZ!$A$5:$CG$311,82,0),0) -> 0 | H67: =IFERROR(VLOOKUP(C67,MATRIZ!$A$5:$DA$311,86,0),0) -> 0 | J67: =IFERROR(VLOOKUP(C67,MATRIZ!$A$5:$DA$311,90,0),0) -> 0 | K67: =IFERROR(VLOOKUP(C67,MATRIZ!$A$5:$DA$311,98,0),0) -> 0
D68: =IFERROR(VLOOKUP(C68,MATRIZ!$A$5:$CG$311,70,0),0) -> 0 | E68: =IFERROR(VLOOKUP(C68,MATRIZ!$A$5:$CG$311,74,0),0) -> 0 | F68: =IFERROR(VLOOKUP(C68,MATRIZ!$A$5:$CG$311,78,0),0) -> 0 | G68: =IFERROR(VLOOKUP(C68,MATRIZ!$A$5:$CG$311,82,0),0) -> 0 | H68: =IFERROR(VLOOKUP(C68,MATRIZ!$A$5:$DA$311,86,0),0) -> 0 | J68: =IFERROR(VLOOKUP(C68,MATRIZ!$A$5:$DA$311,90,0),0) -> 0 | K68: =IFERROR(VLOOKUP(C68,MATRIZ!$A$5:$DA$311,98,0),0) -> 0
D69: =IFERROR(VLOOKUP(C69,MATRIZ!$A$5:$CG$311,70,0),0) -> 0 | E69: =IFERROR(VLOOKUP(C69,MATRIZ!$A$5:$CG$311,74,0),0) -> 0 | F69: =IFERROR(VLOOKUP(C69,MATRIZ!$A$5:$CG$311,78,0),0) -> 0 | G69: =IFERROR(VLOOKUP(C69,MATRIZ!$A$5:$CG$311,82,0),0) -> 0 | H69: =IFERROR(VLOOKUP(C69,MATRIZ!$A$5:$DA$311,86,0),0) -> 0 | J69: =IFERROR(VLOOKUP(C69,MATRIZ!$A$5:$DA$311,90,0),0) -> 0 | K69: =IFERROR(VLOOKUP(C69,MATRIZ!$A$5:$DA$311,98,0),0) -> 0
D70: =IFERROR(VLOOKUP(C70,MATRIZ!$A$5:$CG$311,70,0),0) -> 0 | E70: =IFERROR(VLOOKUP(C70,MATRIZ!$A$5:$CG$311,74,0),0) -> 0 | F70: =IFERROR(VLOOKUP(C70,MATRIZ!$A$5:$CG$311,78,0),0) -> 0 | G70: =IFERROR(VLOOKUP(C70,MATRIZ!$A$5:$CG$311,82,0),0) -> 0 | H70: =IFERROR(VLOOKUP(C70,MATRIZ!$A$5:$DA$311,86,0),0) -> 0 | J70: =IFERROR(VLOOKUP(C70,MATRIZ!$A$5:$DA$311,90,0),0) -> 0 | K70: =IFERROR(VLOOKUP(C70,MATRIZ!$A$5:$DA$311,98,0),0) -> 0
D71: =IFERROR(VLOOKUP(C71,MATRIZ!$A$5:$CG$311,70,0),0) -> 0 | E71: =IFERROR(VLOOKUP(C71,MATRIZ!$A$5:$CG$311,74,0),0) -> 0 | F71: =IFERROR(VLOOKUP(C71,MATRIZ!$A$5:$CG$311,78,0),0) -> 0 | G71: =IFERROR(VLOOKUP(C71,MATRIZ!$A$5:$CG$311,82,0),0) -> 0 | H71: =IFERROR(VLOOKUP(C71,MATRIZ!$A$5:$DA$311,86,0),0) -> 0 | J71: =IFERROR(VLOOKUP(C71,MATRIZ!$A$5:$DA$311,90,0),0) -> 0 | K71: =IFERROR(VLOOKUP(C71,MATRIZ!$A$5:$DA$311,98,0),0) -> 0
D72: =IFERROR(VLOOKUP(C72,MATRIZ!$A$5:$CG$311,70,0),0) -> 0 | E72: =IFERROR(VLOOKUP(C72,MATRIZ!$A$5:$CG$311,74,0),0) -> 0 | F72: =IFERROR(VLOOKUP(C72,MATRIZ!$A$5:$CG$311,78,0),0) -> 0 | G72: =IFERROR(VLOOKUP(C72,MATRIZ!$A$5:$CG$311,82,0),0) -> 0 | H72: =IFERROR(VLOOKUP(C72,MATRIZ!$A$5:$DA$311,86,0),0) -> 0 | J72: =IFERROR(VLOOKUP(C72,MATRIZ!$A$5:$DA$311,90,0),0) -> 0 | K72: =IFERROR(VLOOKUP(C72,MATRIZ!$A$5:$DA$311,98,0),0) -> 0
D73: =IFERROR(VLOOKUP(C73,MATRIZ!$A$5:$CG$311,70,0),0) -> 0 | E73: =IFERROR(VLOOKUP(C73,MATRIZ!$A$5:$CG$311,74,0),0) -> 0 | F73: =IFERROR(VLOOKUP(C73,MATRIZ!$A$5:$CG$311,78,0),0) -> 0 | G73: =IFERROR(VLOOKUP(C73,MATRIZ!$A$5:$CG$311,82,0),0) -> 0 | H73: =IFERROR(VLOOKUP(C73,MATRIZ!$A$5:$DA$311,86,0),0) -> 0 | J73: =IFERROR(VLOOKUP(C73,MATRIZ!$A$5:$DA$311,90,0),0) -> 0 | K73: =IFERROR(VLOOKUP(C73,MATRIZ!$A$5:$DA$311,98,0),0) -> 0
D74: =IFERROR(VLOOKUP(C74,MATRIZ!$A$5:$CG$311,70,0),0) -> 0 | E74: =IFERROR(VLOOKUP(C74,MATRIZ!$A$5:$CG$311,74,0),0) -> 0 | F74: =IFERROR(VLOOKUP(C74,MATRIZ!$A$5:$CG$311,78,0),0) -> 0 | G74: =IFERROR(VLOOKUP(C74,MATRIZ!$A$5:$CG$311,82,0),0) -> 0 | H74: =IFERROR(VLOOKUP(C74,MATRIZ!$A$5:$DA$311,86,0),0) -> 0 | J74: =IFERROR(VLOOKUP(C74,MATRIZ!$A$5:$DA$311,90,0),0) -> 0 | K74: =IFERROR(VLOOKUP(C74,MATRIZ!$A$5:$DA$311,98,0),0) -> 0
D75: =IFERROR(VLOOKUP(C75,MATRIZ!$A$5:$CG$311,70,0),0) -> 0 | E75: =IFERROR(VLOOKUP(C75,MATRIZ!$A$5:$CG$311,74,0),0) -> 0 | F75: =IFERROR(VLOOKUP(C75,MATRIZ!$A$5:$CG$311,78,0),0) -> 0 | G75: =IFERROR(VLOOKUP(C75,MATRIZ!$A$5:$CG$311,82,0),0) -> 0 | H75: =IFERROR(VLOOKUP(C75,MATRIZ!$A$5:$DA$311,86,0),0) -> 0 | J75: =IFERROR(VLOOKUP(C75,MATRIZ!$A$5:$DA$311,90,0),0) -> 0 | K75: =IFERROR(VLOOKUP(C75,MATRIZ!$A$5:$DA$311,98,0),0) -> 0
D76: =IFERROR(VLOOKUP(C76,MATRIZ!$A$5:$CG$311,70,0),0) -> 0 | E76: =IFERROR(VLOOKUP(C76,MATRIZ!$A$5:$CG$311,74,0),0) -> 0 | F76: =IFERROR(VLOOKUP(C76,MATRIZ!$A$5:$CG$311,78,0),0) -> 0 | G76: =IFERROR(VLOOKUP(C76,MATRIZ!$A$5:$CG$311,82,0),0) -> 0 | H76: =IFERROR(VLOOKUP(C76,MATRIZ!$A$5:$DA$311,86,0),0) -> 0 | J76: =IFERROR(VLOOKUP(C76,MATRIZ!$A$5:$DA$311,90,0),0) -> 0 | K76: =IFERROR(VLOOKUP(C76,MATRIZ!$A$5:$DA$311,98,0),0) -> 0
D77: =IFERROR(VLOOKUP(C77,MATRIZ!$A$5:$CG$311,70,0),0) -> 0 | E77: =IFERROR(VLOOKUP(C77,MATRIZ!$A$5:$CG$311,74,0),0) -> 0 | F77: =IFERROR(VLOOKUP(C77,MATRIZ!$A$5:$CG$311,78,0),0) -> 0 | G77: =IFERROR(VLOOKUP(C77,MATRIZ!$A$5:$CG$311,82,0),0) -> 0 | H77: =IFERROR(VLOOKUP(C77,MATRIZ!$A$5:$DA$311,86,0),0) -> 0 | J77: =IFERROR(VLOOKUP(C77,MATRIZ!$A$5:$DA$311,90,0),0) -> 0 | K77: =IFERROR(VLOOKUP(C77,MATRIZ!$A$5:$DA$311,98,0),0) -> 0
D78: =IFERROR(VLOOKUP(C78,MATRIZ!$A$5:$CG$311,70,0),0) -> 0 | E78: =IFERROR(VLOOKUP(C78,MATRIZ!$A$5:$CG$311,74,0),0) -> 0 | F78: =IFERROR(VLOOKUP(C78,MATRIZ!$A$5:$CG$311,78,0),0) -> 0 | G78: =IFERROR(VLOOKUP(C78,MATRIZ!$A$5:$CG$311,82,0),0) -> 0 | H78: =IFERROR(VLOOKUP(C78,MATRIZ!$A$5:$DA$311,86,0),0) -> 0 | J78: =IFERROR(VLOOKUP(C78,MATRIZ!$A$5:$DA$311,90,0),0) -> 0 | K78: =IFERROR(VLOOKUP(C78,MATRIZ!$A$5:$DA$311,98,0),0) -> 0
D79: =IFERROR(VLOOKUP(C79,MATRIZ!$A$5:$CG$311,70,0),0) -> 0 | E79: =IFERROR(VLOOKUP(C79,MATRIZ!$A$5:$CG$311,74,0),0) -> 0 | F79: =IFERROR(VLOOKUP(C79,MATRIZ!$A$5:$CG$311,78,0),0) -> 0 | G79: =IFERROR(VLOOKUP(C79,MATRIZ!$A$5:$CG$311,82,0),0) -> 0 | H79: =IFERROR(VLOOKUP(C79,MATRIZ!$A$5:$DA$311,86,0),0) -> 0 | J79: =IFERROR(VLOOKUP(C79,MATRIZ!$A$5:$DA$311,90,0),0) -> 0 | K79: =IFERROR(VLOOKUP(C79,MATRIZ!$A$5:$DA$311,98,0),0) -> 0
D80: =IFERROR(VLOOKUP(C80,MATRIZ!$A$5:$CG$311,70,0),0) -> 0 | E80: =IFERROR(VLOOKUP(C80,MATRIZ!$A$5:$CG$311,74,0),0) -> 0 | F80: =IFERROR(VLOOKUP(C80,MATRIZ!$A$5:$CG$311,78,0),0) -> 0 | G80: =IFERROR(VLOOKUP(C80,MATRIZ!$A$5:$CG$311,82,0),0) -> 0 | H80: =IFERROR(VLOOKUP(C80,MATRIZ!$A$5:$DA$311,86,0),0) -> 0 | J80: =IFERROR(VLOOKUP(C80,MATRIZ!$A$5:$DA$311,90,0),0) -> 0 | K80: =IFERROR(VLOOKUP(C80,MATRIZ!$A$5:$DA$311,98,0),0) -> 0
D81: =IFERROR(VLOOKUP(C81,MATRIZ!$A$5:$CG$311,70,0),0) -> 0 | E81: =IFERROR(VLOOKUP(C81,MATRIZ!$A$5:$CG$311,74,0),0) -> 0 | F81: =IFERROR(VLOOKUP(C81,MATRIZ!$A$5:$CG$311,78,0),0) -> 0 | G81: =IFERROR(VLOOKUP(C81,MATRIZ!$A$5:$CG$311,82,0),0) -> 0 | H81: =IFERROR(VLOOKUP(C81,MATRIZ!$A$5:$DA$311,86,0),0) -> 0 | J81: =IFERROR(VLOOKUP(C81,MATRIZ!$A$5:$DA$311,90,0),0) -> 0 | K81: =IFERROR(VLOOKUP(C81,MATRIZ!$A$5:$DA$311,98,0),0) -> 0
E82: =IFERROR(VLOOKUP(C82,MATRIZ!$A$5:$CG$311,74,0),0) -> 0 | F82: =IFERROR(VLOOKUP(C82,MATRIZ!$A$5:$CG$311,78,0),0) -> 0 | G82: =IFERROR(VLOOKUP(C82,MATRIZ!$A$5:$CG$311,82,0),0) -> 0 | H82: =IFERROR(VLOOKUP(C82,MATRIZ!$A$5:$DA$311,86,0),0) -> 0 | J82: =IFERROR(VLOOKUP(C82,MATRIZ!$A$5:$DA$311,90,0),0) -> 0 | K82: =IFERROR(VLOOKUP(C82,MATRIZ!$A$5:$DA$311,98,0),0) -> 0
D83: =IFERROR(VLOOKUP(C83,MATRIZ!$A$5:$CG$311,70,0),0) -> 0 | E83: =IFERROR(VLOOKUP(C83,MATRIZ!$A$5:$CG$311,74,0),0) -> 0 | F83: =IFERROR(VLOOKUP(C83,MATRIZ!$A$5:$CG$311,78,0),0) -> 0 | G83: =IFERROR(VLOOKUP(C83,MATRIZ!$A$5:$CG$311,82,0),0) -> 0 | H83: =IFERROR(VLOOKUP(C83,MATRIZ!$A$5:$DA$311,86,0),0) -> 0 | J83: =IFERROR(VLOOKUP(C83,MATRIZ!$A$5:$DA$311,90,0),0) -> 0 | K83: =IFERROR(VLOOKUP(C83,MATRIZ!$A$5:$DA$311,98,0),0) -> 0
D84: =IFERROR(VLOOKUP(C84,MATRIZ!$A$5:$CG$311,70,0),0) -> 0 | E84: =IFERROR(VLOOKUP(C84,MATRIZ!$A$5:$CG$311,74,0),0) -> 0 | F84: =IFERROR(VLOOKUP(C84,MATRIZ!$A$5:$CG$311,78,0),0) -> 0 | G84: =IFERROR(VLOOKUP(C84,MATRIZ!$A$5:$CG$311,82,0),0) -> 0 | H84: =IFERROR(VLOOKUP(C84,MATRIZ!$A$5:$DA$311,86,0),0) -> 0 | J84: =IFERROR(VLOOKUP(C84,MATRIZ!$A$5:$DA$311,90,0),0) -> 0 | K84: =IFERROR(VLOOKUP(C84,MATRIZ!$A$5:$DA$311,98,0),0) -> 0
D85: =IFERROR(VLOOKUP(C85,MATRIZ!$A$5:$CG$311,70,0),0) -> 0 | E85: =IFERROR(VLOOKUP(C85,MATRIZ!$A$5:$CG$311,74,0),0) -> 0 | F85: =IFERROR(VLOOKUP(C85,MATRIZ!$A$5:$CG$311,78,0),0) -> 0 | G85: =IFERROR(VLOOKUP(C85,MATRIZ!$A$5:$CG$311,82,0),0) -> 0 | H85: =IFERROR(VLOOKUP(C85,MATRIZ!$A$5:$DA$311,86,0),0) -> 0 | J85: =IFERROR(VLOOKUP(C85,MATRIZ!$A$5:$DA$311,90,0),0) -> 0 | K85: =IFERROR(VLOOKUP(C85,MATRIZ!$A$5:$DA$311,98,0),0) -> 0
D86: =IFERROR(VLOOKUP(C86,MATRIZ!$A$5:$CG$311,70,0),0) -> 0 | E86: =IFERROR(VLOOKUP(C86,MATRIZ!$A$5:$CG$311,74,0),0) -> 0 | F86: =IFERROR(VLOOKUP(C86,MATRIZ!$A$5:$CG$311,78,0),0) -> 0 | G86: =IFERROR(VLOOKUP(C86,MATRIZ!$A$5:$CG$311,82,0),0) -> 0 | H86: =IFERROR(VLOOKUP(C86,MATRIZ!$A$5:$DA$311,86,0),0) -> 0 | J86: =IFERROR(VLOOKUP(C86,MATRIZ!$A$5:$DA$311,90,0),0) -> 0 | K86: =IFERROR(VLOOKUP(C86,MATRIZ!$A$5:$DA$311,98,0),0) -> 0
D87: =IFERROR(VLOOKUP(C87,MATRIZ!$A$5:$CG$311,70,0),0) -> 0 | E87: =IFERROR(VLOOKUP(C87,MATRIZ!$A$5:$CG$311,74,0),0) -> 0 | F87: =IFERROR(VLOOKUP(C87,MATRIZ!$A$5:$CG$311,78,0),0) -> 0 | G87: =IFERROR(VLOOKUP(C87,MATRIZ!$A$5:$CG$311,82,0),0) -> 0 | H87: =IFERROR(VLOOKUP(C87,MATRIZ!$A$5:$DA$311,86,0),0) -> 0 | J87: =IFERROR(VLOOKUP(C87,MATRIZ!$A$5:$DA$311,90,0),0) -> 0 | K87: =IFERROR(VLOOKUP(C87,MATRIZ!$A$5:$DA$311,98,0),0) -> 0
E88: =IFERROR(VLOOKUP(C88,MATRIZ!$A$5:$CG$311,74,0),0) -> 0 | F88: =IFERROR(VLOOKUP(C88,MATRIZ!$A$5:$CG$311,78,0),0) -> 0 | G88: =IFERROR(VLOOKUP(C88,MATRIZ!$A$5:$CG$311,82,0),0) -> 0 | H88: =IFERROR(VLOOKUP(C88,MATRIZ!$A$5:$DA$311,86,0),0) -> 0 | J88: =IFERROR(VLOOKUP(C88,MATRIZ!$A$5:$DA$311,90,0),0) -> 0 | K88: =IFERROR(VLOOKUP(C88,MATRIZ!$A$5:$DA$311,98,0),0) -> 0
D89: =IFERROR(VLOOKUP(C89,MATRIZ!$A$5:$CG$311,70,0),0) -> 0 | E89: =IFERROR(VLOOKUP(C89,MATRIZ!$A$5:$CG$311,74,0),0) -> 0 | F89: =IFERROR(VLOOKUP(C89,MATRIZ!$A$5:$CG$311,78,0),0) -> 0 | G89: =IFERROR(VLOOKUP(C89,MATRIZ!$A$5:$CG$311,82,0),0) -> 0 | H89: =IFERROR(VLOOKUP(C89,MATRIZ!$A$5:$DA$311,86,0),0) -> 0 | J89: =IFERROR(VLOOKUP(C89,MATRIZ!$A$5:$DA$311,90,0),0) -> 0 | K89: =IFERROR(VLOOKUP(C89,MATRIZ!$A$5:$DA$311,98,0),0) -> 0
D90: =IFERROR(VLOOKUP(C90,MATRIZ!$A$5:$CG$311,70,0),0) -> 0 | E90: =IFERROR(VLOOKUP(C90,MATRIZ!$A$5:$CG$311,74,0),0) -> 0 | F90: =IFERROR(VLOOKUP(C90,MATRIZ!$A$5:$CG$311,78,0),0) -> 0 | G90: =IFERROR(VLOOKUP(C90,MATRIZ!$A$5:$CG$311,82,0),0) -> 0 | H90: =IFERROR(VLOOKUP(C90,MATRIZ!$A$5:$DA$311,86,0),0) -> 0 | J90: =IFERROR(VLOOKUP(C90,MATRIZ!$A$5:$DA$311,90,0),0) -> 0 | K90: =IFERROR(VLOOKUP(C90,MATRIZ!$A$5:$DA$311,98,0),0) -> 0
D91: =IFERROR(VLOOKUP(C91,MATRIZ!$A$5:$CG$311,70,0),0) -> 0 | E91: =IFERROR(VLOOKUP(C91,MATRIZ!$A$5:$CG$311,74,0),0) -> 0 | F91: =IFERROR(VLOOKUP(C91,MATRIZ!$A$5:$CG$311,78,0),0) -> 0 | G91: =IFERROR(VLOOKUP(C91,MATRIZ!$A$5:$CG$311,82,0),0) -> 0 | H91: =IFERROR(VLOOKUP(C91,MATRIZ!$A$5:$DA$311,86,0),0) -> 0 | J91: =IFERROR(VLOOKUP(C91,MATRIZ!$A$5:$DA$311,90,0),0) -> 0 | K91: =IFERROR(VLOOKUP(C91,MATRIZ!$A$5:$DA$311,98,0),0) -> 0
D92: =IFERROR(VLOOKUP(C92,MATRIZ!$A$5:$CG$311,70,0),0) -> 0 | E92: =IFERROR(VLOOKUP(C92,MATRIZ!$A$5:$CG$311,74,0),0) -> 0 | F92: =IFERROR(VLOOKUP(C92,MATRIZ!$A$5:$CG$311,78,0),0) -> 0 | G92: =IFERROR(VLOOKUP(C92,MATRIZ!$A$5:$CG$311,82,0),0) -> 0 | H92: =IFERROR(VLOOKUP(C92,MATRIZ!$A$5:$DA$311,86,0),0) -> 0 | J92: =IFERROR(VLOOKUP(C92,MATRIZ!$A$5:$DA$311,90,0),0) -> 0 | K92: =IFERROR(VLOOKUP(C92,MATRIZ!$A$5:$DA$311,98,0),0) -> 0
D93: =IFERROR(VLOOKUP(C93,MATRIZ!$A$5:$CG$311,70,0),0) -> 0 | E93: =IFERROR(VLOOKUP(C93,MATRIZ!$A$5:$CG$311,74,0),0) -> 0 | F93: =IFERROR(VLOOKUP(C93,MATRIZ!$A$5:$CG$311,78,0),0) -> 0 | G93: =IFERROR(VLOOKUP(C93,MATRIZ!$A$5:$CG$311,82,0),0) -> 0 | H93: =IFERROR(VLOOKUP(C93,MATRIZ!$A$5:$DA$311,86,0),0) -> 0 | J93: =IFERROR(VLOOKUP(C93,MATRIZ!$A$5:$DA$311,90,0),0) -> 0 | K93: =IFERROR(VLOOKUP(C93,MATRIZ!$A$5:$DA$311,98,0),0) -> 0
D94: =IFERROR(VLOOKUP(C94,MATRIZ!$A$5:$CG$311,70,0),0) -> 0 | E94: =IFERROR(VLOOKUP(C94,MATRIZ!$A$5:$CG$311,74,0),0) -> 0 | F94: =IFERROR(VLOOKUP(C94,MATRIZ!$A$5:$CG$311,78,0),0) -> 0 | G94: =IFERROR(VLOOKUP(C94,MATRIZ!$A$5:$CG$311,82,0),0) -> 0 | H94: =IFERROR(VLOOKUP(C94,MATRIZ!$A$5:$DA$311,86,0),0) -> 0 | J94: =IFERROR(VLOOKUP(C94,MATRIZ!$A$5:$DA$311,90,0),0) -> 0 | K94: =IFERROR(VLOOKUP(C94,MATRIZ!$A$5:$DA$311,98,0),0) -> 0
D95: =IFERROR(VLOOKUP(C95,MATRIZ!$A$5:$CG$311,70,0),0) -> 0 | E95: =IFERROR(VLOOKUP(C95,MATRIZ!$A$5:$CG$311,74,0),0) -> 0 | F95: =IFERROR(VLOOKUP(C95,MATRIZ!$A$5:$CG$311,78,0),0) -> 0 | G95: =IFERROR(VLOOKUP(C95,MATRIZ!$A$5:$CG$311,82,0),0) -> 0 | H95: =IFERROR(VLOOKUP(C95,MATRIZ!$A$5:$DA$311,86,0),0) -> 0 | J95: =IFERROR(VLOOKUP(C95,MATRIZ!$A$5:$DA$311,90,0),0) -> 0 | K95: =IFERROR(VLOOKUP(C95,MATRIZ!$A$5:$DA$311,98,0),0) -> 0
D96: =IFERROR(VLOOKUP(C96,MATRIZ!$A$5:$CG$311,70,0),0) -> 0 | E96: =IFERROR(VLOOKUP(C96,MATRIZ!$A$5:$CG$311,74,0),0) -> 0 | F96: =IFERROR(VLOOKUP(C96,MATRIZ!$A$5:$CG$311,78,0),0) -> 0 | G96: =IFERROR(VLOOKUP(C96,MATRIZ!$A$5:$CG$311,82,0),0) -> 0 | H96: =IFERROR(VLOOKUP(C96,MATRIZ!$A$5:$DA$311,86,0),0) -> 0 | J96: =IFERROR(VLOOKUP(C96,MATRIZ!$A$5:$DA$311,90,0),0) -> 0 | K96: =IFERROR(VLOOKUP(C96,MATRIZ!$A$5:$DA$311,98,0),0) -> 0
D97: =IFERROR(VLOOKUP(C97,MATRIZ!$A$5:$CG$311,70,0),0) -> 0 | E97: =IFERROR(VLOOKUP(C97,MATRIZ!$A$5:$CG$311,74,0),0) -> 0 | F97: =IFERROR(VLOOKUP(C97,MATRIZ!$A$5:$CG$311,78,0),0) -> 0 | G97: =IFERROR(VLOOKUP(C97,MATRIZ!$A$5:$CG$311,82,0),0) -> 0 | H97: =IFERROR(VLOOKUP(C97,MATRIZ!$A$5:$DA$311,86,0),0) -> 0 | J97: =IFERROR(VLOOKUP(C97,MATRIZ!$A$5:$DA$311,90,0),0) -> 0 | K97: =IFERROR(VLOOKUP(C97,MATRIZ!$A$5:$DA$311,98,0),0) -> 0
D98: =IFERROR(VLOOKUP(C98,MATRIZ!$A$5:$CG$311,70,0),0) -> 0 | E98: =IFERROR(VLOOKUP(C98,MATRIZ!$A$5:$CG$311,74,0),0) -> 0 | F98: =IFERROR(VLOOKUP(C98,MATRIZ!$A$5:$CG$311,78,0),0) -> 0 | G98: =IFERROR(VLOOKUP(C98,MATRIZ!$A$5:$CG$311,82,0),0) -> 0 | H98: =IFERROR(VLOOKUP(C98,MATRIZ!$A$5:$DA$311,86,0),0) -> 0 | J98: =IFERROR(VLOOKUP(C98,MATRIZ!$A$5:$DA$311,90,0),0) -> 0 | K98: =IFERROR(VLOOKUP(C98,MATRIZ!$A$5:$DA$311,98,0),0) -> 0
D99: =IFERROR(VLOOKUP(C99,MATRIZ!$A$5:$CG$311,70,0),0) -> 0 | E99: =IFERROR(VLOOKUP(C99,MATRIZ!$A$5:$CG$311,74,0),0) -> 0 | F99: =IFERROR(VLOOKUP(C99,MATRIZ!$A$5:$CG$311,78,0),0) -> 0 | G99: =IFERROR(VLOOKUP(C99,MATRIZ!$A$5:$CG$311,82,0),0) -> 0 | H99: =IFERROR(VLOOKUP(C99,MATRIZ!$A$5:$DA$311,86,0),0) -> 0 | J99: =IFERROR(VLOOKUP(C99,MATRIZ!$A$5:$DA$311,90,0),0) -> 0 | K99: =IFERROR(VLOOKUP(C99,MATRIZ!$A$5:$DA$311,98,0),0) -> 0
D100: =IFERROR(VLOOKUP(C100,MATRIZ!$A$5:$CG$311,70,0),0) -> 0 | E100: =IFERROR(VLOOKUP(C100,MATRIZ!$A$5:$CG$311,74,0),0) -> 0 | F100: =IFERROR(VLOOKUP(C100,MATRIZ!$A$5:$CG$311,78,0),0) -> 0 | G100: =IFERROR(VLOOKUP(C100,MATRIZ!$A$5:$CG$311,82,0),0) -> 0 | H100: =IFERROR(VLOOKUP(C100,MATRIZ!$A$5:$DA$311,86,0),0) -> 0 | J100: =IFERROR(VLOOKUP(C100,MATRIZ!$A$5:$DA$311,90,0),0) -> 0 | K100: =IFERROR(VLOOKUP(C100,MATRIZ!$A$5:$DA$311,98,0),0) -> 0
D101: =IFERROR(VLOOKUP(C101,MATRIZ!$A$5:$CG$311,70,0),0) -> 0 | E101: =IFERROR(VLOOKUP(C101,MATRIZ!$A$5:$CG$311,74,0),0) -> 0 | F101: =IFERROR(VLOOKUP(C101,MATRIZ!$A$5:$CG$311,78,0),0) -> 0 | G101: =IFERROR(VLOOKUP(C101,MATRIZ!$A$5:$CG$311,82,0),0) -> 0 | H101: =IFERROR(VLOOKUP(C101,MATRIZ!$A$5:$DA$311,86,0),0) -> 0 | J101: =IFERROR(VLOOKUP(C101,MATRIZ!$A$5:$DA$311,90,0),0) -> 0 | K101: =IFERROR(VLOOKUP(C101,MATRIZ!$A$5:$DA$311,98,0),0) -> 0
D102: =IFERROR(VLOOKUP(C102,MATRIZ!$A$5:$CG$311,70,0),0) -> 0 | E102: =IFERROR(VLOOKUP(C102,MATRIZ!$A$5:$CG$311,74,0),0) -> 0 | F102: =IFERROR(VLOOKUP(C102,MATRIZ!$A$5:$CG$311,78,0),0) -> 0 | G102: =IFERROR(VLOOKUP(C102,MATRIZ!$A$5:$CG$311,82,0),0) -> 0 | H102: =IFERROR(VLOOKUP(C102,MATRIZ!$A$5:$DA$311,86,0),0) -> 0 | J102: =IFERROR(VLOOKUP(C102,MATRIZ!$A$5:$DA$311,90,0),0) -> 0 | K102: =IFERROR(VLOOKUP(C102,MATRIZ!$A$5:$DA$311,98,0),0) -> 0
K103: =SUBTOTAL(9,K72:K102) -> 0
A105: PRODUCTOS /APOYOS/BALANCE FEE
A106: MOD | B106: COMPROMISO | C106: INCREMENTO
A107: MTY I | B107: 65000 | C107: =SUM(#REF!) -> 
A108: MTY II | B108: 69000 | C108: =SUM(#REF!) -> 
A109: MTY III | B109: 16000 | C109: =SUM(#REF!)+#REF!+#REF! -> 
A110: MTY IV | B110: =SUM(#REF!) ->  | C110: =SUM(#REF!) -> 
A111: TOTAL | B111: =SUM(B107:B110) ->  | C111: =SUM(C107:C110) -> 
A119: AYVI SA DE CV

Sheet ACREDITADOS (hidden)
J1: =SUBTOTAL(9,J3:J70) -> 26000 | K1: =SUBTOTAL(9,K3:K70) -> 0 | L1: =SUBTOTAL(9,L3:L70) -> 0 | M1: =SUBTOTAL(9,M3:M70) -> 0 | N1: =SUBTOTAL(9,N3:N70) -> 0 | O1: =SUBTOTAL(9,O3:O70) -> 0 | P1: =SUBTOTAL(9,P3:P70) -> 0 | Q1: 0 | R1: =SUBTOTAL(9,R3:R70) -> 26000
A2: MOD | B2: E.R.E | C2: GRUPO | D2: Cartera Vigente | E2: % Captacion VSI vs Cartera | F2: Captacion estimada (%10) | G2: Diferencia | H2: Que % de Credito representa Banorte | I2: Que % de Tesoreria representa Banorte | J2: MONTO VSI COMPROMISO | K2: VSI MAYO 22 | L2: VSI JUNIO | M2: VSI AGOSTO | N2: DIF MES ANTERIOR | O2: DIF MES AÑO ANTERIOR | P2: DEBE LLEGAR A | Q2: CUANTO HA CRECIDO | R2: FALTA | S2: AVANCES SEMANA 1 | T2: AVANCES SEMANA 2 | U2: 26/07/2022 | V2: 28/07/2022 | W2: FECHA COMPROMISO | X2: RESPONSABLE | Y2: COMENTARIOS
A3: MTY I | C3: INVERSIONES SAFI SADE CV | D3: 1047790.034 | E3: 0.01254982112 | F3: =D3*10% -> 104779.0034 | G3: =L3-F3 -> -104779.0034 | H3: 1 | I3: 1 | K3: 13083.97663 | L3: =IFERROR(VLOOKUP(C3,MATRIZ!$A$5:CG$311,74,0),0) -> 0 | M3: =IFERROR(VLOOKUP(C3,MATRIZ!$A$5:$CG$311,82,0),0) -> 0 | N3: =IFERROR(VLOOKUP(C3,MATRIZ!$A$5:$CP$311,86,0),0) -> 0 | O3: =IFERROR(VLOOKUP(C3,MATRIZ!$A$5:$CP$311,94,0),0) -> 0 | Q3: =M3-L3 -> 0 | R3: =IF(Q3>=J3,0,J3-Q3) -> 0 | S3: Cliente en recuperacion por contingencia debido al Giro, se descarta peticion de apoyo en conjunto con emperarial | U3: Cliente en recuperacion por contingencia debido al Giro, se descarta peticion de apoyo en conjunto con emperarial , 600 mdp nueva torre. | V3: Cliente en recuperacion por contingencia debido al Giro, se descarta peticion de apoyo en conjunto con emperarial , 600 mdp nueva torre.
A4: MTY I | C4: PABLO MARTINEZ CAVAZOS | D4: 929264.1727 | E4: 0.05397273833 | F4: 92926.41727 | G4: -92926.41727 | H4: 0.7 | I4: 0.9 | K4: 53390.99606 | L4: =IFERROR(VLOOKUP(C4,MATRIZ!$A$5:CG$311,74,0),0) -> 0 | M4: =IFERROR(VLOOKUP(C4,MATRIZ!$A$5:$CG$311,82,0),0) -> 0 | N4: =IFERROR(VLOOKUP(C4,MATRIZ!$A$5:$CP$311,86,0),0) -> 0 | O4: =IFERROR(VLOOKUP(C4,MATRIZ!$A$5:$CP$311,94,0),0) -> 0 | Q4: =M4-L4 -> 0 | R4: 0 | S4: No se realizara peticion dado a que año con años nos incremento 24 mdp | U4: No se realizara peticion dado a que año con años nos incremento 24 mdp | V4: No se realizara peticion dado a que año con años nos incremento 24 mdp
A5: MTY I | C5: DESARROLLO PARQUE FUNDIDORA SA DE CV | D5: 500056.7056 | E5: 0.023807204 | F5: 50005.67056 | G5: -50005.67056 | I5: 0.7 | J5: 2000 | K5: 12183.97198 | L5: =IFERROR(VLOOKUP(C5,MATRIZ!$A$5:CG$311,74,0),0) -> 0 | M5: =IFERROR(VLOOKUP(C5,MATRIZ!$A$5:$CG$311,82,0),0) -> 0 | N5: =IFERROR(VLOOKUP(C5,MATRIZ!$A$5:$CP$311,86,0),0) -> 0 | O5: =IFERROR(VLOOKUP(C5,MATRIZ!$A$5:$CP$311,94,0),0) -> 0 | Q5: 0 | R5: 2000 | S5: Se solicito apoyo y ya se tiene incremento | U5: Se solicito apoyo y ya se tiene incremento | V5: Se solicito apoyo y ya se tiene incremento
A6: MTY I | C6: TRANSPORTES LAR-MEXSA DE CV | D6: 404195.9888 | E6: 0.03374881784 | F6: 40419.59888 | G6: -40419.59888 | H6: 0.7 | I6: 0.9 | J6: 1000 | K6: 13051.37759 | L6: =IFERROR(VLOOKUP(C6,MATRIZ!$A$5:CG$311,74,0),0) -> 0 | M6: =IFERROR(VLOOKUP(C6,MATRIZ!$A$5:$CG$311,82,0),0) -> 0 | N6: =IFERROR(VLOOKUP(C6,MATRIZ!$A$5:$CP$311,86,0),0) -> 0 | O6: =IFERROR(VLOOKUP(C6,MATRIZ!$A$5:$CP$311,94,0),0) -> 0 | Q6: 0 | R6: 1000 | S6: Crecimiento mes con mes ya se esta dando | U6: Crecimiento mes con mes ya se esta dando | V6: Crecimiento mes con mes ya se esta dando
A7: MTY I | C7: PADMONT SA DE CV | D7: 216828.1123 | E7: 0.02939822868 | F7: 21682.81123 | G7: -21682.81123 | H7: 0.5 | I7: 0.5 | J7: 1000 | K7: 6726.807158 | L7: =IFERROR(VLOOKUP(C7,MATRIZ!$A$5:CG$311,74,0),0) -> 0 | M7: =IFERROR(VLOOKUP(C7,MATRIZ!$A$5:$CG$311,82,0),0) -> 0 | N7: =IFERROR(VLOOKUP(C7,MATRIZ!$A$5:$CP$311,86,0),0) -> 0 | O7: =IFERROR(VLOOKUP(C7,MATRIZ!$A$5:$CP$311,94,0),0) -> 0 | Q7: 0 | R7: 1000 | S7: *Ya se acordo busqueda en cojunto para solicitar reciprocidad | U7: Nuevo credito de 70 y 200 , 2 semanas | V7: Nuevo credito de 70 y 200 , 2 semanas
A8: MTY I | C8: SUPER COLCHONES SA DE CV | D8: 143390.4874 | E8: 0.02010575047 | F8: 14339.04874 | G8: -14339.04874 | H8: 0.3 | I8: 0.7 | J8: 2000 | K8: 2878.525089 | L8: =IFERROR(VLOOKUP(C8,MATRIZ!$A$5:CG$311,74,0),0) -> 0 | M8: =IFERROR(VLOOKUP(C8,MATRIZ!$A$5:$CG$311,82,0),0) -> 0 | N8: =IFERROR(VLOOKUP(C8,MATRIZ!$A$5:$CP$311,86,0),0) -> 0 | O8: =IFERROR(VLOOKUP(C8,MATRIZ!$A$5:$CP$311,94,0),0) -> 0 | Q8: 0 | R8: 2000 | S8: Pendiente cita en conjunto con Veronica EDR para solicitar VSI,, Ecommerce en negociacion del cual aun no han dado respuesta, la propuesta de Nomina fue rechazada aun y cuando se autorizaron $200,000.00 de bono de bienvenida y beneficios exclusivos. | U8: Se buscara a traves de comercial encanto . Veronica se va buscar cita. | V8: Se buscara a traves de comercial encanto . Veronica se va buscar cita.
A9: MTY I | C9: UNIVERSIDAD DE MONTERREY | D9: 541275.8535 | E9: 0.08437677117 | F9: 54127.58535 | G9: -54127.58535 | H9: 0.7 | I9: 0.9 | K9: 45539.07624 | L9: =IFERROR(VLOOKUP(C9,MATRIZ!$A$5:CG$311,74,0),0) -> 0 | M9: =IFERROR(VLOOKUP(C9,MATRIZ!$A$5:$CG$311,82,0),0) -> 0 | N9: =IFERROR(VLOOKUP(C9,MATRIZ!$A$5:$CP$311,86,0),0) -> 0 | O9: =IFERROR(VLOOKUP(C9,MATRIZ!$A$5:$CP$311,94,0),0) -> 0 | Q9: 0 | R9: 0 | S9: Pendiente revisar con Barbara | U9: Ya se le solicito en 2 ocasiones a Barbara, esta pendiente de confirmar , se le esta dando seguimiento cada 3 dias. | V9: Ya se le solicito en 2 ocasiones a Barbara, esta pendiente de confirmar , se le esta dando seguimiento cada 3 dias.
A10: MTY I | C10: BURO INMOBILIARIO NACIONAL SA DE CV | D10: 373788.4696 | E10: 0.08115135288 | F10: 37378.84696 | G10: -37378.84696 | H10: 0.15 | I10: 0.7 | J10: 1000 | K10: 29547.9085 | L10: =IFERROR(VLOOKUP(C10,MATRIZ!$A$5:CG$311,74,0),0) -> 0 | M10: =IFERROR(VLOOKUP(C10,MATRIZ!$A$5:$CG$311,82,0),0) -> 0 | N10: =IFERROR(VLOOKUP(C10,MATRIZ!$A$5:$CP$311,86,0),0) -> 0 | O10: =IFERROR(VLOOKUP(C10,MATRIZ!$A$5:$CP$311,94,0),0) -> 0 | Q10: 0 | R10: 1000 | S10: Se solicito apoyo, ya esta dejando mas y ademas crecera todavia mas por colocacion de productos cash ,Cuentas, BEM, TPV, mismas que ya se encuentran en implementacion.
A11: MTY I | C11: PALMEX ALIMENTOS S DE RL DE CV | D11: 161563.1036 | E11: 0.06995122013 | F11: 16156.31036 | G11: -16156.31036 | H11: 0 | I11: 0.7 | K11: 11116.72782 | L11: =IFERROR(VLOOKUP(C11,MATRIZ!$A$5:CG$311,74,0),0) -> 0 | M11: =IFERROR(VLOOKUP(C11,MATRIZ!$A$5:$CG$311,82,0),0) -> 0 | N11: =IFERROR(VLOOKUP(C11,MATRIZ!$A$5:$CP$311,86,0),0) -> 0 | O11: =IFERROR(VLOOKUP(C11,MATRIZ!$A$5:$CP$311,94,0),0) -> 0 | Q11: 0 | R11: 0 | S11: Pendiente | U11: Nuevo proyecto , palmex pago el credito . Se buscara a traves de mega alimentos que esta por autorizar agosto. | V11: Nuevo proyecto , palmex pago el credito . Se buscara a traves de mega alimentos que esta por autorizar agosto.
A12: MTY I | C12: MINERALES Y CARBONES DE MEXICO SA DE CV | D12: 61358.80983 | E12: 0.02115806484 | F12: 6135.880983 | G12: -6135.880983 | H12: 0.2 | I12: 0.7 | J12: 1000 | K12: 1084.464427 | L12: =IFERROR(VLOOKUP(C12,MATRIZ!$A$5:CG$311,74,0),0) -> 0 | M12: =IFERROR(VLOOKUP(C12,MATRIZ!$A$5:$CG$311,82,0),0) -> 0 | N12: =IFERROR(VLOOKUP(C12,MATRIZ!$A$5:$CP$311,86,0),0) -> 0 | O12: =IFERROR(VLOOKUP(C12,MATRIZ!$A$5:$CP$311,94,0),0) -> 0 | Q12: 0 | R12: 1000 | S12: *Ya se acordo busqueda en cojunto para solicitar reciprocidad | U12: Nuevo proyecto , cita proximo miercoles . Nuevo credito. | V12: Nuevo proyecto , cita proximo miercoles . Nuevo credito.
A13: MTY I | C13: C10 CONSTRUCTORA SADE CV | D13: 71222.91141 | E13: 0.04798098328 | F13: 7122.291141 | G13: -7122.291141 | H13: 0.5 | I13: 0.6 | J13: 1000 | K13: 3570.592268 | L13: =IFERROR(VLOOKUP(C13,MATRIZ!$A$5:CG$311,74,0),0) -> 0 | M13: =IFERROR(VLOOKUP(C13,MATRIZ!$A$5:$CG$311,82,0),0) -> 0 | N13: =IFERROR(VLOOKUP(C13,MATRIZ!$A$5:$CP$311,86,0),0) -> 0 | O13: =IFERROR(VLOOKUP(C13,MATRIZ!$A$5:$CP$311,94,0),0) -> 0 | Q13: 0 | R13: 1000 | S13: *Ya se acordo busqueda en cojunto para solicitar reciprocidad | U13: Ya se solicito apoyo por parte de EDR estamos por definir fecha y monto. Nuevo proyecto en puerta. | V13: Ya se solicito apoyo por parte de EDR estamos por definir fecha y monto. Nuevo proyecto en puerta.
A14: MTY I | C14: CORPORACION SIERRA MADRE SA DE CV | D14: 46945.67964 | E14: 0.02252284704 | F14: 4694.567964 | G14: -4694.567964 | H14: 0.3 | I14: 0.4 | J14: 2000 | K14: 828.5174113 | L14: =IFERROR(VLOOKUP(C14,MATRIZ!$A$5:CG$311,74,0),0) -> 0 | M14: =IFERROR(VLOOKUP(C14,MATRIZ!$A$5:$CG$311,82,0),0) -> 0 | N14: =IFERROR(VLOOKUP(C14,MATRIZ!$A$5:$CP$311,86,0),0) -> 0 | O14: =IFERROR(VLOOKUP(C14,MATRIZ!$A$5:$CP$311,94,0),0) -> 0 | Q14: 0 | R14: 2000 | S14: Pendiente | U14: Si se va solicita pendiente llamada, VSI, PENDIENTE CITA VERO | V14: Si se va solicita pendiente llamada, VSI, PENDIENTE CITA VERO
A15: MTY I | C15: URESTI & ASOCIADOS ABOGADOS SC | D15: 32615.27568 | E15: 0.05247182823 | F15: 3261.527568 | G15: -3261.527568 | H15: 1 | I15: 1 | J15: 1000 | K15: 2230.499957 | L15: =IFERROR(VLOOKUP(C15,MATRIZ!$A$5:CG$311,74,0),0) -> 0 | M15: =IFERROR(VLOOKUP(C15,MATRIZ!$A$5:$CG$311,82,0),0) -> 0 | N15: =IFERROR(VLOOKUP(C15,MATRIZ!$A$5:$CP$311,86,0),0) -> 0 | O15: =IFERROR(VLOOKUP(C15,MATRIZ!$A$5:$CP$311,94,0),0) -> 0 | Q15: 0 | R15: 1000 | S15: *Ya se acordo busqueda en cojunto para solicitar reciprocidad | U15: Abogados de cobranza extrajudicial | V15: Abogados de cobranza extrajudicial
A16: MTY I | C16: GRUPO AUTOLINEAS MEXICANAS SAPI DE CV | D16: 37338.61671 | E16: 0.06915918556 | F16: 3733.861671 | G16: -3733.861671 | H16: 0.7 | I16: 0.3 | J16: 1000 | K16: 2345.564624 | L16: =IFERROR(VLOOKUP(C16,MATRIZ!$A$5:CG$311,74,0),0) -> 0 | M16: =IFERROR(VLOOKUP(C16,MATRIZ!$A$5:$CG$311,82,0),0) -> 0 | N16: =IFERROR(VLOOKUP(C16,MATRIZ!$A$5:$CP$311,86,0),0) -> 0 | O16: =IFERROR(VLOOKUP(C16,MATRIZ!$A$5:$CP$311,94,0),0) -> 0 | Q16: 0 | R16: 1000 | S16: *Ya se acordo busqueda en cojunto para solicitar reciprocidad | U16: Miriam , recien se va acreditando. Recien se iba a presentar a Erasmo. | V16: Miriam , recien se va acreditando. Recien se iba a presentar a Erasmo.
A17: MTY I | C17: REFUGIO MARTINIANO GARCIA GUZMAN | D17: 103106.0819 | E17: 0.1435228357 | F17: 10310.60819 | G17: -10310.60819 | H17: 0.7 | I17: 0.9 | K17: 13693.8237 | L17: =IFERROR(VLOOKUP(C17,MATRIZ!$A$5:CG$311,74,0),0) -> 0 | M17: =IFERROR(VLOOKUP(C17,MATRIZ!$A$5:$CG$311,82,0),0) -> 0 | N17: =IFERROR(VLOOKUP(C17,MATRIZ!$A$5:$CP$311,86,0),0) -> 0 | O17: =IFERROR(VLOOKUP(C17,MATRIZ!$A$5:$CP$311,94,0),0) -> 0 | Q17: 0 | R17: 0
A18: MTY I | C18: CONSTRUCTORA GARZA PONCE SA DE CV | D18: 394545.7332 | E18: 0.1116009574 | F18: 39454.57332 | G18: -39454.57332 | H18: 0.9 | I18: 0.8 | K18: 43499.40797 | L18: =IFERROR(VLOOKUP(C18,MATRIZ!$A$5:CG$311,74,0),0) -> 0 | M18: =IFERROR(VLOOKUP(C18,MATRIZ!$A$5:$CG$311,82,0),0) -> 0 | N18: =IFERROR(VLOOKUP(C18,MATRIZ!$A$5:$CP$311,86,0),0) -> 0 | O18: =IFERROR(VLOOKUP(C18,MATRIZ!$A$5:$CP$311,94,0),0) -> 0 | Q18: 0 | R18: 0
A19: MTY I | C19: DIVISAS SAN JORGE DEL VALLE SA DE CV | D19: 267299.1489 | E19: 0.1987231799 | F19: 26729.91489 | G19: -26729.91489 | I19: 1 | K19: 52616.40064 | L19: =IFERROR(VLOOKUP(C19,MATRIZ!$A$5:CG$311,74,0),0) -> 0 | M19: =IFERROR(VLOOKUP(C19,MATRIZ!$A$5:$CG$311,82,0),0) -> 0 | N19: =IFERROR(VLOOKUP(C19,MATRIZ!$A$5:$CP$311,86,0),0) -> 0 | O19: =IFERROR(VLOOKUP(C19,MATRIZ!$A$5:$CP$311,94,0),0) -> 0 | Q19: 0 | R19: 0
A20: MTY II | C20: GRUPO FMC CAPITAL SAPI DE CV | D20: 1246666.897 | E20: 0.01496328377 | F20: =D20*10% -> 124666.6897 | G20: =L20-F20 -> -124666.6897 | H20: 0.72 | I20: 0.73 | J20: 10000 | K20: 23963.34463 | L20: =IFERROR(VLOOKUP(C20,MATRIZ!$A$5:CG$311,74,0),0) -> 0 | M20: =IFERROR(VLOOKUP(C20,MATRIZ!$A$5:$CG$311,82,0),0) -> 0 | N20: =IFERROR(VLOOKUP(C20,MATRIZ!$A$5:$CP$311,86,0),0) -> 0 | O20: =IFERROR(VLOOKUP(C20,MATRIZ!$A$5:$CP$311,94,0),0) -> 0 | Q20: =M20-L20 -> 0 | R20: 10000 | S20: Se implemento TDC empuje, Dispersa, Cobranza Domiciliada. H2H operará en agosto. Se solicito apoyo de saldos por crédito,ya que con Osvel se tenia un acuerdo de mantener vsi 34mdp. | U20: Ya esta dejando mas de lo comprometido | V20: Ya esta dejando mas de lo comprometido
A21: MTY II | C21: EDIFICADORA DE VIVIENDA SA DE CV | D21: 333131.4455 | E21: 0.02757898242 | F21: 33313.14455 | G21: -33313.14455 | H21: 0.85 | I21: 0.45 | J21: 3000 | K21: 9797.009102 | L21: =IFERROR(VLOOKUP(C21,MATRIZ!$A$5:CG$311,74,0),0) -> 0 | M21: =IFERROR(VLOOKUP(C21,MATRIZ!$A$5:$CG$311,82,0),0) -> 0 | N21: =IFERROR(VLOOKUP(C21,MATRIZ!$A$5:$CP$311,86,0),0) -> 0 | O21: =IFERROR(VLOOKUP(C21,MATRIZ!$A$5:$CP$311,94,0),0) -> 0 | Q21: 0 | R21: 3000 | S21: En espera de reunión para diagnosticar los hoteles Reynosa y Matamoros , esto debido a que hubo un cambio de Admon. Se solicito apoyo y dejara 3 mdp | U21: Se hablo con tesorera para incremento de saldos y ya se sta reflejando | V21: Se hablo con tesorera para incremento de saldos y ya se sta reflejando
A22: MTY II | C22: MISION OBISPADO SA DE CV | D22: 25246.28027 | E22: 0.04167596381 | F22: 2524.628027 | G22: -2524.628027 | H22: 0.39 | I22: 0.27 | J22: 1000 | K22: 1116.174784 | L22: =IFERROR(VLOOKUP(C22,MATRIZ!$A$5:CG$311,74,0),0) -> 0 | M22: =IFERROR(VLOOKUP(C22,MATRIZ!$A$5:$CG$311,82,0),0) -> 0 | N22: =IFERROR(VLOOKUP(C22,MATRIZ!$A$5:$CP$311,86,0),0) -> 0 | O22: =IFERROR(VLOOKUP(C22,MATRIZ!$A$5:$CP$311,94,0),0) -> 0 | Q22: 0 | R22: 1000 | S22: Ya esta en proceso la cita | U22: Reunion primera semana de agosto, EDR Priscila. | V22: Reunion primera semana de agosto, EDR Priscila.
A23: MTY II | C23: IMOBILEM METRO SA DE CV | D23: 161936.7564 | E23: 0.005383126143 | F23: 16193.67564 | G23: -16193.67564 | H23: 0.81 | I23: 0.27 | K23: 1562.820276 | L23: =IFERROR(VLOOKUP(C23,MATRIZ!$A$5:CG$311,74,0),0) -> 0 | M23: =IFERROR(VLOOKUP(C23,MATRIZ!$A$5:$CG$311,82,0),0) -> 0 | N23: =IFERROR(VLOOKUP(C23,MATRIZ!$A$5:$CP$311,86,0),0) -> 0 | O23: =IFERROR(VLOOKUP(C23,MATRIZ!$A$5:$CP$311,94,0),0) -> 0 | Q23: 0 | R23: 0 | S23: Cep, esta semana enviaran check list para elaborar contrato. Apoyo 10 mdp | U23: Ya se solicito VSI 10 mdp, solo estara monitoreando consideran verlo finales de mes | V23: Ya se solicito VSI 10 mdp, solo estara monitoreando consideran verlo finales de mes
A24: MTY II | C24: LINEAS URBANAS DEL NORESTE SA DE CV | D24: 13878.53715 | E24: 2.225766634 | F24: 1387.853715 | G24: -1387.853715 | H24: 0.07 | I24: 0.36 | J24: 1000 | K24: 30810.30408 | L24: =IFERROR(VLOOKUP(C24,MATRIZ!$A$5:CG$311,74,0),0) -> 0 | M24: =IFERROR(VLOOKUP(C24,MATRIZ!$A$5:$CG$311,82,0),0) -> 0 | N24: =IFERROR(VLOOKUP(C24,MATRIZ!$A$5:$CP$311,86,0),0) -> 0 | O24: =IFERROR(VLOOKUP(C24,MATRIZ!$A$5:$CP$311,94,0),0) -> 0 | Q24: 0 | R24: 1000 | S24: Cliente con complicaciones de flujo | U24: Cliente con complicaciones de flujo | V24: Cliente con complicaciones de flujo
A25: MTY II | C25: INMOBILIARIA PRINSASA DE CV | D25: 332758.1692 | E25: 0.01550245924 | F25: 33275.81692 | G25: -33275.81692 | H25: 0.72 | I25: 0.36 | J25: 15000 | K25: 5367.383169 | L25: =IFERROR(VLOOKUP(C25,MATRIZ!$A$5:CG$311,74,0),0) -> 0 | M25: =IFERROR(VLOOKUP(C25,MATRIZ!$A$5:$CG$311,82,0),0) -> 0 | N25: =IFERROR(VLOOKUP(C25,MATRIZ!$A$5:$CP$311,86,0),0) -> 0 | O25: =IFERROR(VLOOKUP(C25,MATRIZ!$A$5:$CP$311,94,0),0) -> 0 | Q25: 0 | R25: 15000 | S25: En implementación cobranza domiciliada (Aora Capital) Se solicito apoyo directo a Esperanza. | U25: Se solicito apoyo al cliente, nos comenta que se dara por medio de la cobranza la cual se mantendra en la cuenta esta semana. | V25: Se solicito apoyo al cliente, nos comenta que se dara por medio de la cobranza la cual se mantendra en la cuenta esta semana.
A26: MTY II | C26: VENTILACION REYMSA SA | D26: 19519.84673 | E26: 0.08548783536 | F26: 1951.984673 | G26: -1951.984673 | H26: 0.25 | I26: 0.36 | J26: 2000 | K26: 1774.678342 | L26: =IFERROR(VLOOKUP(C26,MATRIZ!$A$5:CG$311,74,0),0) -> 0 | M26: =IFERROR(VLOOKUP(C26,MATRIZ!$A$5:$CG$311,82,0),0) -> 0 | N26: =IFERROR(VLOOKUP(C26,MATRIZ!$A$5:$CP$311,86,0),0) -> 0 | O26: =IFERROR(VLOOKUP(C26,MATRIZ!$A$5:$CP$311,94,0),0) -> 0 | Q26: 0 | R26: 2000 | S26: Se esta buscando reunion con cliente, buscar participar más en la nómina* Observacion se le aumentaron las tasas de crédito.Se solicito apoyo y dejara 3 mdp | U26: Cliente no nos va dar VSI por reciprocidad , se dara por medio de TPV, nomina proxima semana se recaban flujos para propuesta. | V26: Cliente no nos va dar VSI por reciprocidad , se dara por medio de TPV, nomina proxima semana se recaban flujos para propuesta.
A27: MTY II | C27: RODAMIENTOS Y ACCESORIOS SA DE CV | D27: 148624.0546 | E27: 0.003316001783 | F27: 14862.40546 | G27: -14862.40546 | H27: 0.24 | I27: 0.64 | J27: 3000 | K27: 519.4815503 | L27: =IFERROR(VLOOKUP(C27,MATRIZ!$A$5:CG$311,74,0),0) -> 0 | M27: =IFERROR(VLOOKUP(C27,MATRIZ!$A$5:$CG$311,82,0),0) -> 0 | N27: =IFERROR(VLOOKUP(C27,MATRIZ!$A$5:$CP$311,86,0),0) -> 0 | O27: =IFERROR(VLOOKUP(C27,MATRIZ!$A$5:$CP$311,94,0),0) -> 0 | Q27: 0 | R27: 3000 | S27: Aplica para h2h, retomar el tema con el cliente del ERP.Pendiente reunion. | U27: No se le solicita por reciprocidad ya que tiene detenidos proyectos por permisos de gobierno. | V27: No se le solicita por reciprocidad ya que tiene detenidos proyectos por permisos de gobierno.
A28: MTY II | C28: ACEROS Y OVEROLLINGS DE MEXICO SA DE CV | D28: 150834.2121 | E28: 0.02610743533 | F28: 15083.42121 | G28: -15083.42121 | H28: 0.35 | I28: 0.18 | J28: 10000 | K28: 5659.490413 | L28: =IFERROR(VLOOKUP(C28,MATRIZ!$A$5:CG$311,74,0),0) -> 0 | M28: =IFERROR(VLOOKUP(C28,MATRIZ!$A$5:$CG$311,82,0),0) -> 0 | N28: =IFERROR(VLOOKUP(C28,MATRIZ!$A$5:$CP$311,86,0),0) -> 0 | O28: =IFERROR(VLOOKUP(C28,MATRIZ!$A$5:$CP$311,94,0),0) -> 0 | Q28: 0 | R28: 10000 | S28: Ya en proceso de cita | U28: La peticion se realizara atraves EDR ,esta pendiente que cliente defina cita. | V28: La peticion se realizara atraves EDR ,esta pendiente que cliente defina cita. | Y28: CITA 15 DE AGOSTO
A29: MTY II | C29: BIENES E INMUEBLES TRES PICOS SA DE CV | D29: 78309.98953 | E29: 0.008823836428 | F29: 7830.998953 | G29: -7830.998953 | H29: 0.09 | I29: 0.18 | J29: 3500 | K29: 716.141446 | L29: =IFERROR(VLOOKUP(C29,MATRIZ!$A$5:CG$311,74,0),0) -> 0 | M29: =IFERROR(VLOOKUP(C29,MATRIZ!$A$5:$CG$311,82,0),0) -> 0 | N29: =IFERROR(VLOOKUP(C29,MATRIZ!$A$5:$CP$311,86,0),0) -> 0 | O29: =IFERROR(VLOOKUP(C29,MATRIZ!$A$5:$CP$311,94,0),0) -> 0 | Q29: 0 | R29: 3500 | S29: Productos que aplican nómina, e-commerce *Pendiente reunion | U29: Se le solicita pero comenta que es todo lo que tiene en caja al momento. | V29: Se le solicita pero comenta que es todo lo que tiene en caja al momento.
A30: MTY II | C30: FERRETERA INDUSTRIAL DEL NORTE SA DE CV | D30: 42555.9429 | E30: 0.04069612372 | F30: 4255.59429 | G30: -4255.59429 | H30: 0.48 | I30: 0.36 | K30: 1797.558398 | L30: =IFERROR(VLOOKUP(C30,MATRIZ!$A$5:CG$311,74,0),0) -> 0 | M30: =IFERROR(VLOOKUP(C30,MATRIZ!$A$5:$CG$311,82,0),0) -> 0 | N30: =IFERROR(VLOOKUP(C30,MATRIZ!$A$5:$CP$311,86,0),0) -> 0 | O30: =IFERROR(VLOOKUP(C30,MATRIZ!$A$5:$CP$311,94,0),0) -> 0 | Q30: 0 | R30: 0 | S30: Se solicito apoyo de saldos el dia de hoy, CEP se capacita el proximo miercoles, TPV ya se va contratar con todo con Banorte. | U30: Se solicito apoyo a Monste ya que el cliente no termina por darnos fecha de productos , proxima semana se tiene reunion ya que el dueño no esta disponible esta semana. | V30: Se solicito apoyo a Monste ya que el cliente no termina por darnos fecha de productos , proxima semana se tiene reunion ya que el dueño no esta disponible esta semana.
A31: MTY II | C31: ROBERTO MONTEMAYOR GUTIERREZ | D31: 67273.76778 | E31: 0.01802789475 | F31: 6727.376778 | G31: -6727.376778 | H31: 0.55 | I31: 0.18 | J31: 4000 | K31: 1355.480675 | L31: =IFERROR(VLOOKUP(C31,MATRIZ!$A$5:CG$311,74,0),0) -> 0 | M31: =IFERROR(VLOOKUP(C31,MATRIZ!$A$5:$CG$311,82,0),0) -> 0 | N31: =IFERROR(VLOOKUP(C31,MATRIZ!$A$5:$CP$311,86,0),0) -> 0 | O31: =IFERROR(VLOOKUP(C31,MATRIZ!$A$5:$CP$311,94,0),0) -> 0 | Q31: 0 | R31: 4000 | S31: Buscar reunión con cliente /bajar tasas pedir reciprocidad. | U31: Justino lo esta buscando pendiente cita. | V31: Justino lo esta buscando pendiente cita.
A32: MTY II | C32: DESARROLLOS ALFA 777 SA DE CV | D32: 92513.28857 | E32: 0.04125157704 | F32: 9251.328857 | G32: -9251.328857 | H32: 0.85 | I32: 0.45 | K32: 3941.819533 | L32: =IFERROR(VLOOKUP(C32,MATRIZ!$A$5:CG$311,74,0),0) -> 0 | M32: =IFERROR(VLOOKUP(C32,MATRIZ!$A$5:$CG$311,82,0),0) -> 0 | N32: =IFERROR(VLOOKUP(C32,MATRIZ!$A$5:$CP$311,86,0),0) -> 0 | O32: =IFERROR(VLOOKUP(C32,MATRIZ!$A$5:$CP$311,94,0),0) -> 0 | Q32: 0 | R32: 0 | S32: Ya en proceso de cita | U32: Pendiente cita por medio de Pris y Justino, si se le pidio saldo directo y crecio 3 | V32: Pendiente cita por medio de Pris y Justino, si se le pidio saldo directo y crecio 3 | Y32: CITA VIERNES 11
A33: MTY II | C33: HOSPITAL DE GINECOLOGIA Y OBSTETRICIA SA DE CV | D33: 8002.219301 | E33: 0.6055283553 | F33: 800.2219301 | G33: -800.2219301 | H33: 1 | I33: 0.55 | J33: 1000 | K33: 4846.613573 | L33: =IFERROR(VLOOKUP(C33,MATRIZ!$A$5:CG$311,74,0),0) -> 0 | M33: =IFERROR(VLOOKUP(C33,MATRIZ!$A$5:$CG$311,82,0),0) -> 0 | N33: =IFERROR(VLOOKUP(C33,MATRIZ!$A$5:$CP$311,86,0),0) -> 0 | O33: =IFERROR(VLOOKUP(C33,MATRIZ!$A$5:$CP$311,94,0),0) -> 0 | Q33: 0 | R33: 1000 | S33: Enviar propuesta de y h2h. /Se le solicito apoyo 2 mdp.(tesoreria@reymsa.com *Ricardo) | U33: Se solicito apoyo directo de 2 mdp y aactualmente trae 4 mdp | V33: Se solicito apoyo directo de 2 mdp y aactualmente trae 4 mdp
A34: MTY II | C34: HERRAMENTAL MONTERREY SA | D34: 72802.72558 | E34: 0.06856924421 | F34: 7280.272558 | G34: -7280.272558 | I34: 0.55 | K34: 5298.21441 | L34: =IFERROR(VLOOKUP(C34,MATRIZ!$A$5:CG$311,74,0),0) -> 0 | M34: =IFERROR(VLOOKUP(C34,MATRIZ!$A$5:$CG$311,82,0),0) -> 0 | N34: =IFERROR(VLOOKUP(C34,MATRIZ!$A$5:$CP$311,86,0),0) -> 0 | O34: =IFERROR(VLOOKUP(C34,MATRIZ!$A$5:$CP$311,94,0),0) -> 0 | Q34: 0 | R34: 0 | S34: En apertura de 1 cuenta y Cep.
A35: MTY II | C35: REACTIVOS Y QUIMICOS SA DE CV | D35: 215135.0554 | E35: 0.07897631904 | F35: 21513.50554 | G35: -21513.50554 | H35: 0.27 | I35: 0.27 | J35: 10000 | K35: 18546.80969 | L35: =IFERROR(VLOOKUP(C35,MATRIZ!$A$5:CG$311,74,0),0) -> 0 | M35: =IFERROR(VLOOKUP(C35,MATRIZ!$A$5:$CG$311,82,0),0) -> 0 | N35: =IFERROR(VLOOKUP(C35,MATRIZ!$A$5:$CP$311,86,0),0) -> 0 | O35: =IFERROR(VLOOKUP(C35,MATRIZ!$A$5:$CP$311,94,0),0) -> 0 | Q35: 0 | R35: 10000 | S35: Revisar con Aida si las 12 razones sociales las administra ella./revisar el porque la baja de facturación,cuando se recupera/nueva propuesta de nómina.
A36: MTY III | C36: SILICA DESARROLLOS S A P I DE CV | D36: 1796037.712 | F36: =D36*10% -> 179603.7712 | G36: =L36-F36 -> -179603.7712 | H36: 1 | I36: 1 | J36: 11000 | K36: 4600 | L36: =IFERROR(VLOOKUP(C36,MATRIZ!$A$5:CG$311,74,0),0) -> 0 | M36: =IFERROR(VLOOKUP(C36,MATRIZ!$A$5:$CG$311,82,0),0) -> 0 | N36: =IFERROR(VLOOKUP(C36,MATRIZ!$A$5:$CP$311,86,0),0) -> 0 | O36: =IFERROR(VLOOKUP(C36,MATRIZ!$A$5:$CP$311,94,0),0) -> 0 | Q36: 0 | R36: 11000 | S36: Pendiente reunion solicitaremos apoyo a Sergio por la relacion. | U36: Ya se tuvo llamada con el cliente y quedaron de aumentar a 20mdp los saldos promedios (actualmente tienen 5mdp). Máximo viernes se debe de ver el aumento. | V36: Ya se tuvo llamada con el cliente y quedaron de aumentar a 20mdp los saldos promedios (actualmente tienen 5mdp). Máximo viernes se debe de ver el aumento.
A37: MTY III | C37: JOSE GUADALUPE GARZA MONTEMAYOR | D37: 503416.6254 | E37: 0.01087066967 | F37: 50341.66254 | G37: -50341.66254 | H37: 0.09 | I37: 0.35 | J37: 1000 | K37: 5329.907909 | L37: =IFERROR(VLOOKUP(C37,MATRIZ!$A$5:CG$311,74,0),0) -> 0 | M37: =IFERROR(VLOOKUP(C37,MATRIZ!$A$5:$CG$311,82,0),0) -> 0 | N37: =IFERROR(VLOOKUP(C37,MATRIZ!$A$5:$CP$311,86,0),0) -> 0 | O37: =IFERROR(VLOOKUP(C37,MATRIZ!$A$5:$CP$311,94,0),0) -> 0 | Q37: 0 | R37: 1000 | S37: Ya se hablo con Francisco y confirmo solo se van a mantener los 5 mdp
A38: MTY III | C38: FIDEICOMISO IRREVOCABLE NUMERO 2581 | D38: 361405.4844 | E38: 0.06898287217 | F38: 36140.54844 | G38: -36140.54844 | H38: 0.45 | I38: 1 | J38: 2000 | K38: 23488.57641 | L38: =IFERROR(VLOOKUP(C38,MATRIZ!$A$5:CG$311,74,0),0) -> 0 | M38: =IFERROR(VLOOKUP(C38,MATRIZ!$A$5:$CG$311,82,0),0) -> 0 | N38: =IFERROR(VLOOKUP(C38,MATRIZ!$A$5:$CP$311,86,0),0) -> 0 | O38: =IFERROR(VLOOKUP(C38,MATRIZ!$A$5:$CP$311,94,0),0) -> 0 | Q38: 0 | R38: 2000 | S38: Ya se vio con Sergio , se definio que solo nos daria si acaso 2 mdp mas | T38: Cliente ya tiene el 100% con nosotros, ya que el dinero entra por el fideicomiso. Este mes se tiene previsto un aumento en los saldos por un ingreso y probablemente podamos tener un incremento de alrededor de $2mdp. | U38: Cliente ya tiene el 100% con nosotros, ya que el dinero entra por el fideicomiso. Este mes se tiene previsto un aumento en los saldos por un ingreso y probablemente podamos tener un incremento de alrededor de $1mdp. Se hablo con el cliente y empresarial. | V38: Cliente ya tiene el 100% con nosotros, ya que el dinero entra por el fideicomiso. Este mes se tiene previsto un aumento en los saldos por un ingreso y probablemente podamos tener un incremento de alrededor de $1mdp. Se hablo con el cliente y empresarial.
A39: MTY III | C39: KEY QUIMICA SA DE CV | D39: 353744.2953 | E39: 0.0177569002 | F39: 35374.42953 | G39: -35374.42953 | H39: 0.35 | I39: 0.45 | J39: 4000 | K39: 6191.669008 | L39: =IFERROR(VLOOKUP(C39,MATRIZ!$A$5:CG$311,74,0),0) -> 0 | M39: =IFERROR(VLOOKUP(C39,MATRIZ!$A$5:$CG$311,82,0),0) -> 0 | N39: =IFERROR(VLOOKUP(C39,MATRIZ!$A$5:$CP$311,86,0),0) -> 0 | O39: =IFERROR(VLOOKUP(C39,MATRIZ!$A$5:$CP$311,94,0),0) -> 0 | Q39: 0 | R39: 4000 | S39: Se visitó al cliente y se solicitó el apoyo para que cumplan con el saldo acordado de $10mdp. Actualmente tiene 6 mdp. | T39: Se visitó al cliente y se solicitó el apoyo para que cumplan con el saldo acordado de $10mdp. Actualmente tiene 6 mdp. Dar seguimiento para revisar avance. | U39: Se visitó al cliente, se solicitaron los saldos y se volvió a pedir el apoyo por correo para su cumplimiento. Solo se estara monitoreando. | V39: Se visitó al cliente, se solicitaron los saldos y se volvió a pedir el apoyo por correo para su cumplimiento. Solo se estara monitoreando.
A40: MTY III | C40: INMOBILIARIA IZAMARC SA DE CV | D40: 351265.5026 | E40: 0.01324940019 | F40: 35126.55026 | G40: -35126.55026 | H40: 1 | I40: 0.6 | J40: 3000 | K40: 4487.70177 | L40: =IFERROR(VLOOKUP(C40,MATRIZ!$A$5:CG$311,74,0),0) -> 0 | M40: =IFERROR(VLOOKUP(C40,MATRIZ!$A$5:$CG$311,82,0),0) -> 0 | N40: =IFERROR(VLOOKUP(C40,MATRIZ!$A$5:$CP$311,86,0),0) -> 0 | O40: =IFERROR(VLOOKUP(C40,MATRIZ!$A$5:$CP$311,94,0),0) -> 0 | Q40: 0 | R40: 3000 | S40: Ya se le solicito apoyo , pero esta pendiente definan monto y fecha | T40: Te tuvo reunión martes 12 y se estará enviando propuesta para cambiar la cobranza referenciada a Banorte y ver la posibilidad de implementar H2H. Cliente comentó que ya quiere sacar a Santander. Se estará viendo temas de saldos una vez se revise con pendientes que hay. | U40: Se está aperturando cuenta y reactivando emisora de cobranza referenciada para que el cliente migre su operación a Banorte conforme lo platicado (pediente de firma). Se tuvo cita donde se realizo la peticion de apoyo de saldos. Se estará yendo a cita con el cliente a pedir saldo puntual la segunda semana de agosto, ya que sale de vacaciones. Tiene 1 cuenta la cual esta en cambio de banca , estatus: CEDULAS) | V40: Se está aperturando cuenta y reactivando emisora de cobranza referenciada para que el cliente migre su operación a Banorte conforme lo platicado (pediente de firma). Se tuvo cita donde se realizo la peticion de apoyo de saldos. Se estará yendo a cita con el cliente a pedir saldo puntual la segunda semana de agosto, ya que sale de vacaciones. Tiene 1 cuenta la cual esta en cambio de banca , estatus: CEDULAS)
A41: MTY III | C41: VILLARREAL DIVISIONEQUIPOS SA DE CV | D41: 184565.115 | E41: 0.0449615088 | F41: 18456.5115 | G41: -18456.5115 | H41: 0.33 | I41: 0.8 | K41: 8774.503734 | L41: =IFERROR(VLOOKUP(C41,MATRIZ!$A$5:CG$311,74,0),0) -> 0 | M41: =IFERROR(VLOOKUP(C41,MATRIZ!$A$5:$CG$311,82,0),0) -> 0 | N41: =IFERROR(VLOOKUP(C41,MATRIZ!$A$5:$CP$311,86,0),0) -> 0 | O41: =IFERROR(VLOOKUP(C41,MATRIZ!$A$5:$CP$311,94,0),0) -> 0 | Q41: 0 | R41: 0 | S41: Riesgo, opera mas que lo que tiene en credito | U41: BAJA | V41: BAJA
A42: MTY III | C42: RUBEN GARZA GONZALEZ | D42: 177935.8707 | E42: 0.01453393396 | F42: 17793.58707 | G42: -17793.58707 | H42: 0.15 | I42: 0.65 | K42: 2473.099979 | L42: =IFERROR(VLOOKUP(C42,MATRIZ!$A$5:CG$311,74,0),0) -> 0 | M42: =IFERROR(VLOOKUP(C42,MATRIZ!$A$5:$CG$311,82,0),0) -> 0 | N42: =IFERROR(VLOOKUP(C42,MATRIZ!$A$5:$CP$311,86,0),0) -> 0 | O42: =IFERROR(VLOOKUP(C42,MATRIZ!$A$5:$CP$311,94,0),0) -> 0 | Q42: 0 | R42: 0 | S42: Pendiente | U42: Cliente sin flujo , ganadero. | V42: Cliente sin flujo , ganadero.
A43: MTY III | C43: RICARDO ELIZONDO TREVIÃ‘O | D43: 137984.6183 | E43: 0.09522600512 | F43: 13798.46183 | G43: -13798.46183 | H43: 0.25 | I43: 0.8 | J43: CUMPLE | K43: 12603.11135 | L43: =IFERROR(VLOOKUP(C43,MATRIZ!$A$5:CG$311,74,0),0) -> 0 | M43: =IFERROR(VLOOKUP(C43,MATRIZ!$A$5:$CG$311,82,0),0) -> 0 | N43: =IFERROR(VLOOKUP(C43,MATRIZ!$A$5:$CP$311,86,0),0) -> 0 | O43: =IFERROR(VLOOKUP(C43,MATRIZ!$A$5:$CP$311,94,0),0) -> 0 | Q43: 0 | S43: CLIENTE CUMPLE CON EL % | T43: Se visitó al cliente y comenta que ya tenemos practicamente el 100%, con Banamex tiene como 500 mil pesos solamente por la misma operación. | U43: Se visitó al cliente y comenta que ya tenemos practicamente el 100%, con Banamex tiene como 500 mil pesos solamente por la misma operación. Cumple con reciprocidad. | V43: Se visitó al cliente y comenta que ya tenemos practicamente el 100%, con Banamex tiene como 500 mil pesos solamente por la misma operación. Cumple con reciprocidad.
A44: MTY III | C44: CAMIONES MONTERREY SA | D44: 134071.5996 | E44: 0.1565730336 | F44: 13407.15996 | G44: -13407.15996 | H44: 1 | I44: 1 | J44: CUMPLE | K44: 21403.7138 | L44: =IFERROR(VLOOKUP(C44,MATRIZ!$A$5:CG$311,74,0),0) -> 0 | M44: =IFERROR(VLOOKUP(C44,MATRIZ!$A$5:$CG$311,82,0),0) -> 0 | N44: =IFERROR(VLOOKUP(C44,MATRIZ!$A$5:$CP$311,86,0),0) -> 0 | O44: =IFERROR(VLOOKUP(C44,MATRIZ!$A$5:$CP$311,94,0),0) -> 0 | Q44: 0
A45: MTY III | C45: TECNICA DE REMEDIACIONES AMBIENTALES SISTEMATICAS Y AVANZADA | D45: 125749.3156 | E45: 0.2184680803 | F45: 12574.93156 | G45: -12574.93156 | H45: 1 | I45: 0.8 | J45: CUMPLE | K45: 24446.00423 | L45: =IFERROR(VLOOKUP(C45,MATRIZ!$A$5:CG$311,74,0),0) -> 0 | M45: =IFERROR(VLOOKUP(C45,MATRIZ!$A$5:$CG$311,82,0),0) -> 0 | N45: =IFERROR(VLOOKUP(C45,MATRIZ!$A$5:$CP$311,86,0),0) -> 0 | O45: =IFERROR(VLOOKUP(C45,MATRIZ!$A$5:$CP$311,94,0),0) -> 0 | Q45: 0
A46: MTY III | C46: AUTO TRANSPORTADORAGENESIS SA DE CV | D46: 70200.00318 | E46: 0.01163111152 | F46: 7020.000318 | G46: -7020.000318 | H46: 0.58 | I46: 0.65 | J46: 1000 | K46: 660.7256803 | L46: =IFERROR(VLOOKUP(C46,MATRIZ!$A$5:CG$311,74,0),0) -> 0 | M46: =IFERROR(VLOOKUP(C46,MATRIZ!$A$5:$CG$311,82,0),0) -> 0 | N46: =IFERROR(VLOOKUP(C46,MATRIZ!$A$5:$CP$311,86,0),0) -> 0 | O46: =IFERROR(VLOOKUP(C46,MATRIZ!$A$5:$CP$311,94,0),0) -> 0 | Q46: 0 | R46: 1000 | S46: Se solicitó apoyo ,confirmo $1mdp por cash / Reciprocidad: ? | T46: Se solicitó apoyo ,confirmo $1mdp | U46: Se solicitó apoyo con el cliente ,confirmo $1mdp , esta dejando mas del millon. | V46: Se solicitó apoyo con el cliente ,confirmo $1mdp , esta dejando mas del millon.
A47: MTY III | C47: INDUSTRIAS COSAL SADE CV | D47: 64128.9062 | E47: 0.06977372573 | F47: 6412.89062 | G47: -6412.89062 | H47: 0.23 | I47: 0.5 | K47: 4257.981842 | L47: =IFERROR(VLOOKUP(C47,MATRIZ!$A$5:CG$311,74,0),0) -> 0 | M47: =IFERROR(VLOOKUP(C47,MATRIZ!$A$5:$CG$311,82,0),0) -> 0 | N47: =IFERROR(VLOOKUP(C47,MATRIZ!$A$5:$CP$311,86,0),0) -> 0 | O47: =IFERROR(VLOOKUP(C47,MATRIZ!$A$5:$CP$311,94,0),0) -> 0 | Q47: 0 | R47: 0 | S47: Pendiente | U47: Pendiente, se buscará la primera semana de Agosto (miercoles), tesorera y dueño estan de vacaciones. | V47: Pendiente, se buscará la primera semana de Agosto (miercoles), tesorera y dueño estan de vacaciones. | Y47: Tema credito
A48: MTY III | C48: LANDWORK CAPITAL SADE CV | D48: 53516.38126 | E48: 0.03801689943 | F48: 5351.638126 | G48: -5351.638126 | H48: 1 | I48: 1 | K48: 1966.250767 | L48: =IFERROR(VLOOKUP(C48,MATRIZ!$A$5:CG$311,74,0),0) -> 0 | M48: =IFERROR(VLOOKUP(C48,MATRIZ!$A$5:$CG$311,82,0),0) -> 0 | N48: =IFERROR(VLOOKUP(C48,MATRIZ!$A$5:$CP$311,86,0),0) -> 0 | O48: =IFERROR(VLOOKUP(C48,MATRIZ!$A$5:$CP$311,94,0),0) -> 0 | Q48: 0 | R48: 0 | S48: 100% Banorte | T48: Se buscó al cliente y nos comentó que por el momento no tienen dinero en caja dado que le están inviertiendo en la obra (el crédito es por avance de obra). Igual nos comentó que tiene el 100% de su tesorería en Banorte. | U48: Se buscó al cliente y nos comentó que por el momento no tienen dinero en caja dado que le están inviertiendo en la obra (el crédito es por avance de obra). Igual nos comentó que tiene el 100% de su tesorería en Banorte. | V48: Se buscó al cliente y nos comentó que por el momento no tienen dinero en caja dado que le están inviertiendo en la obra (el crédito es por avance de obra). Igual nos comentó que tiene el 100% de su tesorería en Banorte.
A49: MTY III | C49: IIRSACERO SA DE CV | D49: 41183.82758 | E49: 0.07079671546 | F49: 4118.382758 | G49: -4118.382758 | H49: 1 | I49: 0.95 | K49: 2900.32295 | L49: =IFERROR(VLOOKUP(C49,MATRIZ!$A$5:CG$311,74,0),0) -> 0 | M49: =IFERROR(VLOOKUP(C49,MATRIZ!$A$5:$CG$311,82,0),0) -> 0 | N49: =IFERROR(VLOOKUP(C49,MATRIZ!$A$5:$CP$311,86,0),0) -> 0 | O49: =IFERROR(VLOOKUP(C49,MATRIZ!$A$5:$CP$311,94,0),0) -> 0 | Q49: 0 | R49: 0 | S49: Pendiente | U49: Cliente no tiene VCI, dentro de su politica tienen la regla de cero saldos en VSI. | V49: Cliente no tiene VCI, dentro de su politica tienen la regla de cero saldos en VSI.
A50: MTY III | C50: RISE CAPITAL INTERNATIONAL SA DE CV | D50: 40801.27347 | E50: 0.04938394567 | F50: 4080.127347 | G50: -4080.127347 | H50: 0.25 | I50: 0.65 | K50: 2138.898546 | L50: =IFERROR(VLOOKUP(C50,MATRIZ!$A$5:CG$311,74,0),0) -> 0 | M50: =IFERROR(VLOOKUP(C50,MATRIZ!$A$5:$CG$311,82,0),0) -> 0 | N50: =IFERROR(VLOOKUP(C50,MATRIZ!$A$5:$CP$311,86,0),0) -> 0 | O50: =IFERROR(VLOOKUP(C50,MATRIZ!$A$5:$CP$311,94,0),0) -> 0 | Q50: 0 | R50: 0 | S50: Pendiente | U50: Ya se le marco al cliente pero no va dejar saldos debido a que esta invirtiendo en inventario de razers. | V50: Ya se le marco al cliente pero no va dejar saldos debido a que esta invirtiendo en inventario de razers.
A51: MTY III | C51: CINETICA QUIMICA SADE CV | D51: 33635.80913 | E51: 0.03674659944 | F51: 3363.580913 | G51: -3363.580913 | H51: 0.88 | I51: 0.85 | J51: 1000 | K51: 1102.650554 | L51: =IFERROR(VLOOKUP(C51,MATRIZ!$A$5:CG$311,74,0),0) -> 0 | M51: =IFERROR(VLOOKUP(C51,MATRIZ!$A$5:$CG$311,82,0),0) -> 0 | N51: =IFERROR(VLOOKUP(C51,MATRIZ!$A$5:$CP$311,86,0),0) -> 0 | O51: =IFERROR(VLOOKUP(C51,MATRIZ!$A$5:$CP$311,94,0),0) -> 0 | Q51: 0 | R51: 1000 | S51: se solicitó apoyo con $1 mdp adicionales al cliente mediante llamada junto con el ER | T51: se solicitó apoyo con $1 mdp adicionales al cliente mediante llamada junto con el ER | U51: Ya se marcó al cliente la semana antepasada en conjunto con ejecutivo de empresarial y adicional se le envió correo de recordatorio de incrementos el viernes, comentan que esta de vacaciones , se volvera a marcar el miercoles. | V51: Ya se marcó al cliente la semana antepasada en conjunto con ejecutivo de empresarial y adicional se le envió correo de recordatorio de incrementos el viernes, comentan que esta de vacaciones , se volvera a marcar el miercoles.
A52: MTY III | C52: AUTO EXPRESS HERCULES SA DE CV | D52: 25671.39023 | E52: 0.01685438015 | F52: 2567.139023 | G52: -2567.139023 | H52: 0.54 | I52: 0.7 | K52: 437.2184907 | L52: =IFERROR(VLOOKUP(C52,MATRIZ!$A$5:CG$311,74,0),0) -> 0 | M52: =IFERROR(VLOOKUP(C52,MATRIZ!$A$5:$CG$311,82,0),0) -> 0 | N52: =IFERROR(VLOOKUP(C52,MATRIZ!$A$5:$CP$311,86,0),0) -> 0 | O52: =IFERROR(VLOOKUP(C52,MATRIZ!$A$5:$CP$311,94,0),0) -> 0 | Q52: 0 | R52: 0 | S52: Pendiente | T52: Muy probablemente no se le renovará el crédito al cliente ya que uno de sus accionistas salió con buró malo prohibición. Adicional, ya tiene toda su captación en Banorte, no tiene tamaño empresarial. | U52: Muy probablemente no se le renovará el crédito al cliente ya que uno de sus accionistas salió con buró malo prohibición. Adicional, ya tiene toda su captación en Banorte, no tiene tamaño empresarial por lo cual se descarta la peticion de apoyo. | V52: Muy probablemente no se le renovará el crédito al cliente ya que uno de sus accionistas salió con buró malo prohibición. Adicional, ya tiene toda su captación en Banorte, no tiene tamaño empresarial por lo cual se descarta la peticion de apoyo.
A53: MTY III | C53: INGENIERIA Y ABASTECIMIENTO SA DE CV | D53: 24408.23196 | E53: 0.2860827889 | F53: 2440.823196 | G53: -2440.823196 | H53: 1 | I53: 0.9 | J53: CUMPLE | K53: 6213.307677 | L53: =IFERROR(VLOOKUP(C53,MATRIZ!$A$5:CG$311,74,0),0) -> 0 | M53: =IFERROR(VLOOKUP(C53,MATRIZ!$A$5:$CG$311,82,0),0) -> 0 | N53: =IFERROR(VLOOKUP(C53,MATRIZ!$A$5:$CP$311,86,0),0) -> 0 | O53: =IFERROR(VLOOKUP(C53,MATRIZ!$A$5:$CP$311,94,0),0) -> 0 | Q53: 0
A54: MTY III | C54: PERICLASA SA DE CV | D54: 17502.19941 | E54: 0.3299875008 | F54: 1750.219941 | G54: -1750.219941 | H54: 0.95 | I54: 0.95 | J54: CUMPLE | K54: 5601.957916 | L54: =IFERROR(VLOOKUP(C54,MATRIZ!$A$5:CG$311,74,0),0) -> 0 | M54: =IFERROR(VLOOKUP(C54,MATRIZ!$A$5:$CG$311,82,0),0) -> 0 | N54: =IFERROR(VLOOKUP(C54,MATRIZ!$A$5:$CP$311,86,0),0) -> 0 | O54: =IFERROR(VLOOKUP(C54,MATRIZ!$A$5:$CP$311,94,0),0) -> 0 | Q54: 0
A55: MTY III | C55: GAS VASCONCELOS SA DE CV | D55: 822.5828816 | E55: 60.69931157 | F55: 82.25828816 | G55: -82.25828816 | H55: 0 | I55: 0.8 | J55: CUMPLE | K55: 51398.63091 | L55: =IFERROR(VLOOKUP(C55,MATRIZ!$A$5:CG$311,74,0),0) -> 0 | M55: =IFERROR(VLOOKUP(C55,MATRIZ!$A$5:$CG$311,82,0),0) -> 0 | N55: =IFERROR(VLOOKUP(C55,MATRIZ!$A$5:$CP$311,86,0),0) -> 0 | O55: =IFERROR(VLOOKUP(C55,MATRIZ!$A$5:$CP$311,94,0),0) -> 0 | Q55: 0
A56: MTY IV | B56: GERARDO GARCIA | C56: ACEROMEX SA DE CV | D56: 1066176.141 | E56: 0.02432572657 | F56: =D56*10% -> 106617.6141 | G56: =L56-F56 -> -106617.6141 | H56: 0.5 | I56: 0.73 | J56: 3000 | K56: =IFERROR(VLOOKUP(C56,MATRIZ!$A$5:CG$311,70,0),0) -> 0 | L56: =IFERROR(VLOOKUP(C56,MATRIZ!$A$5:CG$311,74,0),0) -> 0 | M56: =IFERROR(VLOOKUP(C56,MATRIZ!$A$5:$CG$311,82,0),0) -> 0 | N56: =IFERROR(VLOOKUP(C56,MATRIZ!$A$5:$CP$311,86,0),0) -> 0 | O56: =IFERROR(VLOOKUP(C56,MATRIZ!$A$5:$CP$311,94,0),0) -> 0 | Q56: =M56-L56 -> 0 | R56: =J56-Q56 -> 3000 | S56: Se adelanto la llamada programada con el cliente, y se trato el tema del incremento de la reciprocidad, a lo cual el cliente accedio en apoyar. Nos comento que ha incrementado su operación con nosotros y migrado pagos que tenia con BBVA. Actualmente trae un incremento en VSI de 1 MDP | U56: Miercoles cita para franquicia | V56: Miercoles cita para franquicia | W56: - | X56: VENTAS | Y56: Ya esta cumpliento con la reciprocidad
A57: MTY IV | B57: LILIANA SALINAS | C57: ARGOS ELECTRICA SA DE CV | D57: 237786.2722 | E57: 0.02334588082 | F57: 23778.62722 | G57: -23778.62722 | H57: 0.71 | I57: 0.64 | J57: 3000 | K57: =IFERROR(VLOOKUP(C57,MATRIZ!$A$5:CG$311,70,0),0) -> 0 | L57: =IFERROR(VLOOKUP(C57,MATRIZ!$A$5:CG$311,74,0),0) -> 0 | M57: =IFERROR(VLOOKUP(C57,MATRIZ!$A$5:$CG$311,82,0),0) -> 0 | N57: =IFERROR(VLOOKUP(C57,MATRIZ!$A$5:$CP$311,86,0),0) -> 0 | O57: =IFERROR(VLOOKUP(C57,MATRIZ!$A$5:$CP$311,94,0),0) -> 0 | Q57: 0 | R57: =J57-Q57 -> 3000 | S57: Por vacaciones, programa tratar el tema el 5 de agosto | U57: Por vacaciones, programa tratar el tema el 5 de agosto | V57: Por vacaciones, programa tratar el tema el 5 de agosto | W57: - | X57: SERVICIO | Y57: Pendiente resolver bonificación por H2H, dueño comento que no habrá operación si no se bonifica
A58: MTY IV | B58: ALDO FARIAS | C58: INTEGRADORA DE GANADEROS DE ENGORDA DE LA LAGUNA SA DE CV | D58: 346984.4314 | E58: 0.009249341408 | F58: 34698.44314 | G58: -34698.44314 | H58: 0.33 | I58: 0.18 | J58: 1000 | K58: =IFERROR(VLOOKUP(C58,MATRIZ!$A$5:CG$311,70,0),0) -> 0 | L58: =IFERROR(VLOOKUP(C58,MATRIZ!$A$5:CG$311,74,0),0) -> 0 | M58: =IFERROR(VLOOKUP(C58,MATRIZ!$A$5:$CG$311,82,0),0) -> 0 | N58: =IFERROR(VLOOKUP(C58,MATRIZ!$A$5:$CP$311,86,0),0) -> 0 | O58: =IFERROR(VLOOKUP(C58,MATRIZ!$A$5:$CP$311,94,0),0) -> 0 | Q58: 0 | R58: 1000 | S58: Se habla con Ana Marcial la terorera, se acordo en mandar los saldos de la cuenta de inversión a la cuenta de enlace Banorte ($10 MDP en VSI) | U58: Se habla con Ana Marcial la terorera, se acordo en mandar los saldos de la cuenta de inversión a la cuenta de enlace Banorte ($10 MDP en VSI) | V58: Se habla con Ana Marcial la terorera, se acordo en mandar los saldos de la cuenta de inversión a la cuenta de enlace Banorte ($10 MDP en VSI) | W58: - | X58: EMPRESARIAL | Y58: Cumpliendo con reciprocidad
A59: MTY IV | B59: LILIANA SALINAS | C59: HARI MASA SA DE CV | D59: 253736.0438 | E59: 0.04641229842 | F59: 25373.60438 | G59: -25373.60438 | H59: 0.55 | I59: 0.55 | J59: 3000 | K59: =IFERROR(VLOOKUP(C59,MATRIZ!$A$5:CG$311,70,0),0) -> 0 | L59: =IFERROR(VLOOKUP(C59,MATRIZ!$A$5:CG$311,74,0),0) -> 0 | M59: =IFERROR(VLOOKUP(C59,MATRIZ!$A$5:$CG$311,82,0),0) -> 0 | N59: =IFERROR(VLOOKUP(C59,MATRIZ!$A$5:$CP$311,86,0),0) -> 0 | O59: =IFERROR(VLOOKUP(C59,MATRIZ!$A$5:$CP$311,94,0),0) -> 0 | Q59: 0 | R59: 3000 | S59: El cliente revisa sus flujos con el cierre mensual, para darnos en concreto monto de apoyo | W59: 2022-09-23 | X59: IMPLEMENTADOR | Y59: Esto se va por medio de la cobranza referenciada/Se implemento en 3 semana de Agosto/ El cliente comienza su campaña de uso del CEPa sus clientes la primer semana de septiembre/Se espera el incremento del recurso en 2 semana septiembre
A60: MTY IV | B60: LILIANA SALINAS | C60: DISTRIBUIDORA DE PRODUCTOS DESHIDRATADOS SA DE CV | D60: 70353.61415 | E60: 0.03488776485 | F60: 7035.361415 | G60: -7035.361415 | H60: 0.23 | I60: 0.45 | J60: 1000 | K60: =IFERROR(VLOOKUP(C60,MATRIZ!$A$5:CG$311,70,0),0) -> 0 | L60: =IFERROR(VLOOKUP(C60,MATRIZ!$A$5:CG$311,74,0),0) -> 0 | M60: =IFERROR(VLOOKUP(C60,MATRIZ!$A$5:$CG$311,82,0),0) -> 0 | N60: =IFERROR(VLOOKUP(C60,MATRIZ!$A$5:$CP$311,86,0),0) -> 0 | O60: =IFERROR(VLOOKUP(C60,MATRIZ!$A$5:$CP$311,94,0),0) -> 0 | Q60: 0 | R60: 1000 | U60: Pidio reunión el día de mañana para tratar el tema | V60: Pidio reunión el día de mañana para tratar el tema | W60: - | X60: IMPLEMENTADOR | Y60: Cumpliendo con el compromiso de 1 MDP | Z60: La reciprocidad comento el cliente se dara por implementaciones de productos Cash (CEP en Harimasa y Harimasa Pacifico)
A61: MTY IV | B61: ALDO FARIAS | C61: HOMERO MARTINEZ LANDA | D61: 78087.44359 | E61: 0.02794242186 | F61: 7808.744359 | G61: -7808.744359 | H61: 0.29 | I61: 0.45 | J61: 5000 | K61: =IFERROR(VLOOKUP(C61,MATRIZ!$A$5:CG$311,70,0),0) -> 0 | L61: =IFERROR(VLOOKUP(C61,MATRIZ!$A$5:CG$311,74,0),0) -> 0 | M61: =IFERROR(VLOOKUP(C61,MATRIZ!$A$5:$CG$311,82,0),0) -> 0 | N61: =IFERROR(VLOOKUP(C61,MATRIZ!$A$5:$CP$311,86,0),0) -> 0 | O61: =IFERROR(VLOOKUP(C61,MATRIZ!$A$5:$CP$311,94,0),0) -> 0 | Q61: 0 | R61: 5000 | S61: Se hablo con el tesorero Alejandro y se pidio la reciprocidad. Accedio con dar mayor flujo. Ha estado batallando con excedentes por el impacto de la inflacción, más sin embargo buscara otorgar el apoyo | U61: Se hablo con el tesorero Alejandro y se pidio la reciprocidad. Accedio con dar mayor flujo. Ha estado batallando con excedentes por el impacto de la inflacción, más sin embargo buscara otorgar el apoyo | V61: Se hablo con el tesorero Alejandro y se pidio la reciprocidad. Accedio con dar mayor flujo. Ha estado batallando con excedentes por el impacto de la inflacción, más sin embargo buscara otorgar el apoyo | W61: 2022-09-23 | X61: IMPLEMENTADOR | Y61: Primera etapa se encuentra en proceso de configuración de Interredes/Se espera completar la implementación 2 semana septiembre
A62: MTY IV | B62: GERARDO GARCIA | C62: FERRUMAJA SA DE CV | D62: 8136.568631 | E62: 0.01614546899 | F62: 813.6568631 | G62: -813.6568631 | H62: 0.15 | I62: 0.18 | J62: 1000 | K62: =IFERROR(VLOOKUP(C62,MATRIZ!$A$5:CG$311,70,0),0) -> 0 | L62: =IFERROR(VLOOKUP(C62,MATRIZ!$A$5:CG$311,74,0),0) -> 0 | M62: =IFERROR(VLOOKUP(C62,MATRIZ!$A$5:$CG$311,82,0),0) -> 0 | N62: =IFERROR(VLOOKUP(C62,MATRIZ!$A$5:$CP$311,86,0),0) -> 0 | O62: =IFERROR(VLOOKUP(C62,MATRIZ!$A$5:$CP$311,94,0),0) -> 0 | Q62: 0 | R62: 1000 | U62: Pidio la tesorera Janeth que le marquemos 03/08/2022 para tratar el tema | V62: Pidio la tesorera Janeth que le marquemos 03/08/2022 para tratar el tema | W62: 2022-09-26 | X62: EMPRESARIAL | Y62: Esta comprando acero por temas de costo a nivel mundial, espera cambio en el precio del acero para realizar venta y poder aumentar sus flujos y dejar reciprocidad/Estimación cliente 3 semana de septiembre
A63: MTY IV | B63: ALDO FARIAS | C63: COFINE SAPI DE CV SOFOM ENR | D63: 73762.71848 | E63: 0.006208329479 | F63: 7376.271848 | G63: -7376.271848 | H63: 0.21 | I63: 0.36 | J63: 1000 | K63: =IFERROR(VLOOKUP(C63,MATRIZ!$A$5:CG$311,70,0),0) -> 0 | L63: =IFERROR(VLOOKUP(C63,MATRIZ!$A$5:CG$311,74,0),0) -> 0 | M63: =IFERROR(VLOOKUP(C63,MATRIZ!$A$5:$CG$311,82,0),0) -> 0 | N63: =IFERROR(VLOOKUP(C63,MATRIZ!$A$5:$CP$311,86,0),0) -> 0 | O63: =IFERROR(VLOOKUP(C63,MATRIZ!$A$5:$CP$311,94,0),0) -> 0 | Q63: 0 | R63: 1000 | S63: Se hablo con el cliente tocando el tema de reciprocidad y comentaron que ellos tienen la politica de dejar solamente $50 mil pesos en cuenta y el resto llevarlo en mesa de dinero. Somos su principal banco y rara vez opera con otro banco. Nos dio cita para el próximo martes 2 de agosto para revisar el tema con dirección | U63: Se hablo con el cliente tocando el tema de reciprocidad y comentaron que ellos tienen la politica de dejar solamente $50 mil pesos en cuenta y el resto llevarlo en mesa de dinero. Somos su principal banco y rara vez opera con otro banco. Nos dio cita para el próximo martes 2 de agosto para revisar el tema con dirección | V63: Se hablo con el cliente tocando el tema de reciprocidad y comentaron que ellos tienen la politica de dejar solamente $50 mil pesos en cuenta y el resto llevarlo en mesa de dinero. Somos su principal banco y rara vez opera con otro banco. Nos dio cita para el próximo martes 2 de agosto para revisar el tema con dirección | W63: 2022-09-30 | X63: EMPRESARIAL | Y63: Comenta el cliente que solo es posible dejar saldos en mediados de mes por su politica tesoreria eficiente/Incrementos ~500 mil/ Se tiene cita próximo miercoles 7 de septiembre para definir negocio nuevos por parte de Cash, buscando cita en conjunto con empresarial
A64: MTY IV | B64: GERARDO GARCIA | C64: ARRENDADORA CENTENARIO SA DE CV | D64: 173982.3575 | E64: 0.006581651855 | F64: 17398.23575 | G64: -17398.23575 | H64: 0.8 | I64: 0.27 | J64: 2000 | K64: =IFERROR(VLOOKUP(C64,MATRIZ!$A$5:CG$311,70,0),0) -> 0 | L64: =IFERROR(VLOOKUP(C64,MATRIZ!$A$5:CG$311,74,0),0) -> 0 | M64: =IFERROR(VLOOKUP(C64,MATRIZ!$A$5:$CG$311,82,0),0) -> 0 | N64: =IFERROR(VLOOKUP(C64,MATRIZ!$A$5:$CP$311,86,0),0) -> 0 | O64: =IFERROR(VLOOKUP(C64,MATRIZ!$A$5:$CP$311,94,0),0) -> 0 | Q64: 0 | R64: 2000 | S64: Se aplaza reunión para el jueves de la proxima semana | U64: Se aplaza reunión para el jueves de esta proxima semana | V64: Se aplaza reunión para el jueves de esta proxima semana | W64: 2022-09-26 | X64: IMPLEMENTADOR | Y64: Pendiente de apertura de cuenta empresa Siglo XIX e implementación de TPV de los destino turisticos/Se proyecta operación 3 semana septiembre/ Imcremento VSI $3 MDP | Z64: Se pidio reciprocidad/La reciprocidad se dara con todas las TPV del grupo(17)/ Operación 1 etapa (4)/ Pendiente implementar 2 etapa TPV de destinos turisticos playas/ Incremento $3 MDP
A65: MTY IV | B65: LILIANA SALINAS | C65: COMERCIALIZADORA ARTHUR SA DE CV | D65: 72020.40105 | E65: 0.001427382988 | F65: 7202.040105 | G65: -7202.040105 | H65: 0.28 | I65: 0.27 | J65: 1000 | K65: =IFERROR(VLOOKUP(C65,MATRIZ!$A$5:CG$311,70,0),0) -> 0 | L65: =IFERROR(VLOOKUP(C65,MATRIZ!$A$5:CG$311,74,0),0) -> 0 | M65: =IFERROR(VLOOKUP(C65,MATRIZ!$A$5:$CG$311,82,0),0) -> 0 | N65: =IFERROR(VLOOKUP(C65,MATRIZ!$A$5:$CP$311,86,0),0) -> 0 | O65: =IFERROR(VLOOKUP(C65,MATRIZ!$A$5:$CP$311,94,0),0) -> 0 | Q65: 0 | R65: 1000 | U65: Ya cumpliendo | V65: Ya cumpliendo | W65: 2022-09-23 | X65: EMPRESARIAL | Y65: Cliente dejará saldo del compromiso apartir de 9 de septiembre por tema cierre de mes
A66: MTY IV | B66: ALDO FARIAS | C66: AGROJABA AR DE IC DE RL | D66: 74180.9347 | E66: 0.01147701026 | F66: 7418.09347 | G66: -7418.09347 | H66: 0.32 | I66: 0.09 | J66: 1000 | K66: =IFERROR(VLOOKUP(C66,MATRIZ!$A$5:CG$311,70,0),0) -> 0 | L66: =IFERROR(VLOOKUP(C66,MATRIZ!$A$5:CG$311,74,0),0) -> 0 | M66: =IFERROR(VLOOKUP(C66,MATRIZ!$A$5:$CG$311,82,0),0) -> 0 | N66: =IFERROR(VLOOKUP(C66,MATRIZ!$A$5:$CP$311,86,0),0) -> 0 | O66: =IFERROR(VLOOKUP(C66,MATRIZ!$A$5:$CP$311,94,0),0) -> 0 | Q66: 0 | R66: 1000 | S66: Se hablo con el cliente (15-07), accediendo a incrementar la operación con Banorte y los saldos. Actualmente ha tenido un incremento de 2 VSI | U66: Se hablo con el cliente (15-07), accediendo a incrementar la operación con Banorte y los saldos. Actualmente ha tenido un incremento de 2 VSI | V66: Se hablo con el cliente (15-07), accediendo a incrementar la operación con Banorte y los saldos. Actualmente ha tenido un incremento de 2 VSI | W66: 2022-09-16 | X66: EMPRESARIAL | Y66: En conjunto con empresarial se hablo por segunda ocasión con el cliente buscando reciprocidad/Cliente pidio dejar pasar el cierre de mes para dejar saldos ya que tiene compromisos de pagos/Se agenda recordatorio con el cliente para el día 9 de septiembre
A67: MTY IV | B67: ALDO FARIAS | C67: ORGANIZACION REYNERA SA DE CV | D67: 214826.1736 | E67: 0.02198213358 | F67: 21482.61736 | G67: -21482.61736 | H67: 0.51 | I67: 0.36 | J67: 1000 | K67: =IFERROR(VLOOKUP(C67,MATRIZ!$A$5:CG$311,70,0),0) -> 0 | L67: =IFERROR(VLOOKUP(C67,MATRIZ!$A$5:CG$311,74,0),0) -> 0 | M67: =IFERROR(VLOOKUP(C67,MATRIZ!$A$5:$CG$311,82,0),0) -> 0 | N67: =IFERROR(VLOOKUP(C67,MATRIZ!$A$5:$CP$311,86,0),0) -> 0 | O67: =IFERROR(VLOOKUP(C67,MATRIZ!$A$5:$CP$311,94,0),0) -> 0 | Q67: 0 | R67: 1000 | S67: Se hablo con la dueña de la empresa Cristina Pedroza, accedio con la reciprocidad. | U67: Se hablo con la dueña de la empresa Cristina Pedroza, accedio con la reciprocidad. | V67: Se hablo con la dueña de la empresa Cristina Pedroza, accedio con la reciprocidad. | W67: 2022-09-14 | X67: EMPRESARIAL | Y67: El cliente comenta que con la renovación de su línea mandara mayor operación con Banorte, refeljando el saldo comprometido apartir del 14 de septiembre
A68: MTY IV | B68: LILIANA SALINAS | C68: PROVEEDORA INDUSTRIAL VARGAS SA DE CV | D68: 28388.34238 | E68: 0.03303415968 | F68: 2838.834238 | G68: -2838.834238 | H68: 0.54 | I68: 0.45 | J68: 1000 | K68: =IFERROR(VLOOKUP(C68,MATRIZ!$A$5:CG$311,70,0),0) -> 0 | L68: =IFERROR(VLOOKUP(C68,MATRIZ!$A$5:CG$311,74,0),0) -> 0 | M68: =IFERROR(VLOOKUP(C68,MATRIZ!$A$5:$CG$311,82,0),0) -> 0 | N68: =IFERROR(VLOOKUP(C68,MATRIZ!$A$5:$CP$311,86,0),0) -> 0 | O68: =IFERROR(VLOOKUP(C68,MATRIZ!$A$5:$CP$311,94,0),0) -> 0 | Q68: 0 | R68: 1000 | S68: Se hablo con el cliente (13-07). Accedio con el apoyo en incremento en reciprocidad. Actualmente incremento VSI 1.5 MDP. Quedamos en hablar el próximo 4 de agosto | U68: Se hablo con el cliente (13-07). Accedio con el apoyo en incremento en reciprocidad. Actualmente incremento VSI 1.5 MDP. Quedamos en hablar el próximo 4 de agosto | V68: Se hablo con el cliente (13-07). Accedio con el apoyo en incremento en reciprocidad. Actualmente incremento VSI 1.5 MDP. Quedamos en hablar el próximo 4 de agosto | W68: 2022-09-16 | X68: EMPRESARIAL | Y68: Mandara saldos el 12 de septiembre/No pudo hacerlo antes por vencimiento de inversión
A69: MTY IV | B69: GERARDO GARCIA | C69: DISTRIBUIDORA SEVI SA DE CV | D69: 39532.24141 | E69: 0.02739729728 | F69: 3953.224141 | G69: -3953.224141 | H69: 0.42 | I69: 0.36 | J69: 1000 | K69: =IFERROR(VLOOKUP(C69,MATRIZ!$A$5:CG$311,70,0),0) -> 0 | L69: =IFERROR(VLOOKUP(C69,MATRIZ!$A$5:CG$311,74,0),0) -> 0 | M69: =IFERROR(VLOOKUP(C69,MATRIZ!$A$5:$CG$311,82,0),0) -> 0 | N69: =IFERROR(VLOOKUP(C69,MATRIZ!$A$5:$CP$311,86,0),0) -> 0 | O69: =IFERROR(VLOOKUP(C69,MATRIZ!$A$5:$CP$311,94,0),0) -> 0 | Q69: 0 | R69: 1000 | S69: Nos pidio el cliente (Alejandra Huerta) marcarla 02/08/2022 a las 11 am | U69: Nos pidio el cliente (Alejandra Huerta) marcarla 02/08/2022 a las 11 am | V69: Nos pidio el cliente (Alejandra Huerta) marcarla 02/08/2022 a las 11 am | W69: 2022-09-23 | X69: EMPRESARIAL | Y69: Por el momento no esta en posibilidad de dar reciprocidad, ni más negocio a Banorte. Se busca cita para el próximo 6 de septiembre con dueños
A70: MTY IV | B70: ALDO FARIAS | C70: PRODUCTOS SELECTOS MARROKO SA DE CV | D70: 90982.39047 | E70: 0.02595759283 | F70: 9098.239047 | G70: -9098.239047 | H70: 0.58 | I70: 0.27 | J70: 1000 | K70: =IFERROR(VLOOKUP(C70,MATRIZ!$A$5:CG$311,70,0),0) -> 0 | L70: =IFERROR(VLOOKUP(C70,MATRIZ!$A$5:CG$311,74,0),0) -> 0 | M70: =IFERROR(VLOOKUP(C70,MATRIZ!$A$5:$CG$311,82,0),0) -> 0 | N70: =IFERROR(VLOOKUP(C70,MATRIZ!$A$5:$CP$311,86,0),0) -> 0 | O70: =IFERROR(VLOOKUP(C70,MATRIZ!$A$5:$CP$311,94,0),0) -> 0 | Q70: 0 | R70: 1000 | S70: Nos pidio el cliente (Alejandra Huerta) marcarla 02/08/2022 a las 11 am | U70: Nos pidio el cliente (Alejandra Huerta) marcarla 02/08/2022 a las 03 pm | V70: Nos pidio el cliente (Alejandra Huerta) marcarla 02/08/2022 a las 03 pm | W70: 2022-09-13 | X70: EMPRESARIAL | Y70: El cliente comenta que por cierre esta realizando pagos a sus proveedores, puede ayudar con saldos apartir del 7 de septiembre/Hasta el 13 se vera reflejado el promedio
N71: =SUM(N3:N70) -> 0 | O71: =SUM(O3:O70) -> 0 | Q71: =SUM(Q3:Q70) -> 0
K74: RECIPROCIDAD
A75: MOD | B75: COMPROMISO | C75: AVANCE | D75: % AVANCE | E75: % FALTANTE | J75: MOD | K75: MOD | L75: COMPROMISO | M75: AVANCE | N75: % AVANCE | O75: % FALTANTE
A76: ALDO FARIAS | B76: 23000 | C76: =SUMIF($B$56:$B$70,A76,$Q$56:$Q$70) -> 0 | D76: =IFERROR(C76/B76,0) -> 0 | E76: 0.3551118096 | J76: MTY I | K76: MTY I | L76: =SUM(J3:J17) -> 13000 | M76: =SUM(Q3:Q19) -> 0 | N76: =M76/L76 -> 0 | O76: =1-N76 -> 1
A77: LILIANA SALINAS | B77: 10000 | C77: =SUMIF($B$56:$B$70,A77,$Q$56:$Q$70) -> 0 | D77: =IFERROR(C77/B77,0) -> 0 | E77: 0.5697981161 | J77: MTY II | K77: MTY II | L77: =SUM(J20:J33) -> 53500 | M77: =SUM(Q20:Q35) -> 0 | N77: 0 | O77: 1
A78: GERARDO GARCIA | B78: 7000 | C78: 0 | D78: 0 | E78: 0.5701370927 | J78: MTY III | K78: MTY III | L78: =SUM(J36:J52) -> 23000 | M78: =SUM(Q36:Q55) -> 0 | N78: 0 | O78: 1
A79: CARLOS DELGADILLO | B79: 0 | C79: 0 | D79: 0 | E79: 0.7302400623 | J79: MTY IV | K79: MTY IV | L79: =SUM(J56:J70) -> 26000 | M79: =SUM(Q56:Q70) -> 0 | N79: =M79/L79 -> 0 | O79: =1-N79 -> 1
A80: TOTAL | B80: =SUM(B76:B79) -> 40000 | C80: =SUM(C76:C79) -> 0 | J80: TOTAL | K80: TOTAL | L80: =SUM(L76:L79) -> 115500 | M80: =SUM(M76:M79) -> 0
A86: ROCA ACERO
A87: LA MISION

Sheet CAPTACION AL DIA (hidden)
A1: Captación Tradicional
A2: Seguimiento diario al 01 de AGOSTO
A5: NORTE I | B5: DIC | C5: ENE | D5: FEB | E5: MAR | F5: ABR | G5: MAY | H5: JUN | I5: JUL | J5: AGOSTO | K5: Cifras Diarias | Q5: vs Mes año ant | S5: vs Mes anterior | U5: vs Prom año Ant | W5: vs Ppto Mensual | Y5: vs Ppto YTD
J6: PROM al 01 | K6: 2022-07-25 | L6: 2022-07-26 | M6: 2022-07-27 | N6: 2022-07-28 | O6: 2022-07-29 | P6: 2022-08-01 | Q6: $ | R6: % | S6: $ | T6: % | U6: $ | V6: % | W6: $ | X6: % | Y6: $ | Z6: %
A7: Total Vista | B7: 6482.292991 | C7: 7496.289441 | D7: 7419.770656 | E7: 6734.847935 | F7: 7173.800414 | G7: 7427.292127 | H7: 7271.003247 | I7: 6936.062647 | J7: 7139.847347 | K7: 0 | L7: 7168.927313 | M7: 7189.084874 | N7: 7157.503694 | O7: 7284.18832 | P7: 7400.568361 | Q7: 7162.348268 | R7: 7168.927313 | S7: 456.8391316 | T7: 0.06806214687 | U7: 97.39886081 | V7: 0.01377338173 | W7: 983.7935897 | X7: 0.1604459465 | Y7: -7.311357275 | Z7: -0.001018828611
A8: Sin Intereses MN | B8: 2054.493332 | C8: 2201.437215 | D8: 2404.471081 | E8: 1961.107031 | F8: 1931.66125 | G8: 1943.371962 | H8: 1900.887811 | I8: 1833.779751 | J8: 1854.513595 | K8: NORTE IVSI MN | L8: 2089.948068 | M8: 1906.320268 | N8: 1873.424207 | O8: 1997.297415 | P8: 2153.09515 | Q8: 2059.454348 | R8: 2089.948068 | S8: 177.6724 | T8: 0.09291149961 | U8: 243.7888808 | V8: 0.1320519284 | W8: 103.7883787 | X8: 0.0571399133 | Y8: 39.65099977 | Z8: 0.01933914864
A9: Con Intereses MN | B9: 1417.787905 | C9: 1709.963487 | D9: 1430.018712 | E9: 1290.633524 | F9: 1162.420332 | G9: 1275.259516 | H9: 944.8762533 | I9: 841.5887049 | J9: 959.3481831 | K9: NORTE IVCI MN | L9: 890.4132357 | M9: 918.2146981 | N9: 952.8002917 | O9: 981.4977999 | P9: 923.3483384 | Q9: 920.6887839 | R9: 890.4132357 | S9: -713.1848681 | T9: -0.4447404037 | U9: -52.08493919 | V9: -0.05526264196 | W9: -105.1739351 | X9: -0.09197113993 | Y9: -769.0592837 | Z9: -0.4634359863
A10: Sin Intereses USD | B10: 756.7264711 | C10: 897.670577 | D10: 709.4851773 | E10: 773.8619245 | F10: 1400.342728 | G10: 1434.037162 | H10: 1583.590901 | I10: 1544.970582 | J10: 1565.158572 | K10: NORTE IVSI USD | L10: 1482.173716 | M10: 1600.018723 | N10: 1612.235472 | O10: 1590.19295 | P10: 1603.545009 | Q10: 1471.745452 | R10: 1482.173716 | S10: 706.1317742 | T10: 0.9099144467 | U10: -16.47220886 | V10: -0.01099139469 | W10: 585.4885625 | X10: 0.7098043093 | Y10: 588.5250519 | Z10: 0.6585642384
A11: Con Intereses USD | B11: 1444.534406 | C11: 1917.982397 | D11: 2063.957185 | E11: 2126.794026 | F11: 2153.383726 | G11: 2192.762546 | H11: 2180.0899 | I11: 2070.830994 | J11: 2077.649173 | K11: NORTE IVCI USD | L11: 2027.434716 | M11: 2036.13086 | N11: 2001.144988 | O11: 1998.599697 | P11: 2005.738386 | Q11: 1984.887431 | R11: 2027.434716 | S11: 358.5112791 | T11: 0.2148158934 | U11: -29.24786322 | V11: -0.01422089316 | W11: 314.8919617 | X11: 0.1753480042 | Y11: 278.0139162 | Z11: 0.1589176922
A12: Plazo MN | B12: 32.84545297 | C12: 27.60282129 | D12: 79.89744983 | E12: 37.4526114 | F12: 39.01271048 | G12: 39.22648966 | H12: 35.78382996 | I12: 36.74801853 | J12: 36.45067042 | K12: NORTE IPZO MN | L12: 38.164968 | M12: 36.26495929 | N12: 36.2649599 | O12: 36.26496485 | P12: 36.45746546 | Q12: 36.2774661 | R12: 38.164968 | S12: 7.910080041 | T12: 0.2614480031 | U12: 1.635985075 | V12: 0.04478594649 | W12: 8.877821195 | X12: 0.3110308882 | Y12: 10.32635631 | Z12: 0.3709364686
A13: Plazo USD | B13: 775.9054246 | C13: 741.6329435 | D13: 731.9410509 | E13: 544.9988177 | F13: 486.9796673 | G13: 542.6344511 | H13: 625.7745509 | I13: 608.1445962 | J13: 646.7271536 | K13: NORTE IPZO USD | L13: 640.7926085 | M13: 692.1353667 | N13: 681.6337745 | O13: 680.335495 | P13: 678.3840126 | Q13: 689.294787 | R13: 640.7926085 | S13: -80.20153367 | T13: -0.1112374276 | U13: -50.2209938 | V13: -0.07267728686 | W13: 75.92080069 | X13: 0.1453134303 | Y13: -154.7683977 | Z13: -0.1945399492

Sheet CAPTACION (hidden)
B1: Presupuesto Mayo | C1: Saldo al cierre | D1: Alcance | E1: Presupuesto Junio | F1: Saldo al cierre | G1: alcance | H1: DIF JUNIO VS PPTO
A2: NTE I | B2: =SUM(B3:B6) -> 1923 | C2: =SUM(C3:C6) -> 1829 | D2: =C2/B2 -> 0.9511180447 | E2: =SUM(E3:E6) -> 1995 | F2: =SUM(F3:F6) -> 1821 | G2: =F2/E2 -> 0.9127819549 | H2: =F2-E2 -> -174
A3: ERASMO MATA | B3: 493 | C3: 464 | D3: =C3/B3 -> 0.9411764706 | E3: 510 | F3: 501 | G3: =F3/E3 -> 0.9823529412 | H3: =F3-E3 -> -9
A4: MONICA GRACIA | B4: 513 | C4: 477 | D4: =C4/B4 -> 0.9298245614 | E4: 534 | F4: 430 | G4: =F4/E4 -> 0.8052434457 | H4: =F4-E4 -> -104
A5: JOAO MOURA | B5: 389 | C5: 391 | D5: =C5/B5 -> 1.005141388 | E5: 404 | F5: 411 | G5: =F5/E5 -> 1.017326733 | H5: =F5-E5 -> 7
A6: CRISTIAN HERNANDEZ | B6: 528 | C6: 497 | D6: =C6/B6 -> 0.9412878788 | E6: 547 | F6: 479 | G6: =F6/E6 -> 0.8756855576 | H6: =F6-E6 -> -68
A7: EBT | B7: BR | C7: Cliente | D7: Vista sin COMPROMISO | E7: Estrategia | F7: Estatus | G7: Mes | H7: Servicio | I7: ESTRATEGIA | J7: VSI JUN 22 | K7: VSI JUL | L7: DIF MES ANTERIOR | M7: DIF MES AÑO ANTERIOR | N7: AVANCE SEMANA 1 | O7: AVANCE SEMANA 1
A8: CRISTIAN HERNANDEZ | B8: GERARDO GARCIA GUERRA | C8: LG ELECTRONICS MEXICALI | D8: 9000 | E8: Colocación de productos | F8: EN IMPLEMENTACIÓN | G8: Julio | H8: Cuentas, ATM, BEM, Nómina | I8: solicitud de apoyo a los clientes | J8: 30566.59871 | K8: 44321.44768 | L8: 13754.84897 | M8: -69233.07754 | N8: Se le solicito al cliente 20mdp, hará lo posible comentó seguros son 10 mdp
A9: MONICA GRACIA | B9: PRISCILA YAZMIN GARCIA TAMEZ | C9: BIENES E INMUEBLES TRES PICOS SA DE CV | D9: 3000 | E9: Solicitud de apoyo a los clientes | F9: Prospecto | G9: Agosto | H9: Credito | I9: EDR apoyara con la cita. | J9: 3941.819533 | K9: 5288.203559 | L9: 1346.384026 | M9: -1203.448486
A10: MONICA GRACIA | B10: JUSTINO HERNANDEZ REYES | C10: DESARROLLOS ALFA 777 SA DE CV | D10: 1000 | E10: Colocación de productos | F10: Negociación | G10: Julio | H10: Crédito | I10: Compromiso a comité | J10: 716.141446 | K10: 627.3853279 | L10: -88.75611814 | M10: 59.45371624
A11: MONICA GRACIA | B11: PRISCILA YAZMIN GARCIA TAMEZ | C11: IMPULSORA REGIO HOGAR SAPI DE CV | D11: PENDIENTE | E11: Colocación de productos | F11: Prospecto | G11: Julio | H11: Julio | I11: Buscar productos
A12: CRISTIAN HERNANDEZ | B12: ALDO GERARDO FARIAS | C12: AVES SELECCIONADAS MARLAN | D12: 5000 | E12: Colocación de productos | F12: EN IMPLEMENTACIÓN | G12: Julio | H12: Interredes | I12: Buscar reunión para h2h, hospitality. | J12: 2507.011335 | K12: 4412.283013 | L12: 1905.271678 | M12: 781.5084864 | N12: En espera de reunión para diagnosticar los hoteles Reynosa y Matamoros , esto debido a que hubo un cambio de Admon. Se solicito apoyo y dejara 3 mdp
A13: MONICA GRACIA | B13: ERIC TOMAS ROCHA CONTRERAS | C13: SAVE PRESTAMOS PERSONALES SA DE CV SOFOM ENR | D13: 5000 | E13: Colocación de productos | F13: Negociación | G13: Agosto | H13: Cobranza Domiciliada | I13: E.COMMERCE, MULTIADQUIRENTE, NÓMINA | J13: 2392.907524 | K13: 5733.046544 | L13: 3340.13902 | M13: 3885.076369
A14: CRISTIAN HERNANDEZ | B14: GERARDO GARCIA GUERRA | C14: ADS MEXICANA SA DE CV | D14: 3000 | E14: Colocación de productos | F14: IMPLEMENTADO | G14: Julio | H14: Nomina | I14: servicio | J14: 24438.60057 | K14: 30172.67975 | L14: 5734.079181 | M14: 9459.068859 | N14: Ya confirmo que si incrementara, pendiente defina monto
A15: ERASMO MATA | B15: CESAR ALFONSO GONZALEZ CABRERA | C15: BURO INMOBILIARIO NACIONAL SA DE CV | D15: 5000 | E15: Colocación de productos | F15: Contratación | G15: Agosto | H15: Servicio | I15: TPV | J15: 29547.9085 | K15: 30150.57831 | L15: 602.6698075 | M15: 13478.4451 | N15: En contratacion, cuentas , ADQ
A16: MONICA GRACIA | B16: PERLA MONTSERRAT MARROQUIN RODRIGUEZ | C16: FERRETERA INDUSTRIAL DEL NORTE SA DE CV | D16: PENDIENTE | E16: Colocación de productos | F16: Negociación | G16: Julio | H16: Servicio | I16: Bajar com de nómina, revisar que prod podemos hacer que operen. | J16: 1797.558398 | K16: 1082.232793 | L16: -715.3256048 | M16: -243.0631326
A17: ERASMO MATA | B17: PERLA MONTSERRAT MARROQUIN RODRIGUEZ | C17: RISOUL Y CIA SA DE CV | D17: 5000 | E17: Solicitud de apoyo a los clientes | F17: Negociacion | G17: Julio | H17: Servicio | I17: solicitud de apoyo a los clientes / dar seg para que opere h2h. *agosto. | J17: 6281.67122 | K17: 3391.553253 | L17: -2890.117967 | M17: -4814.32564 | N17: Se implemento TDC empuje, Dispersa, Cobranza Domiciliada. H2H operará en agosto. Se solicito apoyo de saldos por crédito,ya que con Osvel se tenia un acuerdo de mantener vsi 34mdp.
A18: MONICA GRACIA | B18: ERIC TOMAS ROCHA CONTRERAS | C18: HERRAMENTAL MONTERREY SA | D18: 1000 | E18: Reciprocidad | F18: Negociación | G18: Julio | H18: tpv, ligas de pago, nómina y Tde | I18: En negociación de tpv, nómina, e-commerce y TDE. , Se tiene cita proximo jueves | J18: 5298.21441 | K18: 6500.681139 | L18: 1202.466728 | M18: 3678.321578 | N18: En negociación de tpv, nómina, e-commerce y TDE.
A19: MONICA GRACIA | B19: JUSTINO HERNANDEZ REYES | C19: IMOBILEM METRO SA DE CV | D19: 3000 | E19: Reciprocidad | F19: Negociación | G19: Julio | H19: Crédito | I19: Convocaré a reunión con el cliente. | J19: 1562.820276 | K19: 2848.945404 | L19: 1286.125127 | M19: -1993.929175 | N19: Cliente con problemas de flujo
A20: MONICA GRACIA | B20: PRISCILA YAZMIN GARCIA TAMEZ | C20: INMOBILIARIA PRINSASA DE CV | D20: 1000 | E20: Reciprocidad | F20: Negociación | G20: Julio | H20: Crédito | I20: Ya se tiene definida cita proxima semana | J20: 5367.383169 | K20: 3413.142904 | L20: -1954.240265 | M20: -14688.72692 | N20: Pris me apoyar con la cita
A21: MONICA GRACIA | B21: PRISCILA YAZMIN GARCIA TAMEZ | C21: MARIA CRISTINA BRITTINGHAM SADA | D21: 1000 | E21: Reciprocidad | F21: Negociación | G21: Julio | H21: Crédito | I21: Ya se tiene definida cita proxima semana | J21: 445.5419373 | K21: 347.8641943 | L21: -97.67774305 | M21: -372.1262128 | N21: Pris me apoyar con la cita
A22: ERASMO MATA | B22: JUAN MANUEL ZEA COMPEAN | C22: MONTO FACIL SAPI DECV SOFOM ENR | D22: 5000 | E22: Colocación de productos | F22: Contratación | G22: Agosto | H22: Cobranza, ADQ | I22: Cobranza, Ligas de pagos H2H | J22: 6230.790876 | K22: 15174.41957 | L22: 8943.628699 | M22: 14054.05058 | N22: En contratacion
A23: MONICA GRACIA | B23: ERIC TOMAS ROCHA CONTRERAS | C23: PROVEEDORA FLEXOGRAFICA SA DE CV | D23: PENDIENTE | E23: Reciprocidad | F23: Negociación | G23: Julio | H23: Credito | I23: Solicitar apoyo de ejecutivo de Relación para reunión con el cliente. | J23: 180.5614077 | K23: 167.17846 | L23: -13.38294767 | M23: -377.6825874 | N23: Listas para operar TPV y peca, en contratacón nómina, y neg TDE.
A24: ERASMO MATA | B24: VERONICA ELIZABETH RODRIGUEZ CEPEDA | C24: EIIMT CORPORATION S DE RL DE CV | D24: 5000 | E24: Grupos nuevos | F24: Negociación | G24: Julio | H24: Varios productos | I24: Listas para operar TPV y peca, en contratacón nómina, y neg TDE. | J24: 0 | K24: 0 | L24: 0 | M24: 0 | N24: Se solicito apoyo de saldos el dia de hoy, CEP se capacita el proximo miercoles, TPV ya se va contratar con todo con Banorte.
A25: ERASMO MATA | B25: CESAR ALFONSO GONZALEZ CABRERA | C25: FILOSOFIA EN INMUEBLES SAPI DE CV | D25: 4000 | E25: Grupos nuevos | F25: Negociación | G25: Julio | H25: CEP | Pagos | I25: Cuentas, BEM, Pagos | J25: 9.612961667 | K25: 8.85872 | L25: -0.7542416667 | M25: 8.85872 | N25: Este mes comienzan a operar Cuenta Bem y Pagos por lo que ya confirmo promediara este mismo mes
A26: ERASMO MATA | B26: PENDIENTE | C26: DENTALIA SA DE CV | D26: 5000 | E26: Grupos nuevos | F26: Prospecto | G26: Julio | H26: Cuenta, BEM , ADQ | I26: CEP | Pagos | N26: Negociacion
A27: ERASMO MATA | B27: RELACION DUPLICADA | C27: DESARROLLO Y CONSTRUCCIONES URBANAS SA DE CV | D27: 5000 | E27: Balance Fee | F27: Negociación | G27: Agosto | H27: Servicio | I27: Nomina | J27: 1253.555238 | K27: 1278.356723 | L27: 24.80148452 | M27: -6688.064785 | N27: Ya se mando propuesta la semana pasada
A28: MONICA GRACIA | B28: JUSTINO HERNANDEZ REYES | C28: EFEVAL SA DE CV SOFOM ENR | D28: 5000 | E28: Colocación de productos | F28: Implementación | G28: Agosto | H28: Cobranza Domiciliada | I28: Cobranza, Pagos | J28: 5659.490413 | K28: 7220.077301 | L28: 1560.586889 | M28: -7991.502647
A29: ERASMO MATA | B29: PENDIENTE | C29: JAMEX EDUCATION SA DE CV | D29: 3000 | E29: Grupos nuevos | F29: Contratación | G29: Julio | H29: Cuenta, BEM , ADQ | I29: Cobranza, Pagos / Buscar atraer más nómina y que opere H2h. | J29: 0 | K29: 0 | L29: 0 | M29: 0 | N29: Se esta buscando reunion con el area de RH para buscar participar más en la nómina* Observacion se le aumentaron las tasas de crédito.Se solicito apoyo y dejara 3 mdp
A30: MONICA GRACIA | B30: PRISCILA YAZMIN GARCIA TAMEZ | C30: MAXIMA DISTINCION SA DE CV | D30: 5000 | E30: Grupos nuevos | F30: Implementado | G30: Julio | H30: Cuenta, BEM , ADQ | I30: CEP | Pagos | Adq | J30: 2147.325783 | K30: 3102.548541 | L30: 955.2227584 | M30: 2624.096146
A31: MONICA GRACIA | B31: PRISCILA YAZMIN GARCIA TAMEZ | C31: TELECOMUNICACIONES Y SERVICIOS DEL NORTE SA DE CV | D31: PENDIENTE | E31: Reciprocidad | F31: Negociación | G31: Julio | H31: Credito | I31: Cliente no dejara VSI, buscaremos una reunión con el cliente para diagnosticar la nómina y hacer propuesta. Problema de flujo , Depende de gobierno tema de autos. | J31: 656.1252103 | K31: 3120.222297 | L31: 2464.097087 | M31: 2699.774313
A32: MONICA GRACIA | B32: PENDIENTE | C32: SERVICIOS GASTRONOMICOS MASI SA DE CV | D32: 5000 | E32: Grupos nuevos | F32: Negociación | G32: Julio | H32: TPV | I32: CEP | Pagos | Adq , CUENTA
A33: JOAO MOURA | B33: LYDIA MARIANA ZUÑIGA CARDENAS | C33: AUTO TRANSPORTADORAGENESIS SA DE CV | D33: 1000 | E33: Solicitud de apoyo a los clientes | F33: Negociación | G33: Julio | H33: Credito | I33: Balance fee | J33: 660.7256803 | K33: 2751.655807 | L33: 2090.930127 | M33: 2344.632836 | N33: Cep, esta semana enviaran check list para elaborar contrato. Apoyo 10 mdp
A34: MONICA GRACIA | B34: JUSTINO HERNANDEZ REYES | C34: TRAZZO URBANO SA DECV | D34: 3000 | E34: Reciprocidad | F34: Contratación | G34: Agosto | H34: pagos recurrentes y CD. | I34: En contratación pagos recurrentes y CD. | J34: 73813.86424 | K34: 57399.79254 | L34: -16414.0717 | M34: -71883.78463 | N34: En contratación pagos recurrentes y CD.
A35: JOAO MOURA | B35: VALERIA RODRIGUEZ ALANIS | C35: KEY QUIMICA SA DE CV | D35: 4000 | E35: Reciprocidad | F35: Negociación | G35: Julio | H35: Credito | I35: apoyo | J35: 6191.669008 | K35: 5186.092139 | L35: -1005.576868 | M35: -697.5812433 | N35: Ya confirmo 1 mdp de apoyo
A36: JOAO MOURA | B36: SERGIO HUMBERTO AGUIRRE SILLER | C36: FIDEICOMISO IRREVOCABLE NUMERO 2581 | D36: 2000 | E36: Solicitud de apoyo a los clientes | F36: Prospecto | G36: Agosto | H36: Servicio | I36: credito | J36: 23488.57641 | K36: 25331.53774 | L36: 1842.961329 | M36: -9472.053052 | N36: En duda por tema de credito
A37: MONICA GRACIA | B37: JUSTINO HERNANDEZ REYES | C37: ACEROS OVEROLLINGS | D37: 10000 | E37: Solicitud de apoyo a los clientes | F37: Prospecto | G37: Julio | H37: Credito | I37: Colocacion de productos | J37: 5659.490413 | K37: 7220.077301 | L37: 1560.586889 | M37: -7991.502647 | N37: Ya se confirmo que comenzara a dejar y ya se tiene 9 MDP de incremento, proxima semana dispersan , esta semana estamos en alta de empleados.
A38: MONICA GRACIA | B38: JUSTINO HERNANDEZ REYES | C38: EDIFICADORA DE VIVIENDA | D38: 3000 | E38: Colocación de productos | F38: Prospecto | G38: Julio | H38: Servicio | I38: Adquirente | J38: 9797.009102 | K38: 14181.42856 | L38: 4384.419455 | M38: -3043.86735 | N38: Ya estan implementadose 15 afiliaciones de 120
A39: MONICA GRACIA | B39: ERIC TOMAS ROCHA CONTRERAS | C39: FORZA COMBUSTIBLES SA DE CV | D39: 3000 | E39: Colocación de productos | F39: Contratación | G39: Julio | H39: tpvs, interredes y amex | I39: Balance fee | J39: 11829.88331 | K39: 8089.976529 | L39: -3739.906781 | M39: -2437.738222
A40: JOAO MOURA | B40: FRANCISCO MARTINEZ BECERRA | C40: INDUSTRIAS COSAL SADE CV | D40: 2000 | E40: Reciprocidad | F40: Prospecto | G40: Agosto | H40: Credito | I40: PAGO DE SERVICIOS MASIVOS, INTERREDES, TPV | J40: 4257.981842 | K40: 4199.86598 | L40: -58.115862 | M40: 1333.796765
A41: MONICA GRACIA | B41: PERLA MONTSERRAT MARROQUIN RODRIGUEZ | C41: GRUPO FMC CAPITAL SAPI DE CV | D41: 10000 | E41: Colocación de productos | F41: Contratación | G41: Julio | H41: cuentas, peca, tpvs,nómina. | I41: Cuentas, BEM, Pagos | J41: 23963.34463 | K41: 68385.08492 | L41: 44421.74029 | M41: 30553.31769 | N41: Este mes comienza a operar
A42: JOAO MOURA | B42: RELACION DUPLICADA | C42: INMOBILIARIA IZAMARC SA DE CV | D42: 5000 | E42: Colocación de productos | F42: Negociación | G42: Julio | H42: Credito | I42: CEP, CEP interbancario, tpvs. | J42: 4487.70177 | K42: 4934.540001 | L42: 446.8382318 | M42: 664.3904347 | N42: Cita el proximo el martes.
A43: MONICA GRACIA | B43: JUSTINO HERNANDEZ REYES | C43: INTEGRACIONES TEMPLER SA DE CV | D43: 2000 | E43: Colocación de productos | F43: Implementacion | G43: Julio | H43: h2h, cep y cep interbancario. | I43: h2h, cep y cep interbancario.
A44: ERASMO MATA | B44: MYRIAM ADRIANA MUÑOZ GONZALEZ | C44: BRENLING SERVICIOS PROFESIONALES SA DE CV | D44: 3000 | E44: Colocación de productos | F44: Contratación | G44: Agosto | H44: Conexion Banorte| Pago a proveedores | I44: pagos recurrentes y CD. | N44: H2H en implementacion
A45: ERASMO MATA | B45: JUAN MANUEL ZEA COMPEAN | C45: MEXICANA DE ARROZ SA DE CV | D45: 3000 | E45: Grupos nuevos | F45: Negociación | G45: Julio | H45: Credito | I45: credito | N45: En proceso cambio de portafolio
A46: ERASMO MATA | B46: CESAR ALFONSO GONZALEZ CABRERA | C46: INSTITUTO ANGLO BRITANICO SC | D46: 3000 | E46: Grupos nuevos | F46: Negociación | G46: Julio | H46: CEP | Pagos | Adq | I46: Cobranza Domiciliada
A47: MONICA GRACIA | B47: PERLA MONTSERRAT MARROQUIN RODRIGUEZ | C47: ROBERTO MONTEMAYOR | D47: 4000 | E47: Reciprocidad | F47: Contratación | G47: Julio | H47: CEP, CEP interbancario, tpvs. | I47: Cuenta, BEM , ADQ | J47: 1355.480675 | K47: 1291.657398 | L47: -63.82327681 | M47: -391.5386718 | N47: Este mes comienzan a operar , cuenta ,Bem y CEP
A48: ERASMO MATA | B48: PENDIENTE | C48: WELL MEDIC SA DE CV | D48: 3000 | E48: Grupos nuevos | F48: Prospecto | G48: Agosto | H48: Credito | I48: En negociacion tpv, ligas de pago, nómina y Tde | N48: Prospecto
A49: ERASMO MATA | B49: PENDIENTE | C49: Multitraslados internacionales sa de cv | D49: 3000 | E49: Grupos nuevos | F49: Prospecto | G49: Julio | H49: Credito | I49: credito | N49: Pendiente reunion para diagnostico cash
A50: JOAO MOURA | B50: FRANCISCO MARTINEZ BECERRA | C50: JOSE GUADALUPE GARZA MONTEMAYOR | D50: 2000 | E50: Reciprocidad | F50: Prospecto | G50: Agosto | H50: Credito | I50: TPV | J50: 5329.907909 | K50: 4946.96348 | L50: -382.944429 | M50: 1909.574035
A51: MONICA GRACIA | B51: PERLA MONTSERRAT MARROQUIN RODRIGUEZ | C51: GAS SULTANA SA | D51: 3000 | E51: Colocación de productos | F51: Implementación | G51: Agosto | H51: Nomina, Tpv | I51: Ecommerce | J51: 17749.12282 | K51: 31389.54001 | L51: 13640.41719 | M51: 2178.92236
A52: MONICA GRACIA | B52: PERLA MONTSERRAT MARROQUIN RODRIGUEZ | C52: OPERADORA DE CAPITALES REGIO REY SA DE CV | D52: 3000 | E52: Colocación de productos | F52: Implementación | G52: Agosto | H52: h2h, cep y cep interbancario. | I52: TPV | J52: 119153.4077 | K52: 110757.8526 | L52: -8395.555081 | M52: 62730.36167
A53: MONICA GRACIA | B53: PERLA MONTSERRAT MARROQUIN RODRIGUEZ | C53: RAGASA INDUSTRIAS SA DE CV | D53: 1000 | E53: Colocación de productos | F53: Negociación | G53: Julio | H53: CEP | I53: cuentas, peca, tpvs,nómina | J53: 661.684402 | K53: 417.7692843 | L53: -243.9151177 | M53: 383.6417059
A54: MONICA GRACIA | B54: ERIC TOMAS ROCHA CONTRERAS | C54: RODAMIENTOS Y ACCESORIOS SA DE CV | D54: 3000 | E54: Reciprocidad | F54: Prospecto | G54: Julio | H54: Credito | I54: tpvs, interredes y amex , cita por medio de Eric | J54: 519.4815503 | K54: 457.3130471 | L54: -62.16850319 | M54: -40.96496705 | N54: Se visitó al cliente y se solicitó el apoyo para que cumplan con el saldo acordado de $10mdp. Actualmente tiene 6 mdp.
A55: JOAO MOURA | B55: FRANCISCO MARTINEZ BECERRA | C55: LANDWORK CAPITAL SADE CV | D55: 2000 | E55: Reciprocidad | F55: Prospecto | G55: Agosto | H55: Credito | I55: nómina, tpv, interredes, tde | J55: 1966.250767 | K55: 1450.365384 | L55: -515.8853824 | M55: -897.1304799
A56: MONICA GRACIA | B56: ERIC TOMAS ROCHA CONTRERAS | C56: REACTIVOS Y QUIMICOS SA DE CV | D56: 10000 | E56: Solicitud de apoyo a los clientes | F56: Negociación | G56: Julio | H56: Solicitud de apoyo | I56: Tpv y nómina | J56: 18546.80969 | K56: 16131.18758 | L56: -2415.622113 | M56: -4428.498098 | N56: Se solicito apoyo, confirmado en lo que revisan propuesta integral de cash
A57: JOAO MOURA | B57: SERGIO HUMBERTO AGUIRRE SILLER | C57: RUBEN GARZA GONZALEZ | D57: 2000 | E57: Reciprocidad | F57: Prospecto | G57: Agosto | H57: Credito | I57: Nomina | J57: 2473.099979 | K57: 1833.368088 | L57: -639.7318908 | M57: 139.0585753
A58: JOAO MOURA | B58: LYDIA MARIANA ZUÑIGA CARDENAS | C58: TE RESPALDAMOS SAPI DE CV SOFOM ENR | D58: 3000 | E58: Grupos nuevos | F58: Negociación | G58: Julio | H58: Colocacion de productos | I58: Negociacion cep por credito | J58: 48.75897967 | K58: 185.7741586 | L58: 137.0151789 | M58: 185.7741586
A59: MONICA GRACIA | B59: ERIC TOMAS ROCHA CONTRERAS | C59: JET VAN SA DE CV | D59: 3000 | E59: Colocación de productos | F59: Negociación | G59: Julio | H59: Tpv y nómina | I59: Se pedira apoyo de saldos o productos cash depende decision de cliente | J59: 562.650954 | K59: 1375.07651 | L59: 812.425556 | M59: 1049.917085 | N59: Ya empezo a incrementar este misma semana
A60: JOAO MOURA | B60: SERGIO HUMBERTO AGUIRRE SILLER | C60: SILICA DESARROLLOS S A P I DE CV | D60: 1600 | E60: Reciprocidad | F60: Negociación | G60: Julio | H60: Credito | J60: 8239.748301 | K60: 4762.876447 | L60: -3476.871854 | M60: -17223.03232 | N60: Pendiente reunion apoyo con CHECO
A61: ERASMO MATA | B61: MARIA ELENA REYES GARZA | C61: TRANSPORTES LARMEXSA DE CV | D61: 2000 | E61: Colocación de productos | F61: Contratación | G61: Agosto | H61: TDE | I61: TDE | J61: 13051.37759 | K61: 21389 | L61: =K61-J61 -> 8337.622412 | M61: -7406.251504 | N61: Crecimiento se puede dar por medio de TDE , la cual ya esta implementada en revision
A62: ERASMO MATA | B62: CESAR ALFONSO GONZALEZ CABRERA | C62: C10 CONSTRUCTORA SADE CV | D62: 1000 | E62: Reciprocidad | F62: Prospecto | G62: Agosto | H62: Credito | I62: credito | J62: 3570.592268 | K62: 4065.618194 | L62: 495.0259266 | M62: -11.79511991
A63: ERASMO MATA | B63: PERLA MONTSERRAT MARROQUIN RODRIGUEZ | C63: CORPORACION SIERRA MADRE SA DE CV | D63: 4000 | E63: Colocación de productos | F63: Implementación | G63: Julio | H63: Credito | I63: Se buscara captacion por reciprocidad | J63: 828.5174113 | K63: 916.50539 | L63: 87.98797867 | M63: -550.2912768 | N63: Cliente en recuperacion por contingencia debido al Giro, se descarta peticion de apoyo, se buscara tener participacion en 3 hoteles.
A64: ERASMO MATA | B64: CESAR ALFONSO GONZALEZ CABRERA | C64: DESARROLLO PARQUE FUNDIDORA SA DE CV | D64: 3000 | E64: Colocación de productos | F64: Contratación | G64: Julio | H64: Credito | I64: Se buscara productos por reciprocidad | J64: 12183.97198 | K64: 14643.409 | L64: 2459.437019 | M64: 10208.31666
A65: ERASMO MATA | B65: MYRIAM ADRIANA MUÑOZ GONZALEZ | C65: Grupo Autolineas Mexicanas SAPI de CV | D65: 5000 | E65: Reciprocidad | F65: Negociación | G65: Julio | H65: CEP | I65: Se buscara captacion y productos por reciprocidad | J65: 2345.564624 | K65: 2226.286759 | L65: -119.2778654 | M65: -1756.685 | N65: Pendiente respuesta de CEP
A66: JOAO MOURA | B66: LYDIA MARIANA ZUÑIGA CARDENAS | C66: TRANS OPERATIVO EXPRESS SA DE CV | D66: 2000 | E66: Colocación de productos | F66: Implementado | G66: Julio | H66: Caja general | I66: Se buscara captacion por reciprocidad o productos | J66: 16833.54285 | K66: 6532.309907 | L66: -10301.23295 | M66: 4545.294927 | N66: En proceso de apertura de cuenta de otra razon social , enseguida se negocio nomina
A67: ERASMO MATA | B67: JUAN MANUEL ZEA COMPEAN | C67: INVERSIONES SAFI SADE CV | D67: 3000 | E67: Reciprocidad | F67: Negociación | G67: Agosto | H67: Credito | I67: Se buscara captacion por reciprocidad | J67: 13083.97663 | K67: 9975.743064 | L67: -3108.23357 | M67: -1737.026154 | N67: Cliente en recuperacion por contingencia debido al Giro, se descarta peticion de apoyo
A68: CRISTIAN HERNANDEZ | B68: JUAN GUADALUPE DE LA ROSA PAZ | C68: GASODUCTOS Y ESTACIONES DEL NORTE SA DECV | D68: 2000 | E68: Colocación de productos | F68: IMPLEMENTADO | G68: Agosto | H68: Nomina | I68: nómina, tpv y tde por credito | J68: 318.7457487 | K68: 87.18120643 | L68: -231.5645422 | M68: -1112.074413 | N68: Nomina en Implementacion, pendiente ya que estan dando de alta cuentas de nomina
A69: ERASMO MATA | B69: JUAN MANUEL ZEA COMPEAN | C69: MINERALES Y CARBONES DE MEXICO SA DE CV | D69: PENDIENTE | E69: Reciprocidad | F69: Implementado | G69: Julio | H69: Credito | I69: Apoyo de saldos por credito | J69: 1084.464427 | K69: 717.5822757 | L69: -366.8821513 | M69: -1269.224561 | N69: Ya buscando llamada con cliente para ver la posibilidad de apoyo
A70: ERASMO MATA | B70: MARIA ELENA REYES GARZA | C70: PABLO MARTINEZ | D70: 3000 | E70: Reciprocidad | F70: Prospecto | G70: Agosto | H70: Credito | I70: Apoyo de saldos por credito | J70: 53390.99606 | K70: 43961.19061 | L70: -9429.805448 | M70: 19784.09622 | N70: Crecimiento se puede dar por medio de TDE , la cual ya esta implementada en revision
A71: ERASMO MATA | B71: RELACION DUPLICADA | C71: PADMONT SA DE CV | D71: 4000 | E71: Reciprocidad | F71: Implementado | G71: Julio | H71: Credito | I71: Colocacion de varios productos | J71: 6726.807158 | K71: 6389.988224 | L71: -336.8189344 | M71: -15667.08265 | N71: Se buscara cita en conjunto con Veronica, Multiadquirente (Julio es el mes de eleccion)
A72: CRISTIAN HERNANDEZ | B72: CARLOS EFREN DELGADILLO CHAPA | C72: MUGUERZA | D72: 1500 | E72: Colocación de productos | F72: EN IMPLEMENTACIÓN | G72: Agosto | H72: Tpv , Ligas de pago | I72: Reanudo operaciones | J72: 26684.62209 | K72: 26017.50488 | L72: -667.1172148 | M72: 1691.815826 | N72: En instalacion 2 tpv, se dara por cash , ligas de pago 15 afiliaciones.
A73: ERASMO MATA | B73: MYRIAM ADRIANA MUÑOZ GONZALEZ | C73: CLUB DE BASE BALL DE MONTERREY SA DE CV | D73: 1000 | E73: Colocación de productos | F73: Contratación | G73: Agosto | H73: Ecommerce | I73: Oportunidad de producto que aun no se coloca | J73: 2695.279542 | K73: 1083.100997 | L73: -1612.178545 | M73: -7190.923432 | N73: En contratacion , pendiente firma ecommerce
A74: ERASMO MATA | B74: RELACION DUPLICADA | C74: SUPER COLCHONES SA DE CV | D74: 3000 | E74: Reciprocidad | F74: Implementación | G74: Agosto | H74: Credito | I74: Se buscara peticion de saldos | J74: 2878.525089 | K74: 2458.349293 | L74: -420.1757958 | M74: 732.2232709 | N74: Se buscara cita en conjunto con Veronica, Ecommerce en negociacion
A75: ERASMO MATA | B75: MARIA ELENA REYES GARZA | C75: TRANSPORTES LAR-MEXSA DE CV | D75: 2000 | E75: Reciprocidad | F75: Prospecto | G75: Agosto | H75: Credito | I75: TDE | J75: 13051.37759 | K75: 20505.61464 | L75: 7454.237051 | M75: -96.21928265 | N75: Crecimiento se puede dar por medio de TDE , la cual ya esta implementada en revision
A76: MONICA GRACIA | B76: ERIC TOMAS ROCHA CONTRERAS | C76: EMBIA PARKING SA DE CV | D76: 1000 | E76: Grupos nuevos | F76: Negociación | G76: Julio | H76: TPV | I76: Nomina | J76: 2981.439633 | K76: 0.939 | L76: -2980.500633 | M76: 0.939
A77: MONICA GRACIA | B77: PRISCILA YAZMIN GARCIA TAMEZ | C77: SERVICIOS DE COMERCIALIZACION XIMETRIA SA DE CV | D77: 1000 | E77: Grupos nuevos | F77: Contratación | G77: Julio | H77: nómina, tpv, interredes, tde | I77: Tpv , Ligas de pago | J77: 4.666666667 | K77: 10 | L77: 5.333333333 | M77: 10
A78: MONICA GRACIA | B78: ERIC TOMAS ROCHA CONTRERAS | C78: PROMOTORA DE HOGARES SA DE CV | D78: 1000 | E78: Colocación de productos | F78: Negociacion | G78: Agosto | H78: Nomina | I78: Tpv | N78: pendiente cita
A79: CRISTIAN HERNANDEZ | B79: GERARDO GARCIA GUERRA | C79: ACEROMEX | D79: 1000 | E79: Reciprocidad | F79: Prospecto | G79: Agosto | H79: Credito | J79: 24438.60057 | K79: 30172.67975 | L79: 5734.079181 | M79: 9459.068859 | N79: Pendiente cita
A80: CRISTIAN HERNANDEZ | B80: ALDO GERARDO FARIAS | C80: AGROJABA AR DE IC DE RL | D80: 2000 | E80: Reciprocidad | F80: Negociación | G80: Julio | H80: Credito | I80: Interredes | J80: 944.482499 | K80: 1973.50967 | L80: 1029.027171 | M80: 1195.332711 | N80: Pendiente cita
A81: CRISTIAN HERNANDEZ | B81: JUAN GUADALUPE DE LA ROSA PAZ | C81: ARGOS ELECTRICA SA DE CV | D81: 1000 | E81: Reciprocidad | F81: Prospecto | G81: Agosto | H81: Credito | I81: Por colocacion productos, H2H delectric , ya se busco a Omar y Mabel | J81: 4919.018119 | K81: 3249.503508 | L81: -1669.514611 | M81: -3559.577123 | N81: en negociacion
A82: CRISTIAN HERNANDEZ | B82: RELACION DUPLICADA | C82: ARRENDADORA CENTENARIO SA DE CV | D82: 1000 | E82: Reciprocidad | F82: Negociación | G82: Julio | H82: Credito | I82: Por colocacion de tpv | J82: 1109.621375 | K82: 909.3747686 | L82: -200.2466061 | M82: -227.6629372 | N82: Hoy se instalan 4 TPV de 17 mas TI
A83: JOAO MOURA | B83: FRANCISCO MARTINEZ BECERRA | C83: GAVA OFICINA SA DE CV | D83: 1000 | E83: Grupos nuevos | F83: Negociación | G83: Julio | H83: Colocacion de productos | I83: Varios productos por credito | N83: PROSPECTO
A84: CRISTIAN HERNANDEZ | B84: RELACION DUPLICADA | C84: AYVI SA DE CV | D84: 1000 | E84: Reciprocidad | F84: Prospecto | G84: Julio | H84: Credito | I84: Por colocacion de ADQ | J84: 25934.29309 | K84: 19667.47612 | L84: -6266.816974 | M84: 2053.084428 | N84: Se busca segunda reunion para diagnostico
A85: CRISTIAN HERNANDEZ | B85: CARLOS EFREN DELGADILLO CHAPA | C85: COMERCIALIZADORA ARTHUR | D85: 1000 | E85: Reciprocidad | F85: Prospecto | G85: Agosto | J85: 94.203185 | K85: 110.5425621 | L85: 16.33937714 | M85: -789.4626798 | N85: Pendiente cita
A86: CRISTIAN HERNANDEZ | B86: CARLOS EFREN DELGADILLO CHAPA | C86: CAR ONE GROUP | D86: 7000 | E86: Reciprocidad | F86: IMPLEMENTACIÓN | G86: Agosto | H86: Credito | I86: Por colocacion de productos (Car one Oriental) | J86: 63351.49694 | K86: 56853.41722 | L86: -6498.079715 | M86: -12258.63747 | N86: En implementacion 6 tpv, 6 lectoras nomina de 300 empleados y caja general
A87: CRISTIAN HERNANDEZ | B87: ALDO GERARDO FARIAS | C87: COFINE SAPI DE CV SOFOM ENR | D87: 1000 | E87: Reciprocidad | F87: Negociación | G87: Julio | H87: Credito | I87: Por colocacion de productos H2H, CEP y TI | J87: 516.3497593 | K87: 949.2014471 | L87: 432.8516878 | M87: 659.3899549 | N87: En negociacion
A88: JOAO MOURA | B88: VALERIA RODRIGUEZ ALANIS | C88: TRIMETRIA DESARROLLOS SA DE CV | D88: 1000 | E88: Grupos nuevos | F88: Implementado | G88: Julio | H88: Colocacion de productos | I88: Cuentas, Bem, Cob por credito | J88: 168.3217333 | K88: 3989.6771 | L88: 3821.355367 | M88: 3989.6771
A89: CRISTIAN HERNANDEZ | B89: ALDO GERARDO FARIAS | C89: AMERICA SCHOOL | D89: 1000 | E89: Colocación de productos | F89: EN IMPLEMENTACIÓN | G89: Agosto | H89: Ecommerce | I89: Cuentas Adq , CEP | J89: 6484.962711 | K89: 5153.412369 | L89: -1331.550343 | M89: -1018.606739 | N89: En implementacion
A90: CRISTIAN HERNANDEZ | B90: LILIANA SALINAS AVIÑIGA | C90: DISTRIBUIDORA DE PRODUCTOS DESHIDRATADOS SA DE CV | D90: 1000 | E90: Reciprocidad | F90: Negociación | G90: Julio | H90: Credito | I90: solicitud de apoyo | J90: 2306.067541 | K90: 1006.914446 | L90: -1299.153094 | M90: -377.3147432 | N90: Se esta solicitando apoyo cash con EDR
A91: CRISTIAN HERNANDEZ | B91: ALDO GERARDO FARIAS | C91: GRUPO CLISA | D91: 1000 | E91: Colocación de productos | F91: EN IMPLEMENTACIÓN | G91: Julio | H91: Credito | I91: Por colocacion de pagos Transportes ecologicos, GMAG maquinarias y equipos | N91: en proceso de migracion
A92: CRISTIAN HERNANDEZ | B92: LILIANA SALINAS AVIÑIGA | C92: AUTOMOVILES TECNOLOGICOS | D92: 1000 | E92: Colocación de productos | F92: Contratación | G92: Agosto | H92: Cuentas, Adq | I92: Por colocacion de TPV | J92: 705.1858637 | K92: 638.3643536 | L92: -66.8215101 | M92: -100.0442303 | N92: Ya aceptaron afiliaciones tpv y estan en proceso de implementacion
A93: CRISTIAN HERNANDEZ | B93: LILIANA SALINAS AVIÑIGA | C93: HOMERO MARTINEZ LANDA | D93: 1000 | E93: Reciprocidad | F93: Prospecto | G93: Agosto | H93: Credito | I93: Se buscara colocacion de productos o peticion de saldos | J93: 2507.011335 | K93: 4412.283013 | L93: 1905.271678 | M93: 781.5084864 | N93: Pendiente cita
A94: CRISTIAN HERNANDEZ | B94: LILIANA SALINAS AVIÑIGA | C94: HARI MASA SA DE CV | D94: 3000 | E94: Reciprocidad | F94: Contratación | G94: Julio | H94: Balance Fee | I94: En colocacion de CEP | J94: 10731.41292 | K94: 6757.320919 | L94: -3974.092002 | M94: -1849.052826 | N94: Ya en implementacion de CEP
A95: CRISTIAN HERNANDEZ | B95: JUAN GUADALUPE DE LA ROSA PAZ | C95: INTEGRADORA DE GANADEROS DE ENGORDA DE LA LAGUNA SA DE CV | D95: 1000 | E95: Reciprocidad | F95: Prospecto | G95: Agosto | H95: Credito | I95: Diagnostico para colocacion de productos por credito | J95: 3061.842576 | K95: 2917.408499 | L95: -144.434077 | M95: 675.6777444 | N95: Se esta buscando cita en cojunto EDR y CASH
A96: CRISTIAN HERNANDEZ | B96: CARLOS EFREN DELGADILLO CHAPA | C96: MESO CAPITAL SAPI - FINANTRA | D96: 1000 | E96: Reciprocidad | F96: IMPLEMENTACIÓN | G96: Julio | H96: Credito | I96: solicitud de apoyo | J96: 41.66666667 | K96: 50 | L96: 8.333333333 | M96: 50 | N96: Ya confirmaron 1 mdp de crecimeinto
A97: CRISTIAN HERNANDEZ | B97: ALDO GERARDO FARIAS | C97: ORGANIZACION REYNERA SA DE CV | D97: 1000 | E97: Colocación de productos | F97: Prospecto | G97: Agosto | H97: servicio | I97: solicitud de apoyo | J97: 4563.597003 | K97: 4213.860969 | L97: -349.7360341 | M97: 2025.693623 | N97: Pendiente cita
A98: CRISTIAN HERNANDEZ | B98: GERARDO GARCIA GUERRA | C98: PRODUCTOS SELECTOS MARROKO SA DE CV | D98: 1000 | E98: Reciprocidad | F98: Negociación | G98: Julio | H98: Credito | I98: Diagnostico para colocacion de productos por credito | J98: 2645.956949 | K98: 1204.14194 | L98: -1441.815009 | M98: -7059.988434 | N98: Pendiente cita
A99: CRISTIAN HERNANDEZ | B99: JUAN GUADALUPE DE LA ROSA PAZ | C99: PROVEEDORA INDUSTRIAL VARGAS SA DE CV | D99: 1000 | E99: Reciprocidad | F99: Negociación | G99: Julio | H99: Credito | I99: Diagnostico para colocacion de productos por credito | J99: 1190.774167 | K99: 1477.847348 | L99: 287.0731809 | M99: 655.1451911 | N99: Pendiente cita
A100: JOAO MOURA | B100: VALERIA RODRIGUEZ ALANIS | C100: CINETICA QUIMICA | D100: 1000 | E100: Solicitud de apoyo a los clientes | F100: Negociacion | G100: Julio | H100: Servicio | I100: apoyo directo | J100: 1102.650554 | K100: 678.718825 | L100: -423.931729 | M100: -972.6494547 | N100: Ya confirmo 1 mdp de apoyo
A101: JOAO MOURA | B101: LYDIA MARIANA ZUÑIGA CARDENAS | C101: Caja buenos aires | D101: 3000 | E101: Solicitud de apoyo a los clientes | F101: Solicitud de apoyo a los clientes | G101: Agosto | H101: Julio | I101: apoyo directo | J101: 15467.60555 | K101: 16469.4193 | L101: 1001.813745 | M101: -427.982459 | N101: Ya confirmo 3 mdp de apoyo
A102: ERASMO MATA | B102: MYRIAM ADRIANA MUÑOZ GONZALEZ | C102: GDM3 | D102: 3000 | E102: Solicitud de apoyo a los clientes | F102: Negociacion | G102: Julio | H102: Servicio | I102: solicitud de apoyo | J102: 8046.756639 | K102: 9737.447319 | L102: 1690.69068 | M102: -7962.038587 | N102: Ya confirmo que si incrementara, pendiente defina monto
A103: CRISTIAN HERNANDEZ | B103: LILIANA SALINAS AVIÑIGA | C103: GRUPO NAZAN | D103: 2000 | E103: Solicitud de apoyo a los clientes | F103: Negociación | G103: Julio | H103: Apoyo | I103: solicitud de apoyo | J103: 2835.931656 | K103: 3520.549046 | L103: 684.6173897 | M103: 511.8064402 | N103: Ya en proceso la solicitud de apoyo
A104: CRISTIAN HERNANDEZ | B104: CARLOS EFREN DELGADILLO CHAPA | C104: DEXTRA TECHNOLOGIES | D104: 2000 | E104: Solicitud de apoyo a los clientes | F104: Negociación | G104: Julio | H104: Apoyo | I104: solicitud de apoyo | J104: 7649.024005 | K104: 5415.596547 | L104: -2233.427458 | M104: 2444.421658 | N104: Ya en proceso la solicitud de apoyo
A105: MONICA GRACIA | B105: PRISCILA YAZMIN GARCIA TAMEZ | C105: VENTILACION REYMSA | D105: 2000 | E105: Solicitud de apoyo a los clientes | F105: negociacion | G105: Julio | H105: servicio | J105: 1774.678342 | K105: 2931.290333 | L105: 1156.611991 | M105: 1831.240059 | N105: Enviar propuesta de y h2h. /Se le solicito apoyo 2 mdp.(tesoreria@reymsa.com *Ricardo)
D106: COMPROMISO 82 MDP | G106: Agosto | K106: AVANCE REAL: | L106: =SUM(L8:L105) -> 50417.51365 | M106: =SUM(M8:M105) -> -82007.45654
A108: PRODUCTOS /APOYOS/BALANCE FEE
A109: MOD | B109: COMPROMISO | C109: LOGRO MES VS MES | D109: AÑO VS AÑO
A110: MTY I | B110: 14000 | C110: 11800 | D110: 3116
A111: MTY II | B111: 67500 | C111: 40952 | D111: -5403
A112: MTY III | B112: 19000 | C112: -7403 | D112: -14000
A113: MTY IV | B113: 21000 | C113: 5100 | D113: -65000
B114: =SUM(B110:B113) -> 121500 | C114: =SUM(C110:C113) -> 50449 | D114: -81287

Sheet Hoja14 (hidden)

Sheet Hoja10 (hidden)
A1: EBT | B1: BR | C1: Cliente | D1: Vista sin COMPROMISO | E1: Estrategia | F1: Estatus | G1: Mes | H1: Servicio | I1: RECIPROCIDAD | J1: CITY | K1: # EMPLEADOS | L1: FACTURACION | N1: RECIPROCIDAD POR CARTERA | O1: ESTRATEGIA | P1: GRUPO NUEVO | R1: VSI JUN 22 | S1: VSI JUL | T1: DIF MES ANTERIOR | U1: DIF MES AÑO ANTERIOR
A2: ERASMO MATA | B2: VERONICA ELIZABETH RODRIGUEZ CEPEDA | C2: EIIMT CORPORATION S DE RL DE CV | D2: 5000 | E2: Grupos nuevos | F2: Negociación | G2: Julio | H2: Varios productos | N2: 0 | O2: solicitud de apoyo a los clientes | R2: 30566.59871 | S2: 44321.44768 | T2: 13754.84897 | U2: -69233.07754 | V2: Se le solicito al cliente 20mdp, hará lo posible comentó seguros son 10 mdp
A3: MONICA GRACIA | B3: ERIC TOMAS ROCHA CONTRERAS | C3: FORZA COMBUSTIBLES SA DE CV | D3: 3000 | E3: Colocación de productos | F3: Contratación | G3: Julio | H3: tpvs, interredes y amex | N3: 0 | O3: EDR apoyara con la cita. | R3: 3941.819533 | S3: 5288.203559 | T3: 1346.384026 | U3: -1203.448486
A4: MONICA GRACIA | B4: ERIC TOMAS ROCHA CONTRERAS | C4: HERRAMENTAL MONTERREY SA | D4: 1000 | E4: Reciprocidad | F4: Negociación | G4: Julio | H4: tpv, ligas de pago, nómina y Tde | N4: 0 | O4: Compromiso a comité | R4: 716.141446 | S4: 627.3853279 | T4: -88.75611814 | U4: 59.45371624
A5: MONICA GRACIA | B5: ERIC TOMAS ROCHA CONTRERAS | C5: JET VAN SA DE CV | D5: 3000 | E5: Colocación de productos | F5: Negociación | G5: Julio | H5: Tpv y nómina | O5: Buscar productos
A6: CRISTIAN HERNANDEZ | B6: CARLOS EFREN DELGADILLO CHAPA | C6: MUGUERZA | D6: 1500 | E6: Colocación de productos | F6: EN IMPLEMENTACIÓN | G6: Agosto | H6: Tpv , Ligas de pago | N6: 0 | O6: Buscar reunión para h2h, hospitality. | R6: 2507.011335 | S6: 4412.283013 | T6: 1905.271678 | U6: 781.5084864 | V6: En espera de reunión para diagnosticar los hoteles Reynosa y Matamoros , esto debido a que hubo un cambio de Admon. Se solicito apoyo y dejara 3 mdp
A7: MONICA GRACIA | B7: PENDIENTE | C7: SERVICIOS GASTRONOMICOS MASI SA DE CV | D7: 5000 | E7: Grupos nuevos | F7: Negociación | G7: Julio | H7: TPV | O7: E.COMMERCE, MULTIADQUIRENTE, NÓMINA | R7: 2392.907524 | S7: 5733.046544 | T7: 3340.13902 | U7: 3885.076369
A8: MONICA GRACIA | B8: ERIC TOMAS ROCHA CONTRERAS | C8: EMBIA PARKING SA DE CV | D8: 1000 | E8: Grupos nuevos | F8: Negociación | G8: Julio | H8: TPV | O8: servicio | R8: 24438.60057 | S8: 30172.67975 | T8: 5734.079181 | U8: 9459.068859 | V8: Ya confirmo que si incrementara, pendiente defina monto
A9: ERASMO MATA | B9: MARIA ELENA REYES GARZA | C9: TRANSPORTES LARMEXSA DE CV | D9: 2000 | E9: Colocación de productos | F9: Contratación | G9: Agosto | H9: TDE | N9: 0 | O9: TPV | R9: 29547.9085 | S9: 30150.57831 | T9: 602.6698075 | U9: 13478.4451 | V9: En contratacion, cuentas , ADQ
A10: MONICA GRACIA | B10: ERIC TOMAS ROCHA CONTRERAS | C10: REACTIVOS Y QUIMICOS SA DE CV | D10: 10000 | E10: Solicitud de apoyo a los clientes | F10: Negociación | G10: Julio | H10: Solicitud de apoyo | N10: 0 | O10: Bajar com de nómina, revisar que prod podemos hacer que operen. | R10: 1797.558398 | S10: 1082.232793 | T10: -715.3256048 | U10: -243.0631326
A11: ERASMO MATA | B11: CESAR ALFONSO GONZALEZ CABRERA | C11: BURO INMOBILIARIO NACIONAL SA DE CV | D11: 5000 | E11: Colocación de productos | F11: Contratación | G11: Agosto | H11: Servicio | N11: 0 | O11: solicitud de apoyo a los clientes / dar seg para que opere h2h. *agosto. | R11: 6281.67122 | S11: 3391.553253 | T11: -2890.117967 | U11: -4814.32564 | V11: Se implemento TDC empuje, Dispersa, Cobranza Domiciliada. H2H operará en agosto. Se solicito apoyo de saldos por crédito,ya que con Osvel se tenia un acuerdo de mantener vsi 34mdp.
A12: MONICA GRACIA | B12: PERLA MONTSERRAT MARROQUIN RODRIGUEZ | C12: FERRETERA INDUSTRIAL DEL NORTE SA DE CV | D12: PENDIENTE | E12: Colocación de productos | F12: Negociación | G12: Julio | H12: Servicio | N12: 0 | O12: En negociación de tpv, nómina, e-commerce y TDE. , Se tiene cita proximo jueves | R12: 5298.21441 | S12: 6500.681139 | T12: 1202.466728 | U12: 3678.321578 | V12: En negociación de tpv, nómina, e-commerce y TDE.
A13: ERASMO MATA | B13: PERLA MONTSERRAT MARROQUIN RODRIGUEZ | C13: RISOUL Y CIA SA DE CV | D13: 5000 | E13: Solicitud de apoyo a los clientes | F13: Negociacion | G13: Julio | H13: Servicio | N13: 0 | O13: Convocaré a reunión con el cliente. | R13: 1562.820276 | S13: 2848.945404 | T13: 1286.125127 | U13: -1993.929175 | V13: Cliente con problemas de flujo
A14: ERASMO MATA | B14: RELACION DUPLICADA | C14: DESARROLLO Y CONSTRUCCIONES URBANAS SA DE CV | D14: 5000 | E14: Balance Fee | F14: Negociación | G14: Agosto | H14: Servicio | N14: 0 | O14: Ya se tiene definida cita proxima semana | R14: 5367.383169 | S14: 3413.142904 | T14: -1954.240265 | U14: -14688.72692 | V14: Pris me apoyar con la cita
A15: JOAO MOURA | B15: SERGIO HUMBERTO AGUIRRE SILLER | C15: FIDEICOMISO IRREVOCABLE NUMERO 2581 | D15: 2000 | E15: Solicitud de apoyo a los clientes | F15: Prospecto | G15: Agosto | H15: Servicio | N15: 0 | O15: Ya se tiene definida cita proxima semana | R15: 445.5419373 | S15: 347.8641943 | T15: -97.67774305 | U15: -372.1262128 | V15: Pris me apoyar con la cita
A16: MONICA GRACIA | B16: JUSTINO HERNANDEZ REYES | C16: EDIFICADORA DE VIVIENDA | D16: 3000 | E16: Colocación de productos | F16: Prospecto | G16: Julio | H16: Servicio | O16: Cobranza, Ligas de pagos H2H | R16: 6230.790876 | S16: 15174.41957 | T16: 8943.628699 | U16: 14054.05058 | V16: En contratacion
A17: CRISTIAN HERNANDEZ | B17: ALDO GERARDO FARIAS | C17: ORGANIZACION REYNERA SA DE CV | D17: 1000 | E17: Colocación de productos | F17: Prospecto | G17: Agosto | H17: servicio | O17: Solicitar apoyo de ejecutivo de Relación para reunión con el cliente. | R17: 180.5614077 | S17: 167.17846 | T17: -13.38294767 | U17: -377.6825874 | V17: Listas para operar TPV y peca, en contratacón nómina, y neg TDE.
A18: JOAO MOURA | B18: VALERIA RODRIGUEZ ALANIS | C18: CINETICA QUIMICA | D18: 1000 | E18: Solicitud de apoyo a los clientes | F18: Negociacion | G18: Julio | H18: Servicio | N18: 0 | O18: Listas para operar TPV y peca, en contratacón nómina, y neg TDE. | R18: 0 | S18: 0 | T18: 0 | U18: 0 | V18: Se solicito apoyo de saldos el dia de hoy, CEP se capacita el proximo miercoles, TPV ya se va contratar con todo con Banorte.
A19: ERASMO MATA | B19: MYRIAM ADRIANA MUÑOZ GONZALEZ | C19: GDM3 | D19: 3000 | E19: Solicitud de apoyo a los clientes | F19: Negociacion | G19: Julio | H19: Servicio | O19: Cuentas, BEM, Pagos | R19: 9.612961667 | S19: 8.85872 | T19: -0.7542416667 | U19: 8.85872 | V19: Este mes comienzan a operar Cuenta Bem y Pagos por lo que ya confirmo promediara este mismo mes
A20: MONICA GRACIA | B20: PRISCILA YAZMIN GARCIA TAMEZ | C20: VENTILACION REYMSA | D20: 2000 | E20: Solicitud de apoyo a los clientes | F20: negociacion | G20: Julio | H20: servicio | O20: CEP | Pagos | P20: SI | V20: Negociacion
A21: MONICA GRACIA | B21: JUSTINO HERNANDEZ REYES | C21: TRAZZO URBANO SA DECV | D21: 3000 | E21: Reciprocidad | F21: Contratación | G21: Agosto | H21: pagos recurrentes y CD. | O21: Nomina | P21: SI | R21: 1253.555238 | S21: 1278.356723 | T21: 24.80148452 | U21: -6688.064785 | V21: Ya se mando propuesta la semana pasada
A22: MONICA GRACIA | B22: PRISCILA YAZMIN GARCIA TAMEZ | C22: SERVICIOS DE COMERCIALIZACION XIMETRIA SA DE CV | D22: 1000 | E22: Grupos nuevos | F22: Contratación | G22: Julio | H22: nómina, tpv, interredes, tde | O22: Cobranza, Pagos | P22: SI | R22: 5659.490413 | S22: 7220.077301 | T22: 1560.586889 | U22: -7991.502647
A23: MONICA GRACIA | B23: PERLA MONTSERRAT MARROQUIN RODRIGUEZ | C23: GAS SULTANA SA | D23: 3000 | E23: Colocación de productos | F23: Implementación | G23: Agosto | H23: Nomina, Tpv | N23: 0 | O23: Cobranza, Pagos / Buscar atraer más nómina y que opere H2h. | P23: SI | R23: 0 | S23: 0 | T23: 0 | U23: 0 | V23: Se esta buscando reunion con el area de RH para buscar participar más en la nómina* Observacion se le aumentaron las tasas de crédito.Se solicito apoyo y dejara 3 mdp
A24: CRISTIAN HERNANDEZ | B24: GERARDO GARCIA GUERRA | C24: ADS MEXICANA SA DE CV | D24: 3000 | E24: Colocación de productos | F24: IMPLEMENTADO | G24: Julio | H24: Nomina | O24: CEP | Pagos | Adq | P24: SI | R24: 2147.325783 | S24: 3102.548541 | T24: 955.2227584 | U24: 2624.096146
A25: CRISTIAN HERNANDEZ | B25: JUAN GUADALUPE DE LA ROSA PAZ | C25: GASODUCTOS Y ESTACIONES DEL NORTE SA DECV | D25: 2000 | E25: Colocación de productos | F25: IMPLEMENTADO | G25: Agosto | H25: Nomina | N25: 0 | O25: Cliente no dejara VSI, buscaremos una reunión con el cliente para diagnosticar la nómina y hacer propuesta. Problema de flujo , Depende de gobierno tema de autos. | R25: 656.1252103 | S25: 3120.222297 | T25: 2464.097087 | U25: 2699.774313
A26: MONICA GRACIA | B26: ERIC TOMAS ROCHA CONTRERAS | C26: PROMOTORA DE HOGARES SA DE CV | D26: 1000 | E26: Colocación de productos | F26: Negociacion | G26: Agosto | H26: Nomina | O26: CEP | Pagos | Adq , CUENTA | P26: SI
A27: MONICA GRACIA | B27: PRISCILA YAZMIN GARCIA TAMEZ | C27: IMPULSORA REGIO HOGAR SAPI DE CV | D27: PENDIENTE | E27: Colocación de productos | F27: Prospecto | G27: Julio | H27: Julio | N27: 0 | O27: Balance fee | P27: SI | R27: 660.7256803 | S27: 2751.655807 | T27: 2090.930127 | U27: 2344.632836 | V27: Cep, esta semana enviaran check list para elaborar contrato. Apoyo 10 mdp
A28: JOAO MOURA | B28: LYDIA MARIANA ZUÑIGA CARDENAS | C28: Caja buenos aires | D28: 3000 | E28: Solicitud de apoyo a los clientes | F28: Solicitud de apoyo a los clientes | G28: Agosto | H28: Julio | I28: Servicio | J28: apoto directo | L28: Ya confirmo 1 mdp de apoyo | N28: 0 | O28: En contratación pagos recurrentes y CD. | R28: 73813.86424 | S28: 57399.79254 | T28: -16414.0717 | U28: -71883.78463 | V28: En contratación pagos recurrentes y CD.
A29: CRISTIAN HERNANDEZ | B29: ALDO GERARDO FARIAS | C29: AVES SELECCIONADAS MARLAN | D29: 5000 | E29: Colocación de productos | F29: EN IMPLEMENTACIÓN | G29: Julio | H29: Interredes | N29: 0 | O29: apoyo | R29: 6191.669008 | S29: 5186.092139 | T29: -1005.576868 | U29: -697.5812433 | V29: Ya confirmo 1 mdp de apoyo
A30: MONICA GRACIA | B30: JUSTINO HERNANDEZ REYES | C30: INTEGRACIONES TEMPLER SA DE CV | D30: 2000 | E30: Colocación de productos | F30: Implementacion | G30: Julio | H30: h2h, cep y cep interbancario. | N30: 0 | O30: credito | R30: 23488.57641 | S30: 25331.53774 | T30: 1842.961329 | U30: -9472.053052 | V30: En duda por tema de credito
A31: MONICA GRACIA | B31: PERLA MONTSERRAT MARROQUIN RODRIGUEZ | C31: OPERADORA DE CAPITALES REGIO REY SA DE CV | D31: 3000 | E31: Colocación de productos | F31: Implementación | G31: Agosto | H31: h2h, cep y cep interbancario. | O31: Colocacion de productos | R31: 5659.490413 | S31: 7220.077301 | T31: 1560.586889 | U31: -7991.502647 | V31: Ya se confirmo que comenzara a dejar y ya se tiene 9 MDP de incremento, proxima semana dispersan , esta semana estamos en alta de empleados.
A32: ERASMO MATA | B32: MYRIAM ADRIANA MUÑOZ GONZALEZ | C32: CLUB DE BASE BALL DE MONTERREY SA DE CV | D32: 1000 | E32: Colocación de productos | F32: Contratación | G32: Agosto | H32: Ecommerce | O32: Adquirente | R32: 9797.009102 | S32: 14181.42856 | T32: 4384.419455 | U32: -3043.86735 | V32: Ya estan implementadose 15 afiliaciones de 120
A33: CRISTIAN HERNANDEZ | B33: ALDO GERARDO FARIAS | C33: AMERICA SCHOOL | D33: 1000 | E33: Colocación de productos | F33: EN IMPLEMENTACIÓN | G33: Agosto | H33: Ecommerce | O33: Balance fee | R33: 11829.88331 | S33: 8089.976529 | T33: -3739.906781 | U33: -2437.738222
A34: MONICA GRACIA | B34: PERLA MONTSERRAT MARROQUIN RODRIGUEZ | C34: GRUPO FMC CAPITAL SAPI DE CV | D34: 10000 | E34: Colocación de productos | F34: Contratación | G34: Julio | H34: cuentas, peca, tpvs,nómina. | N34: 0 | O34: PAGO DE SERVICIOS MASIVOS, INTERREDES, TPV | R34: 4257.981842 | S34: 4199.86598 | T34: -58.115862 | U34: 1333.796765
A35: CRISTIAN HERNANDEZ | B35: GERARDO GARCIA GUERRA | C35: LG ELECTRONICS MEXICALI | D35: 9000 | E35: Colocación de productos | F35: EN IMPLEMENTACIÓN | G35: Julio | H35: Cuentas, ATM, BEM, Nómina | O35: Cuentas, BEM, Pagos | R35: 23963.34463 | S35: 68385.08492 | T35: 44421.74029 | U35: 30553.31769 | V35: Este mes comienza a operar
A36: CRISTIAN HERNANDEZ | B36: LILIANA SALINAS AVIÑIGA | C36: AUTOMOVILES TECNOLOGICOS | D36: 1000 | E36: Colocación de productos | F36: Contratación | G36: Agosto | H36: Cuentas, Adq | N36: 0 | O36: CEP, CEP interbancario, tpvs. | R36: 4487.70177 | S36: 4934.540001 | T36: 446.8382318 | U36: 664.3904347 | V36: Cita el proximo el martes.
A37: ERASMO MATA | B37: PENDIENTE | C37: DENTALIA SA DE CV | D37: 5000 | E37: Grupos nuevos | F37: Prospecto | G37: Julio | H37: Cuenta, BEM , ADQ | O37: h2h, cep y cep interbancario.
A38: ERASMO MATA | B38: PENDIENTE | C38: JAMEX EDUCATION SA DE CV | D38: 3000 | E38: Grupos nuevos | F38: Contratación | G38: Julio | H38: Cuenta, BEM , ADQ | O38: pagos recurrentes y CD. | V38: H2H en implementacion
A39: MONICA GRACIA | B39: PRISCILA YAZMIN GARCIA TAMEZ | C39: MAXIMA DISTINCION SA DE CV | D39: 5000 | E39: Grupos nuevos | F39: Implementado | G39: Julio | H39: Cuenta, BEM , ADQ | O39: credito | V39: En proceso cambio de portafolio
A40: MONICA GRACIA | B40: PRISCILA YAZMIN GARCIA TAMEZ | C40: BIENES E INMUEBLES TRES PICOS SA DE CV | D40: 3000 | E40: Solicitud de apoyo a los clientes | F40: Prospecto | G40: Agosto | H40: Credito | O40: Cobranza Domiciliada
A41: MONICA GRACIA | B41: ERIC TOMAS ROCHA CONTRERAS | C41: PROVEEDORA FLEXOGRAFICA SA DE CV | D41: PENDIENTE | E41: Reciprocidad | F41: Negociación | G41: Julio | H41: Credito | O41: Cuenta, BEM , ADQ | R41: 1355.480675 | S41: 1291.657398 | T41: -63.82327681 | U41: -391.5386718 | V41: Este mes comienzan a operar , cuenta ,Bem y CEP
A42: MONICA GRACIA | B42: PRISCILA YAZMIN GARCIA TAMEZ | C42: TELECOMUNICACIONES Y SERVICIOS DEL NORTE SA DE CV | D42: PENDIENTE | E42: Reciprocidad | F42: Negociación | G42: Julio | H42: Credito | O42: En negociacion tpv, ligas de pago, nómina y Tde | V42: Prospecto
A43: JOAO MOURA | B43: LYDIA MARIANA ZUÑIGA CARDENAS | C43: AUTO TRANSPORTADORAGENESIS SA DE CV | D43: 1000 | E43: Solicitud de apoyo a los clientes | F43: Negociación | G43: Julio | H43: Credito | O43: credito | V43: Pendiente reunion para diagnostico cash
A44: JOAO MOURA | B44: VALERIA RODRIGUEZ ALANIS | C44: KEY QUIMICA SA DE CV | D44: 4000 | E44: Reciprocidad | F44: Negociación | G44: Julio | H44: Credito | N44: 0 | O44: TPV | R44: 5329.907909 | S44: 4946.96348 | T44: -382.944429 | U44: 1909.574035
A45: MONICA GRACIA | B45: JUSTINO HERNANDEZ REYES | C45: ACEROS OVEROLLINGS | D45: 10000 | E45: Solicitud de apoyo a los clientes | F45: Prospecto | G45: Julio | H45: Credito | O45: Ecommerce | R45: 17749.12282 | S45: 31389.54001 | T45: 13640.41719 | U45: 2178.92236
A46: JOAO MOURA | B46: FRANCISCO MARTINEZ BECERRA | C46: INDUSTRIAS COSAL SADE CV | D46: 2000 | E46: Reciprocidad | F46: Prospecto | G46: Agosto | H46: Credito | O46: TPV | R46: 119153.4077 | S46: 110757.8526 | T46: -8395.555081 | U46: 62730.36167
A47: JOAO MOURA | B47: RELACION DUPLICADA | C47: INMOBILIARIA IZAMARC SA DE CV | D47: 5000 | E47: Colocación de productos | F47: Negociación | G47: Julio | H47: Credito | O47: cuentas, peca, tpvs,nómina | R47: 661.684402 | S47: 417.7692843 | T47: -243.9151177 | U47: 383.6417059
A48: ERASMO MATA | B48: JUAN MANUEL ZEA COMPEAN | C48: MEXICANA DE ARROZ SA DE CV | D48: 3000 | E48: Grupos nuevos | F48: Negociación | G48: Julio | H48: Credito | N48: 0 | O48: tpvs, interredes y amex , cita por medio de Eric | R48: 519.4815503 | S48: 457.3130471 | T48: -62.16850319 | U48: -40.96496705 | V48: Se visitó al cliente y se solicitó el apoyo para que cumplan con el saldo acordado de $10mdp. Actualmente tiene 6 mdp.
A49: ERASMO MATA | B49: PENDIENTE | C49: WELL MEDIC SA DE CV | D49: 3000 | E49: Grupos nuevos | F49: Prospecto | G49: Agosto | H49: Credito | N49: 0 | O49: nómina, tpv, interredes, tde | R49: 1966.250767 | S49: 1450.365384 | T49: -515.8853824 | U49: -897.1304799
A50: ERASMO MATA | B50: PENDIENTE | C50: Multitraslados internacionales sa de cv | D50: 3000 | E50: Grupos nuevos | F50: Prospecto | G50: Julio | H50: Credito | O50: Tpv y nómina | R50: 18546.80969 | S50: 16131.18758 | T50: -2415.622113 | U50: -4428.498098 | V50: Se solicito apoyo, confirmado en lo que revisan propuesta integral de cash
A51: JOAO MOURA | B51: FRANCISCO MARTINEZ BECERRA | C51: JOSE GUADALUPE GARZA MONTEMAYOR | D51: 2000 | E51: Reciprocidad | F51: Prospecto | G51: Agosto | H51: Credito | J51: Se buscara captacion por reciprocidad o productos | N51: 0 | O51: Nomina | R51: 2473.099979 | S51: 1833.368088 | T51: -639.7318908 | U51: 139.0585753
A52: MONICA GRACIA | B52: ERIC TOMAS ROCHA CONTRERAS | C52: RODAMIENTOS Y ACCESORIOS SA DE CV | D52: 3000 | E52: Reciprocidad | F52: Prospecto | G52: Julio | H52: Credito | O52: Negociacion cep por credito | R52: 48.75897967 | S52: 185.7741586 | T52: 137.0151789 | U52: 185.7741586
A53: JOAO MOURA | B53: FRANCISCO MARTINEZ BECERRA | C53: LANDWORK CAPITAL SADE CV | D53: 2000 | E53: Reciprocidad | F53: Prospecto | G53: Agosto | H53: Credito | O53: Se pedira apoyo de saldos o productos cash depende decision de cliente | R53: 562.650954 | S53: 1375.07651 | T53: 812.425556 | U53: 1049.917085 | V53: Ya empezo a incrementar este misma semana
A54: JOAO MOURA | B54: SERGIO HUMBERTO AGUIRRE SILLER | C54: RUBEN GARZA GONZALEZ | D54: 2000 | E54: Reciprocidad | F54: Prospecto | G54: Agosto | H54: Credito | R54: 8239.748301 | S54: 4762.876447 | T54: -3476.871854 | U54: -17223.03232 | V54: Pendiente reunion apoyo con CHECO
A55: JOAO MOURA | B55: SERGIO HUMBERTO AGUIRRE SILLER | C55: SILICA DESARROLLOS S A P I DE CV | D55: 1600 | E55: Reciprocidad | F55: Negociación | G55: Julio | H55: Credito | O55: TDE | R55: 13051.37759 | S55: 21389 | T55: 8337.622412 | U55: -7406.251504 | V55: Crecimiento se puede dar por medio de TDE , la cual ya esta implementada en revision
A56: ERASMO MATA | B56: CESAR ALFONSO GONZALEZ CABRERA | C56: C10 CONSTRUCTORA SADE CV | D56: 1000 | E56: Reciprocidad | F56: Prospecto | G56: Agosto | H56: Credito | N56: 0 | O56: credito | R56: 3570.592268 | S56: 4065.618194 | T56: 495.0259266 | U56: -11.79511991
A57: ERASMO MATA | B57: PERLA MONTSERRAT MARROQUIN RODRIGUEZ | C57: CORPORACION SIERRA MADRE SA DE CV | D57: 4000 | E57: Colocación de productos | F57: Implementación | G57: Julio | H57: Credito | N57: 0 | O57: Se buscara captacion por reciprocidad | R57: 828.5174113 | S57: 916.50539 | T57: 87.98797867 | U57: -550.2912768 | V57: Cliente en recuperacion por contingencia debido al Giro, se descarta peticion de apoyo, se buscara tener participacion en 3 hoteles.
A58: ERASMO MATA | B58: CESAR ALFONSO GONZALEZ CABRERA | C58: DESARROLLO PARQUE FUNDIDORA SA DE CV | D58: 3000 | E58: Colocación de productos | F58: Contratación | G58: Julio | H58: Credito | N58: 0 | O58: Se buscara productos por reciprocidad | R58: 12183.97198 | S58: 14643.409 | T58: 2459.437019 | U58: 10208.31666
A59: ERASMO MATA | B59: JUAN MANUEL ZEA COMPEAN | C59: INVERSIONES SAFI SADE CV | D59: 3000 | E59: Reciprocidad | F59: Negociación | G59: Agosto | H59: Credito | N59: 1000 | O59: Se buscara captacion y productos por reciprocidad | R59: 2345.564624 | S59: 2226.286759 | T59: -119.2778654 | U59: -1756.685 | V59: Pendiente respuesta de CEP
A60: ERASMO MATA | B60: JUAN MANUEL ZEA COMPEAN | C60: MINERALES Y CARBONES DE MEXICO SA DE CV | D60: PENDIENTE | E60: Reciprocidad | F60: Implementado | G60: Julio | H60: Credito | O60: Se buscara captacion por reciprocidad o productos | R60: 16833.54285 | S60: 6532.309907 | T60: -10301.23295 | U60: 4545.294927 | V60: En proceso de apertura de cuenta de otra razon social , enseguida se negocio nomina
A61: ERASMO MATA | B61: MARIA ELENA REYES GARZA | C61: PABLO MARTINEZ | D61: 3000 | E61: Reciprocidad | F61: Prospecto | G61: Agosto | H61: Credito | N61: 0 | O61: Se buscara captacion por reciprocidad | R61: 13083.97663 | S61: 9975.743064 | T61: -3108.23357 | U61: -1737.026154 | V61: Cliente en recuperacion por contingencia debido al Giro, se descarta peticion de apoyo
A62: ERASMO MATA | B62: RELACION DUPLICADA | C62: PADMONT SA DE CV | D62: 4000 | E62: Reciprocidad | F62: Implementado | G62: Julio | H62: Credito | O62: nómina, tpv y tde por credito | R62: 318.7457487 | S62: 87.18120643 | T62: -231.5645422 | U62: -1112.074413 | V62: Nomina en Implementacion, pendiente ya que estan dando de alta cuentas de nomina
A63: ERASMO MATA | B63: RELACION DUPLICADA | C63: SUPER COLCHONES SA DE CV | D63: 3000 | E63: Reciprocidad | F63: Implementación | G63: Agosto | H63: Credito | N63: 0 | O63: Apoyo de saldos por credito | R63: 1084.464427 | S63: 717.5822757 | T63: -366.8821513 | U63: -1269.224561 | V63: Ya buscando llamada con cliente para ver la posibilidad de apoyo
A64: ERASMO MATA | B64: MARIA ELENA REYES GARZA | C64: TRANSPORTES LAR-MEXSA DE CV | D64: 2000 | E64: Reciprocidad | F64: Prospecto | G64: Agosto | H64: Credito | N64: 0 | O64: Apoyo de saldos por credito | R64: 53390.99606 | S64: 43961.19061 | T64: -9429.805448 | U64: 19784.09622 | V64: Crecimiento se puede dar por medio de TDE , la cual ya esta implementada en revision
A65: CRISTIAN HERNANDEZ | B65: GERARDO GARCIA GUERRA | C65: ACEROMEX | D65: 1000 | E65: Reciprocidad | F65: Prospecto | G65: Agosto | H65: Credito | N65: 0 | O65: Colocacion de varios productos | R65: 6726.807158 | S65: 6389.988224 | T65: -336.8189344 | U65: -15667.08265 | V65: Se buscara cita en conjunto con Veronica, Multiadquirente (Julio es el mes de eleccion)
A66: CRISTIAN HERNANDEZ | B66: ALDO GERARDO FARIAS | C66: AGROJABA AR DE IC DE RL | D66: 2000 | E66: Reciprocidad | F66: Negociación | G66: Julio | H66: Credito | O66: Reanudo operaciones | R66: 26684.62209 | S66: 26017.50488 | T66: -667.1172148 | U66: 1691.815826 | V66: En instalacion 2 tpv, se dara por cash , ligas de pago 15 afiliaciones.
A67: CRISTIAN HERNANDEZ | B67: JUAN GUADALUPE DE LA ROSA PAZ | C67: ARGOS ELECTRICA SA DE CV | D67: 1000 | E67: Reciprocidad | F67: Prospecto | G67: Agosto | H67: Credito | O67: Oportunidad de producto que aun no se coloca | R67: 2695.279542 | S67: 1083.100997 | T67: -1612.178545 | U67: -7190.923432 | V67: En contratacion , pendiente firma ecommerce
A68: CRISTIAN HERNANDEZ | B68: RELACION DUPLICADA | C68: ARRENDADORA CENTENARIO SA DE CV | D68: 1000 | E68: Reciprocidad | F68: Negociación | G68: Julio | H68: Credito | N68: 0 | O68: Se buscara peticion de saldos | R68: 2878.525089 | S68: 2458.349293 | T68: -420.1757958 | U68: 732.2232709 | V68: Se buscara cita en conjunto con Veronica, Ecommerce en negociacion
A69: CRISTIAN HERNANDEZ | B69: RELACION DUPLICADA | C69: AYVI SA DE CV | D69: 1000 | E69: Reciprocidad | F69: Prospecto | G69: Julio | H69: Credito | O69: TDE | R69: 13051.37759 | S69: 20505.61464 | T69: 7454.237051 | U69: -96.21928265 | V69: Crecimiento se puede dar por medio de TDE , la cual ya esta implementada en revision
A70: CRISTIAN HERNANDEZ | B70: CARLOS EFREN DELGADILLO CHAPA | C70: CAR ONE GROUP | D70: 7000 | E70: Reciprocidad | F70: IMPLEMENTACIÓN | G70: Agosto | H70: Credito | O70: Nomina | R70: 2981.439633 | S70: 0.939 | T70: -2980.500633 | U70: 0.939
A71: CRISTIAN HERNANDEZ | B71: ALDO GERARDO FARIAS | C71: COFINE SAPI DE CV SOFOM ENR | D71: 1000 | E71: Reciprocidad | F71: Negociación | G71: Julio | H71: Credito | O71: Tpv , Ligas de pago | R71: 4.666666667 | S71: 10 | T71: 5.333333333 | U71: 10
A72: CRISTIAN HERNANDEZ | B72: LILIANA SALINAS AVIÑIGA | C72: DISTRIBUIDORA DE PRODUCTOS DESHIDRATADOS SA DE CV | D72: 1000 | E72: Reciprocidad | F72: Negociación | G72: Julio | H72: Credito | O72: Tpv | V72: pendiente cita
A73: CRISTIAN HERNANDEZ | B73: ALDO GERARDO FARIAS | C73: GRUPO CLISA | D73: 1000 | E73: Colocación de productos | F73: EN IMPLEMENTACIÓN | G73: Julio | H73: Credito | N73: 0 | R73: 24438.60057 | S73: 30172.67975 | T73: 5734.079181 | U73: 9459.068859 | V73: Pendiente cita
A74: CRISTIAN HERNANDEZ | B74: LILIANA SALINAS AVIÑIGA | C74: HOMERO MARTINEZ LANDA | D74: 1000 | E74: Reciprocidad | F74: Prospecto | G74: Agosto | H74: Credito | N74: 0 | O74: Interredes | R74: 944.482499 | S74: 1973.50967 | T74: 1029.027171 | U74: 1195.332711 | V74: Pendiente cita
A75: CRISTIAN HERNANDEZ | B75: JUAN GUADALUPE DE LA ROSA PAZ | C75: INTEGRADORA DE GANADEROS DE ENGORDA DE LA LAGUNA SA DE CV | D75: 1000 | E75: Reciprocidad | F75: Prospecto | G75: Agosto | H75: Credito | O75: Por colocacion productos, H2H delectric , ya se busco a Omar y Mabel | R75: 4919.018119 | S75: 3249.503508 | T75: -1669.514611 | U75: -3559.577123 | V75: en negociacion
A76: CRISTIAN HERNANDEZ | B76: CARLOS EFREN DELGADILLO CHAPA | C76: MESO CAPITAL SAPI - FINANTRA | D76: 1000 | E76: Reciprocidad | F76: IMPLEMENTACIÓN | G76: Julio | H76: Credito | N76: 0 | O76: Por colocacion de tpv | R76: 1109.621375 | S76: 909.3747686 | T76: -200.2466061 | U76: -227.6629372 | V76: Hoy se instalan 4 TPV de 17 mas TI
A77: CRISTIAN HERNANDEZ | B77: GERARDO GARCIA GUERRA | C77: PRODUCTOS SELECTOS MARROKO SA DE CV | D77: 1000 | E77: Reciprocidad | F77: Negociación | G77: Julio | H77: Credito | O77: Varios productos por credito | V77: PROSPECTO
A78: CRISTIAN HERNANDEZ | B78: JUAN GUADALUPE DE LA ROSA PAZ | C78: PROVEEDORA INDUSTRIAL VARGAS SA DE CV | D78: 1000 | E78: Reciprocidad | F78: Negociación | G78: Julio | H78: Credito | N78: 0 | O78: Por colocacion de ADQ | R78: 25934.29309 | S78: 19667.47612 | T78: -6266.816974 | U78: 2053.084428 | V78: Se busca segunda reunion para diagnostico
A79: MONICA GRACIA | B79: JUSTINO HERNANDEZ REYES | C79: DESARROLLOS ALFA 777 SA DE CV | D79: 1000 | E79: Colocación de productos | F79: Negociación | G79: Julio | H79: Crédito | N79: 0 | R79: 94.203185 | S79: 110.5425621 | T79: 16.33937714 | U79: -789.4626798 | V79: Pendiente cita
A80: MONICA GRACIA | B80: JUSTINO HERNANDEZ REYES | C80: IMOBILEM METRO SA DE CV | D80: 3000 | E80: Reciprocidad | F80: Negociación | G80: Julio | H80: Crédito | N80: 0 | O80: Por colocacion de productos (Car one Oriental) | R80: 63351.49694 | S80: 56853.41722 | T80: -6498.079715 | U80: -12258.63747 | V80: En implementacion 6 tpv, 6 lectoras nomina de 300 empleados y caja general
A81: MONICA GRACIA | B81: PRISCILA YAZMIN GARCIA TAMEZ | C81: INMOBILIARIA PRINSASA DE CV | D81: 1000 | E81: Reciprocidad | F81: Negociación | G81: Julio | H81: Crédito | N81: 1938 | O81: Por colocacion de productos H2H, CEP y TI | R81: 516.3497593 | S81: 949.2014471 | T81: 432.8516878 | U81: 659.3899549 | V81: En negociacion
A82: MONICA GRACIA | B82: PRISCILA YAZMIN GARCIA TAMEZ | C82: MARIA CRISTINA BRITTINGHAM SADA | D82: 1000 | E82: Reciprocidad | F82: Negociación | G82: Julio | H82: Crédito | O82: Cuentas, Bem, Cob por credito | R82: 168.3217333 | S82: 3989.6771 | T82: 3821.355367 | U82: 3989.6771
A83: ERASMO MATA | B83: MYRIAM ADRIANA MUÑOZ GONZALEZ | C83: BRENLING SERVICIOS PROFESIONALES SA DE CV | D83: 3000 | E83: Colocación de productos | F83: Contratación | G83: Agosto | H83: Conexion Banorte| Pago a proveedores | O83: Cuentas Adq , CEP | R83: 6484.962711 | S83: 5153.412369 | T83: -1331.550343 | U83: -1018.606739 | V83: En implementacion
A84: JOAO MOURA | B84: LYDIA MARIANA ZUÑIGA CARDENAS | C84: TE RESPALDAMOS SAPI DE CV SOFOM ENR | D84: 3000 | E84: Grupos nuevos | F84: Negociación | G84: Julio | H84: Colocacion de productos | O84: solicitud de apoyo | R84: 2306.067541 | S84: 1006.914446 | T84: -1299.153094 | U84: -377.3147432 | V84: Se esta solicitando apoyo cash con EDR
A85: JOAO MOURA | B85: FRANCISCO MARTINEZ BECERRA | C85: GAVA OFICINA SA DE CV | D85: 1000 | E85: Grupos nuevos | F85: Negociación | G85: Julio | H85: Colocacion de productos | O85: Por colocacion de pagos Transportes ecologicos, GMAG maquinarias y equipos | V85: en proceso de migracion
A86: JOAO MOURA | B86: VALERIA RODRIGUEZ ALANIS | C86: TRIMETRIA DESARROLLOS SA DE CV | D86: 1000 | E86: Grupos nuevos | F86: Implementado | G86: Julio | H86: Colocacion de productos | O86: Por colocacion de TPV | R86: 705.1858637 | S86: 638.3643536 | T86: -66.8215101 | U86: -100.0442303 | V86: Ya aceptaron afiliaciones tpv y estan en proceso de implementacion
A87: ERASMO MATA | B87: JUAN MANUEL ZEA COMPEAN | C87: MONTO FACIL SAPI DECV SOFOM ENR | D87: 5000 | E87: Colocación de productos | F87: Contratación | G87: Agosto | H87: Cobranza, ADQ | N87: 0 | O87: Se buscara colocacion de productos o peticion de saldos | R87: 2507.011335 | S87: 4412.283013 | T87: 1905.271678 | U87: 781.5084864 | V87: Pendiente cita
A88: MONICA GRACIA | B88: ERIC TOMAS ROCHA CONTRERAS | C88: SAVE PRESTAMOS PERSONALES SA DE CV SOFOM ENR | D88: 5000 | E88: Colocación de productos | F88: Negociación | G88: Agosto | H88: Cobranza Domiciliada | O88: En colocacion de CEP | R88: 10731.41292 | S88: 6757.320919 | T88: -3974.092002 | U88: -1849.052826 | V88: Ya en implementacion de CEP
A89: MONICA GRACIA | B89: JUSTINO HERNANDEZ REYES | C89: EFEVAL SA DE CV SOFOM ENR | D89: 5000 | E89: Colocación de productos | F89: Implementación | G89: Agosto | H89: Cobranza Domiciliada | O89: Diagnostico para colocacion de productos por credito | R89: 3061.842576 | S89: 2917.408499 | T89: -144.434077 | U89: 675.6777444 | V89: Se esta buscando cita en cojunto EDR y CASH
A90: MONICA GRACIA | B90: PERLA MONTSERRAT MARROQUIN RODRIGUEZ | C90: ROBERTO MONTEMAYOR | D90: 4000 | E90: Reciprocidad | F90: Contratación | G90: Julio | H90: CEP, CEP interbancario, tpvs. | O90: solicitud de apoyo | R90: 41.66666667 | S90: 50 | T90: 8.333333333 | U90: 50 | V90: Ya confirmaron 1 mdp de crecimeinto
A91: ERASMO MATA | B91: CESAR ALFONSO GONZALEZ CABRERA | C91: INSTITUTO ANGLO BRITANICO SC | D91: 3000 | E91: Grupos nuevos | F91: Negociación | G91: Julio | H91: CEP | Pagos | Adq | O91: solicitud de apoyo | R91: 4563.597003 | S91: 4213.860969 | T91: -349.7360341 | U91: 2025.693623 | V91: Pendiente cita
A92: ERASMO MATA | B92: CESAR ALFONSO GONZALEZ CABRERA | C92: FILOSOFIA EN INMUEBLES SAPI DE CV | D92: 4000 | E92: Grupos nuevos | F92: Negociación | G92: Julio | H92: CEP | Pagos | N92: 0 | O92: Diagnostico para colocacion de productos por credito | R92: 2645.956949 | S92: 1204.14194 | T92: -1441.815009 | U92: -7059.988434 | V92: Pendiente cita
A93: MONICA GRACIA | B93: PERLA MONTSERRAT MARROQUIN RODRIGUEZ | C93: RAGASA INDUSTRIAS SA DE CV | D93: 1000 | E93: Colocación de productos | F93: Negociación | G93: Julio | H93: CEP | N93: 0 | O93: Diagnostico para colocacion de productos por credito | R93: 1190.774167 | S93: 1477.847348 | T93: 287.0731809 | U93: 655.1451911 | V93: Pendiente cita
A94: ERASMO MATA | B94: MYRIAM ADRIANA MUÑOZ GONZALEZ | C94: Grupo Autolineas Mexicanas SAPI de CV | D94: 5000 | E94: Reciprocidad | F94: Negociación | G94: Julio | H94: CEP | K94: 1000 | O94: apoyo directo | R94: 1102.650554 | S94: 678.718825 | T94: -423.931729 | U94: -972.6494547 | V94: Ya confirmo 1 mdp de apoyo
A95: JOAO MOURA | B95: LYDIA MARIANA ZUÑIGA CARDENAS | C95: TRANS OPERATIVO EXPRESS SA DE CV | D95: 2000 | E95: Colocación de productos | F95: Implementado | G95: Julio | H95: Caja general | O95: apoyo directo | R95: 15467.60555 | S95: 16469.4193 | T95: 1001.813745 | U95: -427.982459 | V95: Ya confirmo 3 mdp de apoyo
A96: CRISTIAN HERNANDEZ | B96: LILIANA SALINAS AVIÑIGA | C96: HARI MASA SA DE CV | D96: 3000 | E96: Reciprocidad | F96: Contratación | G96: Julio | H96: Balance Fee | O96: solicitud de apoyo | R96: 8046.756639 | S96: 9737.447319 | T96: 1690.69068 | U96: -7962.038587 | V96: Ya confirmo que si incrementara, pendiente defina monto
A97: CRISTIAN HERNANDEZ | B97: LILIANA SALINAS AVIÑIGA | C97: GRUPO NAZAN | D97: 2000 | E97: Solicitud de apoyo a los clientes | F97: Negociación | G97: Julio | H97: Apoyo | O97: solicitud de apoyo | R97: 2835.931656 | S97: 3520.549046 | T97: 684.6173897 | U97: 511.8064402 | V97: Ya en proceso la solicitud de apoyo
A98: CRISTIAN HERNANDEZ | B98: CARLOS EFREN DELGADILLO CHAPA | C98: DEXTRA TECHNOLOGIES | D98: 2000 | E98: Solicitud de apoyo a los clientes | F98: Negociación | G98: Julio | H98: Apoyo | O98: solicitud de apoyo | R98: 7649.024005 | S98: 5415.596547 | T98: -2233.427458 | U98: 2444.421658 | V98: Ya en proceso la solicitud de apoyo
A99: CRISTIAN HERNANDEZ | B99: CARLOS EFREN DELGADILLO CHAPA | C99: COMERCIALIZADORA ARTHUR | D99: 1000 | E99: Reciprocidad | F99: Prospecto | G99: Agosto | R99: 1774.678342 | S99: 2931.290333 | T99: 1156.611991 | U99: 1831.240059 | V99: Enviar propuesta de y h2h. /Se le solicito apoyo 2 mdp.(tesoreria@reymsa.com *Ricardo)

Sheet Hoja9 (hidden)

Sheet Hoja6 (hidden)
B2: modulodes | C2: nomgrupo | D2: AVANCES SEMANA 1
B3: MTY I | C3: INVERSIONES SAFI SADE CV | D3: Cliente en recuperacion por contingencia debido al Giro, se descarta peticion de apoyo
B4: MTY I | C4: PABLO MARTINEZ CAVAZOS | D4: Crecimiento se puede dar por medio de TDE , la cual ya esta implementada en revision cada 15 dias para que de acuerdo a la experiencia contrate en las demas razones sociales.
B5: MTY I | C5: DESARROLLO PARQUE FUNDIDORA SA DE CV | D5: *Ya se acordo busqueda en cojunto para solicitar reciprocidad , cesar
B6: MTY I | C6: TRANSPORTES LAR-MEXSA DE CV | D6: Crecimiento se puede dar por medio de TDE , la cual ya esta implementada en revision cada 15 dias para que de acuerdo a la experiencia contrate en las demas razones sociales.
B7: MTY I | C7: PADMONT SA DE CV | D7: *Ya se acordo busqueda en cojunto para solicitar reciprocidad
B8: MTY I | C8: SUPER COLCHONES SA DE CV | D8: Se buscara cita en conjunto con Veronica EDR para solicitar VSI,, Ecommerce en negociacion del cual aun no han dado respuesta, la propuesta de Nomina fue rechazada aun y cuando se autorizaron $200,000.00 de bono de bienvenida y beneficios exclusivos.
B9: MTY I | C9: UNIVERSIDAD DE MONTERREY | D9: *Ya se acordo busqueda en cojunto para solicitar reciprocidad
B10: MTY I | C10: BURO INMOBILIARIO NACIONAL SA DE CV | D10: El crecimiento VSI se dara por colocacion de productos cash ,Cuentas, BEM, TPV, mismas que ya se encuentran en implementacion.
B11: MTY I | C11: PALMEX ALIMENTOS S DE RL DE CV | D11: Pendiente
B12: MTY I | C12: MINERALES Y CARBONES DE MEXICO SA DE CV | D12: *Ya se acordo busqueda en cojunto para solicitar reciprocidad
B13: MTY I | C13: C10 CONSTRUCTORA SADE CV | D13: *Ya se acordo busqueda en cojunto para solicitar reciprocidad
B14: MTY I | C14: CORPORACION SIERRA MADRE SA DE CV | D14: Pendiente
B15: MTY I | C15: ARENDAL S DE RL DE CV | D15: Pendiente
B16: MTY I | C16: URESTI & ASOCIADOS ABOGADOS SC | D16: *Ya se acordo busqueda en cojunto para solicitar reciprocidad
B17: MTY I | C17: GRUPO AUTOLINEAS MEXICANAS SAPI DE CV | D17: *Ya se acordo busqueda en cojunto para solicitar reciprocidad
B18: MTY I | C18: IMPORTADORA DE FILTROS SAPI DE CV | D18: Pendiente
B19: MTY I | C19: CONSTRUCTORA MAIZ MIER SA DE CV | D19: Pendiente
B20: MTY I | C20: TRANSPORTES URBANOSEXPOSICION SA DE CV | D20: *Ya se acordo busqueda en cojunto para solicitar reciprocidad
B24: modulodes | C24: nomgrupo | D24: Captacion estimada (%10) | E24: Diferencia | F24: AVANCES SEMANA 1
B25: MTY I | C25: INVERSIONES SAFI SADE CV | D25: 104779.0034 | E25: -91629.42592 | F25: Cliente en recuperacion por contingencia debido al Giro, se descarta peticion de apoyo
B26: MTY I | C26: PABLO MARTINEZ CAVAZOS | D26: 92926.41727 | E26: -42771.48524 | F26: Crecimiento se puede dar por medio de TDE , la cual ya esta implementada en revision cada 15 dias para que de acuerdo a la experiencia contrate en las demas razones sociales.
B27: MTY I | C27: DESARROLLO PARQUE FUNDIDORA SA DE CV | D27: 50005.67056 | E27: -38100.71856 | F27: *Ya se acordo busqueda en cojunto para solicitar reciprocidad , cesar
B28: MTY I | C28: TRANSPORTES LAR-MEXSA DE CV | D28: 40419.59888 | E28: -26778.46208 | F28: Crecimiento se puede dar por medio de TDE , la cual ya esta implementada en revision cada 15 dias para que de acuerdo a la experiencia contrate en las demas razones sociales.
B29: MTY I | C29: PADMONT SA DE CV | D29: 21682.81123 | E29: -15308.4488 | F29: *Ya se acordo busqueda en cojunto para solicitar reciprocidad
B30: MTY I | C30: SUPER COLCHONES SA DE CV | D30: 14339.04874 | E30: -11456.07538 | F30: Se buscara cita en conjunto con Veronica EDR para solicitar VSI,, Ecommerce en negociacion del cual aun no han dado respuesta, la propuesta de Nomina fue rechazada aun y cuando se autorizaron $200,000.00 de bono de bienvenida y beneficios exclusivos.
B31: MTY I | C31: UNIVERSIDAD DE MONTERREY | D31: 54127.58535 | E31: -8456.476519 | F31: *Ya se acordo busqueda en cojunto para solicitar reciprocidad
B32: MTY I | C32: BURO INMOBILIARIO NACIONAL SA DE CV | D32: 37378.84696 | E32: -7045.406961 | F32: El crecimiento VSI se dara por colocacion de productos cash ,Cuentas, BEM, TPV, mismas que ya se encuentran en implementacion.
B33: MTY I | C33: PALMEX ALIMENTOS S DE RL DE CV | D33: 16156.31036 | E33: -4854.774137 | F33: Pendiente
B34: MTY I | C34: MINERALES Y CARBONES DE MEXICO SA DE CV | D34: 6135.880983 | E34: -4837.647306 | F34: *Ya se acordo busqueda en cojunto para solicitar reciprocidad
B35: MTY I | C35: C10 CONSTRUCTORA SADE CV | D35: 7122.291141 | E35: -3704.945819 | F35: *Ya se acordo busqueda en cojunto para solicitar reciprocidad
B36: MTY I | C36: CORPORACION SIERRA MADRE SA DE CV | D36: 4694.567964 | E36: -3637.217602 | F36: Pendiente
B37: MTY I | C37: ARENDAL S DE RL DE CV | D37: 3130.375139 | E37: -3124.865489 | F37: Pendiente
B38: MTY I | C38: URESTI & ASOCIADOS ABOGADOS SC | D38: 3261.527568 | E38: -1550.144425 | F38: *Ya se acordo busqueda en cojunto para solicitar reciprocidad
B39: MTY I | C39: GRUPO AUTOLINEAS MEXICANAS SAPI DE CV | D39: 3733.861671 | E39: -1151.553349 | F39: *Ya se acordo busqueda en cojunto para solicitar reciprocidad
B40: MTY I | C40: IMPORTADORA DE FILTROS SAPI DE CV | D40: 1531.688493 | E40: -960.3399436 | F40: Pendiente
B41: MTY I | C41: CONSTRUCTORA MAIZ MIER SA DE CV | D41: 2001.967714 | E41: -684.1828507 | F41: Pendiente
B42: MTY I | C42: TRANSPORTES URBANOSEXPOSICION SA DE CV | D42: 730.8745082 | E42: -534.7949508 | F42: *Ya se acordo busqueda en cojunto para solicitar reciprocidad

Sheet 80-20 (hidden)
T2: Diferencia VS Mes Año Anterior
A3: SIC | B3: Territorio | C3: Módulo | D3: Grupo | E3: Captación | F3: Productos a colocar | G3: Incremento comisiones | H3: Promedio Enero | I3: Promedio Febrero | J3: Promedio Marzo | K3: Promedio Abril | L3: Promedio Mayo | M3: Promedio Junio | N3: Promedio 27 Julio | O3: Promedio 15 Agosto | P3: Incremento | Q3: Status | R3: % Avance | S3: % Probabilidad | T3: DIF VSI MN | U3: Estatus MN | V3: DIF VSI USD | W3: Estatus USD | X3: DIF VCI MN | Y3: Estatus MN
B4: Norte I | C4: MTY I | D4: CONSTRUCTORA GARZA PONCE SA DE CV | E4: 5000 | F4: H2H, NOMINA, CEP, CEP INTERBANCARIO | G4: =+(E4*4.5%)*1000 -> 225000 | H4: 40722.36225 | I4: 53003.29918 | J4: 38694.68486 | K4: 39577.83549 | L4: 39718.63702 | M4: 43499.40797 | N4: 44792.3932 | O4: =VLOOKUP(D4,MATRIZ!$A$5:$CW$311,82,0) ->  | P4: =O4-H4 ->  | Q4: En proceso de contratación de Nómina pronostico de dispersion finales Julio, CEP ya operando, Propuesta pendiente de respuesta de Recurrentes Servicios Masivos y SPID Masivo. | T4: =VLOOKUP(D4,MATRIZ!$A$5:$CW$311,86,0) ->  | U4: =VLOOKUP(D4,MATRIZ!$A$5:$CW$311,87,0) ->  | V4: =VLOOKUP(D4,MATRIZ!$A$5:$CW$311,88,0) ->  | W4: =VLOOKUP(D4,MATRIZ!$A$5:$CW$311,89,0) ->  | X4: =VLOOKUP(D4,MATRIZ!$A$5:$CW$311,90,0) ->  | Y4: =VLOOKUP(D4,MATRIZ!$A$5:$CW$311,91,0) -> 
B5: Norte I | C5: MTY I | D5: PABLO MARTINEZ CAVAZOS | E5: 3000 | F5: TDE | G5: 135000 | H5: 37813.52538 | I5: 45438.08491 | J5: 46012.97596 | K5: 95495.70988 | L5: 49343.55058 | M5: 53390.99606 | N5: 50621.8228 | O5: =VLOOKUP(D5,MATRIZ!$A$5:$CW$311,82,0) ->  | P5: =O5-H5 ->  | Q5: Ya se libero la funcionalidad y se esta dando seguimiento cada 15 dias para experiencia | T5: =VLOOKUP(D5,MATRIZ!$A$5:$CW$311,86,0) ->  | U5: =VLOOKUP(D5,MATRIZ!$A$5:$CW$311,87,0) ->  | V5: =VLOOKUP(D5,MATRIZ!$A$5:$CW$311,88,0) ->  | W5: =VLOOKUP(D5,MATRIZ!$A$5:$CW$311,89,0) ->  | X5: =VLOOKUP(D5,MATRIZ!$A$5:$CW$311,90,0) ->  | Y5: =VLOOKUP(D5,MATRIZ!$A$5:$CW$311,91,0) -> 
B6: Norte I | C6: MTY I | D6: CORPORACION SIERRA MADRE SA DE CV | E6: 4000 | F6: PROPUESTA INTEGRAL | G6: 180000 | H6: 1053.585656 | I6: 878.2136379 | J6: 936.7141103 | K6: 1400.264424 | L6: 923.0724819 | M6: 828.5174113 | N6: 1112.778629 | O6: =VLOOKUP(D6,MATRIZ!$A$5:$CW$311,82,0) ->  | Q6: Dispersa en primer semana | T6: =VLOOKUP(D6,MATRIZ!$A$5:$CW$311,86,0) ->  | U6: =VLOOKUP(D6,MATRIZ!$A$5:$CW$311,87,0) ->  | V6: =VLOOKUP(D6,MATRIZ!$A$5:$CW$311,88,0) ->  | W6: =VLOOKUP(D6,MATRIZ!$A$5:$CW$311,89,0) ->  | X6: =VLOOKUP(D6,MATRIZ!$A$5:$CW$311,90,0) ->  | Y6: =VLOOKUP(D6,MATRIZ!$A$5:$CW$311,91,0) -> 
B7: Norte I | C7: MTY II | D7: ROBERTO MONTEMAYOR GUTIERREZ | E7: 5000 | F7: TPV, NOMINA, TDE | G7: 225000 | H7: 595.3835203 | I7: 988.4797443 | J7: 1422.544499 | K7: 1704.824439 | L7: 1292.618795 | M7: 1355.480675 | N7: 1079.529742 | O7: =VLOOKUP(D7,MATRIZ!$A$5:$CW$311,82,0) ->  | Q7: Operando ya TPV de las 9 ya operan 3, CEP se capacita proxima semana. | T7: =VLOOKUP(D7,MATRIZ!$A$5:$CW$311,86,0) ->  | U7: =VLOOKUP(D7,MATRIZ!$A$5:$CW$311,87,0) ->  | V7: =VLOOKUP(D7,MATRIZ!$A$5:$CW$311,88,0) ->  | W7: =VLOOKUP(D7,MATRIZ!$A$5:$CW$311,89,0) ->  | X7: =VLOOKUP(D7,MATRIZ!$A$5:$CW$311,90,0) ->  | Y7: =VLOOKUP(D7,MATRIZ!$A$5:$CW$311,91,0) -> 
B8: Norte I | C8: MTY II | D8: RODAMIENTOS Y ACCESORIOS SA DE CV | E8: 5000 | F8: NOMINA, TDE, H2H | G8: 500000 | H8: 721.2270061 | I8: 941.09936 | J8: 559.8968726 | K8: 563.5532594 | L8: 563.5532594 | M8: 519.4815503 | N8: 523.3394733 | O8: =VLOOKUP(D8,MATRIZ!$A$5:$CW$311,82,0) ->  | Q8: Se va presentar propuesta de nomina para 1300 empleados, se realiza nuevamente propuesta de tpv para 17 afiliacion facturacion 5 mdp mensual , TDE , ti, H2H ya implementado se buscara que opere. Proxima semana se realiza propuesta | T8: =VLOOKUP(D8,MATRIZ!$A$5:$CW$311,86,0) ->  | U8: =VLOOKUP(D8,MATRIZ!$A$5:$CW$311,87,0) ->  | V8: =VLOOKUP(D8,MATRIZ!$A$5:$CW$311,88,0) ->  | W8: =VLOOKUP(D8,MATRIZ!$A$5:$CW$311,89,0) ->  | X8: =VLOOKUP(D8,MATRIZ!$A$5:$CW$311,90,0) ->  | Y8: =VLOOKUP(D8,MATRIZ!$A$5:$CW$311,91,0) -> 
B9: Norte I | C9: MTY II | D9: PROMOTORA DE HOGARES SM DE MEXICO SA DECV | E9: 3000 | F9: TPV, CEP | G9: 135000 | O9: =VLOOKUP(D9,MATRIZ!$A$5:$CW$311,82,0) ->  | Q9: Se envio propuesta esta pendiente de respuesta. Se realiza ultimo intento esta semana de lo contrario se cambia. | T9: =VLOOKUP(D9,MATRIZ!$A$5:$CW$311,86,0) ->  | U9: =VLOOKUP(D9,MATRIZ!$A$5:$CW$311,87,0) ->  | V9: =VLOOKUP(D9,MATRIZ!$A$5:$CW$311,88,0) ->  | W9: =VLOOKUP(D9,MATRIZ!$A$5:$CW$311,89,0) ->  | X9: =VLOOKUP(D9,MATRIZ!$A$5:$CW$311,90,0) ->  | Y9: =VLOOKUP(D9,MATRIZ!$A$5:$CW$311,91,0) -> 
B10: Norte I | C10: MTY III | D10: TE RESPALDAMOS SAPIDE CV SOFOM ENR | E10: 2000 | F10: Cuenta, BEM, Pagos, Cobranza | M10: 48.75897967 | N10: 149.7630441 | O10: =VLOOKUP(D10,MATRIZ!$A$5:$CW$311,82,0) ->  | Q10: Ya operando. Analizando posible baja de este seguimiento. | T10: =VLOOKUP(D10,MATRIZ!$A$5:$CW$311,86,0) ->  | U10: =VLOOKUP(D10,MATRIZ!$A$5:$CW$311,87,0) ->  | V10: =VLOOKUP(D10,MATRIZ!$A$5:$CW$311,88,0) ->  | W10: =VLOOKUP(D10,MATRIZ!$A$5:$CW$311,89,0) ->  | X10: =VLOOKUP(D10,MATRIZ!$A$5:$CW$311,90,0) ->  | Y10: =VLOOKUP(D10,MATRIZ!$A$5:$CW$311,91,0) -> 
B11: Norte I | C11: MTY III | D11: KEY QUIMICA SA DE CV | E11: 4000 | F11: VSI | G11: 200000 | H11: 3637.152338 | I11: 6260.118555 | J11: 5008.861213 | K11: 4915.373588 | L11: 6301.427334 | M11: 6191.669008 | N11: 4927.158647 | O11: =VLOOKUP(D11,MATRIZ!$A$5:$CW$311,82,0) ->  | Q11: Se solicito reciprocidad de captacion , ecommerce y nomina se esta viendo posibilidad de entrar. Analisis de captacion. | T11: =VLOOKUP(D11,MATRIZ!$A$5:$CW$311,86,0) ->  | U11: =VLOOKUP(D11,MATRIZ!$A$5:$CW$311,87,0) ->  | V11: =VLOOKUP(D11,MATRIZ!$A$5:$CW$311,88,0) ->  | W11: =VLOOKUP(D11,MATRIZ!$A$5:$CW$311,89,0) ->  | X11: =VLOOKUP(D11,MATRIZ!$A$5:$CW$311,90,0) ->  | Y11: =VLOOKUP(D11,MATRIZ!$A$5:$CW$311,91,0) -> 
B12: Norte I | C12: MTY III | D12: TRANS OPERATIVO EXPRESS SA DE CV | E12: 1500 | F12: COBRANZA INTEGRAL, TPV | G12: 67500 | H12: 1547.916258 | I12: 5816.423807 | J12: 5322 | K12: 7588.694534 | M12: 16833.54285 | N12: 5887.524501 | O12: =VLOOKUP(D12,MATRIZ!$A$5:$CW$311,82,0) ->  | Q12: Se solicito apoyo a cliente para migrar operación de dotacion a Banorte , se estara dando de alta plaza de Puebla, enseguida se negocía la nomina | T12: =VLOOKUP(D12,MATRIZ!$A$5:$CW$311,86,0) ->  | U12: =VLOOKUP(D12,MATRIZ!$A$5:$CW$311,87,0) ->  | V12: =VLOOKUP(D12,MATRIZ!$A$5:$CW$311,88,0) ->  | W12: =VLOOKUP(D12,MATRIZ!$A$5:$CW$311,89,0) ->  | X12: =VLOOKUP(D12,MATRIZ!$A$5:$CW$311,90,0) ->  | Y12: =VLOOKUP(D12,MATRIZ!$A$5:$CW$311,91,0) -> 
B13: Norte I | C13: MTY IV | D13: AYVI SA DE CV | E13: 4000 | F13: NOMINA, PAGOS | G13: 180000 | H13: 17083.41133 | I13: 16002.03745 | J13: 25844.77207 | K13: 50899.97875 | L13: 34959.80035 | M13: 25934.29309 | N13: 19262.53375 | O13: =VLOOKUP(D13,MATRIZ!$A$5:$CW$311,82,0) ->  | Q13: Ya se acordo que comenzara a subir saldos, se tiene sesion de cash proximas 2 semana para ver cobranza ya que opera con BX+ | T13: =VLOOKUP(D13,MATRIZ!$A$5:$CW$311,86,0) ->  | U13: =VLOOKUP(D13,MATRIZ!$A$5:$CW$311,87,0) ->  | V13: =VLOOKUP(D13,MATRIZ!$A$5:$CW$311,88,0) ->  | W13: =VLOOKUP(D13,MATRIZ!$A$5:$CW$311,89,0) ->  | X13: =VLOOKUP(D13,MATRIZ!$A$5:$CW$311,90,0) ->  | Y13: =VLOOKUP(D13,MATRIZ!$A$5:$CW$311,91,0) -> 
B14: Norte I | C14: MTY IV | D14: ARGOS ELECTRICA SA DE CV | E14: 5000 | F14: NOMINA, CONEXIÓN BANORTE, ADQUIRENTE | G14: 225000 | H14: 3083.094036 | I14: 5344.255946 | J14: 3957.872711 | K14: 3813.622497 | L14: 5023.153981 | M14: 4919.018119 | N14: 3263.574915 | O14: =VLOOKUP(D14,MATRIZ!$A$5:$CW$311,82,0) ->  | Q14: H2H en espera de resolucion por cobro de anualidad. | T14: =VLOOKUP(D14,MATRIZ!$A$5:$CW$311,86,0) ->  | U14: =VLOOKUP(D14,MATRIZ!$A$5:$CW$311,87,0) ->  | V14: =VLOOKUP(D14,MATRIZ!$A$5:$CW$311,88,0) ->  | W14: =VLOOKUP(D14,MATRIZ!$A$5:$CW$311,89,0) ->  | X14: =VLOOKUP(D14,MATRIZ!$A$5:$CW$311,90,0) ->  | Y14: =VLOOKUP(D14,MATRIZ!$A$5:$CW$311,91,0) -> 
B15: Norte I | C15: MTY IV | D15: ARRENDADORA CENTENARIO SA DE CV | E15: 3000 | F15: ADQUIRENTE | G15: 135000 | H15: 1028.736436 | I15: 932.6741082 | J15: 1948.980317 | K15: 1112.750225 | L15: 1171.761009 | M15: 1109.621375 | N15: 978.7714959 | O15: =VLOOKUP(D15,MATRIZ!$A$5:$CW$311,82,0) ->  | Q15: Ya entregadas TPV , operan este fin de semana. | T15: =VLOOKUP(D15,MATRIZ!$A$5:$CW$311,86,0) ->  | U15: =VLOOKUP(D15,MATRIZ!$A$5:$CW$311,87,0) ->  | V15: =VLOOKUP(D15,MATRIZ!$A$5:$CW$311,88,0) ->  | W15: =VLOOKUP(D15,MATRIZ!$A$5:$CW$311,89,0) ->  | X15: =VLOOKUP(D15,MATRIZ!$A$5:$CW$311,90,0) ->  | Y15: =VLOOKUP(D15,MATRIZ!$A$5:$CW$311,91,0) -> 
A25: Seguimiento Interno

Sheet CITI (hidden)
J1: Cartera BMX | N1: EMPRESARIAL | T1: ComExt Banorte | AA1: Especializadas / Agro | AE1: Almacenadora | AM1: BANCA TRANSACCIONAL | BA1: Arrendadora y Factor | BI1: Banca de Inversión
A2: Fecha de actualización (dd/mes/año) | B2: Zona | C2: Dirección | D2: Módulo | E2: GrupoCif | F2: Nombre Grupo | G2: Coordinador | H2: Ejecutivo | I2: Ppal Banco | J2: Suma de Vig Banamex | K2: Suma de Factor Banamex | L2: Suma de Arr Banamex | M2: Suma de Total BMX | N2: Crédito corto plazo | O2: MDP Corto plazo | P2: Crédito largo plazo | Q2: MDP Largo plazo | R2: Observaciones | S2: Origen Prospecto | T2: Prioridad ComExt | U2: Total IMP EXP USD (Indicativo Flujos comerciales import/export) | V2: CCI/StandBy | W2: Fin Comex (USD y MXN) | X2: Financiamiento Estructurado | Y2: Supply Chain Finance (Draft Discount) | Z2: OBSERVACIONES INT | AA2: MDP línea autorizada BMX | AB2: Tipo | AC2: OBSERVACIONES ESP | AD2: Prioridad Agro | AE2: Producto | AF2: Giro del cliente | AG2: Contactado (Si/No) | AH2: Pipeline | AI2: Monto de línea | AJ2: Ingreso anual aprox. | AK2: Observaciones almacenadora | AL2: Prioridad Almacenadora | AM2: Productos Cash | AN2: Facturación estimada / mes | AO2: Nominahabientes | AP2: Captación estimada | AQ2: Contactado | AR2: ¿Pipeline? | AS2: Producto en pipeline | AT2: Prioridad Cash | AU2: Productos Mercados | AV2: Contactado2 | AW2: ¿Pipeline?2 | AX2: Producto en pipeline2 | AY2: Prioridad Mercados | AZ2: OBSERVACIONES BT | BA2: Producto AyF | BB2: Giro del cliente AyF | BC2: Contactado (Si/No) AyF | BD2: Pipeline AyF | BE2: Observaciones AyF | BF2: Prioridad AyF | BG2: Monto de línea MXN (Millones) | BH2: Monto de línea USD (Millones) | BI2: Citi ha sido colocador de Deuda | BJ2: Banorte tambien ha sido colocador de Deuda | BK2: Próximos Vencimientos de Deuda LP en 2022-2023-2024 | BL2: Citi ha sido colocador de Capitales | BM2: Banorte tambien ha sido colocador en Capitales | BN2: Hay relación actual de Banca de Inversion con el Empresa | BO2: Le interesa a Banca de Inversión incrementar la relación para que seamos colocadores en futuras emisiones | BP2: Contactado (Sí/No) | BQ2: Estatus | BR2: Prioridad General | BS2: Pendiente información general | BT2: SEMANA 1
A3: 2022-05-03 | B3: Zona Norte | C3: CENTRO | D3: GUANAJUATO-QRO | E3: 8703947 | F3: ACOPOL SA DE CV | G3: CARLOS ALBERTO CAMARGO MARTINEZ | H3: LUIS FERNANDO CORTES MUÑOZ | I3: BANORTE | J3: 15.003011 | K3: 0 | L3: 0 | M3: 15.003011 | N3: ACCC | O3: 50 | P3: NINGUNO | Q3: NINGUNO | R3: GIRO COMERICIALIZACIÓN DE TELA VIRGEN. EL CLIENTE TIENE CRÉDITO EN BANAMEX ACCC POR $15MDP, SE BUSCA LA COMPRA DE PASIVO. EL CLIENTE MANEJA CON BANORTE LA TESORERÍA, NOMINA Y ADQUIRENTE. // 28 DE FEB SE BAJA DE PROYECTO AZUL, EL CLIENTE NO PLANEA MODIFICAR LAS LINEAS DE CREDITO CON LAS QUE CUENTA ACTUALMENTE// SE VISITÓ AL CLIENTE NUEVAMENTE EN LA SEMANA DEL 4-11 DE MARZO Y REALIZA SOLICITUD PARA NUEVA LINEA POR 50MDP// PENDIENTE, LA IDEA SERÍA PRESENTAR LA NUEVA LINEA EN AGOSTO´22 | S3: EMPRESARIAL | AG3: Si | AM3: adquirente | AN3: De 5 a 10 mdp | AO3: 0 | AP3: Menos de 10 mdp | AT3: Baja | BP3: Sí | BQ3: Pipeline | BR3: Media | BS3: =IF((IF(ISBLANK(tabla_proyecto_azul_clientes[[#This Row],[Fecha de actualización (dd/mes/año)]]),1,0) +IF(ISBLANK(tabla_proyecto_azul_clientes[[#This Row],[Zona]]),1,0) +IF(ISBLANK(tabla_proyecto_azul_clientes[[#This Row],[Dirección]]),1,0) +IF(ISBLANK(tabla_proyecto_azul_clientes[[#This Row],[Módulo]]),1,0) +IF(ISBLANK(tabla_proyecto_azul_clientes[[#This Row],[GrupoCif]]),1,0) +IF(ISBLANK(tabla_proyecto_azul_clientes[[#This Row],[Nombre Grupo]]),1,0) +IF(ISBLANK(tabla_proyecto_azul_clientes[[#This Row],[Coordinador]]),1,0) +IF(ISBLANK(tabla_proyecto_azul_clientes[[#This Row],[Ejecutivo]]),1,0) +IF(ISBLANK(tabla_proyecto_azul_clientes[[#This Row],[Ppal Banco]]),1,0))>0,1,0) -> 0
A4: 2022-05-03 | B4: Zona Norte | C4: CENTRO | D4: TAMPICO | E4: 6661239 | F4: AGENCIA ROJAS VELA Y ASOCIADOS | G4: MIGUEL ANGEL GARCIA RABANAL | H4: MARIA FERNANDA ALVAREZ HERNANDEZ | I4: BANAMEX | J4: 0 | K4: 0 | L4: 0 | M4: 0 | N4: ACCC | O4: 20 | R4: CRÉDITO A CORTO PLAZO ACCC, EN REVISIÓN CON EL CLIENTE CONDICIONES PRECEDENTES. CLIENTE DEDICADO A LA COMPRAVENTA DE COMBUSTIBLES MARINO | S4: EMPRESARIAL | AN4: Más de 50 mdp | AP4: Menos de 10 mdp | BP4: Sí | BQ4: Descartado | BR4: Baja | BS4: =IF((IF(ISBLANK(tabla_proyecto_azul_clientes[[#This Row],[Fecha de actualización (dd/mes/año)]]),1,0) +IF(ISBLANK(tabla_proyecto_azul_clientes[[#This Row],[Zona]]),1,0) +IF(ISBLANK(tabla_proyecto_azul_clientes[[#This Row],[Dirección]]),1,0) +IF(ISBLANK(tabla_proyecto_azul_clientes[[#This Row],[Módulo]]),1,0) +IF(ISBLANK(tabla_proyecto_azul_clientes[[#This Row],[GrupoCif]]),1,0) +IF(ISBLANK(tabla_proyecto_azul_clientes[[#This Row],[Nombre Grupo]]),1,0) +IF(ISBLANK(tabla_proyecto_azul_clientes[[#This Row],[Coordinador]]),1,0) +IF(ISBLANK(tabla_proyecto_azul_clientes[[#This Row],[Ejecutivo]]),1,0) +IF(ISBLANK(tabla_proyecto_azul_clientes[[#This Row],[Ppal Banco]]),1,0))>0,1,0) -> 0
A5: 2022-05-03 | B5: Zona Norte | C5: CENTRO | D5: ZACATECAS-AGS | E5: 13838690 | F5: AGRICOLA GUAYABEROS SA DE CV | G5: EMILIANO LARA HERNANDEZ | H5: YESSICA ARACELI SANCHEZ CARDENAS | I5: BANAMEX | J5: 0 | K5: 0 | L5: 0 | M5: 0 | R5: EMPRESA DEDICADA A LA COMERCIALIZACION DE FERTILIZANTES, SE ESTA BUSCANDO CITA CON LA EMPRESA PARA OBTENER MAYOR INFORMACION. EN ESPERA DE CONFIRMAR CITA POR CORREO. | S5: EMPRESARIAL | BP5: No | BQ5: Contacto inicial | BR5: Baja | BS5: =IF((IF(ISBLANK(tabla_proyecto_azul_clientes[[#This Row],[Fecha de actualización (dd/mes/año)]]),1,0) +IF(ISBLANK(tabla_proyecto_azul_clientes[[#This Row],[Zona]]),1,0) +IF(ISBLANK(tabla_proyecto_azul_clientes[[#This Row],[Dirección]]),1,0) +IF(ISBLANK(tabla_proyecto_azul_clientes[[#This Row],[Módulo]]),1,0) +IF(ISBLANK(tabla_proyecto_azul_clientes[[#This Row],[GrupoCif]]),1,0) +IF(ISBLANK(tabla_proyecto_azul_clientes[[#This Row],[Nombre Grupo]]),1,0) +IF(ISBLANK(tabla_proyecto_azul_clientes[[#This Row],[Coordinador]]),1,0) +IF(ISBLANK(tabla_proyecto_azul_clientes[[#This Row],[Ejecutivo]]),1,0) +IF(ISBLANK(tabla_proyecto_azul_clientes[[#This Row],[Ppal Banco]]),1,0))>0,1,0) -> 0
A6: 2022-05-03 | B6: Zona Norte | C6: CENTRO | D6: ZACATECAS-AGS | E6: 58548196 | F6: AGROINDUSTRIAS AG SC DE RL DE CV | G6: EMILIANO LARA HERNANDEZ | H6: JAQUELINE SOTO ESPARZA | I6: BANAMEX | J6: 0 | K6: 0 | L6: 0 | M6: 0 | O6: 20 | R6: EMPRESA CON MAS DE 12 AÑOS DE EXPERIENCIA, SU ACTIVIDAD ES LA CRIA Y ENGORDA DE GANADO BOVINO PARA PRODUCCION DE LECHE, APARCERIA DE POLLO, AL FRENTE DE LA EMPRESA SE ENCUENTRA EL SR. MIGUEL ANGEL ALVAREZ FLORES CONSIDERADO UNO DE LOS PRINCIPALES ENGORDADORES DE GANADO BOVINO EN AGUASCALIENTES; ADEMAS ES SOCIO FUNDADOR DEL GRUPO GILSA DE AGUASCALIENTES (LECHE SAN MARCOS). SE TUVO UN ACERCAMIENTO CON LA EMPRESA Y NOS COMENTAN QUE YA NO TRAEN PASIVOS CON ESTE BANCO. SE SEGUIRA EN CONTACTO CON EL CLIENTE PERO NO BAJO ESTE CONCEPTO. | S6: EMPRESARIAL | BP6: Sí | BQ6: Descartado | BR6: Baja | BS6: =IF((IF(ISBLANK(tabla_proyecto_azul_clientes[[#This Row],[Fecha de actualización (dd/mes/año)]]),1,0) +IF(ISBLANK(tabla_proyecto_azul_clientes[[#This Row],[Zona]]),1,0) +IF(ISBLANK(tabla_proyecto_azul_clientes[[#This Row],[Dirección]]),1,0) +IF(ISBLANK(tabla_proyecto_azul_clientes[[#This Row],[Módulo]]),1,0) +IF(ISBLANK(tabla_proyecto_azul_clientes[[#This Row],[GrupoCif]]),1,0) +IF(ISBLANK(tabla_proyecto_azul_clientes[[#This Row],[Nombre Grupo]]),1,0) +IF(ISBLANK(tabla_proyecto_azul_clientes[[#This Row],[Coordinador]]),1,0) +IF(ISBLANK(tabla_proyecto_azul_clientes[[#This Row],[Ejecutivo]]),1,0) +IF(ISBLANK(tabla_proyecto_azul_clientes[[#This Row],[Ppal Banco]]),1,0))>0,1,0) -> 0
A7: 2022-05-03 | B7: Zona Norte | C7: CENTRO | D7: TAMPICO | E7: 6771130 | F7: AIRE PROYECTOS DEL GOLFO SA DE CV | G7: MIGUEL ANGEL GARCIA RABANAL | H7: MARIA FERNANDA ALVAREZ HERNANDEZ | I7: BANAMEX | J7: 16.088658 | K7: 0 | L7: 0 | M7: 16.088658 | O7: 20 | R7: CLIENTE CON CRÉDITO A CORTO PLAZO ACCC, DEDICADO A LA INSTALACIÓN Y COMERCIALIZACIÓN DE AIRES ACONDICIONADOS | S7: EMPRESARIAL | AG7: Si | AM7: BEM PAGOS | AN7: Más de 50 mdp | AO7: 0 | AP7: Menos de 10 mdp | AQ7: SI | AS7: BEM | AZ7: NEGOCIACION | BP7: Sí | BQ7: Descartado | BR7: Baja | BS7: =IF((IF(ISBLANK(tabla_proyecto_azul_clientes[[#This Row],[Fecha de actualización (dd/mes/año)]]),1,0) +IF(ISBLANK(tabla_proyecto_azul_clientes[[#This Row],[Zona]]),1,0) +IF(ISBLANK(tabla_proyecto_azul_clientes[[#This Row],[Dirección]]),1,0) +IF(ISBLANK(tabla_proyecto_azul_clientes[[#This Row],[Módulo]]),1,0) +IF(ISBLANK(tabla_proyecto_azul_clientes[[#This Row],[GrupoCif]]),1,0) +IF(ISBLANK(tabla_proyecto_azul_clientes[[#This Row],[Nombre Grupo]]),1,0) +IF(ISBLANK(tabla_proyecto_azul_clientes[[#This Row],[Coordinador]]),1,0) +IF(ISBLANK(tabla_proyecto_azul_clientes[[#This Row],[Ejecutivo]]),1,0) +IF(ISBLANK(tabla_proyecto_azul_clientes[[#This Row],[Ppal Banco]]),1,0))>0,1,0) -> 0
A8: 2022-05-03 | B8: Zona Norte | C8: CENTRO | D8: GUANAJUATO-QRO | E8: 391680 | F8: AUTOBUSES DE LA PIEDAD SA DE CV | G8: CARLOS ALBERTO CAMARGO MARTINEZ | H8: LUIS FERNANDO CORTES MUÑOZ | I8: BANAMEX | J8: 400.578622 | K8: 0 | L8: 0 | M8: 400.578622 | N8: NINGUNO | O8: NINGUNO | P8: COMPRA DE PASIVOS | Q8: 500 | R8: GIRO TRANSPORTE DE PASAJEROS. CRÉDITO ACS DESTINO ADQUISICIÓN DE EMPRESAS DE TRANSPORTE URBANO. SE ESTARÍA ANALIZANDO LA COMPRA DE DICHO PASIVO. SE ESTARÍA NEGOCIANDO 2,000 NOMINAHABENTES Y COMPRA DE CARTERA DE NOMINA SIN CV. // SE PRESENTA LUNES 28 FEB A CTCC UNA LINEA NUEVA POR 100MDP// SE ENCUENTRA EN CONTRTACIÓN LA NUEVA LÍNEA | S8: EMPRESARIAL | AG8: Si | AM8: NOMINA | AN8: Más de 50 mdp | AO8: De 500 a 1,000 | AP8: De 50 a 100 mdp | AQ8: SI | AR8: SI | AS8: nomina | AT8: Media | BP8: Sí | BQ8: Pipeline | BR8: Alta | BS8: =IF((IF(ISBLANK(tabla_proyecto_azul_clientes[[#This Row],[Fecha de actualización (dd/mes/año)]]),1,0) +IF(ISBLANK(tabla_proyecto_azul_clientes[[#This Row],[Zona]]),1,0) +IF(ISBLANK(tabla_proyecto_azul_clientes[[#This Row],[Dirección]]),1,0) +IF(ISBLANK(tabla_proyecto_azul_clientes[[#This Row],[Módulo]]),1,0) +IF(ISBLANK(tabla_proyecto_azul_clientes[[#This Row],[GrupoCif]]),1,0) +IF(ISBLANK(tabla_proyecto_azul_clientes[[#This Row],[Nombre Grupo]]),1,0) +IF(ISBLANK(tabla_proyecto_azul_clientes[[#This Row],[Coordinador]]),1,0) +IF(ISBLANK(tabla_proyecto_azul_clientes[[#This Row],[Ejecutivo]]),1,0) +IF(ISBLANK(tabla_proyecto_azul_clientes[[#This Row],[Ppal Banco]]),1,0))>0,1,0) -> 0
A9: 2022-05-03 | B9: Zona Norte | C9: CENTRO | D9: GUANAJUATO-QRO | E9: 6939780 | F9: BACHOCO SA DE CV | G9: CARLOS ALBERTO CAMARGO MARTINEZ | H9: ARI GUILLERMO REYES URBAN | I9: BANAMEX | J9: 0 | K9: 0 | L9: 0 | M9: 0 | N9: NINGUNO | O9: NINGUNO | P9: NINGUNO | Q9: NINGUNO | R9: GIRO AGROINDUSTRIA, EL CLIENTE CUENTA CON 4MIL EMPLEADOS EN BANAMEX, SE ESTARÍA BUSCANDO LA PORTABILIDAD DE LA COBRANZA, DEPOSITOS REFERENCIADOS Y LA NÓMINA.// 24 DE FEBRERO SE TUVO REUNIÓN CON JESSICA RODRIGUEZ ENCARGADA DE FINANCIAMIENTO Y SE QUEDO EN REALIZAR PROPUESTAS PARA LINEAS EN ARRENDAMIENTO, FACTORAJE Y ACCC/ 04 MARZO SE PREPARA PROPUESTA ECONOMICA PARA LINEA FACTOR POR 300MDP// PENDIENTE DE DEFINIR REUNIÓN CON EL CLIENTE YA CONTAMOS CON LA PROPUESTA ECONOMICA//17 MARZO SE PEDIRA INFORMACION FINANCIERA Y DE EXPEDIENTE AL CLIENTE, ESTAMOS EN ESPERA QUE NOS CONFIRMEN Y DEN COMENTARIOS SOBRE PROPUESTA//25 MARZO SEGUIMOS EN ESPERA DE COMENTARIOS DEL CLIENTE SOBRE LA PROPUESTA// 30 MARZO SE ENVIÓ NUEVAMENTE LA PROPUESTA DE FACTORAJE PARA QUE CHEQUEN LA TASA Y SE PRETENDE HACER UNA REUNION LA SIG. SEMANA// 5 ABRIL SE TUVO REUNIÓN CON EL CLIENTE PARA PLATICAR SOBRE CONDICIONES DE LINEA AUN NO SE TIENE RESPUESTA POR PARTE DEL CLIENTE NI RETRO, EL CLIENTE COMENTA QUE REGRESANDO DE SEMANA SANTA RETOMARÍAN EL EMA.// 19 ABRIL SE TUVO REUNIÓN CON EL CLIENTE, EN DICHA REUNIÓN SE LE SOLICITÓ INFORMACIÓN PARA INTEGRACIÓN DE EXPEDIENTE// 29 BRIL SE DA SEGUIMIENTO PARA ENVIO DE EXPEDIENTE DEL CLIENTE AUN NO NOS HAN PROPORCIONADO INFORMACION HOY SE REQUIERE NUEVAMENTE | S9: EMPRESARIAL | AG9: Si | AM9: NOMINA | AN9: Más de 50 mdp | AO9: De 500 a 1,000 | AP9: De 50 a 100 mdp | AQ9: SI | AR9: SI | AS9: NOMINA | AT9: Alta | AZ9: NEGOCIACION | BI9: Si | BK9: Si | BO9: Si | BP9: Sí | BQ9: Pipeline | BR9: Alta | BS9: =IF((IF(ISBLANK(tabla_proyecto_azul_clientes[[#This Row],[Fecha de actualización (dd/mes/año)]]),1,0) +IF(ISBLANK(tabla_proyecto_azul_clientes[[#This Row],[Zona]]),1,0) +IF(ISBLANK(tabla_proyecto_azul_clientes[[#This Row],[Dirección]]),1,0) +IF(ISBLANK(tabla_proyecto_azul_clientes[[#This Row],[Módulo]]),1,0) +IF(ISBLANK(tabla_proyecto_azul_clientes[[#This Row],[GrupoCif]]),1,0) +IF(ISBLANK(tabla_proyecto_azul_clientes[[#This Row],[Nombre Grupo]]),1,0) +IF(ISBLANK(tabla_proyecto_azul_clientes[[#This Row],[Coordinador]]),1,0) +IF(ISBLANK(tabla_proyecto_azul_clientes[[#This Row],[Ejecutivo]]),1,0) +IF(ISBLANK(tabla_proyecto_azul_clientes[[#This Row],[Ppal Banco]]),1,0))>0,1,0) -> 0
A10: 2022-05-03 | B10: Zona Norte | C10: CENTRO | D10: GUANAJUATO-QRO | E10: 6842977 | F10: CAJA POPULAR DOLORES HIDALGO SC DE AP DE RL DE CV | G10: CARLOS ALBERTO CAMARGO MARTINEZ | H10: ARI GUILLERMO REYES URBAN | I10: BANAMEX | J10: 0 | K10: 0 | L10: 0 | M10: 0 | N10: NINGUNO | O10: NINGUNO | P10: NINGUNO | Q10: NINGUNO | R10: GIRO CAJA POPULAR ATENDIDO EN BANORTE POR TEMAS DE TESORERIA, NO SE HA PODIDO CONCRETAR CITA CON LA EMPRESA. SEGUIMOS INSISTIENDO/ NO REQUEIREN LINEAS DE CREDITO, NO HAY APETITO POR PARTE DEL CLIENTE PARA MIGRAR SERVICIOS DE TEOSRERIA | S10: EMPRESARIAL | AG10: Si | BP10: Sí | BQ10: Descartado | BR10: Baja | BS10: =IF((IF(ISBLANK(tabla_proyecto_azul_clientes[[#This Row],[Fecha de actualización (dd/mes/año)]]),1,0) +IF(ISBLANK(tabla_proyecto_azul_clientes[[#This Row],[Zona]]),1,0) +IF(ISBLANK(tabla_proyecto_azul_clientes[[#This Row],[Dirección]]),1,0) +IF(ISBLANK(tabla_proyecto_azul_clientes[[#This Row],[Módulo]]),1,0) +IF(ISBLANK(tabla_proyecto_azul_clientes[[#This Row],[GrupoCif]]),1,0) +IF(ISBLANK(tabla_proyecto_azul_clientes[[#This Row],[Nombre Grupo]]),1,0) +IF(ISBLANK(tabla_proyecto_azul_clientes[[#This Row],[Coordinador]]),1,0) +IF(ISBLANK(tabla_proyecto_azul_clientes[[#This Row],[Ejecutivo]]),1,0) +IF(ISBLANK(tabla_proyecto_azul_clientes[[#This Row],[Ppal Banco]]),1,0))>0,1,0) -> 0
A11: 2022-05-03 | B11: Zona Norte | C11: CENTRO | D11: GUANAJUATO-QRO | E11: 27785809 | F11: CIE AUTOMOTIVE DE MEXICO SAPI DE CV | G11: CARLOS ALBERTO CAMARGO MARTINEZ | H11: NANCY LOPEZ CORTEZ | I11: BANORTE | J11: 0 | K11: 0 | L11: 0 | M11: 0 | N11: FACTORAJE | O11: 500 | P11: NINGUNO | Q11: NINGUNO | R11: GIRO AUTOMOTRIZ, CUENTA CON LINEA DE FACTOR POR 25MDD CON BANAMEX. EL CLIENTE MANEJA SALDOS POR 500MIL PESOS EN VSI CON BANAMEX. SE ESTARÁ BUSCANDO ATRAER LA LÍNEA DE FACTORAJE CLIENTES.// 28 FEB SE ESTÁ EN ETAPA DE ESTUDIO PARA INCREMENTAR LA LÍNEA EN BANORTE POR 10MDD/ 25 MARZO SE ENCUENTRA EN REVISIÓN POR PARTE DE CRÉDITO | S11: EMPRESARIAL | AM11: h2h | AQ11: SI | AR11: SI | AS11: H2H PAGOS | AT11: Baja | BP11: Sí | BQ11: Pipeline | BR11: Alta | BS11: =IF((IF(ISBLANK(tabla_proyecto_azul_clientes[[#This Row],[Fecha de actualización (dd/mes/año)]]),1,0) +IF(ISBLANK(tabla_proyecto_azul_clientes[[#This Row],[Zona]]),1,0) +IF(ISBLANK(tabla_proyecto_azul_clientes[[#This Row],[Dirección]]),1,0) +IF(ISBLANK(tabla_proyecto_azul_clientes[[#This Row],[Módulo]]),1,0) +IF(ISBLANK(tabla_proyecto_azul_clientes[[#This Row],[GrupoCif]]),1,0) +IF(ISBLANK(tabla_proyecto_azul_clientes[[#This Row],[Nombre Grupo]]),1,0) +IF(ISBLANK(tabla_proyecto_azul_clientes[[#This Row],[Coordinador]]),1,0) +IF(ISBLANK(tabla_proyecto_azul_clientes[[#This Row],[Ejecutivo]]),1,0) +IF(ISBLANK(tabla_proyecto_azul_clientes[[#This Row],[Ppal Banco]]),1,0))>0,1,0) -> 0
A12: 2022-05-03 | B12: Zona Norte | C12: CENTRO | D12: GUANAJUATO-QRO | E12: 10924662 | F12: COMINVI SA DE CV | G12: CARLOS ALBERTO CAMARGO MARTINEZ | H12: LUIS FERNANDO CORTES MUÑOZ | I12: BANORTE | J12: 0 | K12: 0 | L12: 0 | M12: 0 | N12: NINGUNO | O12: NINGUNO | P12: NINGUNO | Q12: NINGUNO | R12: GIRO MINERÍA, SOMOS SU PRINCIPAL BANCO DEL GRUPO. DE MOMENTO NO SE TIENE MAYOR APETITO POR NUEVOS RIESGOS. SE LE DA SEGUIMIENTO PARA TEMAS DE CASH | S12: EMPRESARIAL | AG12: Si | BP12: Sí | BQ12: Descartado | BR12: Baja | BS12: =IF((IF(ISBLANK(tabla_proyecto_azul_clientes[[#This Row],[Fecha de actualización (dd/mes/año)]]),1,0) +IF(ISBLANK(tabla_proyecto_azul_clientes[[#This Row],[Zona]]),1,0) +IF(ISBLANK(tabla_proyecto_azul_clientes[[#This Row],[Dirección]]),1,0) +IF(ISBLANK(tabla_proyecto_azul_clientes[[#This Row],[Módulo]]),1,0) +IF(ISBLANK(tabla_proyecto_azul_clientes[[#This Row],[GrupoCif]]),1,0) +IF(ISBLANK(tabla_proyecto_azul_clientes[[#This Row],[Nombre Grupo]]),1,0) +IF(ISBLANK(tabla_proyecto_azul_clientes[[#This Row],[Coordinador]]),1,0) +IF(ISBLANK(tabla_proyecto_azul_clientes[[#This Row],[Ejecutivo]]),1,0) +IF(ISBLANK(tabla_proyecto_azul_clientes[[#This Row],[Ppal Banco]]),1,0))>0,1,0) -> 0
A13: 2022-05-03 | B13: Zona Norte | C13: CENTRO | D13: TAMPICO | E13: 7756167 | F13: CONGELADORA VAZQUEZSA DE CV | G13: MIGUEL ANGEL GARCIA RABANAL | H13: MARIA FERNANDA ALVAREZ HERNANDEZ | I13: BANAMEX | J13: 0 | K13: 0 | L13: 0 | M13: 0 | R13: ATRACCIÓN DE CAPTACIÓN EN VSI. CLIENTE DEDICADO A LA COMERCIALIZACIÓN DE CAMARON. EN CONTRATACIÓN | S13: EMPRESARIAL | AG13: Si | AN13: De 10 a 50 mdp | AP13: Menos de 10 mdp | BP13: Sí | BQ13: Pipeline | BR13: Media | BS13: =IF((IF(ISBLANK(tabla_proyecto_azul_clientes[[#This Row],[Fecha de actualización (dd/mes/año)]]),1,0) +IF(ISBLANK(tabla_proyecto_azul_clientes[[#This Row],[Zona]]),1,0) +IF(ISBLANK(tabla_proyecto_azul_clientes[[#This Row],[Dirección]]),1,0) +IF(ISBLANK(tabla_proyecto_azul_clientes[[#This Row],[Módulo]]),1,0) +IF(ISBLANK(tabla_proyecto_azul_clientes[[#This Row],[GrupoCif]]),1,0) +IF(ISBLANK(tabla_proyecto_azul_clientes[[#This Row],[Nombre Grupo]]),1,0) +IF(ISBLANK(tabla_proyecto_azul_clientes[[#This Row],[Coordinador]]),1,0) +IF(ISBLANK(tabla_proyecto_azul_clientes[[#This Row],[Ejecutivo]]),1,0) +IF(ISBLANK(tabla_proyecto_azul_clientes[[#This Row],[Ppal Banco]]),1,0))>0,1,0) -> 0
A14: 2022-05-03 | B14: Zona Norte | C14: CENTRO | D14: GUANAJUATO-QRO | E14: 10608762 | F14: CORPORATIVO TRANSPORTA | G14: CARLOS ALBERTO CAMARGO MARTINEZ | H14: JULIO DANIEL HERNANDEZ NAVA | I14: BANAMEX | J14: 0 | K14: 0 | L14: 0 | M14: 0 | N14: NINGUNO | O14: NINGUNO | P14: COMPRA DE PASIVOS | Q14: 600 | R14: GIRO TRANSPORTE URBANO, EL CLIENTE CUENTA CON CRÉDITO A LARGO PLAZO POR 600MDP, SE BUSCARÍA LA COMPRA DE DICHO PASIVO. TODA LA TESORERÍA S ENCUENTRA EN BANAMEX. SE BUSCARÍA ATRACCIÓN PARA PAGO A PROVEEDORES, PAGO DE IMPUESTO, COBRANZAS EN BANORTE. LAS INVERSIONES LAS MANJE EN BANBAJÍO.// MIERCOLES 9 DE MARZO, EJECUTIVO SOLICITA CITA CON CLIENTE, EN ESPERA DE CONCRETARSE/ EN ESPERA DE CONFIRMACIÓN DE CITA, LUNES 28 MARZO SE INSISTE CON CLIENTE/ EN LA SEMANA DEL 4 AL 8 ABRIL SE ESTARÁ ENVIANDO CORREO A CLIENTE PARA CITA | S14: EMPRESARIAL | BP14: No | BQ14: Contacto inicial | BR14: Baja | BS14: =IF((IF(ISBLANK(tabla_proyecto_azul_clientes[[#This Row],[Fecha de actualización (dd/mes/año)]]),1,0) +IF(ISBLANK(tabla_proyecto_azul_clientes[[#This Row],[Zona]]),1,0) +IF(ISBLANK(tabla_proyecto_azul_clientes[[#This Row],[Dirección]]),1,0) +IF(ISBLANK(tabla_proyecto_azul_clientes[[#This Row],[Módulo]]),1,0) +IF(ISBLANK(tabla_proyecto_azul_clientes[[#This Row],[GrupoCif]]),1,0) +IF(ISBLANK(tabla_proyecto_azul_clientes[[#This Row],[Nombre Grupo]]),1,0) +IF(ISBLANK(tabla_proyecto_azul_clientes[[#This Row],[Coordinador]]),1,0) +IF(ISBLANK(tabla_proyecto_azul_clientes[[#This Row],[Ejecutivo]]),1,0) +IF(ISBLANK(tabla_proyecto_azul_clientes[[#This Row],[Ppal Banco]]),1,0))>0,1,0) -> 0
A15: 2022-05-03 | B15: Zona Norte | C15: CENTRO | D15: SLP | E15: 6689839 | F15: DEL VALLE CONSTRUCCIONES SA DE CV | G15: ALDO FEREGRINO GALLARDO | H15: GERARDO LOPEZOLIVERA NUÑEZ | I15: BANAMEX | J15: 10.055855 | K15: 0 | L15: 0 | M15: 10.055855 | N15: NINGUNO | O15: 11 | P15: NINGUNO | R15: FABRICACIÓN DE BLOCK DE CONCRETO. CRÉDITO A CORTO PLAZO ACCC. CREDITO SE LIQUIDARA A CORTO PLAZO. | S15: EMPRESARIAL | AG15: Si | AN15: De 10 a 50 mdp | AO15: 0 | AP15: De 10 a 50 mdp | BP15: No | BQ15: Contacto inicial | BR15: Media | BS15: =IF((IF(ISBLANK(tabla_proyecto_azul_clientes[[#This Row],[Fecha de actualización (dd/mes/año)]]),1,0) +IF(ISBLANK(tabla_proyecto_azul_clientes[[#This Row],[Zona]]),1,0) +IF(ISBLANK(tabla_proyecto_azul_clientes[[#This Row],[Dirección]]),1,0) +IF(ISBLANK(tabla_proyecto_azul_clientes[[#This Row],[Módulo]]),1,0) +IF(ISBLANK(tabla_proyecto_azul_clientes[[#This Row],[GrupoCif]]),1,0) +IF(ISBLANK(tabla_proyecto_azul_clientes[[#This Row],[Nombre Grupo]]),1,0) +IF(ISBLANK(tabla_proyecto_azul_clientes[[#This Row],[Coordinador]]),1,0) +IF(ISBLANK(tabla_proyecto_azul_clientes[[#This Row],[Ejecutivo]]),1,0) +IF(ISBLANK(tabla_proyecto_azul_clientes[[#This Row],[Ppal Banco]]),1,0))>0,1,0) -> 0
A16: 2022-05-03 | B16: Zona Norte | C16: CENTRO | D16: GUANAJUATO-QRO | E16: 9540471 | F16: DESARROLLO COMERCIAL LEON SA DE CV | G16: CARLOS ALBERTO CAMARGO MARTINEZ | H16: LUIS FERNANDO CORTES MUÑOZ | I16: BANAMEX | J16: 0 | K16: 0 | L16: 0 | M16: 0 | N16: NINGUNO | O16: NINGUNO | P16: NINGUNO | Q16: NINGUNO | R16: GIRO INMOBILIARIO. SE REALIZARÁ CONTACTO CON LA EMPRESA PARA VER POTENCIAL DE NEGOCIO/ SE TRATA DE UNA EMPRESA DE FELIPE TOMÉ QUIEN FALLECIÓ HACE 1 AÑO Y EL CONTROL DEL GRUPO ES INCIERTO | S16: EMPRESARIAL | AG16: Si | BP16: Sí | BQ16: Descartado | BR16: Baja | BS16: =IF((IF(ISBLANK(tabla_proyecto_azul_clientes[[#This Row],[Fecha de actualización (dd/mes/año)]]),1,0) +IF(ISBLANK(tabla_proyecto_azul_clientes[[#This Row],[Zona]]),1,0) +IF(ISBLANK(tabla_proyecto_azul_clientes[[#This Row],[Dirección]]),1,0) +IF(ISBLANK(tabla_proyecto_azul_clientes[[#This Row],[Módulo]]),1,0) +IF(ISBLANK(tabla_proyecto_azul_clientes[[#This Row],[GrupoCif]]),1,0) +IF(ISBLANK(tabla_proyecto_azul_clientes[[#This Row],[Nombre Grupo]]),1,0) +IF(ISBLANK(tabla_proyecto_azul_clientes[[#This Row],[Coordinador]]),1,0) +IF(ISBLANK(tabla_proyecto_azul_clientes[[#This Row],[Ejecutivo]]),1,0) +IF(ISBLANK(tabla_proyecto_azul_clientes[[#This Row],[Ppal Banco]]),1,0))>0,1,0) -> 0
A17: 2022-05-03 | B17: Zona Norte | C17: CENTRO | D17: TAMPICO | E17: 8982917 | F17: DESARROLLO Y PROYECTOS DE LAS HUASTECASSA DE CV | G17: MIGUEL ANGEL GARCIA RABANAL | H17: ARANTZA SOLBES IBARGUENGOITIA | I17: BANAMEX | J17: 0 | K17: 0 | L17: 0 | M17: 0 | O17: 30 | P17: COMPRA DE PASIVOS | Q17: 135 | R17: LA ESTRUCTURA FINANCIERA ACTUAL DEL ACREDITADO NO ES LA IDONEA | S17: EMPRESARIAL | AG17: Si | AN17: Más de 50 mdp | AO17: De 100 a 500 | AP17: De 10 a 50 mdp | BP17: Sí | BQ17: Descartado | BR17: Baja | BS17: =IF((IF(ISBLANK(tabla_proyecto_azul_clientes[[#This Row],[Fecha de actualización (dd/mes/año)]]),1,0) +IF(ISBLANK(tabla_proyecto_azul_clientes[[#This Row],[Zona]]),1,0) +IF(ISBLANK(tabla_proyecto_azul_clientes[[#This Row],[Dirección]]),1,0) +IF(ISBLANK(tabla_proyecto_azul_clientes[[#This Row],[Módulo]]),1,0) +IF(ISBLANK(tabla_proyecto_azul_clientes[[#This Row],[GrupoCif]]),1,0) +IF(ISBLANK(tabla_proyecto_azul_clientes[[#This Row],[Nombre Grupo]]),1,0) +IF(ISBLANK(tabla_proyecto_azul_clientes[[#This Row],[Coordinador]]),1,0) +IF(ISBLANK(tabla_proyecto_azul_clientes[[#This Row],[Ejecutivo]]),1,0) +IF(ISBLANK(tabla_proyecto_azul_clientes[[#This Row],[Ppal Banco]]),1,0))>0,1,0) -> 0
A18: 2022-05-03 | B18: Zona Norte | C18: CENTRO | D18: ZACATECAS-AGS | E18: 63242071 | F18: DONALDSON SA DE CV | G18: EMILIANO LARA HERNANDEZ | H18: PABLO ALEJANDRO GODINEZ MENDEZ | I18: BANAMEX | J18: 0 | K18: 0 | L18: 0 | M18: 0 | R18: EMPRESA DEDICADA A LA PRODUCCION Y COMERCIALIZACION DE FILTROS DE AIRE UTILIZADOS EN DIVERSOS SECTORES: COMERCIAL, INDUSTRIAL, AERO ESPACIAL, QUIMICO DE ENERGIA ALTERNATIVA Y FARMACEUTICO, YA SE TUVO CONTACTO CON LA EMPRESA, SE LE HIZO UNA PROPUESTA DE PRODUCTOS DE CASH. EN PROCESO EL TRASPASO DEL CLIENTE DE MEXICO A LA PLAZA DE AGUASCALIENTES. | S18: TRANSACCIONAL | AG18: Si | AM18: NOMINA | AO18: De 500 a 1‚000 | AP18: Menos de 10 mdp | AQ18: SI | AR18: SI | AS18: NOMINA | AT18: Media | AZ18: EN NEGOCIAICON | BP18: Sí | BQ18: Negociación | BR18: Alta | BS18: =IF((IF(ISBLANK(tabla_proyecto_azul_clientes[[#This Row],[Fecha de actualización (dd/mes/año)]]),1,0) +IF(ISBLANK(tabla_proyecto_azul_clientes[[#This Row],[Zona]]),1,0) +IF(ISBLANK(tabla_proyecto_azul_clientes[[#This Row],[Dirección]]),1,0) +IF(ISBLANK(tabla_proyecto_azul_clientes[[#This Row],[Módulo]]),1,0) +IF(ISBLANK(tabla_proyecto_azul_clientes[[#This Row],[GrupoCif]]),1,0) +IF(ISBLANK(tabla_proyecto_azul_clientes[[#This Row],[Nombre Grupo]]),1,0) +IF(ISBLANK(tabla_proyecto_azul_clientes[[#This Row],[Coordinador]]),1,0) +IF(ISBLANK(tabla_proyecto_azul_clientes[[#This Row],[Ejecutivo]]),1,0) +IF(ISBLANK(tabla_proyecto_azul_clientes[[#This Row],[Ppal Banco]]),1,0))>0,1,0) -> 0
A19: 2022-05-03 | B19: Zona Norte | C19: CENTRO | D19: ZACATECAS-AGS | E19: 6630253 | F19: EL FRESNO CHILES SECOS SA DE CV | G19: EMILIANO LARA HERNANDEZ | H19: YESSICA ARACELI SANCHEZ CARDENAS | I19: BANORTE | J19: 0 | K19: 0 | L19: 0 | M19: 0 | R19: DE ACUERDO A LA ULTIMA INFORMACION FINANCIERA, CON BANAMEX SOLO TRAE MIL PESOS POR LO QUE CONSIDERAMOS DAR DE BAJA DEL SEGUIMIENTO. | S19: EMPRESARIAL | AG19: Si | BP19: Sí | BQ19: Descartado | BR19: Baja | BS19: =IF((IF(ISBLANK(tabla_proyecto_azul_clientes[[#This Row],[Fecha de actualización (dd/mes/año)]]),1,0) +IF(ISBLANK(tabla_proyecto_azul_clientes[[#This Row],[Zona]]),1,0) +IF(ISBLANK(tabla_proyecto_azul_clientes[[#This Row],[Dirección]]),1,0) +IF(ISBLANK(tabla_proyecto_azul_clientes[[#This Row],[Módulo]]),1,0) +IF(ISBLANK(tabla_proyecto_azul_clientes[[#This Row],[GrupoCif]]),1,0) +IF(ISBLANK(tabla_proyecto_azul_clientes[[#This Row],[Nombre Grupo]]),1,0) +IF(ISBLANK(tabla_proyecto_azul_clientes[[#This Row],[Coordinador]]),1,0) +IF(ISBLANK(tabla_proyecto_azul_clientes[[#This Row],[Ejecutivo]]),1,0) +IF(ISBLANK(tabla_proyecto_azul_clientes[[#This Row],[Ppal Banco]]),1,0))>0,1,0) -> 0
A20: 2022-05-03 | B20: Zona Norte | C20: CENTRO | D20: TAMPICO | E20: 8361099 | F20: ELÉCTRICO | G20: MIGUEL ANGEL GARCIA RABANAL | H20: EDUARDO LOPEZ DE LEÓN | I20: BANAMEX | J20: 0 | K20: 0 | L20: 0 | M20: 0 | R20: BUSCANDO CITA CON EL CLIENTE, SE BUSCARÁ AL CLIENTE EN SEMANA DEL 07 DE MARZO | S20: EMPRESARIAL | BP20: No | BQ20: Contacto inicial | BR20: Media | BS20: =IF((IF(ISBLANK(tabla_proyecto_azul_clientes[[#This Row],[Fecha de actualización (dd/mes/año)]]),1,0) +IF(ISBLANK(tabla_proyecto_azul_clientes[[#This Row],[Zona]]),1,0) +IF(ISBLANK(tabla_proyecto_azul_clientes[[#This Row],[Dirección]]),1,0) +IF(ISBLANK(tabla_proyecto_azul_clientes[[#This Row],[Módulo]]),1,0) +IF(ISBLANK(tabla_proyecto_azul_clientes[[#This Row],[GrupoCif]]),1,0) +IF(ISBLANK(tabla_proyecto_azul_clientes[[#This Row],[Nombre Grupo]]),1,0) +IF(ISBLANK(tabla_proyecto_azul_clientes[[#This Row],[Coordinador]]),1,0) +IF(ISBLANK(tabla_proyecto_azul_clientes[[#This Row],[Ejecutivo]]),1,0) +IF(ISBLANK(tabla_proyecto_azul_clientes[[#This Row],[Ppal Banco]]),1,0))>0,1,0) -> 0
A21: 2022-05-03 | B21: Zona Norte | C21: CENTRO | D21: TAMPICO | E21: 8331567 | F21: EMPACADORA NOR VER SA DE CV | G21: MIGUEL ANGEL GARCIA RABANAL | H21: MARIA FERNANDA ALVAREZ HERNANDEZ | I21: BANAMEX | J21: 0 | K21: 0 | L21: 0 | M21: 0 | N21: ACCC | O21: 19 | P21: ACS | Q21: 30 | R21: EN INTEGRACIÓN DE EXPEDIENTE PARA ACCC $60 ALMACENADORA $60 | S21: EMPRESARIAL | BP21: Sí | BQ21: Pipeline | BR21: Media | BS21: =IF((IF(ISBLANK(tabla_proyecto_azul_clientes[[#This Row],[Fecha de actualización (dd/mes/año)]]),1,0) +IF(ISBLANK(tabla_proyecto_azul_clientes[[#This Row],[Zona]]),1,0) +IF(ISBLANK(tabla_proyecto_azul_clientes[[#This Row],[Dirección]]),1,0) +IF(ISBLANK(tabla_proyecto_azul_clientes[[#This Row],[Módulo]]),1,0) +IF(ISBLANK(tabla_proyecto_azul_clientes[[#This Row],[GrupoCif]]),1,0) +IF(ISBLANK(tabla_proyecto_azul_clientes[[#This Row],[Nombre Grupo]]),1,0) +IF(ISBLANK(tabla_proyecto_azul_clientes[[#This Row],[Coordinador]]),1,0) +IF(ISBLANK(tabla_proyecto_azul_clientes[[#This Row],[Ejecutivo]]),1,0) +IF(ISBLANK(tabla_proyecto_azul_clientes[[#This Row],[Ppal Banco]]),1,0))>0,1,0) -> 0
A22: 2022-05-03 | B22: Zona Norte | C22: CENTRO | D22: TAMPICO | E22: 15256245 | F22: ENER MANTENIMIENTO INTEGRAL SA DE CV | G22: MIGUEL ANGEL GARCIA RABANAL | H22: EDUARDO LOPEZ DE LEON | I22: BANAMEX | J22: 0 | K22: 0 | L22: 0 | M22: 0 | N22: ACCC | O22: 159 | R22: CRÉDITO CON PRENDA DE ACCIONES/PAGARES DE INVERSIÓN A PLAZOS DE 1 DÍA CON BANAMEX. CLIENTE DEDICADO AL ARRENDAMIENTO DE EQUIPO DE TRANSPORTE, PRINCIPALES CLIENTES: DHL, ESTAFETA, LIVERPOOL. EN ESPERA DE INFORMACIÓN POR PARTE DEL CLIENTE | S22: EMPRESARIAL | AG22: Si | BP22: Sí | BQ22: Pipeline | BR22: Media | BS22: =IF((IF(ISBLANK(tabla_proyecto_azul_clientes[[#This Row],[Fecha de actualización (dd/mes/año)]]),1,0) +IF(ISBLANK(tabla_proyecto_azul_clientes[[#This Row],[Zona]]),1,0) +IF(ISBLANK(tabla_proyecto_azul_clientes[[#This Row],[Dirección]]),1,0) +IF(ISBLANK(tabla_proyecto_azul_clientes[[#This Row],[Módulo]]),1,0) +IF(ISBLANK(tabla_proyecto_azul_clientes[[#This Row],[GrupoCif]]),1,0) +IF(ISBLANK(tabla_proyecto_azul_clientes[[#This Row],[Nombre Grupo]]),1,0) +IF(ISBLANK(tabla_proyecto_azul_clientes[[#This Row],[Coordinador]]),1,0) +IF(ISBLANK(tabla_proyecto_azul_clientes[[#This Row],[Ejecutivo]]),1,0) +IF(ISBLANK(tabla_proyecto_azul_clientes[[#This Row],[Ppal Banco]]),1,0))>0,1,0) -> 0
A23: 2022-05-03 | B23: Zona Norte | C23: CENTRO | D23: ZACATECAS-AGS | E23: 10904722 | F23: FERTILIZANTES GUAYABEROS Y CAÑEROS SA DE CV | G23: EMILIANO LARA HERNANDEZ | H23: SUSANA RAQUEL BECERRA GONZALEZ | I23: BANAMEX | J23: 0 | K23: 0 | L23: 0 | M23: 0 | N23: ACCC | O23: 20 | R23: CLIENTE EN BANORTE EN EL AREA PYME, CON LINEA DE 11 MDP, MANTIENE LINEA CON BANAMEX POR 20 MDP, YA SE TUVO PRIMER CONTACTO CON LA EMPRESA DADO QUE EN CONJUNTO SUS LINEAS SERIAN POR 30 MDP. SE TUVO CONTACTO CON EL CLIENTE Y NOS INFORMA QUE PERMANECERA CON BANAMEX, SE QUEDARA CON ELLOS SIEMPRE Y CUANDO NO LE CAMBIEN LAS CONDICIONES CREDITICIAS Y HASTA LA FECHA NO AH TENIDO NOTICIAS DE ELLOS. | S23: EMPRESARIAL | BP23: Sí | BQ23: Descartado | BR23: Baja | BS23: =IF((IF(ISBLANK(tabla_proyecto_azul_clientes[[#This Row],[Fecha de actualización (dd/mes/año)]]),1,0) +IF(ISBLANK(tabla_proyecto_azul_clientes[[#This Row],[Zona]]),1,0) +IF(ISBLANK(tabla_proyecto_azul_clientes[[#This Row],[Dirección]]),1,0) +IF(ISBLANK(tabla_proyecto_azul_clientes[[#This Row],[Módulo]]),1,0) +IF(ISBLANK(tabla_proyecto_azul_clientes[[#This Row],[GrupoCif]]),1,0) +IF(ISBLANK(tabla_proyecto_azul_clientes[[#This Row],[Nombre Grupo]]),1,0) +IF(ISBLANK(tabla_proyecto_azul_clientes[[#This Row],[Coordinador]]),1,0) +IF(ISBLANK(tabla_proyecto_azul_clientes[[#This Row],[Ejecutivo]]),1,0) +IF(ISBLANK(tabla_proyecto_azul_clientes[[#This Row],[Ppal Banco]]),1,0))>0,1,0) -> 0
A24: 2022-05-03 | B24: Zona Norte | C24: CENTRO | D24: ZACATECAS-AGS | E24: 3958225 | F24: GASISLO 2000 SA DE CV | G24: EMILIANO LARA HERNANDEZ | H24: YESSICA ARACELI SANCHEZ CARDENAS | I24: BBVA | J24: 0 | K24: 0 | L24: 0 | M24: 0 | R24: CAPTACION (SECTOR VIÑEDOS Y AGRICULTURA) NOMINA PARA ADMINISTRATIVOS DEL GRUPO, YA SE LE HIZO LA PROPUESTA PARA EL CAMBIO DE NOMINA SE ESTAN NEGOCIANDO 600 NOMINAS Y SE PIDE PONER UN CAJERO, DADO QUE ES UNA ZONA ALEJADA SE ESTA ANALIZANDO LA VIABILIDAD DE PODERLO PONER. EN ESPERA DE QUE EL CLIENTE CONFIRME LA FECHA, PARA VISITAR EL LUGAR EN QUE QUIEREN SE INSTALE EL CAJERO. | S24: TRANSACCIONAL | AG24: Si | AM24: NOMINA | AO24: De 100 a 500 | AP24: De 10 a 50 mdp | AQ24: SI | AR24: SI | AS24: NOMINA | AT24: Alta | AZ24: EN NEGOCIAICON | BP24: Sí | BQ24: Negociación | BR24: Alta | BS24: =IF((IF(ISBLANK(tabla_proyecto_azul_clientes[[#This Row],[Fecha de actualización (dd/mes/año)]]),1,0) +IF(ISBLANK(tabla_proyecto_azul_clientes[[#This Row],[Zona]]),1,0) +IF(ISBLANK(tabla_proyecto_azul_clientes[[#This Row],[Dirección]]),1,0) +IF(ISBLANK(tabla_proyecto_azul_clientes[[#This Row],[Módulo]]),1,0) +IF(ISBLANK(tabla_proyecto_azul_clientes[[#This Row],[GrupoCif]]),1,0) +IF(ISBLANK(tabla_proyecto_azul_clientes[[#This Row],[Nombre Grupo]]),1,0) +IF(ISBLANK(tabla_proyecto_azul_clientes[[#This Row],[Coordinador]]),1,0) +IF(ISBLANK(tabla_proyecto_azul_clientes[[#This Row],[Ejecutivo]]),1,0) +IF(ISBLANK(tabla_proyecto_azul_clientes[[#This Row],[Ppal Banco]]),1,0))>0,1,0) -> 0
A25: 2022-05-03 | B25: Zona Norte | C25: CENTRO | D25: GUANAJUATO-QRO | E25: 8726432 | F25: GRAN JARDIN SA DE CV | G25: CARLOS ALBERTO CAMARGO MARTINEZ | H25: LUIS FERNANDO CORTES MUÑOZ | I25: BANAMEX | J25: 0 | K25: 0 | L25: 0 | M25: 0 | N25: NINGUNO | O25: NINGUNO | P25: NINGUNO | Q25: NINGUNO | R25: GIRO INMOBILIARIO. SE REALIZARÁ CONTACTO CON LA EMPRESA PARA VER POTENCIAL DE NEGOCIO | S25: EMPRESARIAL | AG25: Si | AM25: cobranza | AQ25: SI | AR25: SI | AS25: cobranza | AT25: Alta | BP25: No | BQ25: Contacto inicial | BR25: Baja | BS25: =IF((IF(ISBLANK(tabla_proyecto_azul_clientes[[#This Row],[Fecha de actualización (dd/mes/año)]]),1,0) +IF(ISBLANK(tabla_proyecto_azul_clientes[[#This Row],[Zona]]),1,0) +IF(ISBLANK(tabla_proyecto_azul_clientes[[#This Row],[Dirección]]),1,0) +IF(ISBLANK(tabla_proyecto_azul_clientes[[#This Row],[Módulo]]),1,0) +IF(ISBLANK(tabla_proyecto_azul_clientes[[#This Row],[GrupoCif]]),1,0) +IF(ISBLANK(tabla_proyecto_azul_clientes[[#This Row],[Nombre Grupo]]),1,0) +IF(ISBLANK(tabla_proyecto_azul_clientes[[#This Row],[Coordinador]]),1,0) +IF(ISBLANK(tabla_proyecto_azul_clientes[[#This Row],[Ejecutivo]]),1,0) +IF(ISBLANK(tabla_proyecto_azul_clientes[[#This Row],[Ppal Banco]]),1,0))>0,1,0) -> 0
A26: 2022-05-03 | B26: Zona Norte | C26: CENTRO | D26: SLP | E26: 8048584 | F26: GRUPO CONSTRUCTOR CUMBRES SA DE CV | G26: ALDO FEREGRINO GALLARDO | H26: LUIS FERNANDO LOREDO CHAVEZ | I26: BANAMEX | J26: 0 | K26: 0 | L26: 0 | M26: 0 | R26: CONSTRUCCIÓN Y COMERCIALIZACIÓN DE VIVIENDA TIPO MEDIA RESIDENCIAL. EN ESPERA DE CITA | S26: EMPRESARIAL | AG26: Si | BP26: Sí | BQ26: Contacto inicial | BR26: Alta | BS26: =IF((IF(ISBLANK(tabla_proyecto_azul_clientes[[#This Row],[Fecha de actualización (dd/mes/año)]]),1,0) +IF(ISBLANK(tabla_proyecto_azul_clientes[[#This Row],[Zona]]),1,0) +IF(ISBLANK(tabla_proyecto_azul_clientes[[#This Row],[Dirección]]),1,0) +IF(ISBLANK(tabla_proyecto_azul_clientes[[#This Row],[Módulo]]),1,0) +IF(ISBLANK(tabla_proyecto_azul_clientes[[#This Row],[GrupoCif]]),1,0) +IF(ISBLANK(tabla_proyecto_azul_clientes[[#This Row],[Nombre Grupo]]),1,0) +IF(ISBLANK(tabla_proyecto_azul_clientes[[#This Row],[Coordinador]]),1,0) +IF(ISBLANK(tabla_proyecto_azul_clientes[[#This Row],[Ejecutivo]]),1,0) +IF(ISBLANK(tabla_proyecto_azul_clientes[[#This Row],[Ppal Banco]]),1,0))>0,1,0) -> 0
A27: 2022-05-03 | B27: Zona Norte | C27: CENTRO | D27: ZACATECAS-AGS | E27: 30906833 | F27: GRUPO CONSTRUCTOR PEASA SA DE CV | G27: EMILIANO LARA HERNANDEZ | H27: JAQUELINE SOTO ESPARZA | I27: BBVA | J27: 10.025157 | K27: 0 | L27: 0 | M27: 10.025157 | R27: SE TUVO REUNION CON EL CLIENTE Y NOS CONFIRMA QUE YA NO TRABAJA CON BANAMEX, SE LE ESTA HACIENDO PROPUESTA PARA SU PASIVO QUE TIENE CON BBVA. | S27: EMPRESARIAL | AG27: Si | AN27: Más de 50 mdp | AO27: De 100 a 500 | AP27: Menos de 10 mdp | BP27: Sí | BQ27: Descartado | BR27: Baja | BS27: =IF((IF(ISBLANK(tabla_proyecto_azul_clientes[[#This Row],[Fecha de actualización (dd/mes/año)]]),1,0) +IF(ISBLANK(tabla_proyecto_azul_clientes[[#This Row],[Zona]]),1,0) +IF(ISBLANK(tabla_proyecto_azul_clientes[[#This Row],[Dirección]]),1,0) +IF(ISBLANK(tabla_proyecto_azul_clientes[[#This Row],[Módulo]]),1,0) +IF(ISBLANK(tabla_proyecto_azul_clientes[[#This Row],[GrupoCif]]),1,0) +IF(ISBLANK(tabla_proyecto_azul_clientes[[#This Row],[Nombre Grupo]]),1,0) +IF(ISBLANK(tabla_proyecto_azul_clientes[[#This Row],[Coordinador]]),1,0) +IF(ISBLANK(tabla_proyecto_azul_clientes[[#This Row],[Ejecutivo]]),1,0) +IF(ISBLANK(tabla_proyecto_azul_clientes[[#This Row],[Ppal Banco]]),1,0))>0,1,0) -> 0
A28: 2022-05-03 | B28: Zona Norte | C28: CENTRO | D28: TAMPICO | E28: 6800066 | F28: GRUPO TAMPICO SAPI DE CV | G28: MIGUEL ANGEL GARCIA RABANAL | H28: ARANTZA SOLBES IBARGUENGOITIA | I28: BANAMEX | J28: 0 | K28: 0 | L28: 0 | M28: 0 | R28: LA ESTRUCTURA FINANCIERA ACTUAL DEL ACREDITADO NO ES LA IDONEA | S28: EMPRESARIAL | AG28: Si | BP28: Sí | BQ28: Descartado | BR28: Baja | BS28: =IF((IF(ISBLANK(tabla_proyecto_azul_clientes[[#This Row],[Fecha de actualización (dd/mes/año)]]),1,0) +IF(ISBLANK(tabla_proyecto_azul_clientes[[#This Row],[Zona]]),1,0) +IF(ISBLANK(tabla_proyecto_azul_clientes[[#This Row],[Dirección]]),1,0) +IF(ISBLANK(tabla_proyecto_azul_clientes[[#This Row],[Módulo]]),1,0) +IF(ISBLANK(tabla_proyecto_azul_clientes[[#This Row],[GrupoCif]]),1,0) +IF(ISBLANK(tabla_proyecto_azul_clientes[[#This Row],[Nombre Grupo]]),1,0) +IF(ISBLANK(tabla_proyecto_azul_clientes[[#This Row],[Coordinador]]),1,0) +IF(ISBLANK(tabla_proyecto_azul_clientes[[#This Row],[Ejecutivo]]),1,0) +IF(ISBLANK(tabla_proyecto_azul_clientes[[#This Row],[Ppal Banco]]),1,0))>0,1,0) -> 0
A29: 2022-05-03 | B29: Zona Norte | C29: CENTRO | D29: SLP | E29: 7138082 | F29: INOXIDABLES DE SAN LUIS SA DE CV | G29: ALDO FEREGRINO GALLARDO | H29: LUIS FERNANDO LOREDO CHAVEZ | I29: BANAMEX | J29: 0 | K29: 0 | L29: 0 | M29: 0 | R29: COMERCIALIZADORA DE ACERO INOXIDABLE, MANUFACTURA PIEZAS PARA DIFERENTES SECTORES INDUSTRIALES. DESDE 2019 NO CUENTA CON CREDITOS, SOLO MANEJA CUENTAS CON UN SALDO DE CAPTACION 0.4MDP, Y NO SON PRIORITARIOS. | S29: EMPRESARIAL | AA29: 40 | AB29: LÍNEA DE ARRENDAMIENTO CON BANAMEX DE 40 MDP | BP29: No | BQ29: Contacto inicial | BR29: Baja | BS29: =IF((IF(ISBLANK(tabla_proyecto_azul_clientes[[#This Row],[Fecha de actualización (dd/mes/año)]]),1,0) +IF(ISBLANK(tabla_proyecto_azul_clientes[[#This Row],[Zona]]),1,0) +IF(ISBLANK(tabla_proyecto_azul_clientes[[#This Row],[Dirección]]),1,0) +IF(ISBLANK(tabla_proyecto_azul_clientes[[#This Row],[Módulo]]),1,0) +IF(ISBLANK(tabla_proyecto_azul_clientes[[#This Row],[GrupoCif]]),1,0) +IF(ISBLANK(tabla_proyecto_azul_clientes[[#This Row],[Nombre Grupo]]),1,0) +IF(ISBLANK(tabla_proyecto_azul_clientes[[#This Row],[Coordinador]]),1,0) +IF(ISBLANK(tabla_proyecto_azul_clientes[[#This Row],[Ejecutivo]]),1,0) +IF(ISBLANK(tabla_proyecto_azul_clientes[[#This Row],[Ppal Banco]]),1,0))>0,1,0) -> 0
A30: 2022-05-03 | B30: Zona Norte | C30: CENTRO | D30: TAMPICO | E30: 8629263 | F30: JORGE AURELIO HEREDIA NIÃ‘O | G30: MIGUEL ANGEL GARCIA RABANAL | H30: EDUARDO LOPEZ DE LEON | I30: BANAMEX | J30: 0 | K30: 0 | L30: 0 | M30: 0 | R30: CLIENTE HOTELERO QUE EN 2019 OTORGÓ UN INMBUEBLE EN DACIÓN EN PAGO, SE TRASPASARÁ A COMERCIAL POR NO CONTAR CON PERFIL EMPRESARIAL | S30: TRANSACCIONAL | AG30: Si | BP30: Sí | BQ30: Descartado | BR30: Baja | BS30: =IF((IF(ISBLANK(tabla_proyecto_azul_clientes[[#This Row],[Fecha de actualización (dd/mes/año)]]),1,0) +IF(ISBLANK(tabla_proyecto_azul_clientes[[#This Row],[Zona]]),1,0) +IF(ISBLANK(tabla_proyecto_azul_clientes[[#This Row],[Dirección]]),1,0) +IF(ISBLANK(tabla_proyecto_azul_clientes[[#This Row],[Módulo]]),1,0) +IF(ISBLANK(tabla_proyecto_azul_clientes[[#This Row],[GrupoCif]]),1,0) +IF(ISBLANK(tabla_proyecto_azul_clientes[[#This Row],[Nombre Grupo]]),1,0) +IF(ISBLANK(tabla_proyecto_azul_clientes[[#This Row],[Coordinador]]),1,0) +IF(ISBLANK(tabla_proyecto_azul_clientes[[#This Row],[Ejecutivo]]),1,0) +IF(ISBLANK(tabla_proyecto_azul_clientes[[#This Row],[Ppal Banco]]),1,0))>0,1,0) -> 0
A31: 2022-05-03 | B31: Zona Norte | C31: CENTRO | D31: ZACATECAS-AGS | E31: 14591169 | F31: JORGE QUESADA MORAN | G31: EMILIANO LARA HERNANDEZ | H31: PABLO ALEJANDRO GODINEZ MENDEZ | I31: HSBC | J31: 0 | K31: 0 | L31: 0 | M31: 0 | N31: ACCC | O31: 1396 | R31: SE TUVO REUNION CON LA EMPRESA Y NOS INDICO QUE YA NO TRABAJA CON BANAMEX, EN CREDITO LO MANTIENEN CON HSBC. | S31: EMPRESARIAL | AA31: 30 | AB31: Préstamos quirografarios | AG31: Si | BP31: Sí | BQ31: Descartado | BR31: Baja | BS31: =IF((IF(ISBLANK(tabla_proyecto_azul_clientes[[#This Row],[Fecha de actualización (dd/mes/año)]]),1,0) +IF(ISBLANK(tabla_proyecto_azul_clientes[[#This Row],[Zona]]),1,0) +IF(ISBLANK(tabla_proyecto_azul_clientes[[#This Row],[Dirección]]),1,0) +IF(ISBLANK(tabla_proyecto_azul_clientes[[#This Row],[Módulo]]),1,0) +IF(ISBLANK(tabla_proyecto_azul_clientes[[#This Row],[GrupoCif]]),1,0) +IF(ISBLANK(tabla_proyecto_azul_clientes[[#This Row],[Nombre Grupo]]),1,0) +IF(ISBLANK(tabla_proyecto_azul_clientes[[#This Row],[Coordinador]]),1,0) +IF(ISBLANK(tabla_proyecto_azul_clientes[[#This Row],[Ejecutivo]]),1,0) +IF(ISBLANK(tabla_proyecto_azul_clientes[[#This Row],[Ppal Banco]]),1,0))>0,1,0) -> 0
A32: 2022-05-03 | B32: Zona Norte | C32: CENTRO | D32: GUANAJUATO-QRO | E32: 19712159 | F32: JOSE MANUEL BELTRAN PINEDA | G32: CARLOS ALBERTO CAMARGO MARTINEZ | H32: ARI GUILLERMO REYES URBAN | I32: BANAMEX | J32: 0 | K32: 0 | L32: 0 | M32: 0 | N32: NINGUNO | O32: NINGUNO | P32: NINGUNO | Q32: NINGUNO | R32: CLIENTE RA, FUE TRASPASADO A COMERCIAL. | S32: EMPRESARIAL | AG32: Si | BP32: Sí | BQ32: Descartado | BR32: Baja | BS32: =IF((IF(ISBLANK(tabla_proyecto_azul_clientes[[#This Row],[Fecha de actualización (dd/mes/año)]]),1,0) +IF(ISBLANK(tabla_proyecto_azul_clientes[[#This Row],[Zona]]),1,0) +IF(ISBLANK(tabla_proyecto_azul_clientes[[#This Row],[Dirección]]),1,0) +IF(ISBLANK(tabla_proyecto_azul_clientes[[#This Row],[Módulo]]),1,0) +IF(ISBLANK(tabla_proyecto_azul_clientes[[#This Row],[GrupoCif]]),1,0) +IF(ISBLANK(tabla_proyecto_azul_clientes[[#This Row],[Nombre Grupo]]),1,0) +IF(ISBLANK(tabla_proyecto_azul_clientes[[#This Row],[Coordinador]]),1,0) +IF(ISBLANK(tabla_proyecto_azul_clientes[[#This Row],[Ejecutivo]]),1,0) +IF(ISBLANK(tabla_proyecto_azul_clientes[[#This Row],[Ppal Banco]]),1,0))>0,1,0) -> 0
A33: 2022-05-03 | B33: Zona Norte | C33: CENTRO | D33: ZACATECAS-AGS | E33: 27817195 | F33: LA FRESNILLENSE SCL | G33: EMILIANO LARA HERNANDEZ | H33: SUSANA RAQUEL BECERRA GONZALEZ | I33: BANAMEX | J33: 0 | K33: 0 | L33: 0 | M33: 0 | R33: CLIENTE EN RA | S33: EMPRESARIAL | AG33: Si | BP33: Sí | BQ33: Descartado | BR33: Baja | BS33: =IF((IF(ISBLANK(tabla_proyecto_azul_clientes[[#This Row],[Fecha de actualización (dd/mes/año)]]),1,0) +IF(ISBLANK(tabla_proyecto_azul_clientes[[#This Row],[Zona]]),1,0) +IF(ISBLANK(tabla_proyecto_azul_clientes[[#This Row],[Dirección]]),1,0) +IF(ISBLANK(tabla_proyecto_azul_clientes[[#This Row],[Módulo]]),1,0) +IF(ISBLANK(tabla_proyecto_azul_clientes[[#This Row],[GrupoCif]]),1,0) +IF(ISBLANK(tabla_proyecto_azul_clientes[[#This Row],[Nombre Grupo]]),1,0) +IF(ISBLANK(tabla_proyecto_azul_clientes[[#This Row],[Coordinador]]),1,0) +IF(ISBLANK(tabla_proyecto_azul_clientes[[#This Row],[Ejecutivo]]),1,0) +IF(ISBLANK(tabla_proyecto_azul_clientes[[#This Row],[Ppal Banco]]),1,0))>0,1,0) -> 0
A34: 2022-05-03 | B34: Zona Norte | C34: CENTRO | D34: ZACATECAS-AGS | E34: 6964099 | F34: LA GLORIA DE SAN FELIPE S P R DE R L | G34: EMILIANO LARA HERNANDEZ | H34: YESSICA ARACELI SANCHEZ CARDENAS | I34: BANORTE | J34: 0 | K34: 0 | L34: 0 | M34: 0 | R34: DE ACUERDO A SU ULTIMA INFORMACION FINANCIERA, NO TIENE SALDO EN CAJA NI PASIVOS CON BANAMEX. | S34: EMPRESARIAL | AE34: Ganado | AF34: Agropecuario | AG34: Si | AK34: El Ejecutivo de BE esta gestionando una reunión para presentarles los productos. | BP34: Sí | BQ34: Descartado | BR34: Baja | BS34: =IF((IF(ISBLANK(tabla_proyecto_azul_clientes[[#This Row],[Fecha de actualización (dd/mes/año)]]),1,0) +IF(ISBLANK(tabla_proyecto_azul_clientes[[#This Row],[Zona]]),1,0) +IF(ISBLANK(tabla_proyecto_azul_clientes[[#This Row],[Dirección]]),1,0) +IF(ISBLANK(tabla_proyecto_azul_clientes[[#This Row],[Módulo]]),1,0) +IF(ISBLANK(tabla_proyecto_azul_clientes[[#This Row],[GrupoCif]]),1,0) +IF(ISBLANK(tabla_proyecto_azul_clientes[[#This Row],[Nombre Grupo]]),1,0) +IF(ISBLANK(tabla_proyecto_azul_clientes[[#This Row],[Coordinador]]),1,0) +IF(ISBLANK(tabla_proyecto_azul_clientes[[#This Row],[Ejecutivo]]),1,0) +IF(ISBLANK(tabla_proyecto_azul_clientes[[#This Row],[Ppal Banco]]),1,0))>0,1,0) -> 0
A35: 2022-05-03 | B35: Zona Norte | C35: CENTRO | D35: GUANAJUATO-QRO | E35: 56612181 | F35: LAS MEJORES ESTACIONES | G35: CARLOS ALBERTO CAMARGO MARTINEZ | H35: NANCY LOPEZ CORTEZ | I35: BANAMEX | J35: 0 | K35: 0 | L35: 0 | M35: 0 | S35: TRANSACCIONAL | AM35: TPV NOMINA | AN35: Más de 50 mdp | AO35: De 500 a 1‚000 | AP35: De 10 a 50 mdp | AQ35: SI | AR35: SI | AS35: TPV NOMINA | AT35: Alta | BP35: Sí | BQ35: Negociación | BR35: Alta | BS35: =IF((IF(ISBLANK(tabla_proyecto_azul_clientes[[#This Row],[Fecha de actualización (dd/mes/año)]]),1,0) +IF(ISBLANK(tabla_proyecto_azul_clientes[[#This Row],[Zona]]),1,0) +IF(ISBLANK(tabla_proyecto_azul_clientes[[#This Row],[Dirección]]),1,0) +IF(ISBLANK(tabla_proyecto_azul_clientes[[#This Row],[Módulo]]),1,0) +IF(ISBLANK(tabla_proyecto_azul_clientes[[#This Row],[GrupoCif]]),1,0) +IF(ISBLANK(tabla_proyecto_azul_clientes[[#This Row],[Nombre Grupo]]),1,0) +IF(ISBLANK(tabla_proyecto_azul_clientes[[#This Row],[Coordinador]]),1,0) +IF(ISBLANK(tabla_proyecto_azul_clientes[[#This Row],[Ejecutivo]]),1,0) +IF(ISBLANK(tabla_proyecto_azul_clientes[[#This Row],[Ppal Banco]]),1,0))>0,1,0) -> 0
A36: 2022-05-03 | B36: Zona Norte | C36: CENTRO | D36: TAMPICO | E36: 6664661 | F36: LLANTERA TAMPICO SALES SA DE CV | G36: MIGUEL ANGEL GARCIA RABANAL | H36: ARANTZA SOLBES IBARGUENGOITIA | I36: BANAMEX | J36: 2.265026 | K36: 0 | L36: 0 | M36: 2.265026 | R36: CLIENTE EN RA | S36: EMPRESARIAL | AG36: Si | BP36: Sí | BQ36: Descartado | BR36: Baja | BS36: =IF((IF(ISBLANK(tabla_proyecto_azul_clientes[[#This Row],[Fecha de actualización (dd/mes/año)]]),1,0) +IF(ISBLANK(tabla_proyecto_azul_clientes[[#This Row],[Zona]]),1,0) +IF(ISBLANK(tabla_proyecto_azul_clientes[[#This Row],[Dirección]]),1,0) +IF(ISBLANK(tabla_proyecto_azul_clientes[[#This Row],[Módulo]]),1,0) +IF(ISBLANK(tabla_proyecto_azul_clientes[[#This Row],[GrupoCif]]),1,0) +IF(ISBLANK(tabla_proyecto_azul_clientes[[#This Row],[Nombre Grupo]]),1,0) +IF(ISBLANK(tabla_proyecto_azul_clientes[[#This Row],[Coordinador]]),1,0) +IF(ISBLANK(tabla_proyecto_azul_clientes[[#This Row],[Ejecutivo]]),1,0) +IF(ISBLANK(tabla_proyecto_azul_clientes[[#This Row],[Ppal Banco]]),1,0))>0,1,0) -> 0
A37: 2022-05-03 | B37: Zona Norte | C37: CENTRO | D37: GUANAJUATO-QRO | E37: 64941917 | F37: LOS FERTRES AGROINDUSTRIA SPR DE RL DE CV | G37: CARLOS ALBERTO CAMARGO MARTINEZ | H37: NANCY LOPEZ CORTEZ | I37: BANORTE | J37: 135.543813 | K37: 0 | L37: 0 | M37: 135.543813 | N37: PRENDARIO | O37: 165 | P37: NINGUNO | Q37: NINGUNO | R37: GIRO CRÍA Y ENGORDA DE GANADO. EL CLIENTE CUENTA CON LINEA ACCGP DE 150MDP. SE ESTARÍA BUSCANDO LA COMPRA DE PASIVOS. ADEMÁS LA PORTABILIDAD DE PAGO A PROVEEDORES Y VSI. // CLIENTE BANORTE DESDE HACE 1 AÑO. CTCC NO TIENE APETITO DE NUEVAS LÍNEAS CON EL GRUPO Y SE SEGUIRÁ EXPLORANDO TEMAS DE TESORERÍA | S37: EMPRESARIAL | AA37: 65 | AB37: Prendario | AG37: Si | AM37: pagos | AN37: 0 | AO37: 0 | AP37: Menos de 10 mdp | AQ37: SI | AR37: SI | AS37: PAGOS | AT37: Alta | BP37: Sí | BQ37: Descartado | BR37: Baja | BS37: =IF((IF(ISBLANK(tabla_proyecto_azul_clientes[[#This Row],[Fecha de actualización (dd/mes/año)]]),1,0) +IF(ISBLANK(tabla_proyecto_azul_clientes[[#This Row],[Zona]]),1,0) +IF(ISBLANK(tabla_proyecto_azul_clientes[[#This Row],[Dirección]]),1,0) +IF(ISBLANK(tabla_proyecto_azul_clientes[[#This Row],[Módulo]]),1,0) +IF(ISBLANK(tabla_proyecto_azul_clientes[[#This Row],[GrupoCif]]),1,0) +IF(ISBLANK(tabla_proyecto_azul_clientes[[#This Row],[Nombre Grupo]]),1,0) +IF(ISBLANK(tabla_proyecto_azul_clientes[[#This Row],[Coordinador]]),1,0) +IF(ISBLANK(tabla_proyecto_azul_clientes[[#This Row],[Ejecutivo]]),1,0) +IF(ISBLANK(tabla_proyecto_azul_clientes[[#This Row],[Ppal Banco]]),1,0))>0,1,0) -> 0
A38: 2022-05-03 | B38: Zona Norte | C38: CENTRO | D38: TAMPICO | E38: 6664722 | F38: M N DEL GOLFO SA DECV | G38: MIGUEL ANGEL GARCIA RABANAL | H38: MARIA FERNANDA ALVAREZ HERNANDEZ | I38: BANAMEX | J38: 0 | K38: 0 | L38: 0 | M38: 0 | N38: Factoraje | O38: 25 | R38: SE PRESENTA A CTCC EL 07 DE MARZO PARA SUSTITUCIÓN DE PASIVO DE BANAMEX. CLIENTE DEIDCADO A LA FABRICAICÓN DE EMPAQUES DE MADERA ESPECIALIZADO | S38: EMPRESARIAL | U38: 12248727.27 | V38: CCIs Comerciales | W38: Fincomex | AG38: Si | AM38: PAGOS H2H | AN38: Más de 50 mdp | AO38: De 500 a 1,000 | AP38: De 10 a 50 mdp | AQ38: SI | AR38: SI | AS38: H2H PAGOS | AT38: Media | AZ38: EN IMPLEMENTACION | BP38: Sí | BQ38: Pipeline | BR38: Media | BS38: =IF((IF(ISBLANK(tabla_proyecto_azul_clientes[[#This Row],[Fecha de actualización (dd/mes/año)]]),1,0) +IF(ISBLANK(tabla_proyecto_azul_clientes[[#This Row],[Zona]]),1,0) +IF(ISBLANK(tabla_proyecto_azul_clientes[[#This Row],[Dirección]]),1,0) +IF(ISBLANK(tabla_proyecto_azul_clientes[[#This Row],[Módulo]]),1,0) +IF(ISBLANK(tabla_proyecto_azul_clientes[[#This Row],[GrupoCif]]),1,0) +IF(ISBLANK(tabla_proyecto_azul_clientes[[#This Row],[Nombre Grupo]]),1,0) +IF(ISBLANK(tabla_proyecto_azul_clientes[[#This Row],[Coordinador]]),1,0) +IF(ISBLANK(tabla_proyecto_azul_clientes[[#This Row],[Ejecutivo]]),1,0) +IF(ISBLANK(tabla_proyecto_azul_clientes[[#This Row],[Ppal Banco]]),1,0))>0,1,0) -> 0
A39: 2022-05-03 | B39: Zona Norte | C39: CENTRO | D39: ZACATECAS-AGS | E39: 8028292 | F39: MABA SAN MARCOS SA DE CV | G39: EMILIANO LARA HERNANDEZ | H39: PABLO ALEJANDRO GODINEZ MENDEZ | I39: BANAMEX | J39: 0 | K39: 0 | L39: 0 | M39: 0 | P39: COMPRA DE PASIVOS | R39: EMPRESA DEDICADA A LA COMERCIALIZACION DE POLLO FRESCO EMPAQUETADO Y HUEVO BLANCO. DE ACUERDO A LA VISITA DEL REGIONAL LA ATENCION SEGUIRA CON ELLOS DADO QUE NO MUESTRA INTERES EN CREDITOS. | S39: EMPRESARIAL | BP39: Sí | BQ39: Descartado | BR39: Baja | BS39: =IF((IF(ISBLANK(tabla_proyecto_azul_clientes[[#This Row],[Fecha de actualización (dd/mes/año)]]),1,0) +IF(ISBLANK(tabla_proyecto_azul_clientes[[#This Row],[Zona]]),1,0) +IF(ISBLANK(tabla_proyecto_azul_clientes[[#This Row],[Dirección]]),1,0) +IF(ISBLANK(tabla_proyecto_azul_clientes[[#This Row],[Módulo]]),1,0) +IF(ISBLANK(tabla_proyecto_azul_clientes[[#This Row],[GrupoCif]]),1,0) +IF(ISBLANK(tabla_proyecto_azul_clientes[[#This Row],[Nombre Grupo]]),1,0) +IF(ISBLANK(tabla_proyecto_azul_clientes[[#This Row],[Coordinador]]),1,0) +IF(ISBLANK(tabla_proyecto_azul_clientes[[#This Row],[Ejecutivo]]),1,0) +IF(ISBLANK(tabla_proyecto_azul_clientes[[#This Row],[Ppal Banco]]),1,0))>0,1,0) -> 0
A40: 2022-05-03 | B40: Zona Norte | C40: CENTRO | D40: GUANAJUATO-QRO | E40: 198918 | F40: MANUFACTURERA DE BOTAS CUADRA SA DE CV | G40: CARLOS ALBERTO CAMARGO MARTINEZ | H40: JULIO DANIEL HERNANDEZ NAVA | I40: BANORTE | J40: 0 | K40: 0 | L40: 0 | M40: 0 | N40: NINGUNO | O40: 100 | P40: NINGUNO | Q40: NINGUNO | R40: GIRO MANUFACTURA Y COMERCIALIZACIÓN DE CALZADO. SOMOS SU PRINCIPAL BANCO. ESTAMOS EN PROCESO DE LICITACIÓN PARA NUEVAS LÍNEAS DE CRÉDITO. CUENTA CON CRÉDITO A CORTO PLAZO ACCC EN BANAMEX, SE BUSCARÍA LA COMPRA DE PASIVOS. EN BANORTE SE TIENE LA NÓMINA Y MANEJO DE TESORERÍA.// 21 FEB SE TUVO REUNIÓN CON LA EMPRESA, ESTAMOS LICITANDO LINEAS REVOLVENTES POR LINEAS DE 150MDP// 04 DE MARZO SE PREPARA CARTA TYC PARA CLIENTE (SE ENTREGARÍA 16 DE MARZO) CON PROPOSITO DE INCREMENTAR LINEAS EN BANORTE.// SE PREPARA CARTA TYC PARA CLIENTE (SE ENTREGARÍA 30 DE MARZO) CON PROPOSITO DE INCREMENTAR LINEAS EN BANORTE.// 31 MARZO LA CARTA DE TYC FUE ENTREGADA AL CLIENTE, EN ESPERA DE RETRO POR PARTE DEL CLIENTE | S40: EMPRESARIAL | AG40: Si | AM40: TPV | AN40: De 10 a 50 mdp | AO40: 0 | AP40: De 10 a 50 mdp | AQ40: SI | AR40: SI | AS40: tpv | AT40: Alta | BP40: Sí | BQ40: Pipeline | BR40: Alta | BS40: =IF((IF(ISBLANK(tabla_proyecto_azul_clientes[[#This Row],[Fecha de actualización (dd/mes/año)]]),1,0) +IF(ISBLANK(tabla_proyecto_azul_clientes[[#This Row],[Zona]]),1,0) +IF(ISBLANK(tabla_proyecto_azul_clientes[[#This Row],[Dirección]]),1,0) +IF(ISBLANK(tabla_proyecto_azul_clientes[[#This Row],[Módulo]]),1,0) +IF(ISBLANK(tabla_proyecto_azul_clientes[[#This Row],[GrupoCif]]),1,0) +IF(ISBLANK(tabla_proyecto_azul_clientes[[#This Row],[Nombre Grupo]]),1,0) +IF(ISBLANK(tabla_proyecto_azul_clientes[[#This Row],[Coordinador]]),1,0) +IF(ISBLANK(tabla_proyecto_azul_clientes[[#This Row],[Ejecutivo]]),1,0) +IF(ISBLANK(tabla_proyecto_azul_clientes[[#This Row],[Ppal Banco]]),1,0))>0,1,0) -> 0
A41: 2022-05-03 | B41: Zona Norte | C41: CENTRO | D41: GUANAJUATO-QRO | E41: 41228755 | F41: MEGAFRESCOS GROUP SA DE CV | G41: CARLOS ALBERTO CAMARGO MARTINEZ | H41: ARI GUILLERMO REYES URBAN | I41: BANORTE | J41: 0 | K41: 0 | L41: 0 | M41: 0 | N41: ACCC | O41: 20 | P41: NINGUNO | Q41: NINGUNO | R41: GIRO PRODUCCIÓN Y EXPORTACIÓN DE HORTALIZAS, SE BUSCÓ COMO PROSPECTO DE CRÉDITO A FINALES DEL 2021, SE INDICO VOLVER A BUSCAR EN FEBRERO Y MARZO PARA CONOCER SUS NECESIDADES, NOS MENCIONAN QUE PUEDEN REQUERIR LINEAS A LARGO PLAZO y CP REQUIEREN 10 MDD EN ACS PARA INVERNADEROS Y 1 MDD EN ACCC, TRABAJAN CON TODOS LOS BANCOS, SE MANDARA SEGUIMIENTO AL CORREO ANTES PROPORCIONADO tesoreria01@megafrescos.com CEL 4641077822, SE BUCA CITA CON MARCELA PALMA/ SE TIENE CITA CON EL CLIENTE EL 11 DE MARZO// 11 MARZO SE VISITA AL CLIENTE Y REQUIERE UNA LINEA DE 2MDD PARA CAPITAL DE TRABAJO// 25 MARZO EN ESPERA DE INFORMACION DEL CLIENTE// SIN AVANCE EN INTEGRACION DE EXPEDIENTE | S41: EMPRESARIAL | U41: 34729090.91 | V41: CCIs Comerciales | W41: Fincomex | AG41: Si | AM41: NOMINA | AO41: De 100 a 500 | AS41: nomina | AT41: Media | BP41: Sí | BQ41: Pipeline | BR41: Alta | BS41: =IF((IF(ISBLANK(tabla_proyecto_azul_clientes[[#This Row],[Fecha de actualización (dd/mes/año)]]),1,0) +IF(ISBLANK(tabla_proyecto_azul_clientes[[#This Row],[Zona]]),1,0) +IF(ISBLANK(tabla_proyecto_azul_clientes[[#This Row],[Dirección]]),1,0) +IF(ISBLANK(tabla_proyecto_azul_clientes[[#This Row],[Módulo]]),1,0) +IF(ISBLANK(tabla_proyecto_azul_clientes[[#This Row],[GrupoCif]]),1,0) +IF(ISBLANK(tabla_proyecto_azul_clientes[[#This Row],[Nombre Grupo]]),1,0) +IF(ISBLANK(tabla_proyecto_azul_clientes[[#This Row],[Coordinador]]),1,0) +IF(ISBLANK(tabla_proyecto_azul_clientes[[#This Row],[Ejecutivo]]),1,0) +IF(ISBLANK(tabla_proyecto_azul_clientes[[#This Row],[Ppal Banco]]),1,0))>0,1,0) -> 0
A42: 2022-05-03 | B42: Zona Norte | C42: CENTRO | D42: GUANAJUATO-QRO | E42: 9452509 | F42: NIPPO DESARROLLOS SA DE CV | G42: CARLOS ALBERTO CAMARGO MARTINEZ | H42: NANCY LOPEZ CORTEZ | I42: BANORTE | J42: 0 | K42: 0 | L42: 0 | M42: 0 | N42: NINGUNO | O42: NINGUNO | P42: NINGUNO | Q42: NINGUNO | R42: GIRO INMOBILIARIA. SE BUSCA LA COBRANZA DOMICILIADA. SE BUSCA LA COBRANA DE LOS ESTACIONAMIENTOS DEL EDIFICIO TEC100 APROX POR 1MDP. LA TESORERÍA, NÓMINA EL CLIENTE LAS MANEJA EN BANORTE.// 25 MARZO SIN AVANCE | S42: EMPRESARIAL | AG42: Si | AP42: Menos de 10 mdp | BP42: Sí | BQ42: Pipeline | BR42: Media | BS42: =IF((IF(ISBLANK(tabla_proyecto_azul_clientes[[#This Row],[Fecha de actualización (dd/mes/año)]]),1,0) +IF(ISBLANK(tabla_proyecto_azul_clientes[[#This Row],[Zona]]),1,0) +IF(ISBLANK(tabla_proyecto_azul_clientes[[#This Row],[Dirección]]),1,0) +IF(ISBLANK(tabla_proyecto_azul_clientes[[#This Row],[Módulo]]),1,0) +IF(ISBLANK(tabla_proyecto_azul_clientes[[#This Row],[GrupoCif]]),1,0) +IF(ISBLANK(tabla_proyecto_azul_clientes[[#This Row],[Nombre Grupo]]),1,0) +IF(ISBLANK(tabla_proyecto_azul_clientes[[#This Row],[Coordinador]]),1,0) +IF(ISBLANK(tabla_proyecto_azul_clientes[[#This Row],[Ejecutivo]]),1,0) +IF(ISBLANK(tabla_proyecto_azul_clientes[[#This Row],[Ppal Banco]]),1,0))>0,1,0) -> 0
A43: 2022-05-03 | B43: Zona Norte | C43: CENTRO | D43: GUANAJUATO-QRO | E43: 35892097 | F43: NISHIKAWA SEALING SYSTEMS MEXICO SA DE CV | G43: CARLOS ALBERTO CAMARGO MARTINEZ | H43: JULIO DANIEL HERNANDEZ NAVA | I43: BANAMEX | J43: 0 | K43: 0 | L43: 0 | M43: 0 | N43: NINGUNO | O43: NINGUNO | P43: NINGUNO | Q43: NINGUNO | R43: GIRO AUTOMOTRIZ, SE REALIZA CONTACTO CON LA EMPRESA PARA REVISAR NECESIDADES DE TESORERÍA. EN BANORTE ES ATENDIDO EN CASH// 11 MARZO SEGUIMOS EN ESPERA DE OBTENER CITA CON EL CLIENTE// 16 DE MARZO SE TUVO CITA CON EL CLIENTE, PENDIENTE VALIDAR LOS RESULTADOS CON CASH// 31 MARZO EL CLIENTE NO TEIENE NECESIDADES DE CRÉDITO POR FINANCIAMIENTO DE LA MATRIZ CON BANK OF TOKIO, SE ESTARÁ ATENDIENDO EN MATERIA DE CASH | S43: EMPRESARIAL | AG43: Si | AM43: PAGOS H2H | AP43: Menos de 10 mdp | AQ43: SI | AR43: SI | AS43: PAGOS | AT43: Media | AZ43: NEGOCIACION | BP43: Sí | BQ43: Contacto inicial | BR43: Baja | BS43: =IF((IF(ISBLANK(tabla_proyecto_azul_clientes[[#This Row],[Fecha de actualización (dd/mes/año)]]),1,0) +IF(ISBLANK(tabla_proyecto_azul_clientes[[#This Row],[Zona]]),1,0) +IF(ISBLANK(tabla_proyecto_azul_clientes[[#This Row],[Dirección]]),1,0) +IF(ISBLANK(tabla_proyecto_azul_clientes[[#This Row],[Módulo]]),1,0) +IF(ISBLANK(tabla_proyecto_azul_clientes[[#This Row],[GrupoCif]]),1,0) +IF(ISBLANK(tabla_proyecto_azul_clientes[[#This Row],[Nombre Grupo]]),1,0) +IF(ISBLANK(tabla_proyecto_azul_clientes[[#This Row],[Coordinador]]),1,0) +IF(ISBLANK(tabla_proyecto_azul_clientes[[#This Row],[Ejecutivo]]),1,0) +IF(ISBLANK(tabla_proyecto_azul_clientes[[#This Row],[Ppal Banco]]),1,0))>0,1,0) -> 0
A44: 2022-05-03 | B44: Zona Norte | C44: CENTRO | D44: TAMPICO | E44: 7497300 | F44: PAPAELERÍA MARÓN | G44: MIGUEL ANGEL GARCIA RABANAL | H44: EDUARDO LOPEZ DE LEÓN | I44: BANAMEX | J44: 0 | K44: 0 | L44: 0 | M44: 0 | R44: BUSCANDO CITA CON EL CLIENTE, SE BUSCARÁ AL CLIENTE EN SEMANA DEL 07 DE MARZO | S44: EMPRESARIAL | BP44: No | BQ44: Contacto inicial | BR44: Baja | BS44: =IF((IF(ISBLANK(tabla_proyecto_azul_clientes[[#This Row],[Fecha de actualización (dd/mes/año)]]),1,0) +IF(ISBLANK(tabla_proyecto_azul_clientes[[#This Row],[Zona]]),1,0) +IF(ISBLANK(tabla_proyecto_azul_clientes[[#This Row],[Dirección]]),1,0) +IF(ISBLANK(tabla_proyecto_azul_clientes[[#This Row],[Módulo]]),1,0) +IF(ISBLANK(tabla_proyecto_azul_clientes[[#This Row],[GrupoCif]]),1,0) +IF(ISBLANK(tabla_proyecto_azul_clientes[[#This Row],[Nombre Grupo]]),1,0) +IF(ISBLANK(tabla_proyecto_azul_clientes[[#This Row],[Coordinador]]),1,0) +IF(ISBLANK(tabla_proyecto_azul_clientes[[#This Row],[Ejecutivo]]),1,0) +IF(ISBLANK(tabla_proyecto_azul_clientes[[#This Row],[Ppal Banco]]),1,0))>0,1,0) -> 0
A45: 2022-05-03 | B45: Zona Norte | C45: CENTRO | D45: ZACATECAS-AGS | E45: 6891897 | F45: PLAN PREVISOR HERNANDEZ SA DE CV | G45: EMILIANO LARA HERNANDEZ | H45: SUSANA RAQUEL BECERRA GONZALEZ | I45: BANORTE | J45: 0 | K45: 0 | L45: 0 | M45: 0 | R45: SE BUSCARA AL PRINCIPAL PARA CORROBORAR QUE MANEJA CON BANAMEX YA QUE NO TENEMOS IDENTIFICADO QUE PRODUCTOS MANEJA CON ELLOS. SE TUVO CONTACTO CON EL CLIENTE Y NOS INFORMA QUE NO TIENE NADA CON BANAMEX. | S45: EMPRESARIAL | AG45: Si | BP45: Sí | BQ45: Descartado | BR45: Baja | BS45: =IF((IF(ISBLANK(tabla_proyecto_azul_clientes[[#This Row],[Fecha de actualización (dd/mes/año)]]),1,0) +IF(ISBLANK(tabla_proyecto_azul_clientes[[#This Row],[Zona]]),1,0) +IF(ISBLANK(tabla_proyecto_azul_clientes[[#This Row],[Dirección]]),1,0) +IF(ISBLANK(tabla_proyecto_azul_clientes[[#This Row],[Módulo]]),1,0) +IF(ISBLANK(tabla_proyecto_azul_clientes[[#This Row],[GrupoCif]]),1,0) +IF(ISBLANK(tabla_proyecto_azul_clientes[[#This Row],[Nombre Grupo]]),1,0) +IF(ISBLANK(tabla_proyecto_azul_clientes[[#This Row],[Coordinador]]),1,0) +IF(ISBLANK(tabla_proyecto_azul_clientes[[#This Row],[Ejecutivo]]),1,0) +IF(ISBLANK(tabla_proyecto_azul_clientes[[#This Row],[Ppal Banco]]),1,0))>0,1,0) -> 0
A46: 2022-05-03 | B46: Zona Norte | C46: CENTRO | D46: GUANAJUATO-QRO | E46: 64092382 | F46: PRODUCCION AGRICOLADE MAIZ SA DE CV | G46: CARLOS ALBERTO CAMARGO MARTINEZ | H46: ARI GUILLERMO REYES URBAN | I46: BANORTE | J46: 0 | K46: 0 | L46: 0 | M46: 0 | N46: NINGUNO | O46: NINGUNO | P46: NINGUNO | Q46: NINGUNO | R46: GIRO COMERCIZALIZACIÓN DE GRANOS. NO TIENE LÍNEA CON OTROS BANCOS. SE TIENE UNA NUEVA LINEA POR 30MDP SE ESTÁ NEGOCIANDO CON EL CLIENTE EN BANORTE. | S46: EMPRESARIAL | AG46: Si | BP46: Sí | BQ46: Descartado | BR46: Baja | BS46: =IF((IF(ISBLANK(tabla_proyecto_azul_clientes[[#This Row],[Fecha de actualización (dd/mes/año)]]),1,0) +IF(ISBLANK(tabla_proyecto_azul_clientes[[#This Row],[Zona]]),1,0) +IF(ISBLANK(tabla_proyecto_azul_clientes[[#This Row],[Dirección]]),1,0) +IF(ISBLANK(tabla_proyecto_azul_clientes[[#This Row],[Módulo]]),1,0) +IF(ISBLANK(tabla_proyecto_azul_clientes[[#This Row],[GrupoCif]]),1,0) +IF(ISBLANK(tabla_proyecto_azul_clientes[[#This Row],[Nombre Grupo]]),1,0) +IF(ISBLANK(tabla_proyecto_azul_clientes[[#This Row],[Coordinador]]),1,0) +IF(ISBLANK(tabla_proyecto_azul_clientes[[#This Row],[Ejecutivo]]),1,0) +IF(ISBLANK(tabla_proyecto_azul_clientes[[#This Row],[Ppal Banco]]),1,0))>0,1,0) -> 0
A47: 2022-05-03 | B47: Zona Norte | C47: CENTRO | D47: ZACATECAS-AGS | E47: 7345051 | F47: SERGIO EDUARDO ORTEGA DAVILA | G47: EMILIANO LARA HERNANDEZ | H47: SUSANA RAQUEL BECERRA GONZALEZ | I47: BANAMEX | J47: 0 | K47: 0 | L47: 0 | M47: 0 | R47: SE BUSCARA CITA CON EL CLIENTE. NO HA SIDO POSIBLE CONTACTAR AL CLIENTE. NO SE PUDO CONTACTAR AL CLIENTE, NO OBSTANTE SE REVISO LA INFORMACION Y EL CLIENTE APARECE CON DOMICILIO EN DURANGO. | S47: EMPRESARIAL | AG47: Si | BP47: No | BQ47: Descartado | BR47: Baja | BS47: =IF((IF(ISBLANK(tabla_proyecto_azul_clientes[[#This Row],[Fecha de actualización (dd/mes/año)]]),1,0) +IF(ISBLANK(tabla_proyecto_azul_clientes[[#This Row],[Zona]]),1,0) +IF(ISBLANK(tabla_proyecto_azul_clientes[[#This Row],[Dirección]]),1,0) +IF(ISBLANK(tabla_proyecto_azul_clientes[[#This Row],[Módulo]]),1,0) +IF(ISBLANK(tabla_proyecto_azul_clientes[[#This Row],[GrupoCif]]),1,0) +IF(ISBLANK(tabla_proyecto_azul_clientes[[#This Row],[Nombre Grupo]]),1,0) +IF(ISBLANK(tabla_proyecto_azul_clientes[[#This Row],[Coordinador]]),1,0) +IF(ISBLANK(tabla_proyecto_azul_clientes[[#This Row],[Ejecutivo]]),1,0) +IF(ISBLANK(tabla_proyecto_azul_clientes[[#This Row],[Ppal Banco]]),1,0))>0,1,0) -> 0
A48: 2022-05-03 | B48: Zona Norte | C48: CENTRO | D48: ZACATECAS-AGS | E48: 21572058 | F48: SERMINEROS ZACATECAS SA DE CV (MINERA PEÑASQUITO SA DE CV) | G48: EMILIANO LARA HERNANDEZ | H48: SUSANA RAQUEL BECERRA GONZALEZ | I48: BANAMEX | J48: 0 | K48: 0 | L48: 0 | M48: 0 | R48: EMPRESA DE ORIGEN CANADIENSE, DEDICADA A LA MINERIA, ORO Y PLATA, ESTA UBICADA EN MAZAPIL, ZACATECAS, CONTAMOS CON LA NOMINA DE LOS EMPLEADOS DE MINA. SU PRINCIPAL BANCO ES BANAMEX, PARA EL CAMBIO DE BANCO SU DESICION SERA DESDE EL CORPORATIVO EN CANADA, ESTAMOS EN ESPERA DE SU RESPUESTA, NO OBSTANTE NOS INDICAN ESPERARAN LAS CONDICIONES QUE LES DEN DE BANAMEX. | S48: EMPRESARIAL | AM48: NOMINA | AO48: De 500 a 1‚000 | AP48: De 10 a 50 mdp | AQ48: SI | AR48: SI | AS48: NOMINA | AZ48: EN NEGOCIAICON | BP48: No | BQ48: Contacto inicial | BR48: Media | BS48: =IF((IF(ISBLANK(tabla_proyecto_azul_clientes[[#This Row],[Fecha de actualización (dd/mes/año)]]),1,0) +IF(ISBLANK(tabla_proyecto_azul_clientes[[#This Row],[Zona]]),1,0) +IF(ISBLANK(tabla_proyecto_azul_clientes[[#This Row],[Dirección]]),1,0) +IF(ISBLANK(tabla_proyecto_azul_clientes[[#This Row],[Módulo]]),1,0) +IF(ISBLANK(tabla_proyecto_azul_clientes[[#This Row],[GrupoCif]]),1,0) +IF(ISBLANK(tabla_proyecto_azul_clientes[[#This Row],[Nombre Grupo]]),1,0) +IF(ISBLANK(tabla_proyecto_azul_clientes[[#This Row],[Coordinador]]),1,0) +IF(ISBLANK(tabla_proyecto_azul_clientes[[#This Row],[Ejecutivo]]),1,0) +IF(ISBLANK(tabla_proyecto_azul_clientes[[#This Row],[Ppal Banco]]),1,0))>0,1,0) -> 0
A49: 2022-05-03 | B49: Zona Norte | C49: CENTRO | D49: ZACATECAS-AGS | E49: 19401769 | F49: TDA TELECOMUNICACIONES SA DE CV | G49: EMILIANO LARA HERNANDEZ | H49: JAQUELINE SOTO ESPARZA | I49: BANAMEX | J49: 70.310429 | K49: 0 | L49: 0 | M49: 70.310429 | N49: ACCC | O49: 70 | R49: EMPRESA CON MAS DE 24 AÑOS DE EXPERIENCIA, COMERCIALIZADOR MASTER SKY, SISTEMA DE TELEVISION SATELITAL DIRECTA AL HOGAR (DTH) ACTUALMENTE OPERA EN 13 ESTADOS DE LA REPUBLICA, (BCN, BCS, SON, SIN, NAY, COL, JAL, CHIH, DGO, COA, ZAC, AGS Y GTO). SE TENDRA CITA EL LUNES 28 DE FEBRERO, EN ESA REUNION EL CLIENTE INDICO QUE VA ESPERAR SI BANAMEX NO LE CAMBIA LAS CONDICIONES POR LO QUE EN ESTE MOMENTO NO REALIZARA NINGUN MOVIMIENTO. | S49: EMPRESARIAL | AG49: Si | AM49: TDEBITO EMPRESARIAL | AN49: Más de 50 mdp | AO49: De 50 a 100 | AP49: Menos de 10 mdp | AQ49: SI | AR49: SI | AS49: TDEBITO | AZ49: EN CONTRATACION | BP49: Sí | BQ49: Contacto inicial | BR49: Media | BS49: =IF((IF(ISBLANK(tabla_proyecto_azul_clientes[[#This Row],[Fecha de actualización (dd/mes/año)]]),1,0) +IF(ISBLANK(tabla_proyecto_azul_clientes[[#This Row],[Zona]]),1,0) +IF(ISBLANK(tabla_proyecto_azul_clientes[[#This Row],[Dirección]]),1,0) +IF(ISBLANK(tabla_proyecto_azul_clientes[[#This Row],[Módulo]]),1,0) +IF(ISBLANK(tabla_proyecto_azul_clientes[[#This Row],[GrupoCif]]),1,0) +IF(ISBLANK(tabla_proyecto_azul_clientes[[#This Row],[Nombre Grupo]]),1,0) +IF(ISBLANK(tabla_proyecto_azul_clientes[[#This Row],[Coordinador]]),1,0) +IF(ISBLANK(tabla_proyecto_azul_clientes[[#This Row],[Ejecutivo]]),1,0) +IF(ISBLANK(tabla_proyecto_azul_clientes[[#This Row],[Ppal Banco]]),1,0))>0,1,0) -> 0
A50: 2022-05-03 | B50: Zona Norte | C50: CENTRO | D50: GUANAJUATO-QRO | E50: 6860389 | F50: TERMOFILM Y ESPUMADOS LEON SA DE CV | G50: CARLOS ALBERTO CAMARGO MARTINEZ | H50: LUIS FERNANDO CORTES MUÑOZ | I50: BANAMEX | J50: 0 | K50: 0 | L50: 0 | M50: 0 | N50: NINGUNO | O50: NINGUNO | P50: NINGUNO | Q50: NINGUNO | R50: CLIENTE TRASPASADO A COMERCIAL | AG50: Si | BP50: No | BQ50: Descartado | BR50: Baja | BS50: =IF((IF(ISBLANK(tabla_proyecto_azul_clientes[[#This Row],[Fecha de actualización (dd/mes/año)]]),1,0) +IF(ISBLANK(tabla_proyecto_azul_clientes[[#This Row],[Zona]]),1,0) +IF(ISBLANK(tabla_proyecto_azul_clientes[[#This Row],[Dirección]]),1,0) +IF(ISBLANK(tabla_proyecto_azul_clientes[[#This Row],[Módulo]]),1,0) +IF(ISBLANK(tabla_proyecto_azul_clientes[[#This Row],[GrupoCif]]),1,0) +IF(ISBLANK(tabla_proyecto_azul_clientes[[#This Row],[Nombre Grupo]]),1,0) +IF(ISBLANK(tabla_proyecto_azul_clientes[[#This Row],[Coordinador]]),1,0) +IF(ISBLANK(tabla_proyecto_azul_clientes[[#This Row],[Ejecutivo]]),1,0) +IF(ISBLANK(tabla_proyecto_azul_clientes[[#This Row],[Ppal Banco]]),1,0))>0,1,0) -> 0
A51: 2022-05-03 | B51: Zona Norte | C51: CENTRO | D51: GUANAJUATO-QRO | E51: 7855239 | F51: TRANSPORTES CASTORES DE BAJA CALIFORNIASA DE CV | G51: CARLOS ALBERTO CAMARGO MARTINEZ | H51: JULIO DANIEL HERNANDEZ NAVA | I51: BANAMEX | J51: 0 | K51: 0 | L51: 0 | M51: 0 | N51: NINGUNO | O51: NINGUNO | P51: COMPRA DE PASIVOS | Q51: 700 | R51: GIRO, TRANSPORTE DE CARGA, CRÉDITOS SIMPLES EN BANAMEX POR $1,500MDP. CUENTA CON NÓMINA Y MANEJO DE TESORERÍA EN BANAMEX. SE BUSCA LA PORTABILIDAD EN DICHOS PRODUCTOS.// SE ESTA LICITANDO PROPUESTAS EN CREDITO POR LINEAS 580MDP. A LA PAR YA SE ESTÁ TRABAJANDO EL ESTUDIO DE CREDITO. YA SE SOLICITÓ AGENDA A GPYT PARA TASA// 03 MARZO SE VISITÓ AL CLIENTE PARA ACLARAR DUDAS EN ESTUDIO DE CRÉDITO// SE ENTREGÓ PROPUESTA CASH JUEVES 10 DE MARZO// 25 MZO EJECUTIVO DA SEGUIMIENTO CON CASH M PARA LICITACION AL CLIENTE // SE ESTIMA ENTREGAR CASO A CREDITO EL 30 MZO/ DE ACUERDO A LA ULTIMA REVISION CON RAUL SE ESTIMA ENTREGAR EL CASO 6 DE ABRIL A CREDITO | S51: EMPRESARIAL | AG51: Si | AM51: TPV | AN51: Más de 50 mdp | AO51: De 500 a 1,000 | AP51: De 10 a 50 mdp | AQ51: SI | AR51: SI | AS51: tpv | AT51: Alta | BP51: Sí | BQ51: Pipeline | BR51: Alta | BS51: =IF((IF(ISBLANK(tabla_proyecto_azul_clientes[[#This Row],[Fecha de actualización (dd/mes/año)]]),1,0) +IF(ISBLANK(tabla_proyecto_azul_clientes[[#This Row],[Zona]]),1,0) +IF(ISBLANK(tabla_proyecto_azul_clientes[[#This Row],[Dirección]]),1,0) +IF(ISBLANK(tabla_proyecto_azul_clientes[[#This Row],[Módulo]]),1,0) +IF(ISBLANK(tabla_proyecto_azul_clientes[[#This Row],[GrupoCif]]),1,0) +IF(ISBLANK(tabla_proyecto_azul_clientes[[#This Row],[Nombre Grupo]]),1,0) +IF(ISBLANK(tabla_proyecto_azul_clientes[[#This Row],[Coordinador]]),1,0) +IF(ISBLANK(tabla_proyecto_azul_clientes[[#This Row],[Ejecutivo]]),1,0) +IF(ISBLANK(tabla_proyecto_azul_clientes[[#This Row],[Ppal Banco]]),1,0))>0,1,0) -> 0
A52: 2022-05-03 | B52: Zona Norte | C52: CENTRO | D52: TAMPICO | E52: 63588315 | F52: UNIFORMES DE TAMPICO | G52: MIGUEL ANGEL GARCIA RABANAL | H52: ARANTZA SOLBES IBARGUENGOITIA | I52: BANAMEX | J52: 0 | K52: 0 | L52: 0 | M52: 0 | R52: EN BUSCA DE CITA CON EL PRINCIPAL | S52: EMPRESARIAL | AM52: Nomina TPV | AN52: De 1 a 5 mdp | AO52: De 100 a 500 | AP52: Menos de 10 mdp | AQ52: SI | AR52: SI | AS52: pagosTPV Nominas | AT52: Alta | AZ52: EN NEGOCIAICON | BP52: Sí | BQ52: Negociación | BR52: Media | BS52: =IF((IF(ISBLANK(tabla_proyecto_azul_clientes[[#This Row],[Fecha de actualización (dd/mes/año)]]),1,0) +IF(ISBLANK(tabla_proyecto_azul_clientes[[#This Row],[Zona]]),1,0) +IF(ISBLANK(tabla_proyecto_azul_clientes[[#This Row],[Dirección]]),1,0) +IF(ISBLANK(tabla_proyecto_azul_clientes[[#This Row],[Módulo]]),1,0) +IF(ISBLANK(tabla_proyecto_azul_clientes[[#This Row],[GrupoCif]]),1,0) +IF(ISBLANK(tabla_proyecto_azul_clientes[[#This Row],[Nombre Grupo]]),1,0) +IF(ISBLANK(tabla_proyecto_azul_clientes[[#This Row],[Coordinador]]),1,0) +IF(ISBLANK(tabla_proyecto_azul_clientes[[#This Row],[Ejecutivo]]),1,0) +IF(ISBLANK(tabla_proyecto_azul_clientes[[#This Row],[Ppal Banco]]),1,0))>0,1,0) -> 0
A53: 2022-05-03 | B53: Zona Norte | C53: CENTRO | D53: TAMPICO | E53: 7904196 | F53: VERNELL HOLDING SA DE CV | G53: MIGUEL ANGEL GARCIA RABANAL | H53: EDUARDO LOPEZ DE LEON | I53: BANAMEX | J53: 0 | K53: 0 | L53: 0 | M53: 0 | R53: CITA CON EL CLIENTE DESPUES DEL 07 DE MARZO, POR CONFIRMAR | S53: TRANSACCIONAL | AG53: Si | BP53: No | BQ53: Contacto inicial | BR53: Media | BS53: =IF((IF(ISBLANK(tabla_proyecto_azul_clientes[[#This Row],[Fecha de actualización (dd/mes/año)]]),1,0) +IF(ISBLANK(tabla_proyecto_azul_clientes[[#This Row],[Zona]]),1,0) +IF(ISBLANK(tabla_proyecto_azul_clientes[[#This Row],[Dirección]]),1,0) +IF(ISBLANK(tabla_proyecto_azul_clientes[[#This Row],[Módulo]]),1,0) +IF(ISBLANK(tabla_proyecto_azul_clientes[[#This Row],[GrupoCif]]),1,0) +IF(ISBLANK(tabla_proyecto_azul_clientes[[#This Row],[Nombre Grupo]]),1,0) +IF(ISBLANK(tabla_proyecto_azul_clientes[[#This Row],[Coordinador]]),1,0) +IF(ISBLANK(tabla_proyecto_azul_clientes[[#This Row],[Ejecutivo]]),1,0) +IF(ISBLANK(tabla_proyecto_azul_clientes[[#This Row],[Ppal Banco]]),1,0))>0,1,0) -> 0
A54: 2022-05-03 | B54: Zona Norte | C54: CENTRO | D54: ZACATECAS-AGS | E54: 26794275 | F54: YUSA AUTOPARTS MEXICO SA DE CV | G54: EMILIANO LARA HERNANDEZ | H54: SUSANA RAQUEL BECERRA GONZALEZ | I54: BANORTE | J54: 0 | K54: 0 | L54: 0 | M54: 0 | R54: EMPRESA DE ORIGEN JAPONES, FUNDADA EN 2010 EN ZACATECAS, DEDICADA A LA FABRICACION DE AUTOPARTES EN ESPERA DE CITA CON LA EMPRESA. SE TUVO CITA CON LA EMPRESA Y COMENTA EL AREA DE CASH QUE NO MANEJAN NADA CON BANAMEX. | S54: EMPRESARIAL | AG54: Si | BP54: Sí | BQ54: Descartado | BR54: Baja | BS54: =IF((IF(ISBLANK(tabla_proyecto_azul_clientes[[#This Row],[Fecha de actualización (dd/mes/año)]]),1,0) +IF(ISBLANK(tabla_proyecto_azul_clientes[[#This Row],[Zona]]),1,0) +IF(ISBLANK(tabla_proyecto_azul_clientes[[#This Row],[Dirección]]),1,0) +IF(ISBLANK(tabla_proyecto_azul_clientes[[#This Row],[Módulo]]),1,0) +IF(ISBLANK(tabla_proyecto_azul_clientes[[#This Row],[GrupoCif]]),1,0) +IF(ISBLANK(tabla_proyecto_azul_clientes[[#This Row],[Nombre Grupo]]),1,0) +IF(ISBLANK(tabla_proyecto_azul_clientes[[#This Row],[Coordinador]]),1,0) +IF(ISBLANK(tabla_proyecto_azul_clientes[[#This Row],[Ejecutivo]]),1,0) +IF(ISBLANK(tabla_proyecto_azul_clientes[[#This Row],[Ppal Banco]]),1,0))>0,1,0) -> 0
A55: 2022-05-03 | B55: Zona Norte | C55: CENTRO | D55: SLP | E55: 14942140 | F55: ZOPPAS INDUSTRIES DE MEXICO SA DE CV | G55: ALDO FEREGRINO GALLARDO | H55: RICARDO AYECH CASTILLO | I55: BANAMEX | J55: 0 | K55: 0 | L55: 0 | M55: 0 | R55: MANUFACTURERA DE RESISTENCIAS ELÉCTRICAS. CLIENTE BANORTE INFORMACIÓN A SEP 21. SE ASISTIRA A COMITÉ PARA QUITAR UN CANDADO Y QUE TOMEN AL 100% NUESTRA LINEA Y NO LA LINEA QUE TIENEN CON BANAMEX, QUE ESTA LIMITADA A 65 MDP. | S55: EMPRESARIAL | AA55: 100 | AB55: LÍNEA DE FACTORAJE CON BANAMEX DE 160 MDP. (CON BANORTE 100MDP.) | AM55: NOMINA | BP55: Sí | BQ55: Contacto inicial | BR55: Media | BS55: =IF((IF(ISBLANK(tabla_proyecto_azul_clientes[[#This Row],[Fecha de actualización (dd/mes/año)]]),1,0) +IF(ISBLANK(tabla_proyecto_azul_clientes[[#This Row],[Zona]]),1,0) +IF(ISBLANK(tabla_proyecto_azul_clientes[[#This Row],[Dirección]]),1,0) +IF(ISBLANK(tabla_proyecto_azul_clientes[[#This Row],[Módulo]]),1,0) +IF(ISBLANK(tabla_proyecto_azul_clientes[[#This Row],[GrupoCif]]),1,0) +IF(ISBLANK(tabla_proyecto_azul_clientes[[#This Row],[Nombre Grupo]]),1,0) +IF(ISBLANK(tabla_proyecto_azul_clientes[[#This Row],[Coordinador]]),1,0) +IF(ISBLANK(tabla_proyecto_azul_clientes[[#This Row],[Ejecutivo]]),1,0) +IF(ISBLANK(tabla_proyecto_azul_clientes[[#This Row],[Ppal Banco]]),1,0))>0,1,0) -> 0
A56: 2022-06-10 | B56: Zona Norte | C56: NOROESTE I | D56: CD. JUAREZ-CASAS GRANDES | E56: 12993567 | F56: COMERCIALIZADORA DEPRODUCTOS ESTRATEGICOS SA DE CV | G56: JESÚS JOAQUÍN FERNANDEZ LARA | H56: ANGELICA BARRON MEDINA | I56: Banamex | J56: 0 | K56: 0 | L56: 0 | M56: 0 | N56: - | O56: - | P56: - | Q56: - | R56: EMPRESA NO MANEJA LINEAS DE CREDITO CON BANAMEX | S56: Empresarial | T56: No Aplica | U56: $ - | AC56: DESCARTADOS PROYECTO AZUL | AE56: Tiempo Aire | AF56: Telcel | AG56: no | AH56: no | AQ56: Sí | AR56: NO | AT56: No Aplica | AZ56: Descartado | BP56: Sí | BQ56: Descartado | BS56: =IF((IF(ISBLANK(tabla_proyecto_azul_clientes[[#This Row],[Fecha de actualización (dd/mes/año)]]),1,0) +IF(ISBLANK(tabla_proyecto_azul_clientes[[#This Row],[Zona]]),1,0) +IF(ISBLANK(tabla_proyecto_azul_clientes[[#This Row],[Dirección]]),1,0) +IF(ISBLANK(tabla_proyecto_azul_clientes[[#This Row],[Módulo]]),1,0) +IF(ISBLANK(tabla_proyecto_azul_clientes[[#This Row],[GrupoCif]]),1,0) +IF(ISBLANK(tabla_proyecto_azul_clientes[[#This Row],[Nombre Grupo]]),1,0) +IF(ISBLANK(tabla_proyecto_azul_clientes[[#This Row],[Coordinador]]),1,0) +IF(ISBLANK(tabla_proyecto_azul_clientes[[#This Row],[Ejecutivo]]),1,0) +IF(ISBLANK(tabla_proyecto_azul_clientes[[#This Row],[Ppal Banco]]),1,0))>0,1,0) -> 0
A57: 2022-06-10 | B57: Zona Norte | C57: NOROESTE I | D57: CD. JUAREZ-CASAS GRANDES | E57: 50559107 | F57: COMPAÑIA MADERERA DE CHIHUAHUA SUCESORES SA DE CV | G57: JESÚS JOAQUÍN FERNANDEZ LARA | H57: LUIS ANGEL RUIZ MORENO | I57: Banamex | J57: 0 | K57: 0 | L57: 0 | M57: 0 | N57: 0 | O57: 0 | R57: GRUPO PERTENECE A BE, YA CUENTA CON LINEAS AUTORIZADAS, PROSPECTO DE CASH | T57: Baja | U57: 3378 | AC57: DESCARTADOS PROYECTO AZUL | AE57: Madera | AF57: Comercializador | AG57: no | AH57: no | AM57: ADQUIRIENTE | AN57: De 5 a 10 mdp | AP57: De 10 a 50 mdp | AQ57: SI | AR57: SI | AS57: ADQUIRIENTE/PAGOS/COBRANZA. //27may: En configuracion en 2 de las tiendas, para que se cumpla para ir avanzando con las otras tiendas. va un poco lento (credeciales, configuracion de interedes). Seguimiento diario a este cliente lo trae cash. //10JUN: avanzando tpv, y avanzando en migración de city a banorte. | AT57: Alta | AZ57: Implementación | BP57: Sí | BQ57: Pipeline | BR57: Alta | BS57: =IF((IF(ISBLANK(tabla_proyecto_azul_clientes[[#This Row],[Fecha de actualización (dd/mes/año)]]),1,0) +IF(ISBLANK(tabla_proyecto_azul_clientes[[#This Row],[Zona]]),1,0) +IF(ISBLANK(tabla_proyecto_azul_clientes[[#This Row],[Dirección]]),1,0) +IF(ISBLANK(tabla_proyecto_azul_clientes[[#This Row],[Módulo]]),1,0) +IF(ISBLANK(tabla_proyecto_azul_clientes[[#This Row],[GrupoCif]]),1,0) +IF(ISBLANK(tabla_proyecto_azul_clientes[[#This Row],[Nombre Grupo]]),1,0) +IF(ISBLANK(tabla_proyecto_azul_clientes[[#This Row],[Coordinador]]),1,0) +IF(ISBLANK(tabla_proyecto_azul_clientes[[#This Row],[Ejecutivo]]),1,0) +IF(ISBLANK(tabla_proyecto_azul_clientes[[#This Row],[Ppal Banco]]),1,0))>0,1,0) -> 0
A58: 2022-06-10 | B58: Zona Norte | C58: NOROESTE I | D58: CD. JUAREZ-CASAS GRANDES | E58: 25821884 | F58: DATAMARK DE MEXICO SA DE CV | G58: JESÚS JOAQUÍN FERNANDEZ LARA | H58: LUIS ANGEL RUIZ MORENO | I58: Banamex | J58: 0 | K58: 0 | L58: 0 | M58: 0 | N58: - | O58: - | P58: - | Q58: - | R58: EMPRESA DEL SEGTOR MAQUILADORA, SU NECESIDAD DE CAPITAL DE TRABAJO SE OBTIENE POR PARTE DEL CORPORATIVO EN EUA | S58: Empresarial | T58: No Aplica | U58: 508 | AC58: DESCARTADOS PROYECTO AZUL | AE58: Servicio de captura de datos | AF58: maquiladora | AG58: no | AH58: no | AQ58: Sí | AR58: NO | AT58: No Aplica | AZ58: Descartado | BP58: Sí | BQ58: Descartado | BS58: =IF((IF(ISBLANK(tabla_proyecto_azul_clientes[[#This Row],[Fecha de actualización (dd/mes/año)]]),1,0) +IF(ISBLANK(tabla_proyecto_azul_clientes[[#This Row],[Zona]]),1,0) +IF(ISBLANK(tabla_proyecto_azul_clientes[[#This Row],[Dirección]]),1,0) +IF(ISBLANK(tabla_proyecto_azul_clientes[[#This Row],[Módulo]]),1,0) +IF(ISBLANK(tabla_proyecto_azul_clientes[[#This Row],[GrupoCif]]),1,0) +IF(ISBLANK(tabla_proyecto_azul_clientes[[#This Row],[Nombre Grupo]]),1,0) +IF(ISBLANK(tabla_proyecto_azul_clientes[[#This Row],[Coordinador]]),1,0) +IF(ISBLANK(tabla_proyecto_azul_clientes[[#This Row],[Ejecutivo]]),1,0) +IF(ISBLANK(tabla_proyecto_azul_clientes[[#This Row],[Ppal Banco]]),1,0))>0,1,0) -> 0
A59: 2022-06-10 | B59: Zona Norte | C59: NOROESTE I | D59: CD. JUAREZ-CASAS GRANDES | E59: 38143601 | F59: GRUPO AGROPECUARIO BUDA S SPR DE RL DE CV | G59: JESÚS JOAQUÍN FERNANDEZ LARA | H59: BRYAN | J59: 61 | K59: 0 | L59: 0 | M59: 61 | N59: - | O59: - | P59: - | Q59: - | R59: CLIENTE TOPADO EN LINEAS DE CREDITO, NO SE JUSTIFICA OTORGAR MAS CREDITO | S59: Empresarial | T59: No Aplica | U59: $ - | AA59: 33 | AB59: ACS y ACCC | AC59: DESCARTADO . TOPADAS LAS LÍNEAS, NO TIENE EN BANAMEX. Descartado | AE59: Acopiador de becerros | AF59: exportador | AG59: no | AH59: no | AQ59: Sí | AR59: NO | AT59: No Aplica | AZ59: Descartado | BP59: Sí | BQ59: Descartado | BS59: =IF((IF(ISBLANK(tabla_proyecto_azul_clientes[[#This Row],[Fecha de actualización (dd/mes/año)]]),1,0) +IF(ISBLANK(tabla_proyecto_azul_clientes[[#This Row],[Zona]]),1,0) +IF(ISBLANK(tabla_proyecto_azul_clientes[[#This Row],[Dirección]]),1,0) +IF(ISBLANK(tabla_proyecto_azul_clientes[[#This Row],[Módulo]]),1,0) +IF(ISBLANK(tabla_proyecto_azul_clientes[[#This Row],[GrupoCif]]),1,0) +IF(ISBLANK(tabla_proyecto_azul_clientes[[#This Row],[Nombre Grupo]]),1,0) +IF(ISBLANK(tabla_proyecto_azul_clientes[[#This Row],[Coordinador]]),1,0) +IF(ISBLANK(tabla_proyecto_azul_clientes[[#This Row],[Ejecutivo]]),1,0) +IF(ISBLANK(tabla_proyecto_azul_clientes[[#This Row],[Ppal Banco]]),1,0))>0,1,0) -> 0
A60: 2022-06-10 | B60: Zona Norte | C60: NOROESTE I | D60: CD. JUAREZ-CASAS GRANDES | E60: -1 | F60: GRUPO FEDERICO DE LA VEGA | G60: JESÚS JOAQUÍN FERNANDEZ LARA | AC60: DESCARTADOS PROYECTO AZUL | AS60: razon social que no tenemos el banco pero forma parte del grupo FEDERICO DE LA VEGA//10jun: se entregó prop, esperando respuesta. Dominos pizza | BS60: =IF((IF(ISBLANK(tabla_proyecto_azul_clientes[[#This Row],[Fecha de actualización (dd/mes/año)]]),1,0) +IF(ISBLANK(tabla_proyecto_azul_clientes[[#This Row],[Zona]]),1,0) +IF(ISBLANK(tabla_proyecto_azul_clientes[[#This Row],[Dirección]]),1,0) +IF(ISBLANK(tabla_proyecto_azul_clientes[[#This Row],[Módulo]]),1,0) +IF(ISBLANK(tabla_proyecto_azul_clientes[[#This Row],[GrupoCif]]),1,0) +IF(ISBLANK(tabla_proyecto_azul_clientes[[#This Row],[Nombre Grupo]]),1,0) +IF(ISBLANK(tabla_proyecto_azul_clientes[[#This Row],[Coordinador]]),1,0) +IF(ISBLANK(tabla_proyecto_azul_clientes[[#This Row],[Ejecutivo]]),1,0) +IF(ISBLANK(tabla_proyecto_azul_clientes[[#This Row],[Ppal Banco]]),1,0))>0,1,0) -> 1
A61: 2022-06-10 | B61: Zona Norte | C61: NOROESTE I | D61: CD. JUAREZ-CASAS GRANDES | E61: 8638039 | F61: INMOBILIARIA RUBA SA DE CV | G61: JESÚS JOAQUÍN FERNANDEZ LARA | H61: VACANTE | I61: Banamex | J61: 0 | K61: 0 | L61: 0 | M61: 0 | N61: 0 | O61: 0 | R61: GRUPO PERTENECE A BE, YA CUENTA CON LINEAS AUTORIZADAS, PROSPECTO DE CASH | T61: No Aplica | U61: $ - | AC61: DESCARTADOS PROYECTO AZUL | AE61: Constructora | AF61: Constructora | AG61: no | AH61: no | AM61: NOMINA | AN61: De 1 a 5 mdp | AO61: De 100 a 500 | AP61: Menos de 10 mdp | AQ61: SI | AR61: SI | AS61: NOMINA, COMPITIENDO CON OTROS BANCOS. 27may: Ya se mandó información en espera de respuesta. Nos pusieron a competir: bancomer, santander, y banorte. //10jun revisando propuesta de lo bancos. | AT61: Alta | AZ61: Negociación. | BE61: DESCARTADO PROYECTO AZUL | BJ61: si | BK61: si | BN61: si | BO61: si | BP61: Sí | BQ61: Negociación | BR61: Alta | BS61: =IF((IF(ISBLANK(tabla_proyecto_azul_clientes[[#This Row],[Fecha de actualización (dd/mes/año)]]),1,0) +IF(ISBLANK(tabla_proyecto_azul_clientes[[#This Row],[Zona]]),1,0) +IF(ISBLANK(tabla_proyecto_azul_clientes[[#This Row],[Dirección]]),1,0) +IF(ISBLANK(tabla_proyecto_azul_clientes[[#This Row],[Módulo]]),1,0) +IF(ISBLANK(tabla_proyecto_azul_clientes[[#This Row],[GrupoCif]]),1,0) +IF(ISBLANK(tabla_proyecto_azul_clientes[[#This Row],[Nombre Grupo]]),1,0) +IF(ISBLANK(tabla_proyecto_azul_clientes[[#This Row],[Coordinador]]),1,0) +IF(ISBLANK(tabla_proyecto_azul_clientes[[#This Row],[Ejecutivo]]),1,0) +IF(ISBLANK(tabla_proyecto_azul_clientes[[#This Row],[Ppal Banco]]),1,0))>0,1,0) -> 0
A62: 2022-06-10 | B62: Zona Norte | C62: NOROESTE I | D62: CD. JUAREZ-CASAS GRANDES | E62: 14821795 | F62: LECHERIA ESCOBAR SADE CV | G62: JESÚS JOAQUÍN FERNANDEZ LARA | H62: ANGELICA BARRON MEDINA | I62: Banamex | J62: 0 | K62: 0 | L62: 0 | M62: 0 | N62: 0 | O62: 0 | R62: GRUPO PERTENECE A BE, YA CUENTA CON LINEAS AUTORIZADAS, PROSPECTO DE CASH | T62: Baja | U62: 1612 | AC62: DESCARTADO, LAS LÍNEAS VAN A LA BAJA | AE62: Establo | AF62: Comercializador | AG62: no | AH62: no | AM62: COBRANZA/PAGOS | AP62: Menos de 10 mdp | AQ62: SI | AR62: SI | AS62: COBRANZA/PAGOS | AT62: Baja | AZ62: Descartado. | BE62: DESCARTADO PROYECTO AZUL | BP62: Sí | BQ62: Negociación | BS62: =IF((IF(ISBLANK(tabla_proyecto_azul_clientes[[#This Row],[Fecha de actualización (dd/mes/año)]]),1,0) +IF(ISBLANK(tabla_proyecto_azul_clientes[[#This Row],[Zona]]),1,0) +IF(ISBLANK(tabla_proyecto_azul_clientes[[#This Row],[Dirección]]),1,0) +IF(ISBLANK(tabla_proyecto_azul_clientes[[#This Row],[Módulo]]),1,0) +IF(ISBLANK(tabla_proyecto_azul_clientes[[#This Row],[GrupoCif]]),1,0) +IF(ISBLANK(tabla_proyecto_azul_clientes[[#This Row],[Nombre Grupo]]),1,0) +IF(ISBLANK(tabla_proyecto_azul_clientes[[#This Row],[Coordinador]]),1,0) +IF(ISBLANK(tabla_proyecto_azul_clientes[[#This Row],[Ejecutivo]]),1,0) +IF(ISBLANK(tabla_proyecto_azul_clientes[[#This Row],[Ppal Banco]]),1,0))>0,1,0) -> 0
A63: 2022-06-10 | B63: Zona Norte | C63: NOROESTE I | D63: CD. JUAREZ-CASAS GRANDES | E63: 35498930 | F63: PACIFIC I DE CHIHUAHUA CGCJ SA DE CV | G63: JESÚS JOAQUÍN FERNANDEZ LARA | H63: LUIS ANGEL RUIZ MORENO | I63: Banamex | J63: 0 | K63: 0 | L63: 0 | M63: 0 | N63: - | O63: - | P63: - | Q63: - | R63: EMPRESA CON MALA EXPERIENCIA DE PAGO, ESTUVO EN CV | S63: Empresarial | T63: No Aplica | U63: $ - | AC63: DESCARTADO. CLIENTE RA.DESCARTADO. | AE63: Compra y venta de maquinaria nueva | AF63: Comercializador | AG63: no | AH63: no | AQ63: Sí | AR63: NO | AT63: No Aplica | AZ63: Descartado | BE63: DESCARTADO PROYECTO AZUL | BP63: Sí | BQ63: Descartado | BS63: =IF((IF(ISBLANK(tabla_proyecto_azul_clientes[[#This Row],[Fecha de actualización (dd/mes/año)]]),1,0) +IF(ISBLANK(tabla_proyecto_azul_clientes[[#This Row],[Zona]]),1,0) +IF(ISBLANK(tabla_proyecto_azul_clientes[[#This Row],[Dirección]]),1,0) +IF(ISBLANK(tabla_proyecto_azul_clientes[[#This Row],[Módulo]]),1,0) +IF(ISBLANK(tabla_proyecto_azul_clientes[[#This Row],[GrupoCif]]),1,0) +IF(ISBLANK(tabla_proyecto_azul_clientes[[#This Row],[Nombre Grupo]]),1,0) +IF(ISBLANK(tabla_proyecto_azul_clientes[[#This Row],[Coordinador]]),1,0) +IF(ISBLANK(tabla_proyecto_azul_clientes[[#This Row],[Ejecutivo]]),1,0) +IF(ISBLANK(tabla_proyecto_azul_clientes[[#This Row],[Ppal Banco]]),1,0))>0,1,0) -> 0
A64: 2022-06-10 | B64: Zona Norte | C64: NOROESTE I | D64: CD. JUAREZ-CASAS GRANDES | E64: 30574945 | F64: TRANSPORTADORA ZEMOG S DE RL DE CV | G64: JESÚS JOAQUÍN FERNANDEZ LARA | H64: ANGELICA BARRON MEDINA | I64: Banamex | J64: 0 | K64: 0 | L64: 0 | M64: 0 | N64: - | O64: - | P64: - | Q64: - | R64: EMPRESA NO MANEJA CREDITOS DE ARRENDAMIENTO CON BANAMEX, Y LAS LINEAS DE CREDITOS NO LAS DISPONE, YA CUENTA CON LINEAS AUTORIZADAS POR PARTE DE BANORTE ACCC MODALIDAD CREDILINEA POR $15 MDP; CUENTA CON SERVICIOS CONTRATADOS COMO NOMINA, BEM Y ARRENDAMIENTOS POR $52 MDP | S64: Empresarial | T64: Baja | AC64: DESCARTADOS. NOS TIENE TOMADAS LAS LÍNEAS. DESCARTADO | AE64: Gasolina | AF64: Comercializador | AG64: no | AH64: no | AQ64: Sí | AR64: NO | AT64: No Aplica | AZ64: Descartado | BP64: Sí | BQ64: Descartado | BS64: =IF((IF(ISBLANK(tabla_proyecto_azul_clientes[[#This Row],[Fecha de actualización (dd/mes/año)]]),1,0) +IF(ISBLANK(tabla_proyecto_azul_clientes[[#This Row],[Zona]]),1,0) +IF(ISBLANK(tabla_proyecto_azul_clientes[[#This Row],[Dirección]]),1,0) +IF(ISBLANK(tabla_proyecto_azul_clientes[[#This Row],[Módulo]]),1,0) +IF(ISBLANK(tabla_proyecto_azul_clientes[[#This Row],[GrupoCif]]),1,0) +IF(ISBLANK(tabla_proyecto_azul_clientes[[#This Row],[Nombre Grupo]]),1,0) +IF(ISBLANK(tabla_proyecto_azul_clientes[[#This Row],[Coordinador]]),1,0) +IF(ISBLANK(tabla_proyecto_azul_clientes[[#This Row],[Ejecutivo]]),1,0) +IF(ISBLANK(tabla_proyecto_azul_clientes[[#This Row],[Ppal Banco]]),1,0))>0,1,0) -> 0
A65: 2022-06-10 | B65: Zona Norte | C65: NOROESTE I | D65: CHIHUAHUA-CUAUHTEMOC | E65: 17856266 | F65: Agro Firme SA de CV SOFOM | G65: RAUL ALEJANDRO RIOS LOPEZ | H65: DIEGO GUTIERREZ ROBLES | J65: 0 | K65: 0 | L65: 0 | M65: 0 | N65: Havíos | O65: 80 | P65: Compra de pasivos | Q65: 30 | R65: Es una SOFOM: saldo promedio cartera vigente $510mdp//Riesgo total propuesto actual Banco $90mdp // El cliente no se encuentra interesado en sustituir sus lineas de Banamex, sin embargo, ya se tiene una solicitud previa con este cliente | S65: Empresarial | T65: No Aplica | AC65: DESCARTADO | AG65: Si | AM65: CAPTACION | AN65: De 1 a 5 mdp | AP65: Menos de 10 mdp | AQ65: Sí | AR65: NO | AT65: No Aplica | AZ65: Descartado | BP65: Sí | BQ65: Descartado | BR65: Baja | BS65: =IF((IF(ISBLANK(tabla_proyecto_azul_clientes[[#This Row],[Fecha de actualización (dd/mes/año)]]),1,0) +IF(ISBLANK(tabla_proyecto_azul_clientes[[#This Row],[Zona]]),1,0) +IF(ISBLANK(tabla_proyecto_azul_clientes[[#This Row],[Dirección]]),1,0) +IF(ISBLANK(tabla_proyecto_azul_clientes[[#This Row],[Módulo]]),1,0) +IF(ISBLANK(tabla_proyecto_azul_clientes[[#This Row],[GrupoCif]]),1,0) +IF(ISBLANK(tabla_proyecto_azul_clientes[[#This Row],[Nombre Grupo]]),1,0) +IF(ISBLANK(tabla_proyecto_azul_clientes[[#This Row],[Coordinador]]),1,0) +IF(ISBLANK(tabla_proyecto_azul_clientes[[#This Row],[Ejecutivo]]),1,0) +IF(ISBLANK(tabla_proyecto_azul_clientes[[#This Row],[Ppal Banco]]),1,0))>0,1,0) -> 0
A66: 2022-06-10 | B66: Zona Norte | C66: NOROESTE I | D66: CHIHUAHUA-CUAUHTEMOC | E66: 15546973 | F66: Agropecuaria la Norteñita, S. de R.L. de C.V. | G66: RAUL ALEJANDRO RIOS LOPEZ | H66: FEDERICO MORALES CORRAL | J66: 0 | K66: 0 | L66: 0 | M66: 0 | N66: Havíos | O66: 50 | R66: De momento no es susceptible de negocio nuevo | S66: Empresarial | T66: Baja | U66: 1500 | Z66: DESCARTADO | AA66: 320 | AB66: 215 ACS y 105 ACCC | AC66: DESCARTADO | AG66: si | AM66: PAGOS | AN66: Más de 50 mdp | AO66: Más de 1,000 | AP66: De 10 a 50 mdp | AQ66: Sí | AR66: NO | AT66: No Aplica | AZ66: Descartado | BE66: DESCARTADO PROYECTO AZUL | BP66: Sí | BQ66: Descartado | BR66: Baja | BS66: =IF((IF(ISBLANK(tabla_proyecto_azul_clientes[[#This Row],[Fecha de actualización (dd/mes/año)]]),1,0) +IF(ISBLANK(tabla_proyecto_azul_clientes[[#This Row],[Zona]]),1,0) +IF(ISBLANK(tabla_proyecto_azul_clientes[[#This Row],[Dirección]]),1,0) +IF(ISBLANK(tabla_proyecto_azul_clientes[[#This Row],[Módulo]]),1,0) +IF(ISBLANK(tabla_proyecto_azul_clientes[[#This Row],[GrupoCif]]),1,0) +IF(ISBLANK(tabla_proyecto_azul_clientes[[#This Row],[Nombre Grupo]]),1,0) +IF(ISBLANK(tabla_proyecto_azul_clientes[[#This Row],[Coordinador]]),1,0) +IF(ISBLANK(tabla_proyecto_azul_clientes[[#This Row],[Ejecutivo]]),1,0) +IF(ISBLANK(tabla_proyecto_azul_clientes[[#This Row],[Ppal Banco]]),1,0))>0,1,0) -> 0
A67: 2022-06-10 | B67: Zona Norte | C67: NOROESTE I | D67: CHIHUAHUA-CUAUHTEMOC | E67: 65664243 | F67: AUTOTRANSPORTES VARELA DAVILA SA DE CV | G67: RAUL ALEJANDRO RIOS LOPEZ | I67: Banamex | J67: 0 | K67: 0 | L67: 0 | M67: 0 | N67: NO | R67: El prospecto no fue agregado a la base por banca empresas, se desconoce | T67: No Aplica | U67: 83 | AC67: DESCARTADOS PROYECTO AZUL | AE67: Trasportista | AF67: Transportes | AG67: No | AH67: No | AM67: NOMINA/CAPTACION/PAGOS | AN67: De 1 a 5 mdp | AO67: De 100 a 500 | AQ67: NO | AR67: NO | AT67: No Aplica | AZ67: Descartado | BE67: No se ha concretado cita, nos interesa. | BP67: No | BQ67: Descartado | BS67: =IF((IF(ISBLANK(tabla_proyecto_azul_clientes[[#This Row],[Fecha de actualización (dd/mes/año)]]),1,0) +IF(ISBLANK(tabla_proyecto_azul_clientes[[#This Row],[Zona]]),1,0) +IF(ISBLANK(tabla_proyecto_azul_clientes[[#This Row],[Dirección]]),1,0) +IF(ISBLANK(tabla_proyecto_azul_clientes[[#This Row],[Módulo]]),1,0) +IF(ISBLANK(tabla_proyecto_azul_clientes[[#This Row],[GrupoCif]]),1,0) +IF(ISBLANK(tabla_proyecto_azul_clientes[[#This Row],[Nombre Grupo]]),1,0) +IF(ISBLANK(tabla_proyecto_azul_clientes[[#This Row],[Coordinador]]),1,0) +IF(ISBLANK(tabla_proyecto_azul_clientes[[#This Row],[Ejecutivo]]),1,0) +IF(ISBLANK(tabla_proyecto_azul_clientes[[#This Row],[Ppal Banco]]),1,0))>0,1,0) -> 0
A68: 2022-06-10 | B68: Zona Norte | C68: NOROESTE I | D68: CHIHUAHUA-CUAUHTEMOC | E68: 26854615 | F68: CHIHUAHUA MADERERA SA DE CV | G68: RAUL ALEJANDRO RIOS LOPEZ | H68: DIEGO GUTIERREZ ROBLES | I68: Banamex | J68: 0 | K68: 0 | L68: 0 | M68: 0 | R68: Cliente de RA | S68: Empresarial | T68: No Aplica | Z68: DESCARTADO | AC68: DESCARTADO. CLIENTE RA.DESCARTADO. | AE68: Madera | AF68: Comercializa Maderas | AG68: No | AH68: No | AK68: La empresa esta en Recuperacion de Activos | AQ68: Sí | AR68: NO | AT68: No Aplica | AZ68: Descartado | BE68: DESCARTADO PROYECTO AZUL | BP68: Sí | BQ68: Descartado | BR68: Baja | BS68: =IF((IF(ISBLANK(tabla_proyecto_azul_clientes[[#This Row],[Fecha de actualización (dd/mes/año)]]),1,0) +IF(ISBLANK(tabla_proyecto_azul_clientes[[#This Row],[Zona]]),1,0) +IF(ISBLANK(tabla_proyecto_azul_clientes[[#This Row],[Dirección]]),1,0) +IF(ISBLANK(tabla_proyecto_azul_clientes[[#This Row],[Módulo]]),1,0) +IF(ISBLANK(tabla_proyecto_azul_clientes[[#This Row],[GrupoCif]]),1,0) +IF(ISBLANK(tabla_proyecto_azul_clientes[[#This Row],[Nombre Grupo]]),1,0) +IF(ISBLANK(tabla_proyecto_azul_clientes[[#This Row],[Coordinador]]),1,0) +IF(ISBLANK(tabla_proyecto_azul_clientes[[#This Row],[Ejecutivo]]),1,0) +IF(ISBLANK(tabla_proyecto_azul_clientes[[#This Row],[Ppal Banco]]),1,0))>0,1,0) -> 0
A69: 2022-06-10 | B69: Zona Norte | C69: NOROESTE I | D69: CHIHUAHUA-CUAUHTEMOC | E69: 8106349 | F69: CONCENTRADOS BOVILAC SPR DE RL DE CV | G69: RAUL ALEJANDRO RIOS LOPEZ | H69: LILIANA IVONNE CARDEÑA VARGAS | J69: 0 | R69: El principal banco del cliente es Bancomer y Banorte, en Citibanamex no cuenta con saldos importantes para negocio nuevo | S69: Empresarial | T69: Media | U69: 10000 | AC69: DESCARTADO. NO TRAE CON BANAMEX. | AE69: MAIZ, TRIGO, SORGO, FRIJOL, FERTILIZANTES | AF69: comercializador de granos | AG69: si | AH69: si | AK69: la empresa va a operar en octubre con el ciclo de maiz | AM69: Captación | AQ69: No | AR69: No | AS69: Captación, FW /DW | AT69: Baja | AZ69: Descartado | BQ69: Descartado | BS69: =IF((IF(ISBLANK(tabla_proyecto_azul_clientes[[#This Row],[Fecha de actualización (dd/mes/año)]]),1,0) +IF(ISBLANK(tabla_proyecto_azul_clientes[[#This Row],[Zona]]),1,0) +IF(ISBLANK(tabla_proyecto_azul_clientes[[#This Row],[Dirección]]),1,0) +IF(ISBLANK(tabla_proyecto_azul_clientes[[#This Row],[Módulo]]),1,0) +IF(ISBLANK(tabla_proyecto_azul_clientes[[#This Row],[GrupoCif]]),1,0) +IF(ISBLANK(tabla_proyecto_azul_clientes[[#This Row],[Nombre Grupo]]),1,0) +IF(ISBLANK(tabla_proyecto_azul_clientes[[#This Row],[Coordinador]]),1,0) +IF(ISBLANK(tabla_proyecto_azul_clientes[[#This Row],[Ejecutivo]]),1,0) +IF(ISBLANK(tabla_proyecto_azul_clientes[[#This Row],[Ppal Banco]]),1,0))>0,1,0) -> 0
A70: 2022-06-10 | B70: Zona Norte | C70: NOROESTE I | D70: CHIHUAHUA-CUAUHTEMOC | E70: 6768676 | F70: COPACHISA SA DE CV | G70: RAUL ALEJANDRO RIOS LOPEZ | H70: RAUL LARA PUENTE | I70: Banamex | J70: 100 | K70: 0 | L70: 0 | M70: 100 | N70: 0 | O70: 360 | P70: Ninguno | Q70: 0 | R70: ACCC $100 mdp, somos su principal banco en tema de tesoreria /PQ $13 Millones de dólares, entre el 10-20% de su captación en manejada por banorte, el resto se concentra con Banamex. // Las empresas del grupo no son viables, mientras que la principal "COPACHISA", el cliente no se encuentra interesado en sustituir | S70: Empresarial | T70: Alta | AC70: DESCARTADOS PROYECTO AZUL | AG70: Si | AM70: PAGOS | AN70: Más de 50 mdp | AO70: De 100 a 500 | AP70: De 10 a 50 mdp | AQ70: Sí | AR70: SI | AS70: PAGOS. NOS PIDIERON ESPERAR POR TEMAS DE LA EMPRESA, PARA PAGOS QUE NO ESTAN CON NSOTROS. //27MAYO: EN PAUSA, LA EMPRESA ESTÁ CERRANDO UN TEMA. PAGO A PROVEEDORES.//10jun: trabajando pago a provee… en la espera de qe den de alta a los proveedores. | AT70: Baja | AZ70: Negociación | BE70: DESCARTADO PROYECTO AZUL | BP70: Sí | BQ70: Descartado | BR70: Baja | BS70: =IF((IF(ISBLANK(tabla_proyecto_azul_clientes[[#This Row],[Fecha de actualización (dd/mes/año)]]),1,0) +IF(ISBLANK(tabla_proyecto_azul_clientes[[#This Row],[Zona]]),1,0) +IF(ISBLANK(tabla_proyecto_azul_clientes[[#This Row],[Dirección]]),1,0) +IF(ISBLANK(tabla_proyecto_azul_clientes[[#This Row],[Módulo]]),1,0) +IF(ISBLANK(tabla_proyecto_azul_clientes[[#This Row],[GrupoCif]]),1,0) +IF(ISBLANK(tabla_proyecto_azul_clientes[[#This Row],[Nombre Grupo]]),1,0) +IF(ISBLANK(tabla_proyecto_azul_clientes[[#This Row],[Coordinador]]),1,0) +IF(ISBLANK(tabla_proyecto_azul_clientes[[#This Row],[Ejecutivo]]),1,0) +IF(ISBLANK(tabla_proyecto_azul_clientes[[#This Row],[Ppal Banco]]),1,0))>0,1,0) -> 0
A71: 2022-06-10 | B71: Zona Norte | C71: NOROESTE I | D71: CHIHUAHUA-CUAUHTEMOC | E71: 7670066 | F71: HOGARES COMERCIO E INDUSTRIA SA DE CV | G71: RAUL ALEJANDRO RIOS LOPEZ | H71: RAUL LARA PUENTE | I71: Banamex | J71: 0 | K71: 0 | L71: 0 | M71: 0 | R71: El cliente no se encuentra interesado, solo cuenta con créditos puente pequeños en el sector de vivienda, el resto de los sectores que atiende el grupo (comerciales e inmobiliarios) los atiende con capital propio, se trata de una empresa muy liquida | S71: Empresarial | T71: No Aplica | U71: $ - | AC71: DESCARTADOS PROYECTO AZUL | AE71: Constructora | AF71: CTU | AG71: no | AQ71: Sí | AR71: NO | AT71: No Aplica | AZ71: Descartado | BP71: Sí | BQ71: Descartado | BR71: Baja | BS71: =IF((IF(ISBLANK(tabla_proyecto_azul_clientes[[#This Row],[Fecha de actualización (dd/mes/año)]]),1,0) +IF(ISBLANK(tabla_proyecto_azul_clientes[[#This Row],[Zona]]),1,0) +IF(ISBLANK(tabla_proyecto_azul_clientes[[#This Row],[Dirección]]),1,0) +IF(ISBLANK(tabla_proyecto_azul_clientes[[#This Row],[Módulo]]),1,0) +IF(ISBLANK(tabla_proyecto_azul_clientes[[#This Row],[GrupoCif]]),1,0) +IF(ISBLANK(tabla_proyecto_azul_clientes[[#This Row],[Nombre Grupo]]),1,0) +IF(ISBLANK(tabla_proyecto_azul_clientes[[#This Row],[Coordinador]]),1,0) +IF(ISBLANK(tabla_proyecto_azul_clientes[[#This Row],[Ejecutivo]]),1,0) +IF(ISBLANK(tabla_proyecto_azul_clientes[[#This Row],[Ppal Banco]]),1,0))>0,1,0) -> 0
A72: 2022-06-10 | B72: Zona Norte | C72: NOROESTE I | D72: CHIHUAHUA-CUAUHTEMOC | E72: 51039483 | F72: INTERMEX SERVICIOS CORPORATIVOS DE ADMINISTRACION SA DE CV | G72: RAUL ALEJANDRO RIOS LOPEZ | H72: GERALDINE JIMENEZ CHAVEZ | J72: 0 | K72: 0 | L72: 0 | M72: 0 | P72: Compra de pasivos | Q72: 884 | R72: El pasivo corresponde a créditos estabilizados, hemos intentado entrar anteriormente con el cliente, y nos hemos quedado cortos en plazo, tiempo y tasa. El área de financiamiento estructurado no puede otorgar el crédito como lo solicita el cliente | S72: Empresarial | T72: No Aplica | AC72: DESCARTADOS PROYECTO AZUL | AO72: Más de 1,000 | AQ72: Sí | AR72: NO | AT72: No Aplica | AZ72: Descartado | BP72: Sí | BQ72: Descartado | BR72: Baja | BS72: =IF((IF(ISBLANK(tabla_proyecto_azul_clientes[[#This Row],[Fecha de actualización (dd/mes/año)]]),1,0) +IF(ISBLANK(tabla_proyecto_azul_clientes[[#This Row],[Zona]]),1,0) +IF(ISBLANK(tabla_proyecto_azul_clientes[[#This Row],[Dirección]]),1,0) +IF(ISBLANK(tabla_proyecto_azul_clientes[[#This Row],[Módulo]]),1,0) +IF(ISBLANK(tabla_proyecto_azul_clientes[[#This Row],[GrupoCif]]),1,0) +IF(ISBLANK(tabla_proyecto_azul_clientes[[#This Row],[Nombre Grupo]]),1,0) +IF(ISBLANK(tabla_proyecto_azul_clientes[[#This Row],[Coordinador]]),1,0) +IF(ISBLANK(tabla_proyecto_azul_clientes[[#This Row],[Ejecutivo]]),1,0) +IF(ISBLANK(tabla_proyecto_azul_clientes[[#This Row],[Ppal Banco]]),1,0))>0,1,0) -> 0
A73: 2022-06-10 | B73: Zona Norte | C73: NOROESTE I | D73: CHIHUAHUA-CUAUHTEMOC | E73: 6942800 | F73: MANGUERAS Y CONEXIONES HIDRAULICAS DE CHIHUAHUA SA DE CV | G73: RAUL ALEJANDRO RIOS LOPEZ | H73: LILIANA IVONNE CARDEÑA VARGAS | J73: 1 | K73: 0 | L73: 0 | M73: 1 | R73: El principal banco del cliente es Banorte, el cliente no tiene gran negocio con Banamex, y actualmente tiene créditos amortizables a la baja, arrendadora y lineas de servicio | S73: Empresarial | T73: No Aplica | U73: $ - | AC73: DESCARTADOS PROYECTO AZUL | AE73: Venta de diversos productos de ferreteria | AF73: comercializacion de mercancia de ferreteria | AK73: con especificaciones tecnicas de acuerdo a sus clientes y estan distribuidas en 16 razones sociales 1 por cada sucursal | AQ73: Sí | AR73: NO | AT73: No Aplica | AZ73: Descartado | BE73: DESCARTADO PROYECTO AZUL | BP73: Sí | BQ73: Descartado | BR73: Baja | BS73: =IF((IF(ISBLANK(tabla_proyecto_azul_clientes[[#This Row],[Fecha de actualización (dd/mes/año)]]),1,0) +IF(ISBLANK(tabla_proyecto_azul_clientes[[#This Row],[Zona]]),1,0) +IF(ISBLANK(tabla_proyecto_azul_clientes[[#This Row],[Dirección]]),1,0) +IF(ISBLANK(tabla_proyecto_azul_clientes[[#This Row],[Módulo]]),1,0) +IF(ISBLANK(tabla_proyecto_azul_clientes[[#This Row],[GrupoCif]]),1,0) +IF(ISBLANK(tabla_proyecto_azul_clientes[[#This Row],[Nombre Grupo]]),1,0) +IF(ISBLANK(tabla_proyecto_azul_clientes[[#This Row],[Coordinador]]),1,0) +IF(ISBLANK(tabla_proyecto_azul_clientes[[#This Row],[Ejecutivo]]),1,0) +IF(ISBLANK(tabla_proyecto_azul_clientes[[#This Row],[Ppal Banco]]),1,0))>0,1,0) -> 0
A74: 2022-06-10 | B74: Zona Norte | C74: NOROESTE I | D74: CHIHUAHUA-CUAUHTEMOC | E74: 10033722 | F74: PRODUCTOS FORESTALESSIERRA GRANDE SA DECV | G74: RAUL ALEJANDRO RIOS LOPEZ | H74: DIEGO GUTIERREZ ROBLES | I74: Banamex | J74: 0 | K74: 0 | L74: 0 | M74: 0 | R74: Cliente de RA | S74: Empresarial | T74: No Aplica | AC74: DESCARTADO. CLIENTE RA.DESCARTADO. | AE74: no se tiene conocimiento | AF74: la empresa es atendida por PYME | AG74: no | AH74: no | AK74: La empresa esta en Recuperacion de Activos | AQ74: Sí | AR74: NO | AT74: No Aplica | AZ74: Descartado | BP74: Sí | BQ74: Descartado | BR74: Baja | BS74: =IF((IF(ISBLANK(tabla_proyecto_azul_clientes[[#This Row],[Fecha de actualización (dd/mes/año)]]),1,0) +IF(ISBLANK(tabla_proyecto_azul_clientes[[#This Row],[Zona]]),1,0) +IF(ISBLANK(tabla_proyecto_azul_clientes[[#This Row],[Dirección]]),1,0) +IF(ISBLANK(tabla_proyecto_azul_clientes[[#This Row],[Módulo]]),1,0) +IF(ISBLANK(tabla_proyecto_azul_clientes[[#This Row],[GrupoCif]]),1,0) +IF(ISBLANK(tabla_proyecto_azul_clientes[[#This Row],[Nombre Grupo]]),1,0) +IF(ISBLANK(tabla_proyecto_azul_clientes[[#This Row],[Coordinador]]),1,0) +IF(ISBLANK(tabla_proyecto_azul_clientes[[#This Row],[Ejecutivo]]),1,0) +IF(ISBLANK(tabla_proyecto_azul_clientes[[#This Row],[Ppal Banco]]),1,0))>0,1,0) -> 0
A75: 2022-06-10 | B75: Zona Norte | C75: NOROESTE I | D75: CHIHUAHUA-CUAUHTEMOC | E75: 5256457 | F75: QUESERIA DOS LAGUNAS SA DE CV | G75: RAUL ALEJANDRO RIOS LOPEZ | H75: FEDERICO MORALES CORRAL | I75: Banamex | J75: 0 | K75: 0 | L75: 0 | M75: 0 | N75: NO | R75: LOS PRINCIPALES BANCOS DEL CLIENTE SON BBVA EN CAPTACIÓN Y SCOTIABANK EN CARTERA, NO SE CONSIDERA PARTE DEL PROYECTO CITIBANAMEX | Z75: DESCARTADO | AC75: DESCARTADO. NO TRAE CON BANAMEX. | AE75: elaboracion de queso y comercializacion. | AK75: La empresa trabaja con cartas de credito y no le interesa el servicio de habilitacion | AM75: COBRANZA/PAGOS | AQ75: SI | AR75: NO | AT75: No Aplica | AZ75: Descartado | BE75: DESCARTADO PROYECTO AZUL | BP75: Sí | BQ75: Descartado | BR75: Baja | BS75: =IF((IF(ISBLANK(tabla_proyecto_azul_clientes[[#This Row],[Fecha de actualización (dd/mes/año)]]),1,0) +IF(ISBLANK(tabla_proyecto_azul_clientes[[#This Row],[Zona]]),1,0) +IF(ISBLANK(tabla_proyecto_azul_clientes[[#This Row],[Dirección]]),1,0) +IF(ISBLANK(tabla_proyecto_azul_clientes[[#This Row],[Módulo]]),1,0) +IF(ISBLANK(tabla_proyecto_azul_clientes[[#This Row],[GrupoCif]]),1,0) +IF(ISBLANK(tabla_proyecto_azul_clientes[[#This Row],[Nombre Grupo]]),1,0) +IF(ISBLANK(tabla_proyecto_azul_clientes[[#This Row],[Coordinador]]),1,0) +IF(ISBLANK(tabla_proyecto_azul_clientes[[#This Row],[Ejecutivo]]),1,0) +IF(ISBLANK(tabla_proyecto_azul_clientes[[#This Row],[Ppal Banco]]),1,0))>0,1,0) -> 0
A76: 2022-06-10 | B76: Zona Norte | C76: NOROESTE I | D76: CHIHUAHUA-CUAUHTEMOC | E76: 50401150 | F76: SISTEMAS DE RIEGO CUAUHTEMOC SPR DE RL DE CV | G76: RAUL ALEJANDRO RIOS LOPEZ | H76: FEDERICO MORALES CORRAL | J76: 0 | K76: 0 | L76: 0 | M76: 0 | R76: Descartado. Se realizó cita con el cliente, y se tiene propuesta para incrementar los saldos de cartera, sin embargo, el cliente indica que seguirá trabajando con Banamex | S76: Empresarial | T76: Media | U76: 12298 | Z76: DESCARTADO | AA76: 80 | AB76: ACCC | AC76: DESCARTADO BE Y AGRO | AE76: sistemas de riego | AF76: sistemas de riego | AG76: no | AH76: no | AM76: PAGOS | AQ76: No | AR76: NO | AS76: pendientes. | AT76: Baja | AZ76: Contacto inicial | BP76: Sí | BQ76: Contacto inicial | BR76: Baja | BS76: =IF((IF(ISBLANK(tabla_proyecto_azul_clientes[[#This Row],[Fecha de actualización (dd/mes/año)]]),1,0) +IF(ISBLANK(tabla_proyecto_azul_clientes[[#This Row],[Zona]]),1,0) +IF(ISBLANK(tabla_proyecto_azul_clientes[[#This Row],[Dirección]]),1,0) +IF(ISBLANK(tabla_proyecto_azul_clientes[[#This Row],[Módulo]]),1,0) +IF(ISBLANK(tabla_proyecto_azul_clientes[[#This Row],[GrupoCif]]),1,0) +IF(ISBLANK(tabla_proyecto_azul_clientes[[#This Row],[Nombre Grupo]]),1,0) +IF(ISBLANK(tabla_proyecto_azul_clientes[[#This Row],[Coordinador]]),1,0) +IF(ISBLANK(tabla_proyecto_azul_clientes[[#This Row],[Ejecutivo]]),1,0) +IF(ISBLANK(tabla_proyecto_azul_clientes[[#This Row],[Ppal Banco]]),1,0))>0,1,0) -> 0
A77: 2022-06-10 | B77: Zona Norte | C77: NOROESTE I | D77: CHIHUAHUA-CUAUHTEMOC | E77: 6666501 | F77: SISTEMAS Y SERVICIOS DE COMUNICACION SADE CV | G77: RAUL ALEJANDRO RIOS LOPEZ | H77: GILBERTO MARIN | I77: Banamex | T77: Alta | U77: 306104 | AC77: DESCARTADOS PROYECTO AZUL | AE77: Productos Tecnologicos y de comunicación | AF77: comercializa productos de comunicación | AG77: no | AH77: no | AM77: Nómina | AO77: De 50 a 100 | AP77: Menos de 10 mdp | AQ77: SI | AR77: SI | AS77: Nómina. 27may: se ofreció homologar beneficios, sería otros 120 empleados de banamex. //10jun: buscando reunión la proxima semana. Nomina especiales, se espera incrementar esa nómina. | AT77: Alta | AZ77: Negociación | BQ77: Contacto inicial | BS77: =IF((IF(ISBLANK(tabla_proyecto_azul_clientes[[#This Row],[Fecha de actualización (dd/mes/año)]]),1,0) +IF(ISBLANK(tabla_proyecto_azul_clientes[[#This Row],[Zona]]),1,0) +IF(ISBLANK(tabla_proyecto_azul_clientes[[#This Row],[Dirección]]),1,0) +IF(ISBLANK(tabla_proyecto_azul_clientes[[#This Row],[Módulo]]),1,0) +IF(ISBLANK(tabla_proyecto_azul_clientes[[#This Row],[GrupoCif]]),1,0) +IF(ISBLANK(tabla_proyecto_azul_clientes[[#This Row],[Nombre Grupo]]),1,0) +IF(ISBLANK(tabla_proyecto_azul_clientes[[#This Row],[Coordinador]]),1,0) +IF(ISBLANK(tabla_proyecto_azul_clientes[[#This Row],[Ejecutivo]]),1,0) +IF(ISBLANK(tabla_proyecto_azul_clientes[[#This Row],[Ppal Banco]]),1,0))>0,1,0) -> 0
A78: 2022-06-10 | B78: Zona Norte | C78: NOROESTE I | D78: CHIHUAHUA-CUAUHTEMOC | E78: 11198078 | F78: UNION AGRICOLA REGIONAL DE PRODUCTORES DE MAIZ AMARILLO | G78: RAUL ALEJANDRO RIOS LOPEZ | H78: GERALDINE JIMENEZ CHAVEZ | I78: Banamex | J78: 0 | K78: 0 | L78: 0 | M78: 0 | N78: Havíos | O78: 700 | P78: Compra de pasivos | Q78: 2 | R78: Hemos quedado fuera de la competencia debido a la tasa y tiempo | S78: Empresarial | T78: No Aplica | U78: $ - | AA78: 380 | AB78: ACCC | AC78: DESCARTADO. EL CLIENTE NO HA QUERIDO TOMARNOS CRÉDITO | AE78: MAIZ, TRIGO, SORGO, FRIJOL, FERTILIZANTES | AF78: GRANOS Y SEMILLAS | AG78: Si | AN78: 0 | AO78: 0 | AP78: De 10 a 50 mdp | AQ78: Sí | AR78: NO | AT78: No Aplica | AZ78: Descartado | BP78: Sí | BQ78: Descartado | BR78: Baja | BS78: =IF((IF(ISBLANK(tabla_proyecto_azul_clientes[[#This Row],[Fecha de actualización (dd/mes/año)]]),1,0) +IF(ISBLANK(tabla_proyecto_azul_clientes[[#This Row],[Zona]]),1,0) +IF(ISBLANK(tabla_proyecto_azul_clientes[[#This Row],[Dirección]]),1,0) +IF(ISBLANK(tabla_proyecto_azul_clientes[[#This Row],[Módulo]]),1,0) +IF(ISBLANK(tabla_proyecto_azul_clientes[[#This Row],[GrupoCif]]),1,0) +IF(ISBLANK(tabla_proyecto_azul_clientes[[#This Row],[Nombre Grupo]]),1,0) +IF(ISBLANK(tabla_proyecto_azul_clientes[[#This Row],[Coordinador]]),1,0) +IF(ISBLANK(tabla_proyecto_azul_clientes[[#This Row],[Ejecutivo]]),1,0) +IF(ISBLANK(tabla_proyecto_azul_clientes[[#This Row],[Ppal Banco]]),1,0))>0,1,0) -> 0
A79: 2022-06-10 | B79: Zona Norte | C79: NOROESTE I | D79: CHIHUAHUA-CUAUHTEMOC | E79: 1703938 | F79: UNION DE CREDITO AGRICULTORES DE CUAUHTEMOC SA DE CV | G79: RAUL ALEJANDRO RIOS LOPEZ | H79: FEDERICO MORALES CORRAL | J79: 0 | K79: 0 | L79: 0 | M79: 0 | N79: Havíos | O79: 400 | P79: Compra de pasivos | Q79: 200 | R79: Actualmente estamos fuera de la competencia por margen de tasa | S79: Empresarial | T79: No Aplica | U79: $ - | AA79: 400 | AB79: 150 ACS y 250 ACCC | AC79: DESCARTADO. NO SE HA PODIDO ENTRAR POR TASA. Fuimos su principal banco en inicios de la empresa | AD79: Baja | AE79: Es una financiera de Cuauhtemoc | AG79: Si | AN79: Más de 50 mdp | AO79: De 50 a 100 | AP79: Más de 100 mdp | AQ79: Sí | AR79: NO | AT79: No Aplica | AZ79: Descartado | BP79: Sí | BQ79: Descartado | BR79: Baja | BS79: =IF((IF(ISBLANK(tabla_proyecto_azul_clientes[[#This Row],[Fecha de actualización (dd/mes/año)]]),1,0) +IF(ISBLANK(tabla_proyecto_azul_clientes[[#This Row],[Zona]]),1,0) +IF(ISBLANK(tabla_proyecto_azul_clientes[[#This Row],[Dirección]]),1,0) +IF(ISBLANK(tabla_proyecto_azul_clientes[[#This Row],[Módulo]]),1,0) +IF(ISBLANK(tabla_proyecto_azul_clientes[[#This Row],[GrupoCif]]),1,0) +IF(ISBLANK(tabla_proyecto_azul_clientes[[#This Row],[Nombre Grupo]]),1,0) +IF(ISBLANK(tabla_proyecto_azul_clientes[[#This Row],[Coordinador]]),1,0) +IF(ISBLANK(tabla_proyecto_azul_clientes[[#This Row],[Ejecutivo]]),1,0) +IF(ISBLANK(tabla_proyecto_azul_clientes[[#This Row],[Ppal Banco]]),1,0))>0,1,0) -> 0
A80: 2022-06-10 | B80: Zona Norte | C80: NOROESTE I | D80: MEXICALI | E80: 17583653 | F80: COMBUSTIBLES EL CENTENARIO SA DE CV | G80: BRENDA MEZA JIMENEZ | H80: DIEGO FLORES RAMIREZ | I80: Banamex | J80: 0 | K80: 0 | L80: 0 | M80: 0 | R80: Descartado. Cliente en RA | S80: Empresarial | T80: No Aplica | AC80: DESCARTADO. CLIENTE RA .DESCARTADO. | AK80: DESCARTADO. RA. | AQ80: Sí | AT80: No Aplica | AZ80: Descartado | BE80: DESCARTADO. ES RA. | BP80: Sí | BQ80: Descartado | BR80: Baja | BS80: =IF((IF(ISBLANK(tabla_proyecto_azul_clientes[[#This Row],[Fecha de actualización (dd/mes/año)]]),1,0) +IF(ISBLANK(tabla_proyecto_azul_clientes[[#This Row],[Zona]]),1,0) +IF(ISBLANK(tabla_proyecto_azul_clientes[[#This Row],[Dirección]]),1,0) +IF(ISBLANK(tabla_proyecto_azul_clientes[[#This Row],[Módulo]]),1,0) +IF(ISBLANK(tabla_proyecto_azul_clientes[[#This Row],[GrupoCif]]),1,0) +IF(ISBLANK(tabla_proyecto_azul_clientes[[#This Row],[Nombre Grupo]]),1,0) +IF(ISBLANK(tabla_proyecto_azul_clientes[[#This Row],[Coordinador]]),1,0) +IF(ISBLANK(tabla_proyecto_azul_clientes[[#This Row],[Ejecutivo]]),1,0) +IF(ISBLANK(tabla_proyecto_azul_clientes[[#This Row],[Ppal Banco]]),1,0))>0,1,0) -> 0
A81: 2022-06-10 | B81: Zona Norte | C81: NOROESTE I | D81: MEXICALI | E81: 1739825 | F81: COMERCIAL DE CARNESFRIAS DEL NORTE SA DE CV | G81: BRENDA MEZA JIMENEZ | H81: DIEGO FLORES RAMIREZ | J81: 4 | K81: 0 | L81: 0 | M81: 4 | R81: Descartado. Ya se atrajo el año pasado la tesorería de Banamex, anterior a proyecto azul | S81: Empresarial | T81: Alta | U81: 150000 | AC81: DESCARTADOS PROYECTO AZUL | AK81: 10JUN: EN REVISIÓN COMO MANEJA EL CLIENTE LAS CARNES. | AM81: INVERSION | AQ81: Sí | AR81: NO | AT81: No Aplica | AZ81: Descartado. Cliente su operación la tenemos con Banorte. 13may Cambiar tecnología | BE81: DESCARTADO. Toman poco pasivo, traen bastante flujo, siempre calificamos y no contratan. | BP81: Sí | BQ81: Descartado | BR81: Baja | BS81: =IF((IF(ISBLANK(tabla_proyecto_azul_clientes[[#This Row],[Fecha de actualización (dd/mes/año)]]),1,0) +IF(ISBLANK(tabla_proyecto_azul_clientes[[#This Row],[Zona]]),1,0) +IF(ISBLANK(tabla_proyecto_azul_clientes[[#This Row],[Dirección]]),1,0) +IF(ISBLANK(tabla_proyecto_azul_clientes[[#This Row],[Módulo]]),1,0) +IF(ISBLANK(tabla_proyecto_azul_clientes[[#This Row],[GrupoCif]]),1,0) +IF(ISBLANK(tabla_proyecto_azul_clientes[[#This Row],[Nombre Grupo]]),1,0) +IF(ISBLANK(tabla_proyecto_azul_clientes[[#This Row],[Coordinador]]),1,0) +IF(ISBLANK(tabla_proyecto_azul_clientes[[#This Row],[Ejecutivo]]),1,0) +IF(ISBLANK(tabla_proyecto_azul_clientes[[#This Row],[Ppal Banco]]),1,0))>0,1,0) -> 0
A82: 2022-06-10 | B82: Zona Norte | C82: NOROESTE I | D82: MEXICALI | E82: 2603297 | F82: CONSTRUCTORA CADENASA DE CV | G82: BRENDA MEZA JIMENEZ | H82: ELIZABETH NUNGARAY MARTINEZ | J82: 0 | K82: 0 | L82: 0 | M82: 0 | R82: SU CAPTACION ESTIMADA ES MENOS DE 1MDP. CLIENTE ARRENDAMIENTO.//27MAY: INT DE INFORMACIÓN | S82: Empresarial | T82: Baja | Z82: En proceso de ir a comité, línea de $5mdp. | AC82: DESCARTADOS PROYECTO AZUL | AK82: DESCARTADO. | AM82: CUENTAS/PAGOS | AQ82: No | AR82: NO | AS82: 10jun: Aperturando cuenta desarrollos … cita con ejecutivo para con el cliente, para validar la captación. | AT82: Baja | AZ82: Contacto inicial | BE82: Si se podrían, y traen una línea, y utilizan. Podemos para la constructora y fracc. | BF82: Media | BG82: pendiente monto | BP82: Sí | BQ82: Contacto inicial | BR82: Media | BS82: =IF((IF(ISBLANK(tabla_proyecto_azul_clientes[[#This Row],[Fecha de actualización (dd/mes/año)]]),1,0) +IF(ISBLANK(tabla_proyecto_azul_clientes[[#This Row],[Zona]]),1,0) +IF(ISBLANK(tabla_proyecto_azul_clientes[[#This Row],[Dirección]]),1,0) +IF(ISBLANK(tabla_proyecto_azul_clientes[[#This Row],[Módulo]]),1,0) +IF(ISBLANK(tabla_proyecto_azul_clientes[[#This Row],[GrupoCif]]),1,0) +IF(ISBLANK(tabla_proyecto_azul_clientes[[#This Row],[Nombre Grupo]]),1,0) +IF(ISBLANK(tabla_proyecto_azul_clientes[[#This Row],[Coordinador]]),1,0) +IF(ISBLANK(tabla_proyecto_azul_clientes[[#This Row],[Ejecutivo]]),1,0) +IF(ISBLANK(tabla_proyecto_azul_clientes[[#This Row],[Ppal Banco]]),1,0))>0,1,0) -> 0
A83: 2022-06-10 | B83: Zona Norte | C83: NOROESTE I | D83: MEXICALI | E83: 21884353 | F83: HOSPITAL ALMATER SADE CV | G83: BRENDA MEZA JIMENEZ | H83: EDGAR ANDRES PORCHAS DOMINGUEZ | I83: Banamex | J83: 0 | K83: 0 | L83: 0 | M83: 0 | R83: Descartado. No tiene cuetas con Banamex | S83: Empresarial | T83: No Aplica | U83: $ - | AC83: DESCARTADOS PROYECTO AZUL | AK83: DESCARTADO. | AM83: CLIENTE NO OPERA CON CITI | AQ83: Sí | AT83: No Aplica | AZ83: Descartado. Cliente su operación la tenemos con Banorte | BE83: DESCARTADO PROYECTO AZUL | BP83: Sí | BQ83: Descartado | BR83: Baja | BS83: =IF((IF(ISBLANK(tabla_proyecto_azul_clientes[[#This Row],[Fecha de actualización (dd/mes/año)]]),1,0) +IF(ISBLANK(tabla_proyecto_azul_clientes[[#This Row],[Zona]]),1,0) +IF(ISBLANK(tabla_proyecto_azul_clientes[[#This Row],[Dirección]]),1,0) +IF(ISBLANK(tabla_proyecto_azul_clientes[[#This Row],[Módulo]]),1,0) +IF(ISBLANK(tabla_proyecto_azul_clientes[[#This Row],[GrupoCif]]),1,0) +IF(ISBLANK(tabla_proyecto_azul_clientes[[#This Row],[Nombre Grupo]]),1,0) +IF(ISBLANK(tabla_proyecto_azul_clientes[[#This Row],[Coordinador]]),1,0) +IF(ISBLANK(tabla_proyecto_azul_clientes[[#This Row],[Ejecutivo]]),1,0) +IF(ISBLANK(tabla_proyecto_azul_clientes[[#This Row],[Ppal Banco]]),1,0))>0,1,0) -> 0
A84: 2022-06-10 | B84: Zona Norte | C84: NOROESTE I | D84: MEXICALI | E84: 26366635 | F84: INDUSTRIAS ASOCIADAS MAQUILADORAS | G84: BRENDA MEZA JIMENEZ | H84: ELIZABETH NUNGARAY MARTINEZ | J84: 0 | K84: 0 | L84: 0 | M84: 0 | R84: su captación estimada es de 10 a 50mdp | S84: Empresarial | T84: No Aplica | U84: $ - | AC84: DESCARTADOS PROYECTO AZUL | AK84: DESCARTADO. | AM84: NOMINA, CUENTAS, PAGOS. 27may: cobranza. | AP84: De 10 a 50 mdp | AQ84: Sí | AS84: 10jun: cuenta nueva, de la residencial. Pago recurrentes $500mil pesos. | AT84: Baja | AZ84: Contratación de cobranza. Y liga de pago para torre de condominios. | BE84: DESCARTADO PROYECTO AZUL | BP84: Sí | BQ84: Contacto inicial | BR84: Media | BS84: =IF((IF(ISBLANK(tabla_proyecto_azul_clientes[[#This Row],[Fecha de actualización (dd/mes/año)]]),1,0) +IF(ISBLANK(tabla_proyecto_azul_clientes[[#This Row],[Zona]]),1,0) +IF(ISBLANK(tabla_proyecto_azul_clientes[[#This Row],[Dirección]]),1,0) +IF(ISBLANK(tabla_proyecto_azul_clientes[[#This Row],[Módulo]]),1,0) +IF(ISBLANK(tabla_proyecto_azul_clientes[[#This Row],[GrupoCif]]),1,0) +IF(ISBLANK(tabla_proyecto_azul_clientes[[#This Row],[Nombre Grupo]]),1,0) +IF(ISBLANK(tabla_proyecto_azul_clientes[[#This Row],[Coordinador]]),1,0) +IF(ISBLANK(tabla_proyecto_azul_clientes[[#This Row],[Ejecutivo]]),1,0) +IF(ISBLANK(tabla_proyecto_azul_clientes[[#This Row],[Ppal Banco]]),1,0))>0,1,0) -> 0
A85: 2022-06-10 | B85: Zona Norte | C85: NOROESTE I | D85: MEXICALI | E85: 12889343 | F85: NEGOCIOS INMOBILIARIOS DE MEXICO SA DE CV | G85: BRENDA MEZA JIMENEZ | H85: BRENDA MEZA JIMENEZ | I85: Banamex | J85: 0 | K85: 0 | L85: 0 | M85: 0 | R85: Descartado. No cuenta con tesorería en Banamex, tienen Banorte y Santander. | S85: Empresarial | T85: No Aplica | U85: $ - | AC85: DESCARTADOS PROYECTO AZUL | AK85: DESCARTADO. | AQ85: No | AT85: Baja | AZ85: DESCARTADO RA. Contacto inicial | BE85: DESCARTADO PROYECTO AZUL | BP85: No | BQ85: Descartado | BR85: Baja | BS85: =IF((IF(ISBLANK(tabla_proyecto_azul_clientes[[#This Row],[Fecha de actualización (dd/mes/año)]]),1,0) +IF(ISBLANK(tabla_proyecto_azul_clientes[[#This Row],[Zona]]),1,0) +IF(ISBLANK(tabla_proyecto_azul_clientes[[#This Row],[Dirección]]),1,0) +IF(ISBLANK(tabla_proyecto_azul_clientes[[#This Row],[Módulo]]),1,0) +IF(ISBLANK(tabla_proyecto_azul_clientes[[#This Row],[GrupoCif]]),1,0) +IF(ISBLANK(tabla_proyecto_azul_clientes[[#This Row],[Nombre Grupo]]),1,0) +IF(ISBLANK(tabla_proyecto_azul_clientes[[#This Row],[Coordinador]]),1,0) +IF(ISBLANK(tabla_proyecto_azul_clientes[[#This Row],[Ejecutivo]]),1,0) +IF(ISBLANK(tabla_proyecto_azul_clientes[[#This Row],[Ppal Banco]]),1,0))>0,1,0) -> 0
A86: 2022-06-10 | B86: Zona Norte | C86: NOROESTE I | D86: MEXICALI | E86: 4455349 | F86: OPERADORA RIO COLORADO S DE RL DE CV | G86: BRENDA MEZA JIMENEZ | H86: ELIZABETH NUNGARAY MARTINEZ | I86: Banamex | J86: 0 | K86: 0 | L86: 0 | M86: 0 | R86: Descartado. Cliente no tiene cuentas Banamex | S86: Empresarial | T86: Baja | AC86: DESCARTADOS PROYECTO AZUL | AK86: DESCARTADO. | AM86: CLIENTE NO OPERA CON CITI | AQ86: Sí | AR86: NO | AT86: No Aplica | AZ86: Descartado. Cliente su operación la tenemos con Banorte | BE86: DESCARTADO PROYECTO AZUL | BP86: Sí | BQ86: Descartado | BR86: Baja | BS86: =IF((IF(ISBLANK(tabla_proyecto_azul_clientes[[#This Row],[Fecha de actualización (dd/mes/año)]]),1,0) +IF(ISBLANK(tabla_proyecto_azul_clientes[[#This Row],[Zona]]),1,0) +IF(ISBLANK(tabla_proyecto_azul_clientes[[#This Row],[Dirección]]),1,0) +IF(ISBLANK(tabla_proyecto_azul_clientes[[#This Row],[Módulo]]),1,0) +IF(ISBLANK(tabla_proyecto_azul_clientes[[#This Row],[GrupoCif]]),1,0) +IF(ISBLANK(tabla_proyecto_azul_clientes[[#This Row],[Nombre Grupo]]),1,0) +IF(ISBLANK(tabla_proyecto_azul_clientes[[#This Row],[Coordinador]]),1,0) +IF(ISBLANK(tabla_proyecto_azul_clientes[[#This Row],[Ejecutivo]]),1,0) +IF(ISBLANK(tabla_proyecto_azul_clientes[[#This Row],[Ppal Banco]]),1,0))>0,1,0) -> 0
